Workbook

Sheet Introduction
M11: MAINtenance, renewal and Improvement
M12: of rail transport iNfrastructure
M13: to reduce Economic and environmental impacts
H15: Abstract of the MAINLINE Project: Growth in demand for rail transportation across Europe is predicted to continue. Much of this growth will have to be accommodated on existing lines that contain old infrastructure. This demand will increase both the rate of deterioration of these elderly assets and the need for shorter line closures for maintenance or renewal interventions. The impact of these interventions must be minimized and will also need to take into account the need for lower economic and environmental impacts. New interventions will need to be developed along with additional tools to inform decision makers about the economic and environmental consequences of different intervention options being considered. MAINLINE proposes to address all these issues through a series of linked work packages that will target at least € 300m per year savings across Europe with a reduced environmental footprint in terms of embodied carbon and other environmental benefits. It will: - Apply new technologies to extend the life of elderly infrastructure - Improve degradation and structural models to develop more realistic life cycle cost and safety models - Investigate new construction methods for the replacement of obsolete infrastructure - Investigate monitoring techniques to complement or replace existing examination techniques - Develop management tools to assess whole life environmental and economic impact.
H36: Project funded by the EU 7th Framework Programme under call SST.2011.5.2-6 Cost-effective improvement of rail transport, infrastructure. Grant agreement no: 285121

Sheet BridgesLCAT
B5: Metallic Bridges Life Cycle Assessment Tool (LCAT)
B7: 1 | C7: LCAT Definition
B8: A | C8: Each LCAT is a forecasting tool that compares different maintenance and intervention strategies for the selected asset based on a life cycle evaluation. A Life-Cycle Assessment is ‘the comparison and
C9: and evaluation of the inputs/outputs and the potential environmental impacts of a system during its lifetime. Such a lifecycle evaluation attempts to quantify and model:
C10: - Direct economic costs
C11: - Availability (delay costs / user cost)
C12: - Environmental impact costs
B13: B | C13: For a more detailed explanation of the mode, the User is encouraged to reference the LCAT User Manual written under the ML D5.7 deliverable.
B15: 2 | C15: LCAT function
B30: 3 | C30: LCAT application
B31: A | C31: This tool processes a single element of a metallic bridge at a time, correlating condition and capacity.
B32: B | C32: Multiple runs of the LCAT tool may be required on a number of the bridge elements to establish the optimum strategy for the entire bridge.
B34: 4 | C34: Deterioration modelling: Coating & Corrosion
B35: A | C35: The modelling of degradation of metallic bridges is deterministic and based on the assumption that an element’s coating deteriorates first and corrosion follows if the element is left unpainted.
B36: B | C36: The Bridges LCAT features two ancillary worksheets (‘Reference’ and ‘Assumptions’ worksheets), to introduce the concepts and assumptions being made for corrosion and coating deterioration
C37: modelling techniques.
B38: C | C38: A framework is presented in the ‘Reference’ sheet of the LCAT and shows the coating information that the model applies by default.
B39: D | C39: However, the User can apply different coating systems and see the performance of the asset under multiple conditions.
B40: E | C40: The progress of atmospheric corrosion can be modelled in terms of thickness loss using a power expression:
B42: 5 | C42: Summary

Sheet Flowchart
A1: MAINLINE | C1: Metallic Bridges Model
B3: Model Flow Chart
C4: This shows the relationship between the sheets in this model.
C5: Click on a heading to go to that sheet.

Sheet Instructions
A1: MAINLINE | C1: =Flowchart!C1 -> Metallic Bridges Model
B4: Background: | C4: MAINLINE: | D4: Work Package 5; Deliverable 5.5 - Life-cycle Assessment Tool
C5: File name: | D5: ML_D5.5_BridgesModel_v09.00.xlsm
C6: Model ref: | D6: ML-D5.5 Bridges Model
C7: Model version: | D7: =MID(CELL("Filename",$A$1),FIND("_v",CELL("Filename",$A$1),1)+2,5) -> 09 00
C8: Version date: | D8: 2014-09-01
C9: Function: | D9: This model was developed by the MAINLINE project to demonstrate the deteroration and intervention algorithms discovered in the MAINLINE work packages.
B12: INSTRUCTIONS: | D12: Instructions are given below for each sheet which requires some user input
B13: Sheet colours: | C13: NOTES | D13: Black tab sheets are general instructions and information about the model
C14: INPUT | D14: Blue tab are sheets for data input
C15: OUTPUT | D15: Purple tabs are output sheets
C16: INTV COST | D16: Green tabs are sheets for the user to calculate costs and environmental impacts of interventions
C17: ENV REFS | D17: Yellow tab is a sheet of environmantal reference data
C18: CALCULATION | D18: Red tabs are calculation sheets, which the user can see but does not need to change
B20: Cell colours: | C20: Data Input Cells | D20: All input cells are coloured light blue. Other cells cannot be changed.
D21: Click on any blue cell to see input instructions
D22: Detailed instructions are given on each sheet
B25: USER SHEETS:
B27: Information: | C27: Introduction | D27: Introduction to MAINLINE
C28: BridgesLCAT | D28: Introduction to the Metallic Bridges LCAT
C29: Flowchart | D29: Outline of data flow in the model, with dynamic links to sheets
C30: Instructions | D30: This sheet of instructions
C31: TechNotes | D31: Some technical details about the model
C32: Reference | D32: References for coatings and corrosion assumptions
C33: Assumptions | D33: Fixed data used in coating and corrosion formulae
B34: User inputs: | C34: InitialCondition | D34: Select the conditions which best describe the Metallic Bridges and its initial condition
C35: IntvTriggers | D35: This lists the interventions which may be used and their triggering mechanisms; additional interventions may be added.
C36: IntvChanges | D36: This sheet shows the ways in which the scores change after the interventions
C37: IntvCosts | D37: Enter the costs and environmental impacts of each intervention
C38: IntvCost (1)-(3) | D38: Build-up of costs and impacts for each intervention; there are 3 sheets, one for each intervention
C39: EnvImpacts | D39: Reference list of impacts of construction material and operations
B41: User outputs: | C41: Summary | D41: This shows a summary of the modelling results.
C42: OutputFinancial | D42: This shows a summary of the projected financial costs
C43: OutputEnv | D43: This shows a summary of the projected environmental impacts
C44: OutputOps | D44: This shows a summary of the projected operational impacts
C45: OutputCondition | D45: This shows a summary of the projected condition scores

Sheet TechNotes
A1: MAINLINE | B1: =Flowchart!C1 -> Metallic Bridges Model
B3: Amendments: | C3: Version
B4: 2014-01-31 | C4: v00 | D4: Discussed with University of Surrey
B5: 2014-02-03 | C5: v00 | D5: Modified as follows:
D6: Linear corrosion after 20 years
D7: Coating loss adjusted for non-zero start.
D8: Coverage & exposure terms complementary
D9: Section dimensions rationalised.
B10: 2014-04-28 | C10: v01.00 | D10: Outstanding elements finished
B11: 2014-05-13 | C11: v02.00 | D11: Fixed [IntvChanges] True / False validation and application of this in Strengthening intervention
B12: 2014-05-28 | C12: v03.00 | D12: Replacement intervention strategy included
B13: 2014-06-09 | C13: v04.00 | D13: Cosmetic changes in 'Element (1)' sheet
B14: 2014-06-22 | C14: v05.00 | D14: Fix numbering of years and coating specification message in 'InitialCondition' sheet
B15: 2014-06-25 | C15: v06.00 | D15: COWI's feedback included. More comments have been added
B16: 2014-07-02 | C16: v07.00 | D16: Dynamic coating specifications through VBA
B17: 2014-07-08 | C17: v08.00 | D17: COWI's feedback included
B18: 2014-09-01 | C18: v09.00 | D18: Cosmetic changes such as 'Introduction' sheet added
B20: Function of Sheets:
C21: Flowchart | D21: Overview of the workings of the model
C22: Instructions | D22: Model origin, version, and general notes on use of the model
C23: TechNotes | D23: Some technical notes on the model and its workings
C24: Reference | D24: References for coatings and corrosion assumptions
C25: Assumptions | D25: Fixed data used in coating and corrosion formulae
C26: InitialCondition | D26: Input of initial condition of asset: dimensions, environment and initial corrosion
C27: IntvTriggers | D27: Interventions and how they are triggered
C28: IntvChanges | D28: Changes to scores caused by interventions, and any limitaion on their repetition
C29: IntvCosts | D29: Intervention costs and environmental impacts and operational impacts
C30: IntvCost (1) | D30: Estimation of the costs and environmental impact of Intervention No 1 (Strengthening)
C31: IntvCost (2) | D31: Estimation of the costs and environmental impact of Intervention No 2 (Painting)
C32: IntvCost (3) | D32: Estimation of the costs and environmental impact of Intervention No 3 (Replacement)
C33: Corrosion | D33: Tables of corrosion of uncoated metal in all environments
C34: ElementProjection (1) | D34: Corrosion and strength loss for a single bridge element
C35: Results | D35: Collation of results from Element (1)
C36: Summary | D36: Summary of the model run with key inputs and outputs
C37: OutputFinancial | D37: Summary of projected costs
C38: OutputEnv | D38: Summary of projected environmental impacts
C39: OutputOps | D39: Summary of projected operational impacts
C40: OutputCondition | D40: Output of projected asset condition
C41: EnvImpacts | D41: Reference list of Impacts of typical constructuion and maintenance activities and materials
B43: Technical notes: | D43: This model use VBA and Macros in order to dynamically allocate input values
D44: This model uses Excel 'Form Control' objects and not ActiveX controls.
D45: Because the model uses 'Form Control' objects it is best stored as a macro file (.xlsm)

Sheet Reference
A1: MAINLINE | B1: =Flowchart!C1 -> Metallic Bridges Model
B2: Summary of Environmental Corrosivity Categories (BS EN ISO 2012a) and Coating Systems
B5: The standard EN ISO 9223 provides a framework for the classification of atmospheric corrosivity based on the levels of the main influencing climatic and pollutant parameters.
B6: The spectrum of atmospheric corrosivity is divided into five categories varying from very low corrosivity (category C1), corresponding to rural environments, up to very high corrosivity (C5) and extreme corrosivity (CX).
C8: Corrosivity category | D8: Description | E8: Corrosion rates 1 (mm/year)
C9: C1 | D9: Very low corrosivity: Dry or cold zone, atmospheric environment with very low pollution and time of wetness, e.g. certain deserts, Central Arctic/Antarctica. | E9: ≤ 0.0013
C10: C2 | D10: Low corrosivity: Temperate zone, atmospheric environment with low pollution (SO2 < 5 μg/m3), e.g. rural areas, small towns. Dry or cold zone, atmospheric environment with short time of wetness, e.g. deserts, subarctic areas. | E10: 0.0013 < A ≤ 0.025
C11: C3 | D11: Medium corrosivity: Temperate zone, atmospheric environment with medium pollution (SO2: 5 μg/m2 to 30 μg/m3) or some effect of chlorides, e.g. urban areas, coastal areas with low deposition of chlorides. Subtropical and tropical zone, atmosphere with low pollution. | E11: 0.025 < A ≤ 0.050
C12: C4 | D12: High corrosivity: Temperate zone, atmospheric environment with high pollution (SO2: 30 μg/m3 to 90 μg/m3) or substantial effect of chlorides, e.g. polluted urban areas, industrial areas, coastal areas without spray of salt water or, exposure to effect of de-icing salts. Subtropical and tropical zone, atmosphere with medium pollution. | E12: 0.050 < A ≤ 0.080
C13: C5 | D13: Very high corrosivity: Temperate and subtropical zone, atmospheric environment with very high pollution (SO2: 90 μg/m3 to 250 μg/m3) and/or significant effect of chlorides, e.g. industrial areas, coastal areas, sheltered positions on coastline. | E13: 0.080 < A ≤ 0.200
C14: CX | D14: Extreme corrosivity: Subtropical and tropical zone (very high time of wetness), atmospheric environment with high SO2 pollution (higher than 250 μg/m3) including accompanying and production factors and/or strong effect of chlorides, e.g. extreme industrial areas, coastal and offshore areas, occasional contact with salt spray. | E14: 0.200 < A ≤ 0.700
C17: Coating system name | D17: Description | E17: Expected life, LT (years) | F17: Typical life
C18: NC | D18: No coating present. Never coated or coating completely eroded. | E18: - | F18: 999
C19: M27.4 | D19: Protective system using bitumen. 1st layer: surface tolerant epoxy primer (min dft 100μm. Intermediate coat: gelled bituminous solution – aluminium tinted (min dft 200μm). Topcoat: gelled bituminous solution – black finish with min dft 200μm. | E19: 5 to 7 | F19: 6
C20: M21 | D20: Coating using epoxy glass flake. 1st layer: epoxy blast primer with min dft 25μm. Intermediate layer: epoxy glass flake intermediate coat with min dft 40μm and for layer C select among the following (min dft 50μm): anti-graffiti paint or polyurethane coloured finish or acrylic urethane topcoat or polysiloxane topcoat. | E20: 18 to 22 | F20: 20

Sheet Assumptions
A1: MAINLINE | B1: =Flowchart!C1 -> Metallic Bridges Model
B2: Summary of Element Parameters
C6: These tables summarise the parameters used in the projection of corrosion. These parameters have been pre-programmed in the LCAT and the user should not make any changes.
C8: Table 1: Exposure conditions assumed for bridge Elements
E10: Element exposure | G10: Box
C11: Bridge environment | E11: Exposed | F11: Protected | G11: Section
C12: Rural | D12: (C2) | E12: C2 | F12: C1 | G12: C1
C13: Urban | D13: (C3) | E13: C3 | F13: C2 | G13: C2
C14: Industrial | D14: (C5) | E14: C5 | F14: C3 | G14: C2
C16: Note:
C17: The deterioration of individual elements (e.g. deck, main girders, cross beams, etc.) are likely to experience dissimilar deterioration rates due to differences in the microclimate which develops in their immediate surroundings
C18: Hence, a study has been conducted to take microclimate into account and its results.
C20: Table 2: Parameters assumed for exposure conditions of bridge Elements
D22: Parameters
C23: Element Exposure | D23: Coating service life TL (years) | G23: Corrosion
D24: NC | E24: =InitialCondition!D34 -> M27.4 | F24: =InitialCondition!E34 -> M21 | G24: A (mm) | H24: B | I24: t1 (years)
C25: C1 | D25: 0 | E25: =InitialCondition!D35 -> 7 | F25: =InitialCondition!E35 -> 22 | G25: 0.0013 | H25: 0.575 | I25: 20
C26: C2 | D26: 0 | E26: =InitialCondition!D36 -> 7 | F26: =InitialCondition!E36 -> 22 | G26: 0.025 | H26: 0.575 | I26: 20
C27: C3 | D27: 0 | E27: =InitialCondition!D37 -> 6 | F27: =InitialCondition!E37 -> 20 | G27: 0.05 | H27: 0.575 | I27: 20
C28: C5 | D28: 0 | E28: =InitialCondition!D38 -> 5 | F28: =InitialCondition!E38 -> 18 | G28: 0.2 | H28: 0.575 | I28: 20
C29: =COLUMNS($C28:C28) -> 1 | D29: =COLUMNS($C28:D28) -> 2 | E29: =COLUMNS($C28:E28) -> 3 | F29: =COLUMNS($C28:F28) -> 4 | G29: =COLUMNS($C28:G28) -> 5 | H29: =COLUMNS($C28:H28) -> 6 | I29: =COLUMNS($C28:I28) -> 7
C30: Note:
C31: Coating service life (TL) is related to 50% of coating area loss (coating half-life)
C33: Table3: Element sections
C35: Section | D35: flange or top | E35: web or sides | F35: Name f or t | G35: Name w or s
B36: 1 | C36: I-beam | D36: Flanges | E36: Web | F36: f | G36: w
B37: 2 | C37: Box section | D37: Top&Bot. | E37: Sides | F37: t | G37: s
B38: 3 | C38: Channel | D38: Flanges | E38: Web | F38: f | G38: w

Sheet InitialCondition
A1: MAINLINE | C1: =Flowchart!C1 -> Metallic Bridges Model
C2: Initial Condition of key Bridge Elements
C5: Enter initial condition of bridge element and coating specifications
C6: Only blue color cells may require user input
C8: Bridge Environment
C9: Overall Environment | D9: Envir. | E9: Industrial | H9: I-BEAM
C10: Environment reference | D10: Nr. | E10: =MATCH(E9,Assumptions!$C$12:$C$14,0) -> 3
C11: Exposed element corrosivity | D11: code | E11: =VLOOKUP(E$9,Assumptions!$C$12:$F$14,3,0) -> C5
C12: Protected element corrosivity | D12: code | E12: =VLOOKUP(E$9,Assumptions!$C$12:$F$14,4,0) -> C3
C14: Element Details
B15: Member details | C15: Element reference | D15: Nr. | E15: 1
C16: Element name | D16: [any] | E16: External Main Girder
C17: Element ID code | D17: [any] | E17: Example
C18: Element section type | D18: [pick] | E18: Channel | H18: BOX SECTION
C19: Element exposure in structure | D19: Envir. | E19: Exposed
B20: Member dimensions | C20: Overall depth | D20: mm | E20: 1220
C21: Overall breadth | D21: mm | E21: 550
A22: =COLUMNS(Assumptions!C35:D35) -> 2 | C22: Thickness dimension | E22: =VLOOKUP(E$18,Assumptions!$C$36:$E$38,$A22,0) -> Flanges
C23: Nominal thickness | D23: mm | E23: 13
C24: Initial thickness | D24: mm | E24: 13 | M24: Note:
A25: =COLUMNS(Assumptions!C37:E37) -> 3 | C25: Thickness dimension | E25: =VLOOKUP(E$18,Assumptions!$C$36:$E$38,$A25,0) -> Web | H25: CHANNEL | M25: There is the potential for confusion here .
C26: Nominal thickness | D26: mm | E26: 10 | M26: The depth (d) of the channel must be measured vertically
C27: Initial thickness | D27: mm | E27: 10 | M27: but the conventional formula uses b for that dimension.
C29: Coating Specification Details
B30: Coating details | C30: By default, Network Rail's coating data is used. However, if the User has access to field data, please select 'YES' and fill in the next cells. Otherwise, click 'NO' and proceed with default deta.
C32: Corrosivity category of element exposure | D32: Coating service life TL (years)
D33: Coating Type 1 | E33: Coating Type 2
D34: M27.4 | E34: M21 | F34: NC
C35: C1: Very low corrosivity | D35: 7 | E35: 22
C36: C2: Low corrosivity | D36: 7 | E36: 22
C37: C3: Medium corrosivity | D37: 6 | E37: 20
C38: C5: Very high corrosivity | D38: 5 | E38: 18
B40: Initial coating | C40: Coating Specification (initial) | D40: type | E40: M27.4 | G40: Enter AGE or COVERAGE
C41: Age of coating (if known) | D41: yrs | G41: =IF((AND(ISBLANK(E41),ISBLANK(E42))),"CAUTION! Coating specification should be defined. User should enter either AGE or COVERAGE. If both, COVERAGE takes precedence. Otherwise inital coating coverage is assumed to be 100%.",IF(NOT(OR(ISBLANK(E41),ISBLANK(E42))),"COVERAGE will take precedence","")) -> 
C42: Percentage of initial coating coverage | D42: % | E42: 1

Sheet IntvTriggers
A1: MAINLINE | C1: =Flowchart!C1 -> Metallic Bridges Model
N2: TRUE
N3: FALSE
B5: Intervention Triggers
C6: Switch on/off and select which of the following trigger values should be applied
C7: Enter score triggers and / or timings of interventions | Q7: Intervention Timings
C8: Fill in 'InitialCondition' sheet first, as this has an effect on these element arrangements | Q8: Where interventions are triggered by user-entered timings
C9: When a trigger is met, an intervention is undertaken
C10: Only blue color cells may require user input
B12: Ref | C12: Intervention | E12: Trigger intervention via: | K12: Active? | L12: Trigger Value | M12: Unit
B14: 1 | C14: Plating of Element (Strengthening) | E14: Element Exposure (0% = fully coated, 100% = fully exposed) | K14: FALSE | L14: 0.75 | M14: (0 - 1)
E15: Proportional Corrosion Depth (relative to Nominal Thickness) | I15: =InitialCondition!E22 -> Flanges | K15: TRUE | L15: 0.1 | M15: (%)
I16: =InitialCondition!E25 -> Web | K16: TRUE | L16: 0.1 | M16: (%)
E17: Relative strength remaining (% of Nominal) | I17: ='ElementProjection (1)'!AP22 -> Local Buckling | J17: ='ElementProjection (1)'!AP23 -> Flanges | K17: FALSE | L17: 0.95 | M17: (%)
I18: ='ElementProjection (1)'!AQ22 -> Shear | J18: ='ElementProjection (1)'!AQ23 -> Web | K18: FALSE | L18: 0.95 | M18: (%) | Q18: Interventions triggered by timing (x)
I19: ='ElementProjection (1)'!AR22 -> Bending | J19: ='ElementProjection (1)'!AR23 -> 2nd mom. Area | K19: FALSE | L19: 0.95 | M19: (%) | P19: Year | Q19: 1 | R19: =Q19+1 -> 2 | S19: =R19+1 -> 3 | T19: 4 | U19: 5 | V19: 6 | W19: 7 | X19: 8 | Y19: 9 | Z19: 10 | AA19: 11 | AB19: 12 | AC19: 13 | AD19: 14 | AE19: 15 | AF19: 16 | AG19: 17 | AH19: 18 | AI19: 19 | AJ19: 20 | AK19: 21 | AL19: 22 | AM19: 23 | AN19: 24 | AO19: 25 | AP19: 26 | AQ19: 27 | AR19: 28 | AS19: 29 | AT19: 30 | AU19: 31 | AV19: 32 | AW19: 33 | AX19: 34 | AY19: 35 | AZ19: 36 | BA19: 37 | BB19: 38 | BC19: 39 | BD19: 40 | BE19: 41 | BF19: 42 | BG19: 43 | BH19: 44 | BI19: 45 | BJ19: 46 | BK19: 47 | BL19: 48 | BM19: 49 | BN19: 50 | BO19: 51 | BP19: 52 | BQ19: 53 | BR19: 54 | BS19: 55 | BT19: 56 | BU19: 57 | BV19: 58 | BW19: 59 | BX19: 60 | BY19: 61 | BZ19: 62 | CA19: 63 | CB19: 64 | CC19: 65 | CD19: 66 | CE19: =CD19+1 -> 67 | CF19: 68 | CG19: 69 | CH19: 70 | CI19: 71 | CJ19: 72 | CK19: 73 | CL19: 74 | CM19: 75 | CN19: 76 | CO19: 77 | CP19: 78 | CQ19: 79 | CR19: 80 | CS19: 81 | CT19: 82 | CU19: 83 | CV19: 84 | CW19: 85 | CX19: 86 | CY19: 87 | CZ19: 88 | DA19: 89 | DB19: 90 | DC19: 91 | DD19: 92 | DE19: 93 | DF19: 94 | DG19: 95 | DH19: 96 | DI19: 97 | DJ19: 98 | DK19: 99 | DL19: 100 | DM19: 101 | DN19: 102 | DO19: 103 | DP19: 104 | DQ19: 105
E20: Interventions triggered by timing | K20: FALSE | L20: See this section > | P20: Occur
B22: 2 | C22: Re-coating of Element (Painting) | E22: Element Exposure (0% = fully coated, 100% = fully exposed) | K22: TRUE | L22: 0.95 | M22: (0 - 1)
E23: Proportional Corrosion Depth (relative to Nominal Thickness) | I23: =InitialCondition!E22 -> Flanges | K23: FALSE | L23: 0.05 | M23: (%)
I24: =InitialCondition!E25 -> Web | K24: FALSE | L24: 0.05 | M24: (%)
E25: Relative strength (% of Nominal) | I25: ='ElementProjection (1)'!AP22 -> Local Buckling | J25: ='ElementProjection (1)'!AP23 -> Flanges | K25: FALSE | L25: 0.98 | M25: (%)
I26: ='ElementProjection (1)'!AQ22 -> Shear | J26: ='ElementProjection (1)'!AQ23 -> Web | K26: FALSE | L26: 0.98 | M26: (%) | Q26: Interventions triggered by timing (x)
I27: ='ElementProjection (1)'!AR22 -> Bending | J27: ='ElementProjection (1)'!AR23 -> 2nd mom. Area | K27: FALSE | L27: 0.98 | M27: (%) | P27: Year | Q27: 1 | R27: =Q27+1 -> 2 | S27: =R27+1 -> 3 | T27: 4 | U27: 5 | V27: 6 | W27: 7 | X27: 8 | Y27: 9 | Z27: 10 | AA27: 11 | AB27: 12 | AC27: 13 | AD27: 14 | AE27: 15 | AF27: 16 | AG27: 17 | AH27: 18 | AI27: 19 | AJ27: 20 | AK27: 21 | AL27: 22 | AM27: 23 | AN27: 24 | AO27: 25 | AP27: 26 | AQ27: 27 | AR27: 28 | AS27: 29 | AT27: 30 | AU27: 31 | AV27: 32 | AW27: 33 | AX27: 34 | AY27: 35 | AZ27: 36 | BA27: 37 | BB27: 38 | BC27: 39 | BD27: 40 | BE27: 41 | BF27: 42 | BG27: 43 | BH27: 44 | BI27: 45 | BJ27: 46 | BK27: 47 | BL27: 48 | BM27: 49 | BN27: 50 | BO27: 51 | BP27: 52 | BQ27: 53 | BR27: 54 | BS27: 55 | BT27: 56 | BU27: 57 | BV27: 58 | BW27: 59 | BX27: 60 | BY27: 61 | BZ27: 62 | CA27: 63 | CB27: 64 | CC27: 65 | CD27: 66 | CE27: =CD27+1 -> 67 | CF27: 68 | CG27: 69 | CH27: 70 | CI27: 71 | CJ27: 72 | CK27: 73 | CL27: 74 | CM27: 75 | CN27: 76 | CO27: 77 | CP27: 78 | CQ27: 79 | CR27: 80 | CS27: 81 | CT27: 82 | CU27: 83 | CV27: 84 | CW27: 85 | CX27: 86 | CY27: 87 | CZ27: 88 | DA27: 89 | DB27: 90 | DC27: 91 | DD27: 92 | DE27: 93 | DF27: 94 | DG27: 95 | DH27: 96 | DI27: 97 | DJ27: 98 | DK27: 99 | DL27: 100 | DM27: 101 | DN27: 102 | DO27: 103 | DP27: 104 | DQ27: 105
E28: Interventions triggered by timing | K28: FALSE | L28: See this section > | P28: Occur
E30: If Strengthening and Painting happen to occur in the same year - Strengthening will take precedence
B32: 3 | C32: Replacement of Element (on a like-for-like basis) | E32: Element Exposure (0 = fully coated, 1 = fully exposed) | K32: FALSE | L32: 0.9 | M32: (0 - 1)
E33: Proportional Corrosion Depth (relative to Nominal Thickness) | I33: =InitialCondition!E22 -> Flanges | K33: FALSE | L33: 0.1 | M33: (%)
I34: =InitialCondition!E25 -> Web | K34: FALSE | L34: 0.1 | M34: (%)
E35: Relative strength (% of Nominal) | I35: ='ElementProjection (1)'!AP22 -> Local Buckling | J35: ='ElementProjection (1)'!AP23 -> Flanges | K35: FALSE | L35: 0.95 | M35: (%)
I36: ='ElementProjection (1)'!AQ22 -> Shear | J36: ='ElementProjection (1)'!AQ22 -> Shear | K36: FALSE | L36: 0.95 | M36: (%) | Q36: Interventions triggered by timing (x)
I37: ='ElementProjection (1)'!AR22 -> Bending | J37: ='ElementProjection (1)'!AR23 -> 2nd mom. Area | K37: FALSE | L37: 0.95 | M37: (%) | P37: Year | Q37: 1 | R37: =Q37+1 -> 2 | S37: =R37+1 -> 3 | T37: =S37+1 -> 4 | U37: =T37+1 -> 5 | V37: =U37+1 -> 6 | W37: =V37+1 -> 7 | X37: =W37+1 -> 8 | Y37: =X37+1 -> 9 | Z37: =Y37+1 -> 10 | AA37: =Z37+1 -> 11 | AB37: =AA37+1 -> 12 | AC37: =AB37+1 -> 13 | AD37: =AC37+1 -> 14 | AE37: =AD37+1 -> 15 | AF37: =AE37+1 -> 16 | AG37: =AF37+1 -> 17 | AH37: =AG37+1 -> 18 | AI37: =AH37+1 -> 19 | AJ37: =AI37+1 -> 20 | AK37: =AJ37+1 -> 21 | AL37: =AK37+1 -> 22 | AM37: =AL37+1 -> 23 | AN37: =AM37+1 -> 24 | AO37: =AN37+1 -> 25 | AP37: =AO37+1 -> 26 | AQ37: =AP37+1 -> 27 | AR37: =AQ37+1 -> 28 | AS37: =AR37+1 -> 29 | AT37: =AS37+1 -> 30 | AU37: =AT37+1 -> 31 | AV37: =AU37+1 -> 32 | AW37: =AV37+1 -> 33 | AX37: =AW37+1 -> 34 | AY37: =AX37+1 -> 35 | AZ37: =AY37+1 -> 36 | BA37: =AZ37+1 -> 37 | BB37: =BA37+1 -> 38 | BC37: =BB37+1 -> 39 | BD37: =BC37+1 -> 40 | BE37: =BD37+1 -> 41 | BF37: =BE37+1 -> 42 | BG37: =BF37+1 -> 43 | BH37: =BG37+1 -> 44 | BI37: =BH37+1 -> 45 | BJ37: =BI37+1 -> 46 | BK37: =BJ37+1 -> 47 | BL37: =BK37+1 -> 48 | BM37: =BL37+1 -> 49 | BN37: =BM37+1 -> 50 | BO37: =BN37+1 -> 51 | BP37: =BO37+1 -> 52 | BQ37: =BP37+1 -> 53 | BR37: =BQ37+1 -> 54 | BS37: =BR37+1 -> 55 | BT37: =BS37+1 -> 56 | BU37: =BT37+1 -> 57 | BV37: =BU37+1 -> 58 | BW37: =BV37+1 -> 59 | BX37: =BW37+1 -> 60 | BY37: =BX37+1 -> 61 | BZ37: =BY37+1 -> 62 | CA37: =BZ37+1 -> 63 | CB37: =CA37+1 -> 64 | CC37: =CB37+1 -> 65 | CD37: =CC37+1 -> 66 | CE37: =CD37+1 -> 67 | CF37: =CE37+1 -> 68 | CG37: =CF37+1 -> 69 | CH37: =CG37+1 -> 70 | CI37: =CH37+1 -> 71 | CJ37: =CI37+1 -> 72 | CK37: =CJ37+1 -> 73 | CL37: =CK37+1 -> 74 | CM37: =CL37+1 -> 75 | CN37: =CM37+1 -> 76 | CO37: =CN37+1 -> 77 | CP37: =CO37+1 -> 78 | CQ37: =CP37+1 -> 79 | CR37: =CQ37+1 -> 80 | CS37: =CR37+1 -> 81 | CT37: =CS37+1 -> 82 | CU37: =CT37+1 -> 83 | CV37: =CU37+1 -> 84 | CW37: =CV37+1 -> 85 | CX37: =CW37+1 -> 86 | CY37: =CX37+1 -> 87 | CZ37: =CY37+1 -> 88 | DA37: =CZ37+1 -> 89 | DB37: =DA37+1 -> 90 | DC37: =DB37+1 -> 91 | DD37: =DC37+1 -> 92 | DE37: =DD37+1 -> 93 | DF37: =DE37+1 -> 94 | DG37: =DF37+1 -> 95 | DH37: =DG37+1 -> 96 | DI37: =DH37+1 -> 97 | DJ37: =DI37+1 -> 98 | DK37: =DJ37+1 -> 99 | DL37: =DK37+1 -> 100 | DM37: =DL37+1 -> 101 | DN37: =DM37+1 -> 102 | DO37: =DN37+1 -> 103 | DP37: =DO37+1 -> 104 | DQ37: =DP37+1 -> 105
E38: Interventions triggered by timing | K38: TRUE | L38: See this section > | P38: Occur | U38: x | BN38: x
E40: Notes:
D41: ● | E41: If replacement happens to occur in the same year with any of the other two interventions - Replacement will take precedence
D42: ● | E42: If strengthening happens to occur in the same year with recoating - Strengthening will take precedence
D43: ● | E43: Non-economic combinations of strengthening and coating within a short time range (years) has to be ruled out manually based on the summary sheets

Sheet IntvChanges
A1: MAINLINE | C1: =Flowchart!C1 -> Metallic Bridges Model
B5: Intervention Changes
C6: Enter the changes in scores due to the interventions.
C7: Only blue color cells may require user input
E8: Coating Adjustments | H8: Thickness Adjustments (Increase / Reset)
B9: Ref | C9: Intervention | E9: Results in new coating? | F9: New coating type | H9: Results in INCREASE in element thickness? | I9: Average thickness Increase | J9: Increase applied to: (parts of element) | L9: Results in RESTORATION in element thickness? | M9: Thickness Reset | N9: Increase applied to: (parts of element)
I10: (mm) | J10: =InitialCondition!E22 -> Flanges | K10: =InitialCondition!E25 -> Web | M10: (mm) | N10: =J10 -> Flanges | O10: =K10 -> Web
B11: 1 | C11: =IntvTriggers!C14 -> Plating of Element (Strengthening) | E11: TRUE | F11: M21 | H11: TRUE | I11: 1 | J11: TRUE | K11: TRUE | L11: FALSE | M11: - | N11: - | O11: -
B12: 2 | C12: =IntvTriggers!C22 -> Re-coating of Element (Painting) | E12: TRUE | F12: M21 | H12: FALSE | I12: - | J12: - | K12: - | L12: FALSE | M12: - | N12: - | O12: -
B13: 3 | C13: =IntvTriggers!C32 -> Replacement of Element (on a like-for-like basis) | E13: TRUE | F13: M21 | H13: FALSE | I13: - | J13: - | K13: - | L13: TRUE | M13: Nominal Thickness | N13: =InitialCondition!E23 -> 13 | O13: =InitialCondition!E26 -> 10
J16: Strengthening Effects Check
J17: =J10 -> Flanges | K17: =IF(IntvTriggers!K15,IF(J11,"OK","PROBLEM"),"OK") -> OK | L17: =IF(K17="OK",""," "&J17&" corrosion programmed to trigger interventions - but interventions do not address the "&J17&" thickness") -> 
J18: =K10 -> Web | K18: =IF(IntvTriggers!K16,IF(K11,"OK","PROBLEM"),"OK") -> OK | L18: =IF(K18="OK",""," "&J18&" corrosion programmed to trigger interventions - but interventions do not address the "&J18&" thickness") -> 
B20: Notes:
A21: ● | B21: New coatings are assumed to completely replace any existing coatings
A22: ● | B22: Replacement is assumed to completely replace the element (on a like-for-like basis)
A23: ● | B23: Replacement is assumed to reset the thickness of the element to its nominal value

Sheet IntvCosts
A1: MAINLINE | C1: =Flowchart!C1 -> Metallic Bridges Model
B2: Intervention Costs & Impacts
C5: Enter names of cost categories
C6: Enter any budget names and proportions
C7: Enter operational impacts of interventions
C8: Enter discount rate and cash equivalents of impacts
C9: Only blue color cells may require user input
D11: Costs by category [Euros] | J11: Costs by Budgets [%] | O11: Environ. Impacts | T11: Operational Impact
C12: Name: | D12: Labour | E12: Plant | F12: Materials | G12: Tax | H12: TOTAL | J12: Maintenance | K12: Capital | L12: Operational | M12: Central Government | O12: Carbon Dioxide equivalent | P12: User-defined impact (2) | Q12: User-defined impact (3) | R12: Cash Equivalent | T12: Over-night possession [Nr] | U12: Day possessions [Nr] | V12: Speed restriction [days] | W12: Total cash Equivalent
C13: Ref: | D13: Lab | E13: Plt | F13: Mnt | G13: Tax | J13: Mnt | K13: Cap | L13: Ops | M13: Gov | O13: CO2e | P13: EI-2 | Q13: EI-3 | R13: All | T13: Poss(N) | U13: Poss(D) | V13: TSR | W13: All
C14: Unit: | D14: € | E14: € | F14: € | G14: € | H14: € | J14: % | K14: % | L14: % | M14: % | O14: kg | P14: unit2 | Q14: unit3 | R14: € | T14: Nr | U14: Nr | V14: Days | W14: €
B15: Ref | C15: Intervention | D15: IntvCost1 | E15: IntvCost2 | F15: IntvCost3 | G15: IntvCost4 | O15: 0 | P15: 1 | Q15: 2
B16: 1 | C16: =IntvTriggers!C14 -> Plating of Element (Strengthening) | D16: =INDIRECT("'IntvCost ("&$B16&")'!"&D$15) -> 160000 | E16: 2500 | F16: 20000 | G16: 0 | H16: =SUM(D16:G16) -> 182500 | J16: 0.2 | K16: 0.5 | L16: 0.3 | M16: 0 | O16: =OFFSET(INDIRECT("'IntvCost ("&$B16&")'!"&$O$19),0,O$15) -> 1180.18 | P16: =OFFSET(INDIRECT("'IntvCost ("&$B16&")'!"&$O$19),0,P$15) -> 0 | Q16: =OFFSET(INDIRECT("'IntvCost ("&$B16&")'!"&$O$19),0,Q$15) -> 0 | R16: =O$20*O16 -> 2360.36 | U16: 3 | W16: =SUMPRODUCT(T16:V16,T$20:V$20) -> 15000
B17: 2 | C17: =IntvTriggers!C22 -> Re-coating of Element (Painting) | D17: 80000 | E17: 2500 | F17: 15000 | G17: 0 | H17: 97500 | J17: 0.2 | K17: 0.5 | L17: 0.3 | M17: 0 | O17: =OFFSET(INDIRECT("'IntvCost ("&$B17&")'!"&$O$19),0,O$15) -> 3.453333333 | P17: 0 | Q17: 0 | R17: =O$20*O17 -> 6.906666667 | T17: 1 | W17: =SUMPRODUCT(T17:V17,T$20:V$20) -> 1000
B18: 3 | C18: =IntvTriggers!C32 -> Replacement of Element (on a like-for-like basis) | D18: 600000 | E18: 2500 | F18: 35000 | G18: 0 | H18: =SUM(D18:G18) -> 637500 | J18: 0.2 | K18: 0.5 | L18: 0.3 | M18: 0 | O18: =OFFSET(INDIRECT("'IntvCost ("&$B18&")'!"&$O$19),0,O$15) -> 23510.36 | P18: 0 | Q18: 0 | R18: =O$20*O18 -> 47020.72 | T18: 1 | V18: 2 | W18: =SUMPRODUCT(T18:V18,T$20:V$20) -> 1400
O19: IntvEnvr1 | P19: IntvEnvr2 | Q19: IntvEnvr3
M20: Cash equivalents of impacts | O20: 2 | P20: 3 | Q20: 4 | T20: 1000 | U20: 5000 | V20: 200
G22: Discount rate for Financial costs (pa) | H22: 0.023 | Q22: Discount rate for Env. Equiv. costs (pa) | R22: 0.02

Sheet IntvCost (1)
A1: MAINLINE | C1: =Flowchart!C1 -> Metallic Bridges Model
B2: Costs & Environment Impact of Intervention
C3: Enter costs and environmental impacts for this intervention
B4: Interv. No: | C4: =-VALUE(RIGHT(CELL("filename",A1),4)) -> 1
B5: Intervention: | C5: =IntvTriggers!C14 -> Plating of Element (Strengthening)
B6: Scale: | C6: ONE intervention treats: | D6: =100*20 -> 2000 | E6: m2
D8: Financial Costs Estimate [Euros] | I8: Environamental Impact Assessment
C9: Item | D9: =IntvCosts!D12 -> Labour | E9: =IntvCosts!E12 -> Plant | F9: =IntvCosts!F12 -> Materials | G9: =IntvCosts!G12 -> Tax | H9: TOTAL | I9: Environmental Impact | J9: Usage | K9: Unit of usage | L9: =IntvCosts!O12 -> Carbon Dioxide equivalent | M9: =IntvCosts!P12 -> User-defined impact (2) | N9: =IntvCosts!Q12 -> User-defined impact (3) | O9: Notes on estimation
D10: € | E10: € | F10: € | G10: € | H10: € | L10: =IntvCosts!O14& " (" &IntvCosts!O13&")" -> kg (CO2e) | M10: =IntvCosts!P14& " (" &IntvCosts!P13&")" -> unit2 (EI-2) | N10: =IntvCosts!Q14& " (" &IntvCosts!Q13&")" -> unit3 (EI-3)
C11: Team 4 men 2 months | D11: =4*80*500 -> 160000 | H11: =SUM(D11:G11) -> 160000 | I11: Structural steelwork - steel plate | J11: 0.5 | K11: =IF($I11<>"",VLOOKUP($I11,EnvImpacts!$G$14:$I$73,COLUMNS($J$9:K$9),0),"-") -> t | L11: =IF($I11<>"",VLOOKUP($I11,EnvImpacts!$G$14:$I$73,COLUMNS($J$9:L$9),0),"-") -> 2350
C12: Paint | F12: 5000 | H12: =SUM(D12:G12) -> 5000 | I12: Paint (6) - single coat alkyd solvent paint | J12: 15 | K12: =IF($I12<>"",VLOOKUP($I12,EnvImpacts!$G$14:$I$73,COLUMNS($J$9:K$9),0),"-") -> m2 | L12: =IF($I12<>"",VLOOKUP($I12,EnvImpacts!$G$14:$I$73,COLUMNS($J$9:L$9),0),"-") -> 0.3453333333
C13: Steel | F13: 5000 | H13: =SUM(D13:G13) -> 5000 | K13: =IF($I13<>"",VLOOKUP($I13,EnvImpacts!$G$14:$I$73,COLUMNS($J$9:K$9),0),"-") -> - | L13: =IF($I13<>"",VLOOKUP($I13,EnvImpacts!$G$14:$I$73,COLUMNS($J$9:L$9),0),"-") -> -
C14: Scaffold | F14: 10000 | H14: =SUM(D14:G14) -> 10000 | K14: =IF($I14<>"",VLOOKUP($I14,EnvImpacts!$G$14:$I$73,COLUMNS($J$9:K$9),0),"-") -> - | L14: =IF($I14<>"",VLOOKUP($I14,EnvImpacts!$G$14:$I$73,COLUMNS($J$9:L$9),0),"-") -> -
C15: Sand blaster | E15: 2500 | H15: =SUM(D15:G15) -> 2500 | K15: =IF($I15<>"",VLOOKUP($I15,EnvImpacts!$G$14:$I$73,COLUMNS($J$9:K$9),0),"-") -> - | L15: =IF($I15<>"",VLOOKUP($I15,EnvImpacts!$G$14:$I$73,COLUMNS($J$9:L$9),0),"-") -> -
H16: 0 | K16: =IF($I16<>"",VLOOKUP($I16,EnvImpacts!$G$14:$I$73,COLUMNS($J$9:K$9),0),"-") -> - | L16: =IF($I16<>"",VLOOKUP($I16,EnvImpacts!$G$14:$I$73,COLUMNS($J$9:L$9),0),"-") -> -
H17: 0 | K17: =IF($I17<>"",VLOOKUP($I17,EnvImpacts!$G$14:$I$73,COLUMNS($J$9:K$9),0),"-") -> - | L17: =IF($I17<>"",VLOOKUP($I17,EnvImpacts!$G$14:$I$73,COLUMNS($J$9:L$9),0),"-") -> -
H18: 0 | K18: =IF($I18<>"",VLOOKUP($I18,EnvImpacts!$G$14:$I$73,COLUMNS($J$9:K$9),0),"-") -> - | L18: =IF($I18<>"",VLOOKUP($I18,EnvImpacts!$G$14:$I$73,COLUMNS($J$9:L$9),0),"-") -> -
H19: 0 | K19: =IF($I19<>"",VLOOKUP($I19,EnvImpacts!$G$14:$I$73,COLUMNS($J$9:K$9),0),"-") -> - | L19: =IF($I19<>"",VLOOKUP($I19,EnvImpacts!$G$14:$I$73,COLUMNS($J$9:L$9),0),"-") -> -
H20: 0 | K20: =IF($I20<>"",VLOOKUP($I20,EnvImpacts!$G$14:$I$73,COLUMNS($J$9:K$9),0),"-") -> - | L20: =IF($I20<>"",VLOOKUP($I20,EnvImpacts!$G$14:$I$73,COLUMNS($J$9:L$9),0),"-") -> -
H21: 0 | K21: =IF($I21<>"",VLOOKUP($I21,EnvImpacts!$G$14:$I$73,COLUMNS($J$9:K$9),0),"-") -> - | L21: =IF($I21<>"",VLOOKUP($I21,EnvImpacts!$G$14:$I$73,COLUMNS($J$9:L$9),0),"-") -> -
H22: 0 | K22: =IF($I22<>"",VLOOKUP($I22,EnvImpacts!$G$14:$I$73,COLUMNS($J$9:K$9),0),"-") -> - | L22: =IF($I22<>"",VLOOKUP($I22,EnvImpacts!$G$14:$I$73,COLUMNS($J$9:L$9),0),"-") -> -
H23: 0 | K23: =IF($I23<>"",VLOOKUP($I23,EnvImpacts!$G$14:$I$73,COLUMNS($J$9:K$9),0),"-") -> - | L23: =IF($I23<>"",VLOOKUP($I23,EnvImpacts!$G$14:$I$73,COLUMNS($J$9:L$9),0),"-") -> -
H24: 0 | K24: =IF($I24<>"",VLOOKUP($I24,EnvImpacts!$G$14:$I$73,COLUMNS($J$9:K$9),0),"-") -> - | L24: =IF($I24<>"",VLOOKUP($I24,EnvImpacts!$G$14:$I$73,COLUMNS($J$9:L$9),0),"-") -> -
H25: 0 | K25: =IF($I25<>"",VLOOKUP($I25,EnvImpacts!$G$14:$I$73,COLUMNS($J$9:K$9),0),"-") -> - | L25: =IF($I25<>"",VLOOKUP($I25,EnvImpacts!$G$14:$I$73,COLUMNS($J$9:L$9),0),"-") -> -
H26: =SUM(D26:G26) -> 0 | K26: =IF($I26<>"",VLOOKUP($I26,EnvImpacts!$G$14:$I$73,COLUMNS($J$9:K$9),0),"-") -> - | L26: =IF($I26<>"",VLOOKUP($I26,EnvImpacts!$G$14:$I$73,COLUMNS($J$9:L$9),0),"-") -> -
I27: User defined impacts
H28: =SUM(D28:G28) -> 0
H29: 0
C31: Totals | D31: =SUM(D10:D30) -> 160000 | E31: 2500 | F31: 20000 | G31: 0 | H31: =SUM(H10:H30) -> 182500 | I31: Carried to 'IntvCosts' | L31: =SUMPRODUCT($J10:$J29,L10:L29) -> 1180.18 | M31: =SUMPRODUCT($J10:$J29,M10:M29) -> 0 | N31: =SUMPRODUCT($J10:$J29,N10:N29) -> 0 | O31: Carried to 'IntvCosts'

Sheet IntvCost (2)
A1: MAINLINE | C1: =Flowchart!C1 -> Metallic Bridges Model
B2: Costs & Environment Impact of Intervention
C3: Enter costs and environmental impacts for this intervention
B4: Interv. No: | C4: =-VALUE(RIGHT(CELL("filename",A1),4)) -> 2
B5: Intervention: | C5: =IntvTriggers!C22 -> Re-coating of Element (Painting)
B6: Scale: | C6: ONE intervention treats: | D6: 200 | E6: m
D8: Financial Costs Estimate [Euros] | I8: Environamental Impact Assessment
C9: Item | D9: =IntvCosts!D12 -> Labour | E9: =IntvCosts!E12 -> Plant | F9: =IntvCosts!F12 -> Materials | G9: =IntvCosts!G12 -> Tax | H9: TOTAL | I9: Environmental Impact | J9: Usage | K9: Unit of usage | L9: =IntvCosts!O12 -> Carbon Dioxide equivalent | M9: =IntvCosts!P12 -> User-defined impact (2) | N9: =IntvCosts!Q12 -> User-defined impact (3) | O9: Notes on estimation
D10: € | E10: € | F10: € | G10: € | H10: € | L10: =IntvCosts!O14& " (" &IntvCosts!O13&")" -> kg (CO2e) | M10: =IntvCosts!P14& " (" &IntvCosts!P13&")" -> unit2 (EI-2) | N10: =IntvCosts!Q14& " (" &IntvCosts!Q13&")" -> unit3 (EI-3)
C11: Team 4 men 1 month | D11: =4*40*500 -> 80000 | H11: =SUM(D11:G11) -> 80000 | I11: Paint (6) - single coat alkyd solvent paint | J11: 10 | K11: =IF($I11<>"",VLOOKUP($I11,EnvImpacts!$G$14:$I$73,COLUMNS($J$9:K$9),0),"-") -> m2 | L11: =IF($I11<>"",VLOOKUP($I11,EnvImpacts!$G$14:$I$73,COLUMNS($J$9:L$9),0),"-") -> 0.3453333333
C12: Paint | F12: 5000 | H12: =SUM(D12:G12) -> 5000 | K12: =IF($I12<>"",VLOOKUP($I12,EnvImpacts!$G$14:$I$73,COLUMNS($J$9:K$9),0),"-") -> - | L12: =IF($I12<>"",VLOOKUP($I12,EnvImpacts!$G$14:$I$73,COLUMNS($J$9:L$9),0),"-") -> -
C13: Scaffold | F13: 10000 | H13: =SUM(D13:G13) -> 10000 | K13: =IF($I13<>"",VLOOKUP($I13,EnvImpacts!$G$14:$I$73,COLUMNS($J$9:K$9),0),"-") -> - | L13: =IF($I13<>"",VLOOKUP($I13,EnvImpacts!$G$14:$I$73,COLUMNS($J$9:L$9),0),"-") -> -
C14: Sand blaster | E14: 2500 | H14: =SUM(D14:G14) -> 2500 | K14: =IF($I14<>"",VLOOKUP($I14,EnvImpacts!$G$14:$I$73,COLUMNS($J$9:K$9),0),"-") -> - | L14: =IF($I14<>"",VLOOKUP($I14,EnvImpacts!$G$14:$I$73,COLUMNS($J$9:L$9),0),"-") -> -
H15: =SUM(D15:G15) -> 0 | K15: =IF($I15<>"",VLOOKUP($I15,EnvImpacts!$G$14:$I$73,COLUMNS($J$9:K$9),0),"-") -> - | L15: =IF($I15<>"",VLOOKUP($I15,EnvImpacts!$G$14:$I$73,COLUMNS($J$9:L$9),0),"-") -> -
H16: 0 | K16: =IF($I16<>"",VLOOKUP($I16,EnvImpacts!$G$14:$I$73,COLUMNS($J$9:K$9),0),"-") -> - | L16: =IF($I16<>"",VLOOKUP($I16,EnvImpacts!$G$14:$I$73,COLUMNS($J$9:L$9),0),"-") -> -
H17: 0 | K17: =IF($I17<>"",VLOOKUP($I17,EnvImpacts!$G$14:$I$73,COLUMNS($J$9:K$9),0),"-") -> - | L17: =IF($I17<>"",VLOOKUP($I17,EnvImpacts!$G$14:$I$73,COLUMNS($J$9:L$9),0),"-") -> -
H18: 0 | K18: =IF($I18<>"",VLOOKUP($I18,EnvImpacts!$G$14:$I$73,COLUMNS($J$9:K$9),0),"-") -> - | L18: =IF($I18<>"",VLOOKUP($I18,EnvImpacts!$G$14:$I$73,COLUMNS($J$9:L$9),0),"-") -> -
H19: 0 | K19: =IF($I19<>"",VLOOKUP($I19,EnvImpacts!$G$14:$I$73,COLUMNS($J$9:K$9),0),"-") -> - | L19: =IF($I19<>"",VLOOKUP($I19,EnvImpacts!$G$14:$I$73,COLUMNS($J$9:L$9),0),"-") -> -
H20: 0 | K20: =IF($I20<>"",VLOOKUP($I20,EnvImpacts!$G$14:$I$73,COLUMNS($J$9:K$9),0),"-") -> - | L20: =IF($I20<>"",VLOOKUP($I20,EnvImpacts!$G$14:$I$73,COLUMNS($J$9:L$9),0),"-") -> -
H21: 0 | K21: =IF($I21<>"",VLOOKUP($I21,EnvImpacts!$G$14:$I$73,COLUMNS($J$9:K$9),0),"-") -> - | L21: =IF($I21<>"",VLOOKUP($I21,EnvImpacts!$G$14:$I$73,COLUMNS($J$9:L$9),0),"-") -> -
H22: 0 | K22: =IF($I22<>"",VLOOKUP($I22,EnvImpacts!$G$14:$I$73,COLUMNS($J$9:K$9),0),"-") -> - | L22: =IF($I22<>"",VLOOKUP($I22,EnvImpacts!$G$14:$I$73,COLUMNS($J$9:L$9),0),"-") -> -
H23: 0 | K23: =IF($I23<>"",VLOOKUP($I23,EnvImpacts!$G$14:$I$73,COLUMNS($J$9:K$9),0),"-") -> - | L23: =IF($I23<>"",VLOOKUP($I23,EnvImpacts!$G$14:$I$73,COLUMNS($J$9:L$9),0),"-") -> -
H24: 0 | K24: =IF($I24<>"",VLOOKUP($I24,EnvImpacts!$G$14:$I$73,COLUMNS($J$9:K$9),0),"-") -> - | L24: =IF($I24<>"",VLOOKUP($I24,EnvImpacts!$G$14:$I$73,COLUMNS($J$9:L$9),0),"-") -> -
H25: =SUM(D25:G25) -> 0 | K25: =IF($I25<>"",VLOOKUP($I25,EnvImpacts!$G$14:$I$73,COLUMNS($J$9:K$9),0),"-") -> - | L25: =IF($I25<>"",VLOOKUP($I25,EnvImpacts!$G$14:$I$73,COLUMNS($J$9:L$9),0),"-") -> -
H26: =SUM(D26:G26) -> 0 | K26: =IF($I26<>"",VLOOKUP($I26,EnvImpacts!$G$14:$I$73,COLUMNS($J$9:K$9),0),"-") -> - | L26: =IF($I26<>"",VLOOKUP($I26,EnvImpacts!$G$14:$I$73,COLUMNS($J$9:L$9),0),"-") -> -
I27: User defined impacts
H28: =SUM(D28:G28) -> 0
H29: =SUM(D29:G29) -> 0
C31: Totals | D31: =SUM(D10:D30) -> 80000 | E31: 2500 | F31: 15000 | G31: 0 | H31: =SUM(H10:H30) -> 97500 | I31: Carried to 'IntvCosts' | L31: =SUMPRODUCT($J10:$J29,L10:L29) -> 3.453333333 | M31: =SUMPRODUCT($J10:$J29,M10:M29) -> 0 | N31: =SUMPRODUCT($J10:$J29,N10:N29) -> 0 | O31: Carried to 'IntvCosts'

Sheet IntvCost (3)
A1: MAINLINE | C1: =Flowchart!C1 -> Metallic Bridges Model
B2: Costs & Environment Impact of Intervention
C3: Enter costs and environmental impacts for this intervention
B4: Interv. No: | C4: =-VALUE(RIGHT(CELL("filename",A1),4)) -> 3
B5: Intervention: | C5: =IntvTriggers!C32 -> Replacement of Element (on a like-for-like basis)
B6: Scale: | C6: ONE intervention treats: | D6: 200 | E6: m
D8: Financial Costs Estimate [Euros] | I8: Environamental Impact Assessment
C9: Item | D9: =IntvCosts!D12 -> Labour | E9: =IntvCosts!E12 -> Plant | F9: =IntvCosts!F12 -> Materials | G9: =IntvCosts!G12 -> Tax | H9: TOTAL | I9: Environmental Impact | J9: Usage | K9: Unit of usage | L9: =IntvCosts!O12 -> Carbon Dioxide equivalent | M9: =IntvCosts!P12 -> User-defined impact (2) | N9: =IntvCosts!Q12 -> User-defined impact (3) | O9: Notes on estimation
D10: € | E10: € | F10: € | G10: € | H10: € | L10: =IntvCosts!O14& " (" &IntvCosts!O13&")" -> kg (CO2e) | M10: =IntvCosts!P14& " (" &IntvCosts!P13&")" -> unit2 (EI-2) | N10: =IntvCosts!Q14& " (" &IntvCosts!Q13&")" -> unit3 (EI-3)
C11: Team 15 men 2 month | D11: =15*80*500 -> 600000 | H11: =SUM(D11:G11) -> 600000 | I11: Structural steelwork - steel plate | J11: 10 | K11: =IF($I11<>"",VLOOKUP($I11,EnvImpacts!$G$14:$I$73,COLUMNS($J$9:K$9),0),"-") -> t | L11: =IF($I11<>"",VLOOKUP($I11,EnvImpacts!$G$14:$I$73,COLUMNS($J$9:L$9),0),"-") -> 2350
C12: Paint | F12: 5000 | H12: =SUM(D12:G12) -> 5000 | I12: Paint (6) - single coat alkyd solvent paint | J12: 30 | K12: =IF($I12<>"",VLOOKUP($I12,EnvImpacts!$G$14:$I$73,COLUMNS($J$9:K$9),0),"-") -> m2 | L12: =IF($I12<>"",VLOOKUP($I12,EnvImpacts!$G$14:$I$73,COLUMNS($J$9:L$9),0),"-") -> 0.3453333333
C13: Steel | F13: 20000 | H13: =SUM(D13:G13) -> 20000 | K13: =IF($I13<>"",VLOOKUP($I13,EnvImpacts!$G$14:$I$73,COLUMNS($J$9:K$9),0),"-") -> - | L13: =IF($I13<>"",VLOOKUP($I13,EnvImpacts!$G$14:$I$73,COLUMNS($J$9:L$9),0),"-") -> -
C14: Scaffold | F14: 10000 | H14: =SUM(D14:G14) -> 10000 | K14: =IF($I14<>"",VLOOKUP($I14,EnvImpacts!$G$14:$I$73,COLUMNS($J$9:K$9),0),"-") -> - | L14: =IF($I14<>"",VLOOKUP($I14,EnvImpacts!$G$14:$I$73,COLUMNS($J$9:L$9),0),"-") -> -
C15: Sand blaster | E15: 2500 | H15: =SUM(D15:G15) -> 2500 | K15: =IF($I15<>"",VLOOKUP($I15,EnvImpacts!$G$14:$I$73,COLUMNS($J$9:K$9),0),"-") -> - | L15: =IF($I15<>"",VLOOKUP($I15,EnvImpacts!$G$14:$I$73,COLUMNS($J$9:L$9),0),"-") -> -
H16: =SUM(D16:G16) -> 0 | K16: =IF($I16<>"",VLOOKUP($I16,EnvImpacts!$G$14:$I$73,COLUMNS($J$9:K$9),0),"-") -> - | L16: =IF($I16<>"",VLOOKUP($I16,EnvImpacts!$G$14:$I$73,COLUMNS($J$9:L$9),0),"-") -> -
H17: 0 | K17: =IF($I17<>"",VLOOKUP($I17,EnvImpacts!$G$14:$I$73,COLUMNS($J$9:K$9),0),"-") -> - | L17: =IF($I17<>"",VLOOKUP($I17,EnvImpacts!$G$14:$I$73,COLUMNS($J$9:L$9),0),"-") -> -
H18: 0 | K18: =IF($I18<>"",VLOOKUP($I18,EnvImpacts!$G$14:$I$73,COLUMNS($J$9:K$9),0),"-") -> - | L18: =IF($I18<>"",VLOOKUP($I18,EnvImpacts!$G$14:$I$73,COLUMNS($J$9:L$9),0),"-") -> -
H19: 0 | K19: =IF($I19<>"",VLOOKUP($I19,EnvImpacts!$G$14:$I$73,COLUMNS($J$9:K$9),0),"-") -> - | L19: =IF($I19<>"",VLOOKUP($I19,EnvImpacts!$G$14:$I$73,COLUMNS($J$9:L$9),0),"-") -> -
H20: 0 | K20: =IF($I20<>"",VLOOKUP($I20,EnvImpacts!$G$14:$I$73,COLUMNS($J$9:K$9),0),"-") -> - | L20: =IF($I20<>"",VLOOKUP($I20,EnvImpacts!$G$14:$I$73,COLUMNS($J$9:L$9),0),"-") -> -
H21: 0 | K21: =IF($I21<>"",VLOOKUP($I21,EnvImpacts!$G$14:$I$73,COLUMNS($J$9:K$9),0),"-") -> - | L21: =IF($I21<>"",VLOOKUP($I21,EnvImpacts!$G$14:$I$73,COLUMNS($J$9:L$9),0),"-") -> -
H22: 0 | K22: =IF($I22<>"",VLOOKUP($I22,EnvImpacts!$G$14:$I$73,COLUMNS($J$9:K$9),0),"-") -> - | L22: =IF($I22<>"",VLOOKUP($I22,EnvImpacts!$G$14:$I$73,COLUMNS($J$9:L$9),0),"-") -> -
H23: 0 | K23: =IF($I23<>"",VLOOKUP($I23,EnvImpacts!$G$14:$I$73,COLUMNS($J$9:K$9),0),"-") -> - | L23: =IF($I23<>"",VLOOKUP($I23,EnvImpacts!$G$14:$I$73,COLUMNS($J$9:L$9),0),"-") -> -
H24: 0 | K24: =IF($I24<>"",VLOOKUP($I24,EnvImpacts!$G$14:$I$73,COLUMNS($J$9:K$9),0),"-") -> - | L24: =IF($I24<>"",VLOOKUP($I24,EnvImpacts!$G$14:$I$73,COLUMNS($J$9:L$9),0),"-") -> -
H25: =SUM(D25:G25) -> 0 | K25: =IF($I25<>"",VLOOKUP($I25,EnvImpacts!$G$14:$I$73,COLUMNS($J$9:K$9),0),"-") -> - | L25: =IF($I25<>"",VLOOKUP($I25,EnvImpacts!$G$14:$I$73,COLUMNS($J$9:L$9),0),"-") -> -
H26: =SUM(D26:G26) -> 0 | K26: =IF($I26<>"",VLOOKUP($I26,EnvImpacts!$G$14:$I$73,COLUMNS($J$9:K$9),0),"-") -> - | L26: =IF($I26<>"",VLOOKUP($I26,EnvImpacts!$G$14:$I$73,COLUMNS($J$9:L$9),0),"-") -> -
I27: User defined impacts
H28: =SUM(D28:G28) -> 0
H29: =SUM(D29:G29) -> 0
C31: Totals | D31: =SUM(D10:D30) -> 600000 | E31: 2500 | F31: 35000 | G31: 0 | H31: =SUM(H10:H30) -> 637500 | I31: Carried to 'IntvCosts' | L31: =SUMPRODUCT($J10:$J29,L10:L29) -> 23510.36 | M31: =SUMPRODUCT($J10:$J29,M10:M29) -> 0 | N31: =SUMPRODUCT($J10:$J29,N10:N29) -> 0 | O31: Carried to 'IntvCosts'

Sheet CorrosionRates
A1: MAINLINE | B1: =Flowchart!C1 -> Metallic Bridges Model
B4: Corrosion of ONE face of exposed metal
C5: This is for one face and therefore shows half of Surrey's values
D6: 1 | E6: 2 | F6: 3 | G6: 4
D7: Cumulative thickness loss [mm] | L7: Functional formulae
C8: Environment | D8: =INDEX(Assumptions!$C$25:$C$28,D$6,1) -> C1 | E8: =INDEX(Assumptions!$C$25:$C$28,E$6,1) -> C2 | F8: =INDEX(Assumptions!$C$25:$C$28,F$6,1) -> C3 | G8: =INDEX(Assumptions!$C$25:$C$28,G$6,1) -> C5
C9: Parameter A | D9: =INDEX(Assumptions!$G$25:$G$28,D$6,1) -> 0.0013 | E9: =INDEX(Assumptions!$G$25:$G$28,E$6,1) -> 0.025 | F9: =INDEX(Assumptions!$G$25:$G$28,F$6,1) -> 0.05 | G9: =INDEX(Assumptions!$G$25:$G$28,G$6,1) -> 0.2 | L9: The non-linear corrosion function is: AtB
C10: Parameter B | D10: =INDEX(Assumptions!$H$25:$H$28,D$6,1) -> 0.575 | E10: =INDEX(Assumptions!$H$25:$H$28,E$6,1) -> 0.575 | F10: =INDEX(Assumptions!$H$25:$H$28,F$6,1) -> 0.575 | G10: =INDEX(Assumptions!$H$25:$H$28,G$6,1) -> 0.575
C11: Linear from t1 | D11: =INDEX(Assumptions!$I$25:$I$28,D$6,1) -> 20 | E11: =INDEX(Assumptions!$I$25:$I$28,E$6,1) -> 20 | F11: =INDEX(Assumptions!$I$25:$I$28,F$6,1) -> 20 | G11: =INDEX(Assumptions!$I$25:$I$28,G$6,1) -> 20 | I11: After this time, | L11: The linear function continues as a straight line from t1 at the gradient which exists at t1
C12: Linear intercept | D12: =D9*(1-D10)*D11^D10 -> 0.003093317723 | E12: =E9*(1-E10)*E11^E10 -> 0.05948687929 | F12: 0.1189737586 | G12: 0.4758950343 | I12: this linear function is used, | L12: The linear function therefore becomes: A(1-B)t1B + ABt1(B-1).t | S12: ISO 9224, 2012 gives:
C13: Linear gradient | D13: =D9*D10*D11^(D10-1) -> 0.000209253846 | E13: =E9*E10*E11^(E10-1) -> 0.004024112423 | F13: 0.008048224845 | G13: 0.03219289938 | I13: with this gradient. | S13: which is the same (for more information see ML D2.2 and D2.3 deliverable).
C14: Years
C15: 104 | D15: =0.5*IF($C15<D$11,D$9*$C15^D$10,D$12+D$13*$C15) -> 0.01242785885 | E15: =0.5*IF($C15<E$11,E$9*$C15^E$10,E$12+E$13*$C15) -> 0.2389972856 | F15: 0.4779945712 | G15: 1.911978285
C16: =C15-1 -> 103 | D16: 0.01232323193 | E16: 0.2369852294 | F16: 0.4739704588 | G16: 1.895881835
C17: 102 | D17: 0.01221860501 | E17: 0.2349731732 | F17: 0.4699463464 | G17: 1.879785386
C18: 101 | D18: 0.01211397808 | E18: 0.232961117 | F18: 0.465922234 | G18: 1.863688936
C19: 100 | D19: 0.01200935116 | E19: 0.2309490608 | F19: 0.4618981215 | G19: 1.847592486
C20: 99 | D20: 0.01190472424 | E20: 0.2289370046 | F20: 0.4578740091 | G20: 1.831496037
C21: 98 | D21: 0.01180009731 | E21: 0.2269249484 | F21: 0.4538498967 | G21: 1.815399587
C22: =C21-1 -> 97 | D22: 0.01169547039 | E22: 0.2249128921 | F22: 0.4498257843 | G22: 1.799303137
C23: 96 | D23: 0.01159084347 | E23: 0.2229008359 | F23: 0.4458016719 | G23: 1.783206687
C24: 95 | D24: 0.01148621655 | E24: 0.2208887797 | F24: 0.4417775594 | G24: 1.767110238
C25: 94 | D25: 0.01138158962 | E25: 0.2188767235 | F25: 0.437753447 | G25: 1.751013788
C26: 93 | D26: 0.0112769627 | E26: 0.2168646673 | F26: 0.4337293346 | G26: 1.734917338
C27: 92 | D27: 0.01117233578 | E27: 0.2148526111 | F27: 0.4297052222 | G27: 1.718820889
C28: 91 | D28: 0.01106770885 | E28: 0.2128405549 | F28: 0.4256811097 | G28: 1.702724439
C29: 90 | D29: 0.01096308193 | E29: 0.2108284987 | F29: 0.4216569973 | G29: 1.686627989
C30: 89 | D30: 0.01085845501 | E30: 0.2088164424 | F30: 0.4176328849 | G30: 1.67053154
C31: 88 | D31: 0.01075382808 | E31: 0.2068043862 | F31: 0.4136087725 | G31: 1.65443509
C32: 87 | D32: 0.01064920116 | E32: 0.20479233 | F32: 0.4095846601 | G32: 1.63833864
C33: 86 | D33: 0.01054457424 | E33: 0.2027802738 | F33: 0.4055605476 | G33: 1.622242191
C34: 85 | D34: 0.01043994732 | E34: 0.2007682176 | F34: 0.4015364352 | G34: 1.606145741
C35: 84 | D35: 0.01033532039 | E35: 0.1987561614 | F35: 0.3975123228 | G35: 1.590049291
C36: 83 | D36: 0.01023069347 | E36: 0.1967441052 | F36: 0.3934882104 | G36: 1.573952841
C37: 82 | D37: 0.01012606655 | E37: 0.194732049 | F37: 0.3894640979 | G37: 1.557856392
C38: 81 | D38: 0.01002143962 | E38: 0.1927199928 | F38: 0.3854399855 | G38: 1.541759942
C39: 80 | D39: 0.009916812701 | E39: 0.1907079365 | F39: 0.3814158731 | G39: 1.525663492
C40: 79 | D40: =0.5*IF($C40<D$11,D$9*$C40^D$10,D$12+D$13*$C40) -> 0.009812185778 | E40: 0.1886958803 | F40: 0.3773917607 | G40: 1.509567043
C41: 78 | D41: 0.009707558855 | E41: 0.1866838241 | F41: 0.3733676483 | G41: 1.493470593
C42: 77 | D42: 0.009602931932 | E42: 0.1846717679 | F42: 0.3693435358 | G42: 1.477374143
C43: 76 | D43: 0.009498305009 | E43: 0.1826597117 | F43: 0.3653194234 | G43: 1.461277694
C44: 75 | D44: 0.009393678086 | E44: 0.1806476555 | F44: 0.361295311 | G44: 1.445181244
C45: 74 | D45: 0.009289051163 | E45: 0.1786355993 | F45: 0.3572711986 | G45: 1.429084794
C46: 73 | D46: 0.00918442424 | E46: 0.1766235431 | F46: 0.3532470861 | G46: 1.412988345
C47: 72 | D47: 0.009079797317 | E47: 0.1746114869 | F47: 0.3492229737 | G47: 1.396891895
C48: 71 | D48: 0.008975170394 | E48: 0.1725994306 | F48: 0.3451988613 | G48: 1.380795445
C49: 70 | D49: 0.008870543471 | E49: 0.1705873744 | F49: 0.3411747489 | G49: 1.364698995
C50: 69 | D50: 0.008765916548 | E50: 0.1685753182 | F50: 0.3371506364 | G50: 1.348602546
C51: 68 | D51: 0.008661289625 | E51: 0.166563262 | F51: 0.333126524 | G51: 1.332506096
C52: 67 | D52: 0.008556662702 | E52: 0.1645512058 | F52: 0.3291024116 | G52: 1.316409646
C53: 66 | D53: 0.008452035779 | E53: 0.1625391496 | F53: 0.3250782992 | G53: 1.300313197
C54: 65 | D54: 0.008347408856 | E54: 0.1605270934 | F54: 0.3210541868 | G54: 1.284216747
C55: 64 | D55: 0.008242781933 | E55: 0.1585150372 | F55: 0.3170300743 | G55: 1.268120297
C56: 63 | D56: 0.00813815501 | E56: 0.156502981 | F56: 0.3130059619 | G56: 1.252023848
C57: 62 | D57: 0.008033528087 | E57: 0.1544909247 | F57: 0.3089818495 | G57: 1.235927398
C58: 61 | D58: 0.007928901164 | E58: 0.1524788685 | F58: 0.3049577371 | G58: 1.219830948
C59: 60 | D59: 0.007824274241 | E59: 0.1504668123 | F59: 0.3009336246 | G59: 1.203734499
C60: 59 | D60: =0.5*IF($C60<D$11,D$9*$C60^D$10,D$12+D$13*$C60) -> 0.007719647318 | E60: 0.1484547561 | F60: 0.2969095122 | G60: 1.187638049
C61: 58 | D61: 0.007615020395 | E61: 0.1464426999 | F61: 0.2928853998 | G61: 1.171541599
C62: 57 | D62: 0.007510393472 | E62: 0.1444306437 | F62: 0.2888612874 | G62: 1.15544515
C63: 56 | D63: 0.007405766549 | E63: 0.1424185875 | F63: 0.284837175 | G63: 1.1393487
C64: 55 | D64: 0.007301139626 | E64: 0.1404065313 | F64: 0.2808130625 | G64: 1.12325225
C65: 54 | D65: 0.007196512703 | E65: 0.1383944751 | F65: 0.2767889501 | G65: 1.1071558
C66: 53 | D66: 0.00709188578 | E66: 0.1363824188 | F66: 0.2727648377 | G66: 1.091059351
C67: 52 | D67: 0.006987258857 | E67: 0.1343703626 | F67: 0.2687407253 | G67: 1.074962901
C68: 51 | D68: 0.006882631934 | E68: 0.1323583064 | F68: 0.2647166128 | G68: 1.058866451
C69: 50 | D69: 0.006778005011 | E69: 0.1303462502 | F69: 0.2606925004 | G69: 1.042770002
C70: 49 | D70: 0.006673378088 | E70: 0.128334194 | F70: 0.256668388 | G70: 1.026673552
C71: 48 | D71: 0.006568751165 | E71: 0.1263221378 | F71: 0.2526442756 | G71: 1.010577102
C72: 47 | D72: 0.006464124242 | E72: 0.1243100816 | F72: 0.2486201632 | G72: 0.9944806526
C73: 46 | D73: 0.006359497319 | E73: 0.1222980254 | F73: 0.2445960507 | G73: 0.9783842029
C74: 45 | D74: 0.006254870396 | E74: 0.1202859692 | F74: 0.2405719383 | G74: 0.9622877532
C75: 44 | D75: 0.006150243473 | E75: 0.1182739129 | F75: 0.2365478259 | G75: 0.9461913035
C76: 43 | D76: 0.00604561655 | E76: 0.1162618567 | F76: 0.2325237135 | G76: 0.9300948538
C77: 42 | D77: 0.005940989627 | E77: 0.1142498005 | F77: 0.228499601 | G77: 0.9139984042
C78: 41 | D78: 0.005836362704 | E78: 0.1122377443 | F78: 0.2244754886 | G78: 0.8979019545
C79: 40 | D79: 0.005731735781 | E79: 0.1102256881 | F79: 0.2204513762 | G79: 0.8818055048
C80: 39 | D80: =0.5*IF($C80<D$11,D$9*$C80^D$10,D$12+D$13*$C80) -> 0.005627108858 | E80: 0.1082136319 | F80: 0.2164272638 | G80: 0.8657090551
C81: 38 | D81: 0.005522481935 | E81: 0.1062015757 | F81: 0.2124031513 | G81: 0.8496126054
C82: 37 | D82: 0.005417855012 | E82: 0.1041895195 | F82: 0.2083790389 | G82: 0.8335161557
C83: 36 | D83: 0.005313228089 | E83: 0.1021774633 | F83: 0.2043549265 | G83: 0.817419706
C84: 35 | D84: 0.005208601166 | E84: 0.100165407 | F84: 0.2003308141 | G84: 0.8013232563
C85: =C84-1 -> 34 | D85: 0.005103974243 | E85: 0.09815335083 | F85: 0.1963067017 | G85: 0.7852268066
C86: 33 | D86: 0.00499934732 | E86: 0.09614129462 | F86: 0.1922825892 | G86: 0.7691303569
C87: 32 | D87: 0.004894720397 | E87: 0.09412923841 | F87: 0.1882584768 | G87: 0.7530339073
C88: 31 | D88: 0.004790093474 | E88: 0.0921171822 | F88: 0.1842343644 | G88: 0.7369374576
C89: 30 | D89: 0.004685466551 | E89: 0.09010512598 | F89: 0.180210252 | G89: 0.7208410079
C90: 29 | D90: 0.004580839628 | E90: 0.08809306977 | F90: 0.1761861395 | G90: 0.7047445582
C91: 28 | D91: 0.004476212705 | E91: 0.08608101356 | F91: 0.1721620271 | G91: 0.6886481085
C92: 27 | D92: 0.004371585782 | E92: 0.08406895735 | F92: 0.1681379147 | G92: 0.6725516588
C93: 26 | D93: 0.004266958859 | E93: 0.08205690114 | F93: 0.1641138023 | G93: 0.6564552091
C94: 25 | D94: 0.004162331936 | E94: 0.08004484493 | F94: 0.1600896899 | G94: 0.6403587594
C95: 24 | D95: 0.004057705013 | E95: 0.07803278872 | F95: 0.1560655774 | G95: 0.6242623097
C96: 23 | D96: 0.00395307809 | E96: 0.0760207325 | F96: 0.152041465 | G96: 0.60816586
C97: 22 | D97: 0.003848451167 | E97: 0.07400867629 | F97: 0.1480173526 | G97: 0.5920694103
C98: 21 | D98: 0.003743824244 | E98: 0.07199662008 | F98: 0.1439932402 | G98: 0.5759729607
C99: 20 | D99: 0.003639197321 | E99: 0.06998456387 | F99: 0.1399691277 | G99: 0.559876511
C100: 19 | D100: =0.5*IF($C100<D$11,D$9*$C100^D$10,D$12+D$13*$C100) -> 0.003533431507 | E100: 0.06795060589 | F100: 0.1359012118 | G100: 0.5436048472
C101: 18 | D101: 0.003425271863 | E101: 0.06587061275 | F101: 0.1317412255 | G101: 0.526964902
C102: 17 | D102: 0.00331452643 | E102: 0.06374089289 | F102: 0.1274817858 | G102: 0.5099271431
C103: 16 | D103: 0.003200975475 | E103: 0.06155722067 | F103: 0.1231144413 | G103: 0.4924577653
C104: 15 | D104: 0.003084365457 | E104: 0.05931472032 | F104: 0.1186294406 | G104: 0.4745177626
C105: 14 | D105: 0.002964401178 | E105: 0.05700771496 | F105: 0.1140154299 | G105: 0.4560617197
C106: 13 | D106: 0.002840735406 | E106: 0.05462952704 | F106: 0.1092590541 | G106: 0.4370362163
C107: 12 | D107: 0.002712954894 | E107: 0.05217220949 | F107: 0.104344419 | G107: 0.4173776759
C108: 11 | D108: 0.002580561125 | E108: 0.04962617549 | F108: 0.09925235098 | G108: 0.3970094039
C109: 10 | D109: 0.002442943128 | E109: 0.04697967554 | F109: 0.09395935107 | G109: 0.3758374043
C110: 9 | D110: 0.002299337909 | E110: 0.04421803671 | F110: 0.08843607343 | G110: 0.3537442937
C111: 8 | D111: 0.002148770827 | E111: 0.04132251591 | F111: 0.08264503182 | G111: 0.3305801273
C112: 7 | D112: 0.001989961754 | E112: 0.03826849528 | F112: 0.07653699055 | G112: 0.3061479622
C113: 6 | D113: 0.001821169321 | E113: 0.03502248694 | F113: 0.07004497388 | G113: 0.2801798955
C114: 5 | D114: 0.001639914135 | E114: 0.03153681028 | F114: 0.06307362056 | G114: 0.2522944823
C115: 4 | D115: 0.001442440314 | E115: 0.0277392368 | F115: 0.0554784736 | G115: 0.2219138944
C116: 3 | D116: 0.001222525926 | E116: 0.02351011397 | F116: 0.04702022794 | G116: 0.1880809118
C117: 2 | D117: 0.000968290351 | E117: 0.01862096829 | F117: 0.03724193658 | G117: 0.1489677463
C118: 1 | D118: 0.00065 | E118: 0.0125 | F118: 0.025 | G118: 0.1
C119: 0 | D119: 0 | E119: 0 | F119: 0 | G119: 0

Sheet ElementProjection (1)
A1: MAINLINE | B1: =Flowchart!C1 -> Metallic Bridges Model
B2: Performance projection for one Element
C5: Data from input sheet | L5: Data derived from Inputs | S5: Ref | T5: Offset | AF5: 0
C6: Member details | D6: =InitialCondition!C15 -> Element reference | I6: =InitialCondition!D15 -> Nr. | J6: =LEFT(RIGHT(CELL("filename",D6),2),1) -> 1 | L6: Element | M6: Section type reference | R6: =SecType -> Channel | S6: =MATCH(J8,Assumptions!$C$36:$C$38,0) -> 3 | T6: =S6-1 -> 2
D7: Name: | E7: =OFFSET(InitialCondition!D16,0,J$6) -> External Main Girder | J7: =OFFSET(InitialCondition!D17,0,J$6) -> Example | M7: Exposure within structure reference | R7: =J9 -> Exposed | S7: =MATCH(J9,Assumptions!$E$11:$F$11,0) -> 1 | T7: =S7-1 -> 0
D8: =InitialCondition!C18 -> Element section type | J8: =OFFSET(InitialCondition!D18,0,J$6) -> Channel | M8: Element face1 corrosivity | Q8: code | R8: =INDEX(Assumptions!$E$12:$F$14,InitialCondition!$E$10,S7) -> C5 | S8: =MATCH(R8,Assumptions!$C$25:$C$28,0) -> 4 | T8: 3
D9: =InitialCondition!C19 -> Element exposure in structure | J9: =OFFSET(InitialCondition!D19,0,J$6) -> Exposed | M9: Element face2 corrosivity | Q9: code | R9: =IF(S6=2,INDEX(Assumptions!$G$12:$G$14,InitialCondition!$E$10,1),R8) -> C5 | S9: =IF(S6=2,MATCH(R9,Assumptions!$C$25:$C$28,0),S8) -> 4 | T9: 3
C10: Member dimensions | D10: =InitialCondition!C20 -> Overall depth | H10: d | I10: =InitialCondition!D20 -> mm | J10: =OFFSET(InitialCondition!D20,0,J$6) -> 1220 | L10: Initial Coating | M10: Coating reference | Q10: Nr. | R10: =MATCH(J18,Assumptions!$D$24:$F$24,0) -> 2
D11: =InitialCondition!C21 -> Overall breadth | H11: b | I11: =InitialCondition!D21 -> mm | J11: =OFFSET(InitialCondition!D21,0,J$6) -> 550 | M11: Half-life of coating (L) | Q11: yrs | R11: =INDEX(Assumptions!$D$25:$F$28,S8,R10) -> 5 | DJ11: Painting Results & Coating Reference
D12: =InitialCondition!C22 -> Thickness dimension | J12: =OFFSET(InitialCondition!D22,0,J$6) -> Flanges | M12: Initial coverage is specified as input | Q12: T/F | R12: =OFFSET(InitialCondition!D42,0,J$6)<>"" -> TRUE
D13: =InitialCondition!C23 -> Nominal thickness | H13: =INDEX(Assumptions!$F$36:$G$38,$S$6,1)&"n" -> fn | I13: =InitialCondition!D23 -> mm | J13: =OFFSET(InitialCondition!D23,0,J$6) -> 13 | M13: Coating exposure =(1-coverage) | Q13: % | R13: =1-J20 -> 0 | DJ13: Int. Ref | DK13: Intervention | DL13: Coating | DM13: Coating. Ref | DN13: Applies?
D14: =InitialCondition!C24 -> Initial thickness | H14: =INDEX(Assumptions!$F$36:$G$38,$S$6,1)&"i" -> fi | I14: =InitialCondition!D24 -> mm | J14: =OFFSET(InitialCondition!D24,0,J$6) -> 13 | M14: Coating age, estimated from coverage | Q14: yrs | R14: =IF(J20=1,0,R11*(1+SQRT(1+240*(1-J20)))/12) -> 0 | DJ14: 1 | DK14: Strengthening | DL14: =IntvChanges!F11 -> M21 | DM14: =VLOOKUP(DL14,$DJ$20:$DK$21,2,FALSE) -> 3 | DN14: =IntvChanges!E11 -> TRUE
D15: =InitialCondition!C25 -> Thickness dimension | J15: =OFFSET(InitialCondition!D25,0,J$6) -> Web | M15: Coating age given as input | Q15: yrs | R15: =IF(J18="NC",0,J19) -> 0 | DJ15: 2 | DK15: Painting | DL15: =IntvChanges!F12 -> M21 | DM15: =VLOOKUP(DL15,$DJ$20:$DK$21,2,FALSE) -> 3 | DN15: =IntvChanges!E12 -> TRUE
D16: =InitialCondition!C26 -> Nominal thickness | H16: =INDEX(Assumptions!$F$36:$G$38,$S$6,2)&"n" -> wn | I16: =InitialCondition!D26 -> mm | J16: =OFFSET(InitialCondition!D26,0,J$6) -> 10 | M16: Coating age to be used | Q16: yrs | R16: =ROUNDUP(IF(R12,R14,R15),0) -> 0 | AG16: Lengths [mm2] | DJ16: 3 | DK16: Replacement | DL16: =IntvChanges!F13 -> M21 | DM16: =VLOOKUP(DL16,$DJ$20:$DK$21,2,FALSE) -> 3 | DN16: =IntvChanges!E13 -> TRUE
D17: =InitialCondition!C27 -> Initial thickness | H17: =INDEX(Assumptions!$F$36:$G$38,$S$6,2)&"i" -> wi | I17: =InitialCondition!D27 -> mm | J17: =OFFSET(InitialCondition!D27,0,J$6) -> 10 | W17: STRENGTHENING | AB17: REPLACEMENT | AF17: Section | AG17: =AE23 -> Flanges | AH17: =AF23 -> Web
C18: Initial coating | D18: =InitialCondition!C40 -> Coating Specification (initial) | I18: =InitialCondition!D40 -> type | J18: =OFFSET(InitialCondition!D40,0,J$6) -> M27.4 | Y18: Average Thickness Increase (mm) | AB18: Absolute Thickness Reset (mm) | AF18: I-beam | AG18: =b*2 -> 1100 | AH18: =d-2*fn -> 1194
D19: =InitialCondition!C41 -> Age of coating (if known) | I19: =InitialCondition!D41 -> yrs | J19: =OFFSET(InitialCondition!D41,0,J$6) -> 0 | Y19: =IntvChanges!I11 -> 1 | AB19: =AE23 -> Flanges | AC19: =IntvChanges!N13 -> 13 | AF19: Box section | AG19: =b*2 -> 1100 | AH19: =2*(d-2*tn) -> 2388 | DJ19: Coating References
D20: =InitialCondition!C42 -> Percentage of initial coating coverage | I20: =InitialCondition!D42 -> % | J20: =OFFSET(InitialCondition!D42,0,J$6) -> 1 | AB20: =AF23 -> Web | AC20: =IntvChanges!O13 -> 10 | AF20: Channel | AG20: =d*2 -> 2440 | AH20: =(b-2*fn) -> 524 | DJ20: =InitialCondition!D34 -> M27.4 | DK20: 2 | DN20: Count of Interventions per Period
W21: Thickness Increase Adjustments | AP21: Relative strengths [%] | AT21: 1 | AU21: 2 | AV21: 3 | DJ21: =InitialCondition!E34 -> M21 | DK21: 3
R22: Coating Adjustments | W22: Thickness Increase Triggered | X22: Count of Thickness Increases | Y22: Total Thickness Increase (mm) | AB22: Replacement Triggered | AC22: Nominal or Initial Thickness? | AE22: Combined Thicknesses [mm] | AG22: Cross-sectional areas [mm2] | AJ22: Local Buckling | AK22: 2nd mom. Area | AM22: Thicknesses (mm) End | AP22: Local Buckling | AQ22: Shear | AR22: Bending | AT22: 2nd moment of area [cm4] | AX22: 2nd moment of area formulae | BC22: Strengthening Interventions | BV22: Painting Interventions | CP22: Replacement Interventions | DO22: 5 | DP22: years
C23: Time | D23: Coating | K23: Average corrosion depth [mm] | R23: Coating Triggered | S23: Interventions | Y23: Applies? | AD23: Dimension: | AE23: =J12 -> Flanges | AF23: =J15 -> Web | AG23: =AE23 -> Flanges | AH23: =AF23 -> Web | AI23: Total | AJ23: =IF(Section=2,AH23,AG23) -> Flanges | AK23: cm4 | AL23: Dimension: | AM23: =AE23 -> Flanges | AN23: Web | AP23: =AJ23 -> Flanges | AQ23: =AH23 -> Web | AR23: =AK22 -> 2nd mom. Area | AT23: =OFFSET(Assumptions!$C$35,AT21,0) -> I-beam | AU23: =OFFSET(Assumptions!$C$35,AU21,0) -> Box section | AV23: =OFFSET(Assumptions!$C$35,AV21,0) -> Channel | AX23: I-beam | AY23: Box section | AZ23: Channel | BB23: Triggered by: | BC23: Element Exposure | BE23: ="Prop. Cor. Depth - "&$J$12 -> Prop. Cor. Depth - Flanges | BH23: ="Prop. Cor. Depth - "&$J$15 -> Prop. Cor. Depth - Web | BK23: Rel. str. - Local Buckling | BM23: Rel. str. - Shear | BO23: Rel. str. - Bending | BQ23: User Timing | BS23: Strengthening Triggered | BT23: Strengthening Triggered (final) | BV23: Element Exposure | BX23: ="Prop. Cor. Depth - "&$J$12 -> Prop. Cor. Depth - Flanges | CA23: ="Prop. Cor. Depth - "&$J$15 -> Prop. Cor. Depth - Web | CD23: Rel. str. - Local Buckling | CF23: Rel. str. - Shear | CH23: Rel. str. - Bending | CJ23: User Timing | CL23: Painting Triggered (initial) | CM23: Painting Triggered (adjusted) | CN23: Painting Triggered (final) | CP23: Element Exposure | CR23: ="Prop. Cor. Depth - "&$J$12 -> Prop. Cor. Depth - Flanges | CU23: ="Prop. Cor. Depth - "&$J$15 -> Prop. Cor. Depth - Web | CX23: Rel. str. - Local Buckling | CZ23: Rel. str. - Shear | DB23: Rel. str. - Bending | DD23: User Timing | DF23: Replacement Triggered | DK23: Coating Reference | DN23: Year | DO23: Period | DP23: Strengthening Count | DQ23: Painting Count | DR23: Replacement Count
C24: Yr | D24: Ref. | E24: Life (L) | F24: Age (a) | G24: a/L | H24: InLife | I24: Exposure | J24: Incre. | K24: Progress | L24: Prior | M24: Face1 | N24: Face2 | O24: Both Faces | S24: Re-coat ref | T24: Exposure_End | U24: Coverage_End | Y24: =IntvChanges!J11 -> TRUE | Z24: =IntvChanges!K11 -> TRUE | AD24: Nominal: | AE24: =fn -> 13 | AF24: =wn -> 10 | AG24: =OFFSET(AG$18,T$6,0)*AE24 -> 31720 | AH24: =OFFSET(AH$18,T$6,0)*AF24 -> 5240 | AI24: =SUM(AG24:AH24) -> 36960 | AJ24: =IF(Section=2,AH24,AG24) -> 31720 | AK24: =OFFSET(AT24,0,$T$6) -> 558043.1869 | AL24: Nominal: | AM24: 13 | AN24: 10 | AP24: =AG24/AG$24 -> 1 | AQ24: =AH24/AH$24 -> 1 | AR24: =AK24/AK$24 -> 1 | AT24: =(b*d^3 - (b-w)*(d-2*f)^3)/120000 -> 662694.4387 | AU24: =(b*d^3 - (b-2*s)*(d-2*t)^3)/120000 -> 804545.2207 | AV24: =0.0001*((2*f*d^3 + (b-2*f)*w^3)/3 - (2*d*f + (b-2*f)*w)*((2*f*d^2 + (b-2*f)*w^2)/(2*d*b - 2*(b-2*f)*(d-w)))^2) -> 558043.1869 | AX24: (b.d3 - (b-w).(d-2.f)3)/12 | AY24: (b.d3 - (b-2.s).(d-2.t)3)/12 | AZ24: Ic = (2.f.b3 + (d-2.f).w3)/3 - A.Cx2 | BC24: Active? | BD24: =IntvTriggers!K14 -> FALSE | BE24: Active? | BG24: =IntvTriggers!K15 -> TRUE | BH24: Active? | BJ24: =IntvTriggers!K16 -> TRUE | BK24: Active? | BL24: =IntvTriggers!K17 -> FALSE | BM24: Active? | BN24: =IntvTriggers!K18 -> FALSE | BO24: Active? | BP24: =IntvTriggers!K19 -> FALSE | BQ24: Active? | BR24: =IntvTriggers!K20 -> FALSE | BV24: Active? | BW24: =IntvTriggers!K22 -> TRUE | BX24: Active? | BZ24: =IntvTriggers!K23 -> FALSE | CA24: Active? | CC24: =IntvTriggers!K24 -> FALSE | CD24: Active? | CE24: =IntvTriggers!K25 -> FALSE | CF24: Active? | CG24: =IntvTriggers!K26 -> FALSE | CH24: Active? | CI24: =IntvTriggers!K27 -> FALSE | CJ24: Active? | CK24: =IntvTriggers!K28 -> FALSE | CP24: Active? | CQ24: =IntvTriggers!K32 -> FALSE | CR24: Active? | CT24: =IntvTriggers!K33 -> FALSE | CU24: Active? | CW24: =IntvTriggers!K34 -> FALSE | CX24: Active? | CY24: =IntvTriggers!K35 -> FALSE | CZ24: Active? | DA24: =IntvTriggers!K36 -> FALSE | DB24: Active? | DC24: =IntvTriggers!K37 -> FALSE | DD24: Active? | DE24: =IntvTriggers!K38 -> TRUE
I25: 0 | K25: 0 | L25: 0 | M25: 0 | N25: =S6<>2 -> TRUE | S25: Time step shift | T25: Time step normalised | U25: (1 - Exposure) | Y25: =AE23 -> Flanges | Z25: =AF23 -> Web | AD25: Initial: | AE25: =fi -> 13 | AF25: =wi -> 10 | AG25: 31720 | AH25: 5240 | AI25: =AG25+AH25 -> 36960 | AJ25: =IF(Section=2,AH25,AG25) -> 31720 | AK25: =OFFSET(AT25,0,$T$6) -> 558043.1869 | AL25: Initial: | AM25: 13 | AN25: 10 | AP25: 1 | AQ25: 1 | AR25: 1 | AT25: 662694.4387 | AU25: 804545.2207 | AV25: 558043.1869 | AZ25: Cx = (2.f.b2 + (d-2f).w2)/(2.b.d - 2.(d-2f).(b-w)) | BC25: Trigger Value | BD25: Occur? | BE25: Trigger Value | BF25: Proportion | BG25: Occur? | BH25: Trigger Value | BI25: Proportion | BJ25: Occur? | BK25: Trigger Value | BL25: Occur? | BM25: Trigger Value | BN25: Occur? | BO25: Trigger Value | BP25: Occur? | BQ25: User Input | BR25: Occur? | BV25: Trigger Value | BW25: Occur? | BX25: Trigger Value | BY25: Proportion | BZ25: Occur? | CA25: Trigger Value | CB25: Proportion | CC25: Occur? | CD25: Trigger Value | CE25: Occur? | CF25: Trigger Value | CG25: Occur? | CH25: Trigger Value | CI25: Occur? | CJ25: User Input | CK25: Occur? | CP25: Trigger Value | CQ25: Occur? | CR25: Trigger Value | CS25: Proportion | CT25: Occur? | CU25: Trigger Value | CV25: Proportion | CW25: Occur? | CX25: Trigger Value | CY25: Occur? | CZ25: Trigger Value | DA25: Occur? | DB25: Trigger Value | DC25: Occur? | DD25: User Input | DE25: Occur?
C26: 1 | D26: =R10 -> 2 | E26: =INDEX(Assumptions!$D$25:$F$28,$S$8,D26) -> 5 | F26: =R16 -> 0 | G26: =IF(E26=0,0,F26/E26) -> 0 | H26: =OR(E26=0,F26<E26) -> TRUE | I26: =IF(E26=0,1,MAX(0,MIN(1,0.1*G26*(6*G26-1)))) -> 0 | J26: =IF(AND(D26=1,F26=0),1,MAX(0,I26-I25)) -> 0 | K26: =SUMPRODUCT(OFFSET(J26,-MIN(F26,C26),0):J26,OFFSET(OFFSET(CorrosionRates!$C$119,-MIN(F26,C26),0):'CorrosionRates'!$C$119,0,$S$8)) -> 0 | L26: =IF(F26=0,M25,L25) -> 0 | M26: =K26+L26 -> 0 | N26: =IF(N$25,M26,OFFSET(CorrosionRates!$C$119,-C26,$S$9)) -> 0 | O26: =M26+N26 -> 0 | R26: =CN26 -> FALSE | T26: =I26 -> 0 | U26: =1-T26 -> 1 | W26: =IF(AB26,FALSE,BT26) -> FALSE | X26: =IF(AB26,0,IF(W26,1,0)) -> 0 | Y26: =$X26*$Y$19*Y$24 -> 0 | Z26: 0 | AB26: =DF26 -> FALSE | AC26: =IF(AB26,1,0) -> 0 | AE26: =AE$25-$O26 -> 13 | AF26: =AF$25-$O26 -> 10 | AG26: 31720 | AH26: 5240 | AI26: =AG26+AH26 -> 36960 | AJ26: =IF(Section=2,AH26,AG26) -> 31720 | AK26: =OFFSET(AT26,0,$T$6) -> 558043.1869 | AM26: =IF(OR($W26,$AB26),AE27,AE26) -> 13 | AN26: =IF(OR($W26,$AB26),AF27,AF26) -> 10 | AP26: 1 | AQ26: 1 | AR26: 1 | AT26: 662694.4387 | AU26: 804545.2207 | AV26: 558043.1869 | AZ26: A = 2.b.f + (d-2.f).w | BC26: =IntvTriggers!$L$14 -> 0.75 | BD26: =AND(BD$24,$I26>=BC26) -> FALSE | BE26: =IntvTriggers!$L$15 -> 0.1 | BF26: =($AE$24-$AE26)/$AE$24 -> 0 | BG26: =AND(BG$24,BF26>=BE26) -> FALSE | BH26: =IntvTriggers!$L$16 -> 0.1 | BI26: =($AF$24-$AF26)/$AF$24 -> 0 | BJ26: =AND(BJ$24,BI26>=BH26) -> FALSE | BK26: =IntvTriggers!$L$17 -> 0.95 | BL26: =AND(BL$24,$AP26<=BK26) -> FALSE | BM26: =IntvTriggers!$L$18 -> 0.95 | BN26: =AND(BN$24,$AQ26<=BM26) -> FALSE | BO26: =IntvTriggers!$L$19 -> 0.95 | BP26: =AND(BP$24,$AR26<=BO26) -> FALSE | BQ26: =TRANSPOSE(IntvTriggers!Q20:DQ20) -> 0 | BR26: =AND(BQ26="x",BR$24) -> FALSE | BS26: =OR(BD26,BG26,BJ26,BL26,BN26,BP26,BR26) -> FALSE | BT26: =IF(DF26,FALSE,BS26) -> FALSE | BV26: =IntvTriggers!$L$22 -> 0.95 | BW26: =AND(BW$24,$I26>=BV26) -> FALSE | BX26: =IntvTriggers!$L$23 -> 0.05 | BY26: =($AE$24-$AE26)/$AE$24 -> 0 | BZ26: =AND(BZ$24,BY26>=BX26) -> FALSE | CA26: =IntvTriggers!$L$24 -> 0.05 | CB26: =($AF$24-$AF26)/$AF$24 -> 0 | CC26: =AND(CC$24,CB26>=CA26) -> FALSE | CD26: =IntvTriggers!$L$25 -> 0.98 | CE26: =AND(CE$24,$AP26<=CD26) -> FALSE | CF26: =IntvTriggers!$L$26 -> 0.98 | CG26: =AND(CG$24,$AQ26<=CF26) -> FALSE | CH26: =IntvTriggers!$L$27 -> 0.98 | CI26: =AND(CI$24,$AR26<=CH26) -> FALSE | CJ26: =TRANSPOSE(IntvTriggers!Q28:DQ28) -> 0 | CK26: =AND(CJ26="x",CK$24) -> FALSE | CL26: =OR(BW26,,BZ26,CC26,CE26,CG26,CI26,CK26) -> FALSE | CM26: =IF(BS26,FALSE,CL26) -> FALSE | CN26: =IF(DF26,FALSE,CM26) -> FALSE | CP26: =IntvTriggers!$L$32 -> 0.9 | CQ26: =AND(CQ24,$I26>=CP26) -> FALSE | CR26: =IntvTriggers!$L$33 -> 0.1 | CS26: =($AE$24-$AE26)/$AE$24 -> 0 | CT26: =AND(CT$24,CS26>=CR26) -> FALSE | CU26: =IntvTriggers!$L$34 -> 0.1 | CV26: =($AF$24-$AF26)/$AF$24 -> 0 | CW26: =AND(CW$24,CV26>=CU26) -> FALSE | CX26: =IntvTriggers!$L$35 -> 0.95 | CY26: =AND(CY$24,$AP26<=CX26) -> FALSE | CZ26: =IntvTriggers!$L$36 -> 0.95 | DA26: =AND(DA$24,$AQ26<=CZ26) -> FALSE | DB26: =IntvTriggers!$L$37 -> 0.95 | DC26: =AND(DC$24,$AR26<=DB26) -> FALSE | DD26: =TRANSPOSE(IntvTriggers!Q38:DQ38) -> 0 | DE26: =AND(DD26="x",DE$24) -> FALSE | DF26: =OR(CQ26,CT26,CW26,CY26,DA26,DC26,DE26) -> FALSE | DK26: =IF(AND(DF26,$DN$16),$DM$16,IF(AND(BT26,$DN$14),$DM$14,IF(CN26,$DM$15,0))) -> 0 | DN26: 0 | DO26: =INT(DN26/DO$22+1) -> 1 | DR26: =DF26*1 -> 0
C27: =C26+1 -> 2 | D27: =IF($S27>0,$S27,D26) -> 2 | E27: =INDEX(Assumptions!$D$25:$F$28,$S$8,D27) -> 5 | F27: =IF($S27>0,0,F26+1) -> 1 | G27: =IF(E27=0,0,F27/E27) -> 0.2 | H27: TRUE | I27: =IF(E27=0,1,MAX(0,MIN(1,0.1*G27*(6*G27-1)))) -> 0.004 | J27: =IF(AND(D27=1,F27=0),1,MAX(0,I27-I26)) -> 0.004 | K27: =SUMPRODUCT(OFFSET(J27,-MIN(F27,C27),0):J27,OFFSET(OFFSET(CorrosionRates!$C$119,-MIN(F27,C27),0):'CorrosionRates'!$C$119,0,$S$8)) -> 0 | L27: =IF(AB26,0,IF(F27=0,M26,L26)) -> 0 | M27: =K27+L27 -> 0 | N27: =IF(N$25,M27,OFFSET(CorrosionRates!$C$119,-C27,$S$9)) -> 0 | O27: =M27+N27 -> 0 | R27: FALSE | S27: =DK26 -> 0 | T27: =I27 -> 0.004 | U27: 0.996 | W27: FALSE | X27: =IF(AB27,0,IF(W27,X26+1,X26)) -> 0 | Y27: 0 | Z27: 0 | AB27: FALSE | AC27: =IF(AB27,1+AC26,0+AC26) -> 0 | AE27: =IF($AC26>0,AE$24-$O27+Y26,AE$25-$O27+Y26) -> 13 | AF27: =IF($AC26>0,AF$24-$O27+Z26,AF$25-$O27+Z26) -> 10 | AG27: 31720 | AH27: 5240 | AI27: =AG27+AH27 -> 36960 | AJ27: =IF(Section=2,AH27,AG27) -> 31720 | AK27: 558043.1869 | AM27: 13 | AN27: 10 | AP27: 1 | AQ27: 1 | AR27: 1 | AT27: 662694.4387 | AU27: 804545.2207 | AV27: 558043.1869 | AZ27: Ic = (2.f.b3 + (d-2.f).w3)/3 - { 2.b.f + (d-2.f).w}.{ (2.f.b2 + (d-2f).w2)/(2.b.d - 2.(d-2f).(b-w))}2 | BC27: =IntvTriggers!$L$14 -> 0.75 | BD27: =AND(BD$24,$I27>=BC27) -> FALSE | BE27: =IntvTriggers!$L$15 -> 0.1 | BF27: 0 | BG27: =AND(BG$24,BF27>=BE27) -> FALSE | BH27: =IntvTriggers!$L$16 -> 0.1 | BI27: 0 | BJ27: =AND(BJ$24,BI27>=BH27) -> FALSE | BK27: =IntvTriggers!$L$17 -> 0.95 | BL27: =AND(BL$24,$AP27<=BK27) -> FALSE | BM27: =IntvTriggers!$L$18 -> 0.95 | BN27: =AND(BN$24,$AQ27<=BM27) -> FALSE | BO27: =IntvTriggers!$L$19 -> 0.95 | BP27: =AND(BP$24,$AR27<=BO27) -> FALSE | BQ27: 0 | BR27: FALSE | BS27: =OR(BD27,BG27,BJ27,BL27,BN27,BP27,BR27) -> FALSE | BT27: =IF(DF27,FALSE,BS27) -> FALSE | BV27: =IntvTriggers!$L$22 -> 0.95 | BW27: =AND(BW$24,$I27>=BV27) -> FALSE | BX27: =IntvTriggers!$L$23 -> 0.05 | BY27: 0 | BZ27: =AND(BZ$24,BY27>=BX27) -> FALSE | CA27: =IntvTriggers!$L$24 -> 0.05 | CB27: 0 | CC27: =AND(CC$24,CB27>=CA27) -> FALSE | CD27: =IntvTriggers!$L$25 -> 0.98 | CE27: =AND(CE$24,$AP27<=CD27) -> FALSE | CF27: =IntvTriggers!$L$26 -> 0.98 | CG27: =AND(CG$24,$AQ27<=CF27) -> FALSE | CH27: =IntvTriggers!$L$27 -> 0.98 | CI27: =AND(CI$24,$AR27<=CH27) -> FALSE | CJ27: 0 | CK27: FALSE | CL27: =OR(BW27,,BZ27,CC27,CE27,CG27,CI27,CK27) -> FALSE | CM27: FALSE | CN27: FALSE | CP27: =IntvTriggers!$L$32 -> 0.9 | CQ27: =AND(CQ$24,$I27>=CP27) -> FALSE | CR27: =IntvTriggers!$L$33 -> 0.1 | CS27: 0 | CT27: =AND(CT$24,CS27>=CR27) -> FALSE | CU27: =IntvTriggers!$L$34 -> 0.1 | CV27: 0 | CW27: =AND(CW$24,CV27>=CU27) -> FALSE | CX27: =IntvTriggers!$L$35 -> 0.95 | CY27: =AND(CY$24,$AP27<=CX27) -> FALSE | CZ27: =IntvTriggers!$L$36 -> 0.95 | DA27: =AND(DA$24,$AQ27<=CZ27) -> FALSE | DB27: =IntvTriggers!$L$37 -> 0.95 | DC27: =AND(DC$24,$AR27<=DB27) -> FALSE | DD27: 0 | DE27: =AND(DD27="x",DE$24) -> FALSE | DF27: =OR(CQ27,CT27,CW27,CY27,DA27,DC27,DE27) -> FALSE | DK27: =IF(AND(DF27,$DN$16),$DM$16,IF(AND(BT27,$DN$14),$DM$14,IF(CN27,$DM$15,0))) -> 0 | DN27: =DN26+1 -> 1 | DO27: =INT(DN27/DO$22+1) -> 1 | DP27: =BT26*1 -> 0 | DQ27: =CN26*1 -> 0 | DR27: =DF27*1 -> 0
C28: =C27+1 -> 3 | D28: 2 | E28: =INDEX(Assumptions!$D$25:$F$28,$S$8,D28) -> 5 | F28: 2 | G28: =IF(E28=0,0,F28/E28) -> 0.4 | H28: =OR(E28=0,F28<E28) -> TRUE | I28: =IF(E28=0,1,MAX(0,MIN(1,0.1*G28*(6*G28-1)))) -> 0.056 | J28: 0.052 | K28: =SUMPRODUCT(OFFSET(J28,-MIN(F28,C28),0):J28,OFFSET(OFFSET(CorrosionRates!$C$119,-MIN(F28,C28),0):'CorrosionRates'!$C$119,0,$S$8)) -> 0.0004 | L28: 0 | M28: 0.0004 | N28: =IF(N$25,M28,OFFSET(CorrosionRates!$C$119,-C28,$S$9)) -> 0.0004 | O28: 0.0008 | R28: FALSE | S28: 0 | T28: 0.056 | U28: 0.944 | W28: FALSE | X28: 0 | Y28: 0 | Z28: 0 | AB28: FALSE | AC28: =IF(AB28,1+AC27,0+AC27) -> 0 | AE28: =IF($AC27>0,AE$24-$O28+Y27,AE$25-$O28+Y27) -> 12.9992 | AF28: =IF($AC27>0,AF$24-$O28+Z27,AF$25-$O28+Z27) -> 9.9992 | AG28: 31718.048 | AH28: 5239.5808 | AI28: =AG28+AH28 -> 36957.6288 | AJ28: 31718.048 | AK28: 558006.8859 | AM28: 12.9992 | AN28: 9.9992 | AP28: 0.9999384615 | AQ28: 0.99992 | AR28: 0.9999349496 | AT28: 662652.2968 | AU28: 804492.3009 | AV28: 558006.8859 | BC28: =IntvTriggers!$L$14 -> 0.75 | BD28: =AND(BD$24,$I28>=BC28) -> FALSE | BE28: =IntvTriggers!$L$15 -> 0.1 | BF28: 6.153846154e-05 | BG28: FALSE | BH28: =IntvTriggers!$L$16 -> 0.1 | BI28: 8e-05 | BJ28: FALSE | BK28: =IntvTriggers!$L$17 -> 0.95 | BL28: FALSE | BM28: =IntvTriggers!$L$18 -> 0.95 | BN28: FALSE | BO28: =IntvTriggers!$L$19 -> 0.95 | BP28: =AND(BP$24,$AR28<=BO28) -> FALSE | BQ28: 0 | BR28: FALSE | BS28: =OR(BD28,BG28,BJ28,BL28,BN28,BP28,BR28) -> FALSE | BT28: FALSE | BV28: =IntvTriggers!$L$22 -> 0.95 | BW28: FALSE | BX28: =IntvTriggers!$L$23 -> 0.05 | BY28: 6.153846154e-05 | BZ28: FALSE | CA28: =IntvTriggers!$L$24 -> 0.05 | CB28: 8e-05 | CC28: FALSE | CD28: =IntvTriggers!$L$25 -> 0.98 | CE28: FALSE | CF28: =IntvTriggers!$L$26 -> 0.98 | CG28: FALSE | CH28: =IntvTriggers!$L$27 -> 0.98 | CI28: FALSE | CJ28: 0 | CK28: FALSE | CL28: FALSE | CM28: FALSE | CN28: FALSE | CP28: =IntvTriggers!$L$32 -> 0.9 | CQ28: =AND(CQ$24,$I28>=CP28) -> FALSE | CR28: =IntvTriggers!$L$33 -> 0.1 | CS28: 6.153846154e-05 | CT28: =AND(CT$24,CS28>=CR28) -> FALSE | CU28: =IntvTriggers!$L$34 -> 0.1 | CV28: 8e-05 | CW28: =AND(CW$24,CV28>=CU28) -> FALSE | CX28: =IntvTriggers!$L$35 -> 0.95 | CY28: =AND(CY$24,$AP28<=CX28) -> FALSE | CZ28: =IntvTriggers!$L$36 -> 0.95 | DA28: =AND(DA$24,$AQ28<=CZ28) -> FALSE | DB28: =IntvTriggers!$L$37 -> 0.95 | DC28: =AND(DC$24,$AR28<=DB28) -> FALSE | DD28: 0 | DE28: =AND(DD28="x",DE$24) -> FALSE | DF28: FALSE | DK28: 0 | DN28: =DN27+1 -> 2 | DO28: 1 | DP28: =BT27*1 -> 0 | DQ28: =CN27*1 -> 0 | DR28: 0
C29: 4 | D29: 2 | E29: =INDEX(Assumptions!$D$25:$F$28,$S$8,D29) -> 5 | F29: 3 | G29: =IF(E29=0,0,F29/E29) -> 0.6 | H29: =OR(E29=0,F29<E29) -> TRUE | I29: =IF(E29=0,1,MAX(0,MIN(1,0.1*G29*(6*G29-1)))) -> 0.156 | J29: 0.1 | K29: =SUMPRODUCT(OFFSET(J29,-MIN(F29,C29),0):J29,OFFSET(OFFSET(CorrosionRates!$C$119,-MIN(F29,C29),0):'CorrosionRates'!$C$119,0,$S$8)) -> 0.005795870985 | L29: 0 | M29: 0.005795870985 | N29: =IF(N$25,M29,OFFSET(CorrosionRates!$C$119,-C29,$S$9)) -> 0.005795870985 | O29: 0.01159174197 | R29: FALSE | S29: 0 | T29: 0.156 | U29: 0.844 | W29: FALSE | X29: 0 | Y29: 0 | Z29: 0 | AB29: FALSE | AC29: 0 | AE29: 12.98840826 | AF29: 9.988408258 | AG29: 31691.71615 | AH29: 5233.925927 | AI29: 36925.64208 | AJ29: 31691.71615 | AK29: 557517.1869 | AM29: 12.98840826 | AN29: 9.988408258 | AP29: 0.9991083275 | AQ29: 0.9988408258 | AR29: 0.9990574207 | AT29: 662083.7993 | AU29: 803778.405 | AV29: 557517.1869 | AZ29: Ic = (2.f.d3 + (b-2.f).w3)/3 - { 2.d.f + (b-2.f).w}.{ (2.f.d2 + (b-2f).w2)/(2.d.b - 2.(b-2f).(d-w))}2 | BA29: but d and b are exchanged in this notation. | BC29: =IntvTriggers!$L$14 -> 0.75 | BD29: FALSE | BE29: =IntvTriggers!$L$15 -> 0.1 | BF29: 0.0008916724593 | BG29: FALSE | BH29: =IntvTriggers!$L$16 -> 0.1 | BI29: 0.001159174197 | BJ29: FALSE | BK29: =IntvTriggers!$L$17 -> 0.95 | BL29: FALSE | BM29: =IntvTriggers!$L$18 -> 0.95 | BN29: FALSE | BO29: =IntvTriggers!$L$19 -> 0.95 | BP29: FALSE | BQ29: 0 | BR29: =AND(BQ29="x",BR$24) -> FALSE | BS29: =OR(BD29,BG29,BJ29,BL29,BN29,BP29,BR29) -> FALSE | BT29: FALSE | BV29: =IntvTriggers!$L$22 -> 0.95 | BW29: =AND(BW$24,$I29>=BV29) -> FALSE | BX29: =IntvTriggers!$L$23 -> 0.05 | BY29: 0.0008916724593 | BZ29: FALSE | CA29: =IntvTriggers!$L$24 -> 0.05 | CB29: 0.001159174197 | CC29: FALSE | CD29: =IntvTriggers!$L$25 -> 0.98 | CE29: FALSE | CF29: =IntvTriggers!$L$26 -> 0.98 | CG29: FALSE | CH29: =IntvTriggers!$L$27 -> 0.98 | CI29: FALSE | CJ29: 0 | CK29: FALSE | CL29: FALSE | CM29: FALSE | CN29: FALSE | CP29: =IntvTriggers!$L$32 -> 0.9 | CQ29: FALSE | CR29: =IntvTriggers!$L$33 -> 0.1 | CS29: 0.0008916724593 | CT29: FALSE | CU29: =IntvTriggers!$L$34 -> 0.1 | CV29: 0.001159174197 | CW29: FALSE | CX29: =IntvTriggers!$L$35 -> 0.95 | CY29: FALSE | CZ29: =IntvTriggers!$L$36 -> 0.95 | DA29: FALSE | DB29: =IntvTriggers!$L$37 -> 0.95 | DC29: FALSE | DD29: 0 | DE29: =AND(DD29="x",DE$24) -> FALSE | DF29: =OR(CQ29,CT29,CW29,CY29,DA29,DC29,DE29) -> FALSE | DK29: 0 | DN29: 3 | DO29: =INT(DN29/DO$22+1) -> 1 | DP29: 0 | DQ29: 0 | DR29: 0
C30: 5 | D30: 2 | E30: =INDEX(Assumptions!$D$25:$F$28,$S$8,D30) -> 5 | F30: 4 | G30: 0.8 | H30: TRUE | I30: 0.304 | J30: 0.148 | K30: =SUMPRODUCT(OFFSET(J30,-MIN(F30,C30),0):J30,OFFSET(OFFSET(CorrosionRates!$C$119,-MIN(F30,C30),0):'CorrosionRates'!$C$119,0,$S$8)) -> 0.01849864646 | L30: 0 | M30: 0.01849864646 | N30: =IF(N$25,M30,OFFSET(CorrosionRates!$C$119,-C30,$S$9)) -> 0.01849864646 | O30: 0.03699729291 | R30: FALSE | S30: 0 | T30: 0.304 | U30: 0.696 | W30: FALSE | X30: 0 | Y30: 0 | Z30: 0 | AB30: TRUE | AC30: 1 | AE30: 12.96300271 | AF30: 9.963002707 | AG30: 31629.72661 | AH30: 5220.613419 | AI30: 36850.34002 | AJ30: 31629.72661 | AK30: 556364.2746 | AM30: 13 | AN30: 10 | AP30: 0.9971540544 | AQ30: 0.9963002707 | AR30: 0.9969914294 | AT30: 660745.3372 | AU30: 802097.5861 | AV30: 556364.2746 | BC30: =IntvTriggers!$L$14 -> 0.75 | BD30: FALSE | BE30: =IntvTriggers!$L$15 -> 0.1 | BF30: 0.002845945609 | BG30: FALSE | BH30: =IntvTriggers!$L$16 -> 0.1 | BI30: 0.003699729291 | BJ30: FALSE | BK30: =IntvTriggers!$L$17 -> 0.95 | BL30: FALSE | BM30: =IntvTriggers!$L$18 -> 0.95 | BN30: FALSE | BO30: =IntvTriggers!$L$19 -> 0.95 | BP30: FALSE | BQ30: 0 | BR30: FALSE | BS30: FALSE | BT30: FALSE | BV30: =IntvTriggers!$L$22 -> 0.95 | BW30: FALSE | BX30: =IntvTriggers!$L$23 -> 0.05 | BY30: 0.002845945609 | BZ30: FALSE | CA30: =IntvTriggers!$L$24 -> 0.05 | CB30: 0.003699729291 | CC30: FALSE | CD30: =IntvTriggers!$L$25 -> 0.98 | CE30: FALSE | CF30: =IntvTriggers!$L$26 -> 0.98 | CG30: FALSE | CH30: =IntvTriggers!$L$27 -> 0.98 | CI30: FALSE | CJ30: 0 | CK30: FALSE | CL30: FALSE | CM30: FALSE | CN30: FALSE | CP30: =IntvTriggers!$L$32 -> 0.9 | CQ30: FALSE | CR30: =IntvTriggers!$L$33 -> 0.1 | CS30: 0.002845945609 | CT30: FALSE | CU30: =IntvTriggers!$L$34 -> 0.1 | CV30: 0.003699729291 | CW30: FALSE | CX30: =IntvTriggers!$L$35 -> 0.95 | CY30: FALSE | CZ30: =IntvTriggers!$L$36 -> 0.95 | DA30: FALSE | DB30: =IntvTriggers!$L$37 -> 0.95 | DC30: FALSE | DD30: x | DE30: TRUE | DF30: TRUE | DK30: =IF(AND(DF30,$DN$16),$DM$16,IF(AND(BT30,$DN$14),$DM$14,IF(CN30,$DM$15,0))) -> 3 | DN30: 4 | DO30: =INT(DN30/DO$22+1) -> 1 | DP30: 0 | DQ30: 0 | DR30: 1
C31: 6 | D31: 3 | E31: =INDEX(Assumptions!$D$25:$F$28,$S$8,D31) -> 18 | F31: 0 | G31: 0 | H31: TRUE | I31: =IF(E31=0,1,MAX(0,MIN(1,0.1*G31*(6*G31-1)))) -> 0 | J31: 0 | K31: =SUMPRODUCT(OFFSET(J31,-MIN(F31,C31),0):J31,OFFSET(OFFSET(CorrosionRates!$C$119,-MIN(F31,C31),0):'CorrosionRates'!$C$119,0,$S$8)) -> 0 | L31: 0 | M31: 0 | N31: =IF(N$25,M31,OFFSET(CorrosionRates!$C$119,-C31,$S$9)) -> 0 | O31: 0 | R31: FALSE | S31: 3 | T31: 0 | U31: 1 | W31: FALSE | X31: 0 | Y31: 0 | Z31: 0 | AB31: FALSE | AC31: 1 | AE31: 13 | AF31: 10 | AG31: 31720 | AH31: 5240 | AI31: 36960 | AJ31: 31720 | AK31: 558043.1869 | AM31: =IF(OR($W31,$AB31),AE32,AE31) -> 13 | AN31: 10 | AP31: 1 | AQ31: 1 | AR31: 1 | AT31: 662694.4387 | AU31: 804545.2207 | AV31: 558043.1869 | BC31: =IntvTriggers!$L$14 -> 0.75 | BD31: FALSE | BE31: =IntvTriggers!$L$15 -> 0.1 | BF31: 0 | BG31: FALSE | BH31: =IntvTriggers!$L$16 -> 0.1 | BI31: 0 | BJ31: FALSE | BK31: =IntvTriggers!$L$17 -> 0.95 | BL31: FALSE | BM31: =IntvTriggers!$L$18 -> 0.95 | BN31: FALSE | BO31: =IntvTriggers!$L$19 -> 0.95 | BP31: FALSE | BQ31: 0 | BR31: FALSE | BS31: FALSE | BT31: FALSE | BV31: =IntvTriggers!$L$22 -> 0.95 | BW31: FALSE | BX31: =IntvTriggers!$L$23 -> 0.05 | BY31: 0 | BZ31: FALSE | CA31: =IntvTriggers!$L$24 -> 0.05 | CB31: 0 | CC31: FALSE | CD31: =IntvTriggers!$L$25 -> 0.98 | CE31: FALSE | CF31: =IntvTriggers!$L$26 -> 0.98 | CG31: FALSE | CH31: =IntvTriggers!$L$27 -> 0.98 | CI31: FALSE | CJ31: 0 | CK31: FALSE | CL31: FALSE | CM31: FALSE | CN31: FALSE | CP31: =IntvTriggers!$L$32 -> 0.9 | CQ31: FALSE | CR31: =IntvTriggers!$L$33 -> 0.1 | CS31: 0 | CT31: FALSE | CU31: =IntvTriggers!$L$34 -> 0.1 | CV31: 0 | CW31: FALSE | CX31: =IntvTriggers!$L$35 -> 0.95 | CY31: FALSE | CZ31: =IntvTriggers!$L$36 -> 0.95 | DA31: FALSE | DB31: =IntvTriggers!$L$37 -> 0.95 | DC31: FALSE | DD31: 0 | DE31: FALSE | DF31: FALSE | DK31: =IF(AND(DF31,$DN$16),$DM$16,IF(AND(BT31,$DN$14),$DM$14,IF(CN31,$DM$15,0))) -> 0 | DN31: 5 | DO31: 2 | DP31: 0 | DQ31: 0 | DR31: 0
C32: 7 | D32: 3 | E32: =INDEX(Assumptions!$D$25:$F$28,$S$8,D32) -> 18 | F32: 1 | G32: 0.05555555556 | H32: TRUE | I32: =IF(E32=0,1,MAX(0,MIN(1,0.1*G32*(6*G32-1)))) -> 0 | J32: =IF(AND(D32=1,F32=0),1,MAX(0,I32-I31)) -> 0 | K32: =SUMPRODUCT(OFFSET(J32,-MIN(F32,C32),0):J32,OFFSET(OFFSET(CorrosionRates!$C$119,-MIN(F32,C32),0):'CorrosionRates'!$C$119,0,$S$8)) -> 0 | L32: 0 | M32: 0 | N32: =IF(N$25,M32,OFFSET(CorrosionRates!$C$119,-C32,$S$9)) -> 0 | O32: 0 | R32: FALSE | S32: 0 | T32: 0 | U32: 1 | W32: FALSE | X32: 0 | Y32: 0 | Z32: 0 | AB32: FALSE | AC32: 1 | AE32: 13 | AF32: 10 | AG32: 31720 | AH32: 5240 | AI32: 36960 | AJ32: 31720 | AK32: 558043.1869 | AM32: 13 | AN32: 10 | AP32: 1 | AQ32: 1 | AR32: 1 | AT32: 662694.4387 | AU32: 804545.2207 | AV32: 558043.1869 | BC32: =IntvTriggers!$L$14 -> 0.75 | BD32: FALSE | BE32: =IntvTriggers!$L$15 -> 0.1 | BF32: 0 | BG32: FALSE | BH32: =IntvTriggers!$L$16 -> 0.1 | BI32: 0 | BJ32: FALSE | BK32: =IntvTriggers!$L$17 -> 0.95 | BL32: FALSE | BM32: =IntvTriggers!$L$18 -> 0.95 | BN32: FALSE | BO32: =IntvTriggers!$L$19 -> 0.95 | BP32: FALSE | BQ32: 0 | BR32: FALSE | BS32: FALSE | BT32: FALSE | BV32: =IntvTriggers!$L$22 -> 0.95 | BW32: FALSE | BX32: =IntvTriggers!$L$23 -> 0.05 | BY32: 0 | BZ32: FALSE | CA32: =IntvTriggers!$L$24 -> 0.05 | CB32: 0 | CC32: FALSE | CD32: =IntvTriggers!$L$25 -> 0.98 | CE32: FALSE | CF32: =IntvTriggers!$L$26 -> 0.98 | CG32: FALSE | CH32: =IntvTriggers!$L$27 -> 0.98 | CI32: FALSE | CJ32: 0 | CK32: FALSE | CL32: FALSE | CM32: FALSE | CN32: FALSE | CP32: =IntvTriggers!$L$32 -> 0.9 | CQ32: FALSE | CR32: =IntvTriggers!$L$33 -> 0.1 | CS32: 0 | CT32: FALSE | CU32: =IntvTriggers!$L$34 -> 0.1 | CV32: 0 | CW32: FALSE | CX32: =IntvTriggers!$L$35 -> 0.95 | CY32: FALSE | CZ32: =IntvTriggers!$L$36 -> 0.95 | DA32: FALSE | DB32: =IntvTriggers!$L$37 -> 0.95 | DC32: FALSE | DD32: 0 | DE32: =AND(DD32="x",DE$24) -> FALSE | DF32: =OR(CQ32,CT32,CW32,CY32,DA32,DC32,DE32) -> FALSE | DK32: 0 | DN32: 6 | DO32: 2 | DP32: 0 | DQ32: 0 | DR32: 0
C33: 8 | D33: 3 | E33: =INDEX(Assumptions!$D$25:$F$28,$S$8,D33) -> 18 | F33: 2 | G33: 0.1111111111 | H33: TRUE | I33: =IF(E33=0,1,MAX(0,MIN(1,0.1*G33*(6*G33-1)))) -> 0 | J33: 0 | K33: =SUMPRODUCT(OFFSET(J33,-MIN(F33,C33),0):J33,OFFSET(OFFSET(CorrosionRates!$C$119,-MIN(F33,C33),0):'CorrosionRates'!$C$119,0,$S$8)) -> 0 | L33: 0 | M33: 0 | N33: =IF(N$25,M33,OFFSET(CorrosionRates!$C$119,-C33,$S$9)) -> 0 | O33: 0 | R33: FALSE | S33: 0 | T33: 0 | U33: 1 | W33: FALSE | X33: 0 | Y33: 0 | Z33: 0 | AB33: FALSE | AC33: 1 | AE33: 13 | AF33: 10 | AG33: 31720 | AH33: 5240 | AI33: 36960 | AJ33: 31720 | AK33: 558043.1869 | AM33: 13 | AN33: 10 | AP33: 1 | AQ33: 1 | AR33: 1 | AT33: 662694.4387 | AU33: 804545.2207 | AV33: 558043.1869 | BC33: =IntvTriggers!$L$14 -> 0.75 | BD33: FALSE | BE33: =IntvTriggers!$L$15 -> 0.1 | BF33: 0 | BG33: FALSE | BH33: =IntvTriggers!$L$16 -> 0.1 | BI33: 0 | BJ33: FALSE | BK33: =IntvTriggers!$L$17 -> 0.95 | BL33: FALSE | BM33: =IntvTriggers!$L$18 -> 0.95 | BN33: FALSE | BO33: =IntvTriggers!$L$19 -> 0.95 | BP33: FALSE | BQ33: 0 | BR33: FALSE | BS33: FALSE | BT33: FALSE | BV33: =IntvTriggers!$L$22 -> 0.95 | BW33: FALSE | BX33: =IntvTriggers!$L$23 -> 0.05 | BY33: 0 | BZ33: FALSE | CA33: =IntvTriggers!$L$24 -> 0.05 | CB33: 0 | CC33: FALSE | CD33: =IntvTriggers!$L$25 -> 0.98 | CE33: FALSE | CF33: =IntvTriggers!$L$26 -> 0.98 | CG33: FALSE | CH33: =IntvTriggers!$L$27 -> 0.98 | CI33: FALSE | CJ33: 0 | CK33: FALSE | CL33: FALSE | CM33: FALSE | CN33: FALSE | CP33: =IntvTriggers!$L$32 -> 0.9 | CQ33: FALSE | CR33: =IntvTriggers!$L$33 -> 0.1 | CS33: 0 | CT33: FALSE | CU33: =IntvTriggers!$L$34 -> 0.1 | CV33: 0 | CW33: FALSE | CX33: =IntvTriggers!$L$35 -> 0.95 | CY33: FALSE | CZ33: =IntvTriggers!$L$36 -> 0.95 | DA33: FALSE | DB33: =IntvTriggers!$L$37 -> 0.95 | DC33: FALSE | DD33: 0 | DE33: =AND(DD33="x",DE$24) -> FALSE | DF33: =OR(CQ33,CT33,CW33,CY33,DA33,DC33,DE33) -> FALSE | DK33: =IF(AND(DF33,$DN$16),$DM$16,IF(AND(BT33,$DN$14),$DM$14,IF(CN33,$DM$15,0))) -> 0 | DN33: 7 | DO33: 2 | DP33: 0 | DQ33: 0 | DR33: 0
C34: 9 | D34: 3 | E34: =INDEX(Assumptions!$D$25:$F$28,$S$8,D34) -> 18 | F34: 3 | G34: 0.1666666667 | H34: TRUE | I34: =IF(E34=0,1,MAX(0,MIN(1,0.1*G34*(6*G34-1)))) -> 0 | J34: 0 | K34: =SUMPRODUCT(OFFSET(J34,-MIN(F34,C34),0):J34,OFFSET(OFFSET(CorrosionRates!$C$119,-MIN(F34,C34),0):'CorrosionRates'!$C$119,0,$S$8)) -> 0 | L34: 0 | M34: 0 | N34: =IF(N$25,M34,OFFSET(CorrosionRates!$C$119,-C34,$S$9)) -> 0 | O34: 0 | R34: FALSE | S34: 0 | T34: 0 | U34: 1 | W34: FALSE | X34: 0 | Y34: 0 | Z34: 0 | AB34: FALSE | AC34: 1 | AE34: 13 | AF34: 10 | AG34: 31720 | AH34: 5240 | AI34: 36960 | AJ34: 31720 | AK34: 558043.1869 | AM34: 13 | AN34: 10 | AP34: 1 | AQ34: 1 | AR34: 1 | AT34: 662694.4387 | AU34: 804545.2207 | AV34: 558043.1869 | BC34: =IntvTriggers!$L$14 -> 0.75 | BD34: FALSE | BE34: =IntvTriggers!$L$15 -> 0.1 | BF34: 0 | BG34: FALSE | BH34: =IntvTriggers!$L$16 -> 0.1 | BI34: 0 | BJ34: FALSE | BK34: =IntvTriggers!$L$17 -> 0.95 | BL34: FALSE | BM34: =IntvTriggers!$L$18 -> 0.95 | BN34: FALSE | BO34: =IntvTriggers!$L$19 -> 0.95 | BP34: FALSE | BQ34: 0 | BR34: FALSE | BS34: FALSE | BT34: FALSE | BV34: =IntvTriggers!$L$22 -> 0.95 | BW34: FALSE | BX34: =IntvTriggers!$L$23 -> 0.05 | BY34: 0 | BZ34: FALSE | CA34: =IntvTriggers!$L$24 -> 0.05 | CB34: 0 | CC34: FALSE | CD34: =IntvTriggers!$L$25 -> 0.98 | CE34: FALSE | CF34: =IntvTriggers!$L$26 -> 0.98 | CG34: FALSE | CH34: =IntvTriggers!$L$27 -> 0.98 | CI34: FALSE | CJ34: 0 | CK34: FALSE | CL34: FALSE | CM34: FALSE | CN34: FALSE | CP34: =IntvTriggers!$L$32 -> 0.9 | CQ34: FALSE | CR34: =IntvTriggers!$L$33 -> 0.1 | CS34: 0 | CT34: FALSE | CU34: =IntvTriggers!$L$34 -> 0.1 | CV34: 0 | CW34: FALSE | CX34: =IntvTriggers!$L$35 -> 0.95 | CY34: FALSE | CZ34: =IntvTriggers!$L$36 -> 0.95 | DA34: FALSE | DB34: =IntvTriggers!$L$37 -> 0.95 | DC34: FALSE | DD34: 0 | DE34: FALSE | DF34: FALSE | DK34: 0 | DN34: 8 | DO34: 2 | DP34: 0 | DQ34: 0 | DR34: 0
C35: =C34+1 -> 10 | D35: 3 | E35: =INDEX(Assumptions!$D$25:$F$28,$S$8,D35) -> 18 | F35: 4 | G35: 0.2222222222 | H35: TRUE | I35: 0.007407407407 | J35: 0.007407407407 | K35: =SUMPRODUCT(OFFSET(J35,-MIN(F35,C35),0):J35,OFFSET(OFFSET(CorrosionRates!$C$119,-MIN(F35,C35),0):'CorrosionRates'!$C$119,0,$S$8)) -> 0 | L35: 0 | M35: =K35+L35 -> 0 | N35: =IF(N$25,M35,OFFSET(CorrosionRates!$C$119,-C35,$S$9)) -> 0 | O35: 0 | R35: FALSE | S35: 0 | T35: 0.007407407407 | U35: 0.9925925926 | W35: FALSE | X35: 0 | Y35: 0 | Z35: 0 | AB35: FALSE | AC35: 1 | AE35: 13 | AF35: 10 | AG35: 31720 | AH35: 5240 | AI35: 36960 | AJ35: 31720 | AK35: 558043.1869 | AM35: 13 | AN35: 10 | AP35: 1 | AQ35: 1 | AR35: 1 | AT35: =(b*d^3 - (b-w)*(d-2*f)^3)/120000 -> 662694.4387 | AU35: 804545.2207 | AV35: 558043.1869 | BC35: =IntvTriggers!$L$14 -> 0.75 | BD35: FALSE | BE35: =IntvTriggers!$L$15 -> 0.1 | BF35: 0 | BG35: FALSE | BH35: =IntvTriggers!$L$16 -> 0.1 | BI35: 0 | BJ35: FALSE | BK35: =IntvTriggers!$L$17 -> 0.95 | BL35: FALSE | BM35: =IntvTriggers!$L$18 -> 0.95 | BN35: FALSE | BO35: =IntvTriggers!$L$19 -> 0.95 | BP35: FALSE | BQ35: 0 | BR35: FALSE | BS35: FALSE | BT35: FALSE | BV35: =IntvTriggers!$L$22 -> 0.95 | BW35: FALSE | BX35: =IntvTriggers!$L$23 -> 0.05 | BY35: 0 | BZ35: FALSE | CA35: =IntvTriggers!$L$24 -> 0.05 | CB35: 0 | CC35: FALSE | CD35: =IntvTriggers!$L$25 -> 0.98 | CE35: FALSE | CF35: =IntvTriggers!$L$26 -> 0.98 | CG35: FALSE | CH35: =IntvTriggers!$L$27 -> 0.98 | CI35: FALSE | CJ35: 0 | CK35: FALSE | CL35: FALSE | CM35: FALSE | CN35: FALSE | CP35: =IntvTriggers!$L$32 -> 0.9 | CQ35: FALSE | CR35: =IntvTriggers!$L$33 -> 0.1 | CS35: 0 | CT35: FALSE | CU35: =IntvTriggers!$L$34 -> 0.1 | CV35: 0 | CW35: FALSE | CX35: =IntvTriggers!$L$35 -> 0.95 | CY35: FALSE | CZ35: =IntvTriggers!$L$36 -> 0.95 | DA35: FALSE | DB35: =IntvTriggers!$L$37 -> 0.95 | DC35: FALSE | DD35: 0 | DE35: FALSE | DF35: FALSE | DK35: 0 | DN35: 9 | DO35: 2 | DP35: 0 | DQ35: 0 | DR35: 0
C36: 11 | D36: 3 | E36: =INDEX(Assumptions!$D$25:$F$28,$S$8,D36) -> 18 | F36: 5 | G36: 0.2777777778 | H36: TRUE | I36: 0.01851851852 | J36: 0.01111111111 | K36: =SUMPRODUCT(OFFSET(J36,-MIN(F36,C36),0):J36,OFFSET(OFFSET(CorrosionRates!$C$119,-MIN(F36,C36),0):'CorrosionRates'!$C$119,0,$S$8)) -> 0.0007407407407 | L36: 0 | M36: =K36+L36 -> 0.0007407407407 | N36: =IF(N$25,M36,OFFSET(CorrosionRates!$C$119,-C36,$S$9)) -> 0.0007407407407 | O36: =M36+N36 -> 0.001481481481 | R36: FALSE | S36: 0 | T36: 0.01851851852 | U36: 0.9814814815 | W36: FALSE | X36: 0 | Y36: 0 | Z36: 0 | AB36: FALSE | AC36: 1 | AE36: 12.99851852 | AF36: 9.998518519 | AG36: 31716.38519 | AH36: 5239.223704 | AI36: =AG36+AH36 -> 36955.60889 | AJ36: =IF(Section=2,AH36,AG36) -> 31716.38519 | AK36: =OFFSET(AT36,0,$T$6) -> 557975.9628 | AM36: =IF(OR($W36,$AB36),AE37,AE36) -> 12.99851852 | AN36: 9.998518519 | AP36: 0.9998860399 | AQ36: 0.9998518519 | AR36: 0.9998795361 | AT36: 662616.398 | AU36: 804447.2209 | AV36: 557975.9628 | BC36: =IntvTriggers!$L$14 -> 0.75 | BD36: FALSE | BE36: =IntvTriggers!$L$15 -> 0.1 | BF36: 0.000113960114 | BG36: FALSE | BH36: =IntvTriggers!$L$16 -> 0.1 | BI36: 0.0001481481481 | BJ36: FALSE | BK36: =IntvTriggers!$L$17 -> 0.95 | BL36: FALSE | BM36: =IntvTriggers!$L$18 -> 0.95 | BN36: FALSE | BO36: =IntvTriggers!$L$19 -> 0.95 | BP36: FALSE | BQ36: 0 | BR36: FALSE | BS36: FALSE | BT36: FALSE | BV36: =IntvTriggers!$L$22 -> 0.95 | BW36: FALSE | BX36: =IntvTriggers!$L$23 -> 0.05 | BY36: 0.000113960114 | BZ36: FALSE | CA36: =IntvTriggers!$L$24 -> 0.05 | CB36: 0.0001481481481 | CC36: FALSE | CD36: =IntvTriggers!$L$25 -> 0.98 | CE36: FALSE | CF36: =IntvTriggers!$L$26 -> 0.98 | CG36: FALSE | CH36: =IntvTriggers!$L$27 -> 0.98 | CI36: FALSE | CJ36: 0 | CK36: FALSE | CL36: FALSE | CM36: FALSE | CN36: FALSE | CP36: =IntvTriggers!$L$32 -> 0.9 | CQ36: FALSE | CR36: =IntvTriggers!$L$33 -> 0.1 | CS36: 0.000113960114 | CT36: FALSE | CU36: =IntvTriggers!$L$34 -> 0.1 | CV36: 0.0001481481481 | CW36: FALSE | CX36: =IntvTriggers!$L$35 -> 0.95 | CY36: FALSE | CZ36: =IntvTriggers!$L$36 -> 0.95 | DA36: FALSE | DB36: =IntvTriggers!$L$37 -> 0.95 | DC36: FALSE | DD36: 0 | DE36: =AND(DD36="x",DE$24) -> FALSE | DF36: FALSE | DK36: 0 | DN36: 10 | DO36: 3 | DP36: 0 | DQ36: 0 | DR36: 0
C37: 12 | D37: 3 | E37: =INDEX(Assumptions!$D$25:$F$28,$S$8,D37) -> 18 | F37: 6 | G37: 0.3333333333 | H37: TRUE | I37: 0.03333333333 | J37: 0.01481481481 | K37: =SUMPRODUCT(OFFSET(J37,-MIN(F37,C37),0):J37,OFFSET(OFFSET(CorrosionRates!$C$119,-MIN(F37,C37),0):'CorrosionRates'!$C$119,0,$S$8)) -> 0.002214575899 | L37: 0 | M37: =K37+L37 -> 0.002214575899 | N37: =IF(N$25,M37,OFFSET(CorrosionRates!$C$119,-C37,$S$9)) -> 0.002214575899 | O37: 0.004429151797 | R37: FALSE | S37: 0 | T37: 0.03333333333 | U37: 0.9666666667 | W37: FALSE | X37: 0 | Y37: 0 | Z37: 0 | AB37: FALSE | AC37: 1 | AE37: 12.99557085 | AF37: 9.995570848 | AG37: 31709.19287 | AH37: 5237.679124 | AI37: 36946.87199 | AJ37: 31709.19287 | AK37: 557842.2075 | AM37: 12.99557085 | AN37: 9.995570848 | AP37: 0.999659296 | AQ37: 0.9995570848 | AR37: 0.9996398497 | AT37: 662461.1205 | AU37: 804252.2304 | AV37: 557842.2075 | BC37: =IntvTriggers!$L$14 -> 0.75 | BD37: FALSE | BE37: =IntvTriggers!$L$15 -> 0.1 | BF37: 0.0003407039844 | BG37: FALSE | BH37: =IntvTriggers!$L$16 -> 0.1 | BI37: 0.0004429151797 | BJ37: FALSE | BK37: =IntvTriggers!$L$17 -> 0.95 | BL37: FALSE | BM37: =IntvTriggers!$L$18 -> 0.95 | BN37: FALSE | BO37: =IntvTriggers!$L$19 -> 0.95 | BP37: FALSE | BQ37: 0 | BR37: FALSE | BS37: FALSE | BT37: FALSE | BV37: =IntvTriggers!$L$22 -> 0.95 | BW37: FALSE | BX37: =IntvTriggers!$L$23 -> 0.05 | BY37: 0.0003407039844 | BZ37: FALSE | CA37: =IntvTriggers!$L$24 -> 0.05 | CB37: 0.0004429151797 | CC37: FALSE | CD37: =IntvTriggers!$L$25 -> 0.98 | CE37: FALSE | CF37: =IntvTriggers!$L$26 -> 0.98 | CG37: FALSE | CH37: =IntvTriggers!$L$27 -> 0.98 | CI37: FALSE | CJ37: 0 | CK37: FALSE | CL37: FALSE | CM37: FALSE | CN37: FALSE | CP37: =IntvTriggers!$L$32 -> 0.9 | CQ37: FALSE | CR37: =IntvTriggers!$L$33 -> 0.1 | CS37: 0.0003407039844 | CT37: FALSE | CU37: =IntvTriggers!$L$34 -> 0.1 | CV37: 0.0004429151797 | CW37: FALSE | CX37: =IntvTriggers!$L$35 -> 0.95 | CY37: FALSE | CZ37: =IntvTriggers!$L$36 -> 0.95 | DA37: FALSE | DB37: =IntvTriggers!$L$37 -> 0.95 | DC37: FALSE | DD37: 0 | DE37: FALSE | DF37: FALSE | DK37: 0 | DN37: 11 | DO37: 3 | DP37: 0 | DQ37: 0 | DR37: 0
C38: 13 | D38: 3 | E38: =INDEX(Assumptions!$D$25:$F$28,$S$8,D38) -> 18 | F38: 7 | G38: 0.3888888889 | H38: TRUE | I38: 0.05185185185 | J38: 0.01851851852 | K38: =SUMPRODUCT(OFFSET(J38,-MIN(F38,C38),0):J38,OFFSET(OFFSET(CorrosionRates!$C$119,-MIN(F38,C38),0):'CorrosionRates'!$C$119,0,$S$8)) -> 0.004529870602 | L38: 0 | M38: 0.004529870602 | N38: =IF(N$25,M38,OFFSET(CorrosionRates!$C$119,-C38,$S$9)) -> 0.004529870602 | O38: 0.009059741203 | R38: FALSE | S38: 0 | T38: 0.05185185185 | U38: 0.9481481481 | W38: FALSE | X38: 0 | Y38: 0 | Z38: 0 | AB38: FALSE | AC38: 1 | AE38: 12.99094026 | AF38: 9.990940259 | AG38: 31697.89423 | AH38: 5235.252696 | AI38: 36933.14693 | AJ38: 31697.89423 | AK38: 557632.0838 | AM38: 12.99094026 | AN38: 9.990940259 | AP38: 0.9993030968 | AQ38: 0.9990940259 | AR38: 0.9992633132 | AT38: 662217.1853 | AU38: 803945.9063 | AV38: 557632.0838 | BC38: =IntvTriggers!$L$14 -> 0.75 | BD38: FALSE | BE38: =IntvTriggers!$L$15 -> 0.1 | BF38: 0.0006969031695 | BG38: FALSE | BH38: =IntvTriggers!$L$16 -> 0.1 | BI38: 0.0009059741203 | BJ38: FALSE | BK38: =IntvTriggers!$L$17 -> 0.95 | BL38: FALSE | BM38: =IntvTriggers!$L$18 -> 0.95 | BN38: FALSE | BO38: =IntvTriggers!$L$19 -> 0.95 | BP38: FALSE | BQ38: 0 | BR38: FALSE | BS38: FALSE | BT38: FALSE | BV38: =IntvTriggers!$L$22 -> 0.95 | BW38: FALSE | BX38: =IntvTriggers!$L$23 -> 0.05 | BY38: 0.0006969031695 | BZ38: FALSE | CA38: =IntvTriggers!$L$24 -> 0.05 | CB38: 0.0009059741203 | CC38: FALSE | CD38: =IntvTriggers!$L$25 -> 0.98 | CE38: FALSE | CF38: =IntvTriggers!$L$26 -> 0.98 | CG38: FALSE | CH38: =IntvTriggers!$L$27 -> 0.98 | CI38: FALSE | CJ38: 0 | CK38: FALSE | CL38: FALSE | CM38: FALSE | CN38: FALSE | CP38: =IntvTriggers!$L$32 -> 0.9 | CQ38: FALSE | CR38: =IntvTriggers!$L$33 -> 0.1 | CS38: 0.0006969031695 | CT38: FALSE | CU38: =IntvTriggers!$L$34 -> 0.1 | CV38: 0.0009059741203 | CW38: FALSE | CX38: =IntvTriggers!$L$35 -> 0.95 | CY38: FALSE | CZ38: =IntvTriggers!$L$36 -> 0.95 | DA38: FALSE | DB38: =IntvTriggers!$L$37 -> 0.95 | DC38: FALSE | DD38: 0 | DE38: FALSE | DF38: FALSE | DK38: 0 | DN38: 12 | DO38: 3 | DP38: 0 | DQ38: 0 | DR38: 0
C39: 14 | D39: 3 | E39: =INDEX(Assumptions!$D$25:$F$28,$S$8,D39) -> 18 | F39: 8 | G39: 0.4444444444 | H39: TRUE | I39: 0.07407407407 | J39: 0.02222222222 | K39: =SUMPRODUCT(OFFSET(J39,-MIN(F39,C39),0):J39,OFFSET(OFFSET(CorrosionRates!$C$119,-MIN(F39,C39),0):'CorrosionRates'!$C$119,0,$S$8)) -> 0.007792375961 | L39: 0 | M39: 0.007792375961 | N39: =IF(N$25,M39,OFFSET(CorrosionRates!$C$119,-C39,$S$9)) -> 0.007792375961 | O39: 0.01558475192 | R39: FALSE | S39: 0 | T39: 0.07407407407 | U39: 0.9259259259 | W39: FALSE | X39: 0 | Y39: 0 | Z39: 0 | AB39: FALSE | AC39: 1 | AE39: 12.98441525 | AF39: 9.984415248 | AG39: 31681.97321 | AH39: 5231.83359 | AI39: 36913.8068 | AJ39: 31681.97321 | AK39: 557335.9902 | AM39: 12.98441525 | AN39: 9.984415248 | AP39: 0.9988011729 | AQ39: 0.9984415248 | AR39: 0.9987327205 | AT39: 661873.4438 | AU39: 803514.247 | AV39: =0.0001*((2*f*d^3 + (b-2*f)*w^3)/3 - (2*d*f + (b-2*f)*w)*((2*f*d^2 + (b-2*f)*w^2)/(2*d*b - 2*(b-2*f)*(d-w)))^2) -> 557335.9902 | BC39: =IntvTriggers!$L$14 -> 0.75 | BD39: FALSE | BE39: =IntvTriggers!$L$15 -> 0.1 | BF39: 0.001198827071 | BG39: FALSE | BH39: =IntvTriggers!$L$16 -> 0.1 | BI39: 0.001558475192 | BJ39: FALSE | BK39: =IntvTriggers!$L$17 -> 0.95 | BL39: FALSE | BM39: =IntvTriggers!$L$18 -> 0.95 | BN39: FALSE | BO39: =IntvTriggers!$L$19 -> 0.95 | BP39: FALSE | BQ39: 0 | BR39: FALSE | BS39: FALSE | BT39: FALSE | BV39: =IntvTriggers!$L$22 -> 0.95 | BW39: FALSE | BX39: =IntvTriggers!$L$23 -> 0.05 | BY39: 0.001198827071 | BZ39: FALSE | CA39: =IntvTriggers!$L$24 -> 0.05 | CB39: 0.001558475192 | CC39: FALSE | CD39: =IntvTriggers!$L$25 -> 0.98 | CE39: FALSE | CF39: =IntvTriggers!$L$26 -> 0.98 | CG39: FALSE | CH39: =IntvTriggers!$L$27 -> 0.98 | CI39: FALSE | CJ39: 0 | CK39: FALSE | CL39: FALSE | CM39: FALSE | CN39: FALSE | CP39: =IntvTriggers!$L$32 -> 0.9 | CQ39: FALSE | CR39: =IntvTriggers!$L$33 -> 0.1 | CS39: 0.001198827071 | CT39: FALSE | CU39: =IntvTriggers!$L$34 -> 0.1 | CV39: 0.001558475192 | CW39: FALSE | CX39: =IntvTriggers!$L$35 -> 0.95 | CY39: FALSE | CZ39: =IntvTriggers!$L$36 -> 0.95 | DA39: FALSE | DB39: =IntvTriggers!$L$37 -> 0.95 | DC39: FALSE | DD39: 0 | DE39: FALSE | DF39: FALSE | DK39: 0 | DN39: 13 | DO39: 3 | DP39: 0 | DQ39: 0 | DR39: 0
C40: 15 | D40: 3 | E40: =INDEX(Assumptions!$D$25:$F$28,$S$8,D40) -> 18 | F40: 9 | G40: 0.5 | H40: TRUE | I40: 0.1 | J40: 0.02592592593 | K40: =SUMPRODUCT(OFFSET(J40,-MIN(F40,C40),0):J40,OFFSET(OFFSET(CorrosionRates!$C$119,-MIN(F40,C40),0):'CorrosionRates'!$C$119,0,$S$8)) -> 0.01210182602 | L40: 0 | M40: 0.01210182602 | N40: =IF(N$25,M40,OFFSET(CorrosionRates!$C$119,-C40,$S$9)) -> 0.01210182602 | O40: 0.02420365205 | R40: FALSE | S40: 0 | T40: 0.1 | U40: 0.9 | W40: FALSE | X40: 0 | Y40: 0 | Z40: 0 | AB40: FALSE | AC40: 1 | AE40: 12.97579635 | AF40: 9.975796348 | AG40: 31660.94309 | AH40: 5227.317286 | AI40: 36888.26038 | AJ40: 31660.94309 | AK40: 556944.8682 | AM40: 12.97579635 | AN40: 9.975796348 | AP40: 0.9981381806 | AQ40: 0.9975796348 | AR40: 0.9980318393 | AT40: 661419.3773 | AU40: 802944.0403 | AV40: =0.0001*((2*f*d^3 + (b-2*f)*w^3)/3 - (2*d*f + (b-2*f)*w)*((2*f*d^2 + (b-2*f)*w^2)/(2*d*b - 2*(b-2*f)*(d-w)))^2) -> 556944.8682 | BC40: =IntvTriggers!$L$14 -> 0.75 | BD40: FALSE | BE40: =IntvTriggers!$L$15 -> 0.1 | BF40: 0.001861819388 | BG40: FALSE | BH40: =IntvTriggers!$L$16 -> 0.1 | BI40: 0.002420365205 | BJ40: FALSE | BK40: =IntvTriggers!$L$17 -> 0.95 | BL40: FALSE | BM40: =IntvTriggers!$L$18 -> 0.95 | BN40: FALSE | BO40: =IntvTriggers!$L$19 -> 0.95 | BP40: FALSE | BQ40: 0 | BR40: FALSE | BS40: FALSE | BT40: FALSE | BV40: =IntvTriggers!$L$22 -> 0.95 | BW40: FALSE | BX40: =IntvTriggers!$L$23 -> 0.05 | BY40: 0.001861819388 | BZ40: FALSE | CA40: =IntvTriggers!$L$24 -> 0.05 | CB40: 0.002420365205 | CC40: FALSE | CD40: =IntvTriggers!$L$25 -> 0.98 | CE40: FALSE | CF40: =IntvTriggers!$L$26 -> 0.98 | CG40: FALSE | CH40: =IntvTriggers!$L$27 -> 0.98 | CI40: FALSE | CJ40: 0 | CK40: FALSE | CL40: FALSE | CM40: FALSE | CN40: FALSE | CP40: =IntvTriggers!$L$32 -> 0.9 | CQ40: FALSE | CR40: =IntvTriggers!$L$33 -> 0.1 | CS40: 0.001861819388 | CT40: FALSE | CU40: =IntvTriggers!$L$34 -> 0.1 | CV40: 0.002420365205 | CW40: FALSE | CX40: =IntvTriggers!$L$35 -> 0.95 | CY40: FALSE | CZ40: =IntvTriggers!$L$36 -> 0.95 | DA40: FALSE | DB40: =IntvTriggers!$L$37 -> 0.95 | DC40: FALSE | DD40: 0 | DE40: FALSE | DF40: FALSE | DK40: 0 | DN40: 14 | DO40: 3 | DP40: 0 | DQ40: 0 | DR40: 0
C41: 16 | D41: 3 | E41: =INDEX(Assumptions!$D$25:$F$28,$S$8,D41) -> 18 | F41: 10 | G41: 0.5555555556 | H41: TRUE | I41: 0.1296296296 | J41: 0.02962962963 | K41: =SUMPRODUCT(OFFSET(J41,-MIN(F41,C41),0):J41,OFFSET(OFFSET(CorrosionRates!$C$119,-MIN(F41,C41),0):'CorrosionRates'!$C$119,0,$S$8)) -> 0.01755225871 | L41: 0 | M41: 0.01755225871 | N41: =IF(N$25,M41,OFFSET(CorrosionRates!$C$119,-C41,$S$9)) -> 0.01755225871 | O41: 0.03510451742 | R41: FALSE | S41: 0 | T41: 0.1296296296 | U41: 0.8703703704 | W41: FALSE | X41: 0 | Y41: 0 | Z41: 0 | AB41: FALSE | AC41: 1 | AE41: 12.96489548 | AF41: 9.964895483 | AG41: 31634.34498 | AH41: 5221.605233 | AI41: 36855.95021 | AJ41: 31634.34498 | AK41: 556450.1732 | AM41: 12.96489548 | AN41: 9.964895483 | AP41: 0.9972996525 | AQ41: 0.9964895483 | AR41: 0.9971453577 | AT41: 660845.0619 | AU41: 802222.8203 | AV41: =0.0001*((2*f*d^3 + (b-2*f)*w^3)/3 - (2*d*f + (b-2*f)*w)*((2*f*d^2 + (b-2*f)*w^2)/(2*d*b - 2*(b-2*f)*(d-w)))^2) -> 556450.1732 | BC41: =IntvTriggers!$L$14 -> 0.75 | BD41: FALSE | BE41: =IntvTriggers!$L$15 -> 0.1 | BF41: 0.002700347494 | BG41: FALSE | BH41: =IntvTriggers!$L$16 -> 0.1 | BI41: 0.003510451742 | BJ41: FALSE | BK41: =IntvTriggers!$L$17 -> 0.95 | BL41: FALSE | BM41: =IntvTriggers!$L$18 -> 0.95 | BN41: FALSE | BO41: =IntvTriggers!$L$19 -> 0.95 | BP41: FALSE | BQ41: 0 | BR41: FALSE | BS41: FALSE | BT41: FALSE | BV41: =IntvTriggers!$L$22 -> 0.95 | BW41: FALSE | BX41: =IntvTriggers!$L$23 -> 0.05 | BY41: 0.002700347494 | BZ41: FALSE | CA41: =IntvTriggers!$L$24 -> 0.05 | CB41: 0.003510451742 | CC41: FALSE | CD41: =IntvTriggers!$L$25 -> 0.98 | CE41: FALSE | CF41: =IntvTriggers!$L$26 -> 0.98 | CG41: FALSE | CH41: =IntvTriggers!$L$27 -> 0.98 | CI41: FALSE | CJ41: 0 | CK41: FALSE | CL41: FALSE | CM41: FALSE | CN41: FALSE | CP41: =IntvTriggers!$L$32 -> 0.9 | CQ41: FALSE | CR41: =IntvTriggers!$L$33 -> 0.1 | CS41: 0.002700347494 | CT41: =AND(CT$24,CS41>=CR41) -> FALSE | CU41: =IntvTriggers!$L$34 -> 0.1 | CV41: 0.003510451742 | CW41: FALSE | CX41: =IntvTriggers!$L$35 -> 0.95 | CY41: FALSE | CZ41: =IntvTriggers!$L$36 -> 0.95 | DA41: FALSE | DB41: =IntvTriggers!$L$37 -> 0.95 | DC41: FALSE | DD41: 0 | DE41: FALSE | DF41: FALSE | DK41: 0 | DN41: 15 | DO41: 4 | DP41: 0 | DQ41: 0 | DR41: 0
C42: 17 | D42: 3 | E42: =INDEX(Assumptions!$D$25:$F$28,$S$8,D42) -> 18 | F42: 11 | G42: 0.6111111111 | H42: TRUE | I42: 0.162962963 | J42: 0.03333333333 | K42: =SUMPRODUCT(OFFSET(J42,-MIN(F42,C42),0):J42,OFFSET(OFFSET(CorrosionRates!$C$119,-MIN(F42,C42),0):'CorrosionRates'!$C$119,0,$S$8)) -> 0.02423275077 | L42: 0 | M42: =K42+L42 -> 0.02423275077 | N42: =IF(N$25,M42,OFFSET(CorrosionRates!$C$119,-C42,$S$9)) -> 0.02423275077 | O42: 0.04846550153 | R42: FALSE | S42: 0 | T42: 0.162962963 | U42: 0.837037037 | W42: FALSE | X42: 0 | Y42: 0 | Z42: 0 | AB42: FALSE | AC42: 1 | AE42: 12.9515345 | AF42: 9.951534498 | AG42: 31601.74418 | AH42: 5214.604077 | AI42: 36816.34825 | AJ42: 31601.74418 | AK42: 555843.8068 | AM42: 12.9515345 | AN42: 9.951534498 | AP42: 0.9962718845 | AQ42: 0.9951534498 | AR42: 0.9960587637 | AT42: 660141.0904 | AU42: 801338.7679 | AV42: =0.0001*((2*f*d^3 + (b-2*f)*w^3)/3 - (2*d*f + (b-2*f)*w)*((2*f*d^2 + (b-2*f)*w^2)/(2*d*b - 2*(b-2*f)*(d-w)))^2) -> 555843.8068 | BC42: =IntvTriggers!$L$14 -> 0.75 | BD42: FALSE | BE42: =IntvTriggers!$L$15 -> 0.1 | BF42: 0.003728115502 | BG42: FALSE | BH42: =IntvTriggers!$L$16 -> 0.1 | BI42: 0.004846550153 | BJ42: FALSE | BK42: =IntvTriggers!$L$17 -> 0.95 | BL42: FALSE | BM42: =IntvTriggers!$L$18 -> 0.95 | BN42: FALSE | BO42: =IntvTriggers!$L$19 -> 0.95 | BP42: FALSE | BQ42: 0 | BR42: FALSE | BS42: FALSE | BT42: FALSE | BV42: =IntvTriggers!$L$22 -> 0.95 | BW42: FALSE | BX42: =IntvTriggers!$L$23 -> 0.05 | BY42: 0.003728115502 | BZ42: FALSE | CA42: =IntvTriggers!$L$24 -> 0.05 | CB42: 0.004846550153 | CC42: FALSE | CD42: =IntvTriggers!$L$25 -> 0.98 | CE42: FALSE | CF42: =IntvTriggers!$L$26 -> 0.98 | CG42: FALSE | CH42: =IntvTriggers!$L$27 -> 0.98 | CI42: FALSE | CJ42: 0 | CK42: FALSE | CL42: FALSE | CM42: FALSE | CN42: FALSE | CP42: =IntvTriggers!$L$32 -> 0.9 | CQ42: FALSE | CR42: =IntvTriggers!$L$33 -> 0.1 | CS42: 0.003728115502 | CT42: FALSE | CU42: =IntvTriggers!$L$34 -> 0.1 | CV42: 0.004846550153 | CW42: FALSE | CX42: =IntvTriggers!$L$35 -> 0.95 | CY42: FALSE | CZ42: =IntvTriggers!$L$36 -> 0.95 | DA42: FALSE | DB42: =IntvTriggers!$L$37 -> 0.95 | DC42: FALSE | DD42: 0 | DE42: FALSE | DF42: FALSE | DK42: 0 | DN42: 16 | DO42: 4 | DP42: 0 | DQ42: 0 | DR42: 0
C43: 18 | D43: 3 | E43: =INDEX(Assumptions!$D$25:$F$28,$S$8,D43) -> 18 | F43: 12 | G43: 0.6666666667 | H43: TRUE | I43: 0.2 | J43: 0.03703703704 | K43: =SUMPRODUCT(OFFSET(J43,-MIN(F43,C43),0):J43,OFFSET(OFFSET(CorrosionRates!$C$119,-MIN(F43,C43),0):'CorrosionRates'!$C$119,0,$S$8)) -> 0.03222810316 | L43: 0 | M43: 0.03222810316 | N43: =IF(N$25,M43,OFFSET(CorrosionRates!$C$119,-C43,$S$9)) -> 0.03222810316 | O43: 0.06445620632 | R43: FALSE | S43: 0 | T43: 0.2 | U43: 0.8 | W43: FALSE | X43: 0 | Y43: 0 | Z43: 0 | AB43: FALSE | AC43: 1 | AE43: 12.93554379 | AF43: 9.935543794 | AG43: 31562.72686 | AH43: 5206.224948 | AI43: 36768.9518 | AJ43: 31562.72686 | AK43: 555118.0542 | AM43: 12.93554379 | AN43: 9.935543794 | AP43: 0.9950418303 | AQ43: 0.9935543794 | AR43: 0.9947582323 | AT43: 659298.4989 | AU43: 800280.6189 | AV43: 555118.0542 | BC43: =IntvTriggers!$L$14 -> 0.75 | BD43: FALSE | BE43: =IntvTriggers!$L$15 -> 0.1 | BF43: 0.004958169717 | BG43: FALSE | BH43: =IntvTriggers!$L$16 -> 0.1 | BI43: 0.006445620632 | BJ43: FALSE | BK43: =IntvTriggers!$L$17 -> 0.95 | BL43: FALSE | BM43: =IntvTriggers!$L$18 -> 0.95 | BN43: FALSE | BO43: =IntvTriggers!$L$19 -> 0.95 | BP43: FALSE | BQ43: 0 | BR43: FALSE | BS43: FALSE | BT43: FALSE | BV43: =IntvTriggers!$L$22 -> 0.95 | BW43: FALSE | BX43: =IntvTriggers!$L$23 -> 0.05 | BY43: 0.004958169717 | BZ43: FALSE | CA43: =IntvTriggers!$L$24 -> 0.05 | CB43: 0.006445620632 | CC43: FALSE | CD43: =IntvTriggers!$L$25 -> 0.98 | CE43: FALSE | CF43: =IntvTriggers!$L$26 -> 0.98 | CG43: FALSE | CH43: =IntvTriggers!$L$27 -> 0.98 | CI43: FALSE | CJ43: 0 | CK43: FALSE | CL43: FALSE | CM43: FALSE | CN43: FALSE | CP43: =IntvTriggers!$L$32 -> 0.9 | CQ43: FALSE | CR43: =IntvTriggers!$L$33 -> 0.1 | CS43: 0.004958169717 | CT43: FALSE | CU43: =IntvTriggers!$L$34 -> 0.1 | CV43: 0.006445620632 | CW43: FALSE | CX43: =IntvTriggers!$L$35 -> 0.95 | CY43: FALSE | CZ43: =IntvTriggers!$L$36 -> 0.95 | DA43: FALSE | DB43: =IntvTriggers!$L$37 -> 0.95 | DC43: FALSE | DD43: 0 | DE43: FALSE | DF43: FALSE | DK43: 0 | DN43: 17 | DO43: 4 | DP43: 0 | DQ43: 0 | DR43: 0
C44: 19 | D44: 3 | E44: =INDEX(Assumptions!$D$25:$F$28,$S$8,D44) -> 18 | F44: 13 | G44: 0.7222222222 | H44: TRUE | I44: 0.2407407407 | J44: 0.04074074074 | K44: =SUMPRODUCT(OFFSET(J44,-MIN(F44,C44),0):J44,OFFSET(OFFSET(CorrosionRates!$C$119,-MIN(F44,C44),0):'CorrosionRates'!$C$119,0,$S$8)) -> 0.04161941282 | L44: 0 | M44: 0.04161941282 | N44: =IF(N$25,M44,OFFSET(CorrosionRates!$C$119,-C44,$S$9)) -> 0.04161941282 | O44: 0.08323882564 | R44: FALSE | S44: 0 | T44: 0.2407407407 | U44: 0.7592592593 | W44: FALSE | X44: 0 | Y44: 0 | Z44: 0 | AB44: FALSE | AC44: 1 | AE44: 12.91676117 | AF44: 9.916761174 | AG44: 31516.89727 | AH44: 5196.382855 | AI44: 36713.28012 | AJ44: 31516.89727 | AK44: 554265.5313 | AM44: 12.91676117 | AN44: 9.916761174 | AP44: 0.9935970134 | AQ44: 0.9916761174 | AR44: 0.9932305318 | AT44: 658308.7055 | AU44: 799037.5867 | AV44: 554265.5313 | BC44: =IntvTriggers!$L$14 -> 0.75 | BD44: FALSE | BE44: =IntvTriggers!$L$15 -> 0.1 | BF44: 0.006402986587 | BG44: FALSE | BH44: =IntvTriggers!$L$16 -> 0.1 | BI44: 0.008323882564 | BJ44: FALSE | BK44: =IntvTriggers!$L$17 -> 0.95 | BL44: FALSE | BM44: =IntvTriggers!$L$18 -> 0.95 | BN44: FALSE | BO44: =IntvTriggers!$L$19 -> 0.95 | BP44: FALSE | BQ44: 0 | BR44: FALSE | BS44: FALSE | BT44: FALSE | BV44: =IntvTriggers!$L$22 -> 0.95 | BW44: FALSE | BX44: =IntvTriggers!$L$23 -> 0.05 | BY44: 0.006402986587 | BZ44: FALSE | CA44: =IntvTriggers!$L$24 -> 0.05 | CB44: 0.008323882564 | CC44: FALSE | CD44: =IntvTriggers!$L$25 -> 0.98 | CE44: FALSE | CF44: =IntvTriggers!$L$26 -> 0.98 | CG44: FALSE | CH44: =IntvTriggers!$L$27 -> 0.98 | CI44: FALSE | CJ44: 0 | CK44: FALSE | CL44: FALSE | CM44: FALSE | CN44: FALSE | CP44: =IntvTriggers!$L$32 -> 0.9 | CQ44: FALSE | CR44: =IntvTriggers!$L$33 -> 0.1 | CS44: 0.006402986587 | CT44: FALSE | CU44: =IntvTriggers!$L$34 -> 0.1 | CV44: 0.008323882564 | CW44: FALSE | CX44: =IntvTriggers!$L$35 -> 0.95 | CY44: FALSE | CZ44: =IntvTriggers!$L$36 -> 0.95 | DA44: FALSE | DB44: =IntvTriggers!$L$37 -> 0.95 | DC44: FALSE | DD44: 0 | DE44: FALSE | DF44: FALSE | DK44: 0 | DN44: 18 | DO44: 4 | DP44: 0 | DQ44: 0 | DR44: 0
C45: 20 | D45: 3 | E45: =INDEX(Assumptions!$D$25:$F$28,$S$8,D45) -> 18 | F45: 14 | G45: 0.7777777778 | H45: TRUE | I45: 0.2851851852 | J45: 0.04444444444 | K45: =SUMPRODUCT(OFFSET(J45,-MIN(F45,C45),0):J45,OFFSET(OFFSET(CorrosionRates!$C$119,-MIN(F45,C45),0):'CorrosionRates'!$C$119,0,$S$8)) -> 0.0524845392 | L45: 0 | M45: =K45+L45 -> 0.0524845392 | N45: =IF(N$25,M45,OFFSET(CorrosionRates!$C$119,-C45,$S$9)) -> 0.0524845392 | O45: 0.1049690784 | R45: FALSE | S45: 0 | T45: 0.2851851852 | U45: 0.7148148148 | W45: FALSE | X45: 0 | Y45: 0 | Z45: 0 | AB45: FALSE | AC45: 1 | AE45: 12.89503092 | AF45: 9.895030922 | AG45: 31463.87545 | AH45: 5184.996203 | AI45: 36648.87165 | AJ45: 31463.87545 | AK45: 553279.1421 | AM45: 12.89503092 | AN45: 9.895030922 | AP45: 0.9919254555 | AQ45: 0.9895030922 | AR45: 0.991462946 | AT45: 657163.4602 | AU45: 797599.2991 | AV45: 553279.1421 | BC45: =IntvTriggers!$L$14 -> 0.75 | BD45: FALSE | BE45: =IntvTriggers!$L$15 -> 0.1 | BF45: 0.008074544492 | BG45: FALSE | BH45: =IntvTriggers!$L$16 -> 0.1 | BI45: 0.01049690784 | BJ45: FALSE | BK45: =IntvTriggers!$L$17 -> 0.95 | BL45: FALSE | BM45: =IntvTriggers!$L$18 -> 0.95 | BN45: FALSE | BO45: =IntvTriggers!$L$19 -> 0.95 | BP45: FALSE | BQ45: 0 | BR45: FALSE | BS45: FALSE | BT45: FALSE | BV45: =IntvTriggers!$L$22 -> 0.95 | BW45: FALSE | BX45: =IntvTriggers!$L$23 -> 0.05 | BY45: 0.008074544492 | BZ45: FALSE | CA45: =IntvTriggers!$L$24 -> 0.05 | CB45: 0.01049690784 | CC45: FALSE | CD45: =IntvTriggers!$L$25 -> 0.98 | CE45: FALSE | CF45: =IntvTriggers!$L$26 -> 0.98 | CG45: FALSE | CH45: =IntvTriggers!$L$27 -> 0.98 | CI45: FALSE | CJ45: 0 | CK45: FALSE | CL45: FALSE | CM45: FALSE | CN45: FALSE | CP45: =IntvTriggers!$L$32 -> 0.9 | CQ45: FALSE | CR45: =IntvTriggers!$L$33 -> 0.1 | CS45: 0.008074544492 | CT45: FALSE | CU45: =IntvTriggers!$L$34 -> 0.1 | CV45: 0.01049690784 | CW45: FALSE | CX45: =IntvTriggers!$L$35 -> 0.95 | CY45: FALSE | CZ45: =IntvTriggers!$L$36 -> 0.95 | DA45: FALSE | DB45: =IntvTriggers!$L$37 -> 0.95 | DC45: FALSE | DD45: 0 | DE45: FALSE | DF45: FALSE | DK45: 0 | DN45: 19 | DO45: 4 | DP45: 0 | DQ45: 0 | DR45: 0
C46: 21 | D46: 3 | E46: =INDEX(Assumptions!$D$25:$F$28,$S$8,D46) -> 18 | F46: 15 | G46: 0.8333333333 | H46: TRUE | I46: 0.3333333333 | J46: 0.04814814815 | K46: =SUMPRODUCT(OFFSET(J46,-MIN(F46,C46),0):J46,OFFSET(OFFSET(CorrosionRates!$C$119,-MIN(F46,C46),0):'CorrosionRates'!$C$119,0,$S$8)) -> 0.06489848559 | L46: 0 | M46: 0.06489848559 | N46: =IF(N$25,M46,OFFSET(CorrosionRates!$C$119,-C46,$S$9)) -> 0.06489848559 | O46: 0.1297969712 | R46: FALSE | S46: 0 | T46: 0.3333333333 | U46: 0.6666666667 | W46: FALSE | X46: 0 | Y46: =$X46*$Y$19*Y$24 -> 0 | Z46: 0 | AB46: FALSE | AC46: 1 | AE46: 12.87020303 | AF46: 9.870203029 | AG46: 31403.29539 | AH46: 5171.986387 | AI46: 36575.28178 | AJ46: 31403.29539 | AK46: 552152.0431 | AM46: 12.87020303 | AN46: 9.870203029 | AP46: 0.9900156176 | AQ46: 0.9870203029 | AR46: 0.9894432116 | AT46: 655854.8037 | AU46: 795955.746 | AV46: 552152.0431 | BC46: =IntvTriggers!$L$14 -> 0.75 | BD46: FALSE | BE46: =IntvTriggers!$L$15 -> 0.1 | BF46: 0.009984382398 | BG46: FALSE | BH46: =IntvTriggers!$L$16 -> 0.1 | BI46: 0.01297969712 | BJ46: FALSE | BK46: =IntvTriggers!$L$17 -> 0.95 | BL46: FALSE | BM46: =IntvTriggers!$L$18 -> 0.95 | BN46: FALSE | BO46: =IntvTriggers!$L$19 -> 0.95 | BP46: FALSE | BQ46: 0 | BR46: FALSE | BS46: FALSE | BT46: FALSE | BV46: =IntvTriggers!$L$22 -> 0.95 | BW46: FALSE | BX46: =IntvTriggers!$L$23 -> 0.05 | BY46: 0.009984382398 | BZ46: FALSE | CA46: =IntvTriggers!$L$24 -> 0.05 | CB46: 0.01297969712 | CC46: FALSE | CD46: =IntvTriggers!$L$25 -> 0.98 | CE46: FALSE | CF46: =IntvTriggers!$L$26 -> 0.98 | CG46: FALSE | CH46: =IntvTriggers!$L$27 -> 0.98 | CI46: FALSE | CJ46: 0 | CK46: FALSE | CL46: FALSE | CM46: FALSE | CN46: FALSE | CP46: =IntvTriggers!$L$32 -> 0.9 | CQ46: FALSE | CR46: =IntvTriggers!$L$33 -> 0.1 | CS46: 0.009984382398 | CT46: FALSE | CU46: =IntvTriggers!$L$34 -> 0.1 | CV46: 0.01297969712 | CW46: FALSE | CX46: =IntvTriggers!$L$35 -> 0.95 | CY46: FALSE | CZ46: =IntvTriggers!$L$36 -> 0.95 | DA46: FALSE | DB46: =IntvTriggers!$L$37 -> 0.95 | DC46: FALSE | DD46: 0 | DE46: FALSE | DF46: FALSE | DK46: 0 | DN46: 20 | DO46: 5 | DP46: 0 | DQ46: 0 | DR46: 0
C47: 22 | D47: 3 | E47: =INDEX(Assumptions!$D$25:$F$28,$S$8,D47) -> 18 | F47: 16 | G47: 0.8888888889 | H47: TRUE | I47: =IF(E47=0,1,MAX(0,MIN(1,0.1*G47*(6*G47-1)))) -> 0.3851851852 | J47: 0.05185185185 | K47: =SUMPRODUCT(OFFSET(J47,-MIN(F47,C47),0):J47,OFFSET(OFFSET(CorrosionRates!$C$119,-MIN(F47,C47),0):'CorrosionRates'!$C$119,0,$S$8)) -> 0.07893371327 | L47: 0 | M47: 0.07893371327 | N47: =IF(N$25,M47,OFFSET(CorrosionRates!$C$119,-C47,$S$9)) -> 0.07893371327 | O47: 0.1578674265 | R47: FALSE | S47: 0 | T47: 0.3851851852 | U47: 0.6148148148 | W47: FALSE | X47: 0 | Y47: 0 | Z47: 0 | AB47: FALSE | AC47: 1 | AE47: 12.84213257 | AF47: 9.842132573 | AG47: 31334.80348 | AH47: 5157.277468 | AI47: 36492.08095 | AJ47: 31334.80348 | AK47: 550877.614 | AM47: 12.84213257 | AN47: 9.842132573 | AP47: 0.9878563518 | AQ47: 0.9842132573 | AR47: 0.9871594653 | AT47: 654375.0328 | AU47: 794097.2365 | AV47: 550877.614 | BC47: =IntvTriggers!$L$14 -> 0.75 | BD47: FALSE | BE47: =IntvTriggers!$L$15 -> 0.1 | BF47: 0.01214364819 | BG47: FALSE | BH47: =IntvTriggers!$L$16 -> 0.1 | BI47: 0.01578674265 | BJ47: FALSE | BK47: =IntvTriggers!$L$17 -> 0.95 | BL47: FALSE | BM47: =IntvTriggers!$L$18 -> 0.95 | BN47: FALSE | BO47: =IntvTriggers!$L$19 -> 0.95 | BP47: FALSE | BQ47: 0 | BR47: FALSE | BS47: FALSE | BT47: FALSE | BV47: =IntvTriggers!$L$22 -> 0.95 | BW47: FALSE | BX47: =IntvTriggers!$L$23 -> 0.05 | BY47: 0.01214364819 | BZ47: FALSE | CA47: =IntvTriggers!$L$24 -> 0.05 | CB47: 0.01578674265 | CC47: FALSE | CD47: =IntvTriggers!$L$25 -> 0.98 | CE47: FALSE | CF47: =IntvTriggers!$L$26 -> 0.98 | CG47: FALSE | CH47: =IntvTriggers!$L$27 -> 0.98 | CI47: FALSE | CJ47: 0 | CK47: FALSE | CL47: FALSE | CM47: FALSE | CN47: FALSE | CP47: =IntvTriggers!$L$32 -> 0.9 | CQ47: FALSE | CR47: =IntvTriggers!$L$33 -> 0.1 | CS47: 0.01214364819 | CT47: FALSE | CU47: =IntvTriggers!$L$34 -> 0.1 | CV47: 0.01578674265 | CW47: FALSE | CX47: =IntvTriggers!$L$35 -> 0.95 | CY47: FALSE | CZ47: =IntvTriggers!$L$36 -> 0.95 | DA47: FALSE | DB47: =IntvTriggers!$L$37 -> 0.95 | DC47: FALSE | DD47: 0 | DE47: FALSE | DF47: FALSE | DK47: 0 | DN47: 21 | DO47: 5 | DP47: 0 | DQ47: 0 | DR47: 0
C48: 23 | D48: 3 | E48: =INDEX(Assumptions!$D$25:$F$28,$S$8,D48) -> 18 | F48: 17 | G48: =IF(E48=0,0,F48/E48) -> 0.9444444444 | H48: TRUE | I48: 0.4407407407 | J48: 0.05555555556 | K48: =SUMPRODUCT(OFFSET(J48,-MIN(F48,C48),0):J48,OFFSET(OFFSET(CorrosionRates!$C$119,-MIN(F48,C48),0):'CorrosionRates'!$C$119,0,$S$8)) -> 0.09466040301 | L48: 0 | M48: 0.09466040301 | N48: =IF(N$25,M48,OFFSET(CorrosionRates!$C$119,-C48,$S$9)) -> 0.09466040301 | O48: 0.189320806 | R48: FALSE | S48: 0 | T48: 0.4407407407 | U48: 0.5592592593 | W48: FALSE | X48: 0 | Y48: 0 | Z48: 0 | AB48: FALSE | AC48: 1 | AE48: 12.81067919 | AF48: 9.810679194 | AG48: 31258.05723 | AH48: 5140.795898 | AI48: 36398.85313 | AJ48: 31258.05723 | AK48: 549449.4336 | AM48: 12.81067919 | AN48: 9.810679194 | AP48: 0.9854368611 | AQ48: 0.9810679194 | AR48: 0.9846002003 | AT48: 652716.6723 | AU48: 792014.3622 | AV48: 549449.4336 | BC48: =IntvTriggers!$L$14 -> 0.75 | BD48: FALSE | BE48: =IntvTriggers!$L$15 -> 0.1 | BF48: 0.01456313892 | BG48: FALSE | BH48: =IntvTriggers!$L$16 -> 0.1 | BI48: 0.0189320806 | BJ48: FALSE | BK48: =IntvTriggers!$L$17 -> 0.95 | BL48: FALSE | BM48: =IntvTriggers!$L$18 -> 0.95 | BN48: FALSE | BO48: =IntvTriggers!$L$19 -> 0.95 | BP48: FALSE | BQ48: 0 | BR48: FALSE | BS48: FALSE | BT48: FALSE | BV48: =IntvTriggers!$L$22 -> 0.95 | BW48: FALSE | BX48: =IntvTriggers!$L$23 -> 0.05 | BY48: 0.01456313892 | BZ48: FALSE | CA48: =IntvTriggers!$L$24 -> 0.05 | CB48: 0.0189320806 | CC48: FALSE | CD48: =IntvTriggers!$L$25 -> 0.98 | CE48: FALSE | CF48: =IntvTriggers!$L$26 -> 0.98 | CG48: FALSE | CH48: =IntvTriggers!$L$27 -> 0.98 | CI48: FALSE | CJ48: 0 | CK48: FALSE | CL48: FALSE | CM48: FALSE | CN48: FALSE | CP48: =IntvTriggers!$L$32 -> 0.9 | CQ48: FALSE | CR48: =IntvTriggers!$L$33 -> 0.1 | CS48: 0.01456313892 | CT48: FALSE | CU48: =IntvTriggers!$L$34 -> 0.1 | CV48: 0.0189320806 | CW48: FALSE | CX48: =IntvTriggers!$L$35 -> 0.95 | CY48: FALSE | CZ48: =IntvTriggers!$L$36 -> 0.95 | DA48: FALSE | DB48: =IntvTriggers!$L$37 -> 0.95 | DC48: FALSE | DD48: 0 | DE48: FALSE | DF48: FALSE | DK48: 0 | DN48: 22 | DO48: 5 | DP48: 0 | DQ48: 0 | DR48: 0
C49: 24 | D49: 3 | E49: =INDEX(Assumptions!$D$25:$F$28,$S$8,D49) -> 18 | F49: 18 | G49: =IF(E49=0,0,F49/E49) -> 1 | H49: FALSE | I49: =IF(E49=0,1,MAX(0,MIN(1,0.1*G49*(6*G49-1)))) -> 0.5 | J49: 0.05925925926 | K49: =SUMPRODUCT(OFFSET(J49,-MIN(F49,C49),0):J49,OFFSET(OFFSET(CorrosionRates!$C$119,-MIN(F49,C49),0):'CorrosionRates'!$C$119,0,$S$8)) -> 0.1121466751 | L49: 0 | M49: 0.1121466751 | N49: =IF(N$25,M49,OFFSET(CorrosionRates!$C$119,-C49,$S$9)) -> 0.1121466751 | O49: 0.2242933501 | R49: FALSE | S49: 0 | T49: 0.5 | U49: 0.5 | W49: FALSE | X49: 0 | Y49: 0 | Z49: 0 | AB49: FALSE | AC49: 1 | AE49: 12.77570665 | AF49: 9.77570665 | AG49: 31172.72423 | AH49: 5122.470285 | AI49: 36295.19451 | AJ49: 31172.72423 | AK49: 547861.2587 | AM49: 12.77570665 | AN49: 9.77570665 | AP49: 0.9827466654 | AQ49: 0.977570665 | AR49: 0.9817542289 | AT49: 650872.4504 | AU49: 789697.9667 | AV49: 547861.2587 | BC49: =IntvTriggers!$L$14 -> 0.75 | BD49: FALSE | BE49: =IntvTriggers!$L$15 -> 0.1 | BF49: 0.01725333462 | BG49: FALSE | BH49: =IntvTriggers!$L$16 -> 0.1 | BI49: 0.02242933501 | BJ49: FALSE | BK49: =IntvTriggers!$L$17 -> 0.95 | BL49: FALSE | BM49: =IntvTriggers!$L$18 -> 0.95 | BN49: FALSE | BO49: =IntvTriggers!$L$19 -> 0.95 | BP49: FALSE | BQ49: 0 | BR49: FALSE | BS49: FALSE | BT49: FALSE | BV49: =IntvTriggers!$L$22 -> 0.95 | BW49: FALSE | BX49: =IntvTriggers!$L$23 -> 0.05 | BY49: 0.01725333462 | BZ49: FALSE | CA49: =IntvTriggers!$L$24 -> 0.05 | CB49: 0.02242933501 | CC49: FALSE | CD49: =IntvTriggers!$L$25 -> 0.98 | CE49: FALSE | CF49: =IntvTriggers!$L$26 -> 0.98 | CG49: FALSE | CH49: =IntvTriggers!$L$27 -> 0.98 | CI49: FALSE | CJ49: 0 | CK49: FALSE | CL49: FALSE | CM49: FALSE | CN49: FALSE | CP49: =IntvTriggers!$L$32 -> 0.9 | CQ49: FALSE | CR49: =IntvTriggers!$L$33 -> 0.1 | CS49: 0.01725333462 | CT49: FALSE | CU49: =IntvTriggers!$L$34 -> 0.1 | CV49: 0.02242933501 | CW49: FALSE | CX49: =IntvTriggers!$L$35 -> 0.95 | CY49: FALSE | CZ49: =IntvTriggers!$L$36 -> 0.95 | DA49: FALSE | DB49: =IntvTriggers!$L$37 -> 0.95 | DC49: FALSE | DD49: 0 | DE49: FALSE | DF49: FALSE | DK49: 0 | DN49: 23 | DO49: 5 | DP49: 0 | DQ49: 0 | DR49: 0
C50: 25 | D50: 3 | E50: =INDEX(Assumptions!$D$25:$F$28,$S$8,D50) -> 18 | F50: 19 | G50: 1.055555556 | H50: FALSE | I50: 0.562962963 | J50: 0.06296296296 | K50: =SUMPRODUCT(OFFSET(J50,-MIN(F50,C50),0):J50,OFFSET(OFFSET(CorrosionRates!$C$119,-MIN(F50,C50),0):'CorrosionRates'!$C$119,0,$S$8)) -> 0.131458776 | L50: 0 | M50: 0.131458776 | N50: =IF(N$25,M50,OFFSET(CorrosionRates!$C$119,-C50,$S$9)) -> 0.131458776 | O50: 0.262917552 | R50: FALSE | S50: 0 | T50: 0.562962963 | U50: 0.437037037 | W50: FALSE | X50: 0 | Y50: 0 | Z50: 0 | AB50: FALSE | AC50: 1 | AE50: 12.73708245 | AF50: 9.737082448 | AG50: 31078.48117 | AH50: 5102.231203 | AI50: 36180.71238 | AJ50: 31078.48117 | AK50: 546107.0065 | AM50: 12.73708245 | AN50: 9.737082448 | AP50: 0.9797755729 | AQ50: 0.9737082448 | AR50: 0.9786106511 | AT50: 648835.2778 | AU50: 787139.1191 | AV50: 546107.0065 | BC50: =IntvTriggers!$L$14 -> 0.75 | BD50: FALSE | BE50: =IntvTriggers!$L$15 -> 0.1 | BF50: 0.02022442708 | BG50: FALSE | BH50: =IntvTriggers!$L$16 -> 0.1 | BI50: 0.0262917552 | BJ50: FALSE | BK50: =IntvTriggers!$L$17 -> 0.95 | BL50: FALSE | BM50: =IntvTriggers!$L$18 -> 0.95 | BN50: FALSE | BO50: =IntvTriggers!$L$19 -> 0.95 | BP50: FALSE | BQ50: 0 | BR50: FALSE | BS50: FALSE | BT50: FALSE | BV50: =IntvTriggers!$L$22 -> 0.95 | BW50: FALSE | BX50: =IntvTriggers!$L$23 -> 0.05 | BY50: 0.02022442708 | BZ50: FALSE | CA50: =IntvTriggers!$L$24 -> 0.05 | CB50: 0.0262917552 | CC50: FALSE | CD50: =IntvTriggers!$L$25 -> 0.98 | CE50: FALSE | CF50: =IntvTriggers!$L$26 -> 0.98 | CG50: FALSE | CH50: =IntvTriggers!$L$27 -> 0.98 | CI50: FALSE | CJ50: 0 | CK50: FALSE | CL50: FALSE | CM50: FALSE | CN50: FALSE | CP50: =IntvTriggers!$L$32 -> 0.9 | CQ50: FALSE | CR50: =IntvTriggers!$L$33 -> 0.1 | CS50: 0.02022442708 | CT50: FALSE | CU50: =IntvTriggers!$L$34 -> 0.1 | CV50: 0.0262917552 | CW50: FALSE | CX50: =IntvTriggers!$L$35 -> 0.95 | CY50: FALSE | CZ50: =IntvTriggers!$L$36 -> 0.95 | DA50: FALSE | DB50: =IntvTriggers!$L$37 -> 0.95 | DC50: FALSE | DD50: 0 | DE50: FALSE | DF50: FALSE | DK50: 0 | DN50: 24 | DO50: 5 | DP50: 0 | DQ50: 0 | DR50: 0
C51: 26 | D51: 3 | E51: =INDEX(Assumptions!$D$25:$F$28,$S$8,D51) -> 18 | F51: 20 | G51: 1.111111111 | H51: FALSE | I51: 0.6296296296 | J51: 0.06666666667 | K51: =SUMPRODUCT(OFFSET(J51,-MIN(F51,C51),0):J51,OFFSET(OFFSET(CorrosionRates!$C$119,-MIN(F51,C51),0):'CorrosionRates'!$C$119,0,$S$8)) -> 0.1526612391 | L51: 0 | M51: 0.1526612391 | N51: =IF(N$25,M51,OFFSET(CorrosionRates!$C$119,-C51,$S$9)) -> 0.1526612391 | O51: 0.3053224782 | R51: FALSE | S51: 0 | T51: 0.6296296296 | U51: 0.3703703704 | W51: FALSE | X51: 0 | Y51: 0 | Z51: 0 | AB51: FALSE | AC51: 1 | AE51: 12.69467752 | AF51: 9.694677522 | AG51: 30975.01315 | AH51: 5080.011021 | AI51: 36055.02417 | AJ51: 30975.01315 | AK51: 544180.7394 | AM51: 12.69467752 | AN51: 9.694677522 | AP51: 0.9765136555 | AQ51: 0.9694677522 | AR51: 0.9751588267 | AT51: 646598.2301 | AU51: 784329.0911 | AV51: 544180.7394 | BC51: =IntvTriggers!$L$14 -> 0.75 | BD51: FALSE | BE51: =IntvTriggers!$L$15 -> 0.1 | BF51: 0.02348634447 | BG51: FALSE | BH51: =IntvTriggers!$L$16 -> 0.1 | BI51: 0.03053224782 | BJ51: FALSE | BK51: =IntvTriggers!$L$17 -> 0.95 | BL51: FALSE | BM51: =IntvTriggers!$L$18 -> 0.95 | BN51: FALSE | BO51: =IntvTriggers!$L$19 -> 0.95 | BP51: FALSE | BQ51: 0 | BR51: FALSE | BS51: FALSE | BT51: FALSE | BV51: =IntvTriggers!$L$22 -> 0.95 | BW51: FALSE | BX51: =IntvTriggers!$L$23 -> 0.05 | BY51: 0.02348634447 | BZ51: FALSE | CA51: =IntvTriggers!$L$24 -> 0.05 | CB51: 0.03053224782 | CC51: FALSE | CD51: =IntvTriggers!$L$25 -> 0.98 | CE51: FALSE | CF51: =IntvTriggers!$L$26 -> 0.98 | CG51: FALSE | CH51: =IntvTriggers!$L$27 -> 0.98 | CI51: FALSE | CJ51: 0 | CK51: FALSE | CL51: FALSE | CM51: FALSE | CN51: FALSE | CP51: =IntvTriggers!$L$32 -> 0.9 | CQ51: FALSE | CR51: =IntvTriggers!$L$33 -> 0.1 | CS51: 0.02348634447 | CT51: FALSE | CU51: =IntvTriggers!$L$34 -> 0.1 | CV51: 0.03053224782 | CW51: FALSE | CX51: =IntvTriggers!$L$35 -> 0.95 | CY51: FALSE | CZ51: =IntvTriggers!$L$36 -> 0.95 | DA51: FALSE | DB51: =IntvTriggers!$L$37 -> 0.95 | DC51: FALSE | DD51: 0 | DE51: FALSE | DF51: FALSE | DK51: 0 | DN51: 25 | DO51: 6 | DP51: 0 | DQ51: 0 | DR51: 0
C52: 27 | D52: 3 | E52: =INDEX(Assumptions!$D$25:$F$28,$S$8,D52) -> 18 | F52: 21 | G52: 1.166666667 | H52: FALSE | I52: 0.7 | J52: 0.07037037037 | K52: =SUMPRODUCT(OFFSET(J52,-MIN(F52,C52),0):J52,OFFSET(OFFSET(CorrosionRates!$C$119,-MIN(F52,C52),0):'CorrosionRates'!$C$119,0,$S$8)) -> 0.1758170226 | L52: 0 | M52: 0.1758170226 | N52: =IF(N$25,M52,OFFSET(CorrosionRates!$C$119,-C52,$S$9)) -> 0.1758170226 | O52: 0.3516340452 | R52: FALSE | S52: 0 | T52: 0.7 | U52: 0.3 | W52: FALSE | X52: 0 | Y52: 0 | Z52: 0 | AB52: FALSE | AC52: 1 | AE52: 12.64836595 | AF52: 9.648365955 | AG52: 30862.01293 | AH52: 5055.74376 | AI52: 35917.75669 | AJ52: 30862.01293 | AK52: 542076.6515 | AM52: 12.64836595 | AN52: 9.648365955 | AP52: 0.9729512273 | AQ52: 0.9648365955 | AR52: 0.9713883517 | AT52: 644154.5314 | AU52: 781259.3367 | AV52: 542076.6515 | BC52: =IntvTriggers!$L$14 -> 0.75 | BD52: FALSE | BE52: =IntvTriggers!$L$15 -> 0.1 | BF52: 0.02704877271 | BG52: FALSE | BH52: =IntvTriggers!$L$16 -> 0.1 | BI52: 0.03516340452 | BJ52: FALSE | BK52: =IntvTriggers!$L$17 -> 0.95 | BL52: FALSE | BM52: =IntvTriggers!$L$18 -> 0.95 | BN52: FALSE | BO52: =IntvTriggers!$L$19 -> 0.95 | BP52: FALSE | BQ52: 0 | BR52: FALSE | BS52: FALSE | BT52: FALSE | BV52: =IntvTriggers!$L$22 -> 0.95 | BW52: FALSE | BX52: =IntvTriggers!$L$23 -> 0.05 | BY52: 0.02704877271 | BZ52: FALSE | CA52: =IntvTriggers!$L$24 -> 0.05 | CB52: 0.03516340452 | CC52: FALSE | CD52: =IntvTriggers!$L$25 -> 0.98 | CE52: FALSE | CF52: =IntvTriggers!$L$26 -> 0.98 | CG52: FALSE | CH52: =IntvTriggers!$L$27 -> 0.98 | CI52: FALSE | CJ52: 0 | CK52: FALSE | CL52: FALSE | CM52: FALSE | CN52: FALSE | CP52: =IntvTriggers!$L$32 -> 0.9 | CQ52: FALSE | CR52: =IntvTriggers!$L$33 -> 0.1 | CS52: 0.02704877271 | CT52: FALSE | CU52: =IntvTriggers!$L$34 -> 0.1 | CV52: 0.03516340452 | CW52: FALSE | CX52: =IntvTriggers!$L$35 -> 0.95 | CY52: FALSE | CZ52: =IntvTriggers!$L$36 -> 0.95 | DA52: FALSE | DB52: =IntvTriggers!$L$37 -> 0.95 | DC52: FALSE | DD52: 0 | DE52: FALSE | DF52: FALSE | DK52: 0 | DN52: 26 | DO52: 6 | DP52: 0 | DQ52: 0 | DR52: 0
C53: 28 | D53: 3 | E53: =INDEX(Assumptions!$D$25:$F$28,$S$8,D53) -> 18 | F53: 22 | G53: 1.222222222 | H53: FALSE | I53: 0.7740740741 | J53: 0.07407407407 | K53: =SUMPRODUCT(OFFSET(J53,-MIN(F53,C53),0):J53,OFFSET(OFFSET(CorrosionRates!$C$119,-MIN(F53,C53),0):'CorrosionRates'!$C$119,0,$S$8)) -> 0.2009876308 | L53: 0 | M53: 0.2009876308 | N53: =IF(N$25,M53,OFFSET(CorrosionRates!$C$119,-C53,$S$9)) -> 0.2009876308 | O53: 0.4019752615 | R53: FALSE | S53: 0 | T53: 0.7740740741 | U53: 0.2259259259 | W53: FALSE | X53: 0 | Y53: 0 | Z53: 0 | AB53: FALSE | AC53: 1 | AE53: 12.59802474 | AF53: 9.598024738 | AG53: 30739.18036 | AH53: 5029.364963 | AI53: 35768.54532 | AJ53: 30739.18036 | AK53: 539789.0568 | AM53: 12.59802474 | AN53: 9.598024738 | AP53: 0.969078826 | AQ53: 0.9598024738 | AR53: 0.9672890368 | AT53: 641497.5408 | AU53: 777921.4747 | AV53: 539789.0568 | BC53: =IntvTriggers!$L$14 -> 0.75 | BD53: FALSE | BE53: =IntvTriggers!$L$15 -> 0.1 | BF53: 0.03092117396 | BG53: FALSE | BH53: =IntvTriggers!$L$16 -> 0.1 | BI53: 0.04019752615 | BJ53: FALSE | BK53: =IntvTriggers!$L$17 -> 0.95 | BL53: FALSE | BM53: =IntvTriggers!$L$18 -> 0.95 | BN53: FALSE | BO53: =IntvTriggers!$L$19 -> 0.95 | BP53: FALSE | BQ53: 0 | BR53: FALSE | BS53: FALSE | BT53: FALSE | BV53: =IntvTriggers!$L$22 -> 0.95 | BW53: FALSE | BX53: =IntvTriggers!$L$23 -> 0.05 | BY53: 0.03092117396 | BZ53: FALSE | CA53: =IntvTriggers!$L$24 -> 0.05 | CB53: 0.04019752615 | CC53: FALSE | CD53: =IntvTriggers!$L$25 -> 0.98 | CE53: FALSE | CF53: =IntvTriggers!$L$26 -> 0.98 | CG53: FALSE | CH53: =IntvTriggers!$L$27 -> 0.98 | CI53: FALSE | CJ53: 0 | CK53: FALSE | CL53: FALSE | CM53: FALSE | CN53: FALSE | CP53: =IntvTriggers!$L$32 -> 0.9 | CQ53: FALSE | CR53: =IntvTriggers!$L$33 -> 0.1 | CS53: 0.03092117396 | CT53: FALSE | CU53: =IntvTriggers!$L$34 -> 0.1 | CV53: 0.04019752615 | CW53: FALSE | CX53: =IntvTriggers!$L$35 -> 0.95 | CY53: FALSE | CZ53: =IntvTriggers!$L$36 -> 0.95 | DA53: FALSE | DB53: =IntvTriggers!$L$37 -> 0.95 | DC53: FALSE | DD53: 0 | DE53: FALSE | DF53: FALSE | DK53: 0 | DN53: 27 | DO53: 6 | DP53: 0 | DQ53: 0 | DR53: 0
C54: 29 | D54: 3 | E54: =INDEX(Assumptions!$D$25:$F$28,$S$8,D54) -> 18 | F54: 23 | G54: 1.277777778 | H54: FALSE | I54: 0.8518518519 | J54: 0.07777777778 | K54: =SUMPRODUCT(OFFSET(J54,-MIN(F54,C54),0):J54,OFFSET(OFFSET(CorrosionRates!$C$119,-MIN(F54,C54),0):'CorrosionRates'!$C$119,0,$S$8)) -> 0.2282332197 | L54: 0 | M54: 0.2282332197 | N54: =IF(N$25,M54,OFFSET(CorrosionRates!$C$119,-C54,$S$9)) -> 0.2282332197 | O54: 0.4564664393 | R54: FALSE | S54: 0 | T54: 0.8518518519 | U54: 0.1481481481 | W54: FALSE | X54: 0 | Y54: 0 | Z54: 0 | AB54: FALSE | AC54: 1 | AE54: 12.54353356 | AF54: 9.543533561 | AG54: 30606.22189 | AH54: 5000.811586 | AI54: 35607.03347 | AJ54: 30606.22189 | AK54: 537312.3787 | AM54: 12.54353356 | AN54: 9.543533561 | AP54: 0.964887197 | AQ54: 0.9543533561 | AR54: 0.9628508891 | AT54: 638620.7403 | AU54: 774307.2728 | AV54: 537312.3787 | BC54: =IntvTriggers!$L$14 -> 0.75 | BD54: FALSE | BE54: =IntvTriggers!$L$15 -> 0.1 | BF54: 0.03511280302 | BG54: FALSE | BH54: =IntvTriggers!$L$16 -> 0.1 | BI54: 0.04564664393 | BJ54: FALSE | BK54: =IntvTriggers!$L$17 -> 0.95 | BL54: FALSE | BM54: =IntvTriggers!$L$18 -> 0.95 | BN54: FALSE | BO54: =IntvTriggers!$L$19 -> 0.95 | BP54: FALSE | BQ54: 0 | BR54: FALSE | BS54: FALSE | BT54: FALSE | BV54: =IntvTriggers!$L$22 -> 0.95 | BW54: FALSE | BX54: =IntvTriggers!$L$23 -> 0.05 | BY54: 0.03511280302 | BZ54: FALSE | CA54: =IntvTriggers!$L$24 -> 0.05 | CB54: 0.04564664393 | CC54: FALSE | CD54: =IntvTriggers!$L$25 -> 0.98 | CE54: FALSE | CF54: =IntvTriggers!$L$26 -> 0.98 | CG54: FALSE | CH54: =IntvTriggers!$L$27 -> 0.98 | CI54: FALSE | CJ54: 0 | CK54: FALSE | CL54: FALSE | CM54: FALSE | CN54: FALSE | CP54: =IntvTriggers!$L$32 -> 0.9 | CQ54: FALSE | CR54: =IntvTriggers!$L$33 -> 0.1 | CS54: 0.03511280302 | CT54: FALSE | CU54: =IntvTriggers!$L$34 -> 0.1 | CV54: 0.04564664393 | CW54: FALSE | CX54: =IntvTriggers!$L$35 -> 0.95 | CY54: FALSE | CZ54: =IntvTriggers!$L$36 -> 0.95 | DA54: FALSE | DB54: =IntvTriggers!$L$37 -> 0.95 | DC54: FALSE | DD54: 0 | DE54: FALSE | DF54: FALSE | DK54: 0 | DN54: 28 | DO54: 6 | DP54: 0 | DQ54: 0 | DR54: 0
C55: 30 | D55: 3 | E55: =INDEX(Assumptions!$D$25:$F$28,$S$8,D55) -> 18 | F55: 24 | G55: 1.333333333 | H55: FALSE | I55: 0.9333333333 | J55: 0.08148148148 | K55: =SUMPRODUCT(OFFSET(J55,-MIN(F55,C55),0):J55,OFFSET(OFFSET(CorrosionRates!$C$119,-MIN(F55,C55),0):'CorrosionRates'!$C$119,0,$S$8)) -> 0.2576126907 | L55: 0 | M55: 0.2576126907 | N55: =IF(N$25,M55,OFFSET(CorrosionRates!$C$119,-C55,$S$9)) -> 0.2576126907 | O55: 0.5152253814 | R55: FALSE | S55: 0 | T55: 0.9333333333 | U55: 0.06666666667 | W55: FALSE | X55: 0 | Y55: 0 | Z55: 0 | AB55: FALSE | AC55: 1 | AE55: 12.48477462 | AF55: 9.484774619 | AG55: 30462.85007 | AH55: 4970.0219 | AI55: 35432.87197 | AJ55: =IF(Section=2,AH55,AG55) -> 30462.85007 | AK55: 534641.1408 | AM55: 12.48477462 | AN55: 9.484774619 | AP55: 0.9603672784 | AQ55: 0.9484774619 | AR55: 0.9580640949 | AT55: 635517.7232 | AU55: 770408.6332 | AV55: 534641.1408 | BC55: =IntvTriggers!$L$14 -> 0.75 | BD55: FALSE | BE55: =IntvTriggers!$L$15 -> 0.1 | BF55: 0.03963272164 | BG55: FALSE | BH55: =IntvTriggers!$L$16 -> 0.1 | BI55: 0.05152253814 | BJ55: FALSE | BK55: =IntvTriggers!$L$17 -> 0.95 | BL55: FALSE | BM55: =IntvTriggers!$L$18 -> 0.95 | BN55: FALSE | BO55: =IntvTriggers!$L$19 -> 0.95 | BP55: FALSE | BQ55: 0 | BR55: FALSE | BS55: FALSE | BT55: FALSE | BV55: =IntvTriggers!$L$22 -> 0.95 | BW55: FALSE | BX55: =IntvTriggers!$L$23 -> 0.05 | BY55: 0.03963272164 | BZ55: FALSE | CA55: =IntvTriggers!$L$24 -> 0.05 | CB55: 0.05152253814 | CC55: FALSE | CD55: =IntvTriggers!$L$25 -> 0.98 | CE55: FALSE | CF55: =IntvTriggers!$L$26 -> 0.98 | CG55: FALSE | CH55: =IntvTriggers!$L$27 -> 0.98 | CI55: FALSE | CJ55: 0 | CK55: FALSE | CL55: FALSE | CM55: FALSE | CN55: FALSE | CP55: =IntvTriggers!$L$32 -> 0.9 | CQ55: FALSE | CR55: =IntvTriggers!$L$33 -> 0.1 | CS55: 0.03963272164 | CT55: FALSE | CU55: =IntvTriggers!$L$34 -> 0.1 | CV55: 0.05152253814 | CW55: FALSE | CX55: =IntvTriggers!$L$35 -> 0.95 | CY55: FALSE | CZ55: =IntvTriggers!$L$36 -> 0.95 | DA55: FALSE | DB55: =IntvTriggers!$L$37 -> 0.95 | DC55: FALSE | DD55: 0 | DE55: FALSE | DF55: FALSE | DK55: 0 | DN55: 29 | DO55: 6 | DP55: 0 | DQ55: 0 | DR55: 0
C56: 31 | D56: 3 | E56: =INDEX(Assumptions!$D$25:$F$28,$S$8,D56) -> 18 | F56: 25 | G56: 1.388888889 | H56: FALSE | I56: 1 | J56: 0.06666666667 | K56: =SUMPRODUCT(OFFSET(J56,-MIN(F56,C56),0):J56,OFFSET(OFFSET(CorrosionRates!$C$119,-MIN(F56,C56),0):'CorrosionRates'!$C$119,0,$S$8)) -> 0.2891850114 | L56: 0 | M56: 0.2891850114 | N56: =IF(N$25,M56,OFFSET(CorrosionRates!$C$119,-C56,$S$9)) -> 0.2891850114 | O56: 0.5783700227 | R56: TRUE | S56: 0 | T56: 1 | U56: 0 | W56: FALSE | X56: 0 | Y56: 0 | Z56: 0 | AB56: FALSE | AC56: 1 | AE56: 12.42162998 | AF56: 9.421629977 | AG56: =OFFSET(AG$18,T$6,0)*AE56 -> 30308.77714 | AH56: =OFFSET(AH$18,T$6,0)*AF56 -> 4936.934108 | AI56: 35245.71125 | AJ56: 30308.77714 | AK56: =OFFSET(AT56,0,$T$6) -> 531769.8457 | AM56: 12.42162998 | AN56: 9.421629977 | AP56: =AG56/AG$24 -> 0.9555099983 | AQ56: =AH56/AH$24 -> 0.9421629977 | AR56: =AK56/AK$24 -> 0.952918803 | AT56: =(b*d^3 - (b-w)*(d-2*f)^3)/120000 -> 632182.0536 | AU56: =(b*d^3 - (b-2*s)*(d-2*t)^3)/120000 -> 766217.416 | AV56: =0.0001*((2*f*d^3 + (b-2*f)*w^3)/3 - (2*d*f + (b-2*f)*w)*((2*f*d^2 + (b-2*f)*w^2)/(2*d*b - 2*(b-2*f)*(d-w)))^2) -> 531769.8457 | BC56: =IntvTriggers!$L$14 -> 0.75 | BD56: FALSE | BE56: =IntvTriggers!$L$15 -> 0.1 | BF56: 0.04449000175 | BG56: FALSE | BH56: =IntvTriggers!$L$16 -> 0.1 | BI56: 0.05783700227 | BJ56: FALSE | BK56: =IntvTriggers!$L$17 -> 0.95 | BL56: FALSE | BM56: =IntvTriggers!$L$18 -> 0.95 | BN56: FALSE | BO56: =IntvTriggers!$L$19 -> 0.95 | BP56: FALSE | BQ56: 0 | BR56: FALSE | BS56: FALSE | BT56: FALSE | BV56: =IntvTriggers!$L$22 -> 0.95 | BW56: TRUE | BX56: =IntvTriggers!$L$23 -> 0.05 | BY56: 0.04449000175 | BZ56: FALSE | CA56: =IntvTriggers!$L$24 -> 0.05 | CB56: 0.05783700227 | CC56: FALSE | CD56: =IntvTriggers!$L$25 -> 0.98 | CE56: FALSE | CF56: =IntvTriggers!$L$26 -> 0.98 | CG56: FALSE | CH56: =IntvTriggers!$L$27 -> 0.98 | CI56: FALSE | CJ56: 0 | CK56: FALSE | CL56: TRUE | CM56: TRUE | CN56: TRUE | CP56: =IntvTriggers!$L$32 -> 0.9 | CQ56: FALSE | CR56: =IntvTriggers!$L$33 -> 0.1 | CS56: 0.04449000175 | CT56: FALSE | CU56: =IntvTriggers!$L$34 -> 0.1 | CV56: 0.05783700227 | CW56: FALSE | CX56: =IntvTriggers!$L$35 -> 0.95 | CY56: FALSE | CZ56: =IntvTriggers!$L$36 -> 0.95 | DA56: FALSE | DB56: =IntvTriggers!$L$37 -> 0.95 | DC56: FALSE | DD56: 0 | DE56: FALSE | DF56: FALSE | DK56: 3 | DN56: 30 | DO56: 7 | DP56: 0 | DQ56: 0 | DR56: 0
C57: 32 | D57: 3 | E57: =INDEX(Assumptions!$D$25:$F$28,$S$8,D57) -> 18 | F57: 0 | G57: 0 | H57: TRUE | I57: 0 | J57: 0 | K57: =SUMPRODUCT(OFFSET(J57,-MIN(F57,C57),0):J57,OFFSET(OFFSET(CorrosionRates!$C$119,-MIN(F57,C57),0):'CorrosionRates'!$C$119,0,$S$8)) -> 0 | L57: 0.2891850114 | M57: 0.2891850114 | N57: =IF(N$25,M57,OFFSET(CorrosionRates!$C$119,-C57,$S$9)) -> 0.2891850114 | O57: 0.5783700227 | R57: FALSE | S57: 3 | T57: 0 | U57: 1 | W57: FALSE | X57: 0 | Y57: 0 | Z57: 0 | AB57: FALSE | AC57: 1 | AE57: 12.42162998 | AF57: 9.421629977 | AG57: 30308.77714 | AH57: 4936.934108 | AI57: =AG57+AH57 -> 35245.71125 | AJ57: 30308.77714 | AK57: 531769.8457 | AM57: 12.42162998 | AN57: 9.421629977 | AP57: 0.9555099983 | AQ57: 0.9421629977 | AR57: 0.952918803 | AT57: 632182.0536 | AU57: 766217.416 | AV57: 531769.8457 | BC57: =IntvTriggers!$L$14 -> 0.75 | BD57: FALSE | BE57: =IntvTriggers!$L$15 -> 0.1 | BF57: 0.04449000175 | BG57: FALSE | BH57: =IntvTriggers!$L$16 -> 0.1 | BI57: 0.05783700227 | BJ57: FALSE | BK57: =IntvTriggers!$L$17 -> 0.95 | BL57: FALSE | BM57: =IntvTriggers!$L$18 -> 0.95 | BN57: FALSE | BO57: =IntvTriggers!$L$19 -> 0.95 | BP57: FALSE | BQ57: 0 | BR57: FALSE | BS57: FALSE | BT57: FALSE | BV57: =IntvTriggers!$L$22 -> 0.95 | BW57: FALSE | BX57: =IntvTriggers!$L$23 -> 0.05 | BY57: 0.04449000175 | BZ57: FALSE | CA57: =IntvTriggers!$L$24 -> 0.05 | CB57: 0.05783700227 | CC57: FALSE | CD57: =IntvTriggers!$L$25 -> 0.98 | CE57: FALSE | CF57: =IntvTriggers!$L$26 -> 0.98 | CG57: FALSE | CH57: =IntvTriggers!$L$27 -> 0.98 | CI57: FALSE | CJ57: 0 | CK57: FALSE | CL57: FALSE | CM57: FALSE | CN57: FALSE | CP57: =IntvTriggers!$L$32 -> 0.9 | CQ57: FALSE | CR57: =IntvTriggers!$L$33 -> 0.1 | CS57: 0.04449000175 | CT57: FALSE | CU57: =IntvTriggers!$L$34 -> 0.1 | CV57: 0.05783700227 | CW57: FALSE | CX57: =IntvTriggers!$L$35 -> 0.95 | CY57: FALSE | CZ57: =IntvTriggers!$L$36 -> 0.95 | DA57: FALSE | DB57: =IntvTriggers!$L$37 -> 0.95 | DC57: FALSE | DD57: 0 | DE57: FALSE | DF57: FALSE | DK57: 0 | DN57: 31 | DO57: 7 | DP57: 0 | DQ57: 1 | DR57: 0
C58: 33 | D58: 3 | E58: =INDEX(Assumptions!$D$25:$F$28,$S$8,D58) -> 18 | F58: 1 | G58: 0.05555555556 | H58: TRUE | I58: 0 | J58: 0 | K58: =SUMPRODUCT(OFFSET(J58,-MIN(F58,C58),0):J58,OFFSET(OFFSET(CorrosionRates!$C$119,-MIN(F58,C58),0):'CorrosionRates'!$C$119,0,$S$8)) -> 0 | L58: 0.2891850114 | M58: 0.2891850114 | N58: =IF(N$25,M58,OFFSET(CorrosionRates!$C$119,-C58,$S$9)) -> 0.2891850114 | O58: 0.5783700227 | R58: =CN58 -> FALSE | S58: 0 | T58: 0 | U58: =1-T58 -> 1 | W58: =IF(AB58,FALSE,BT58) -> FALSE | X58: 0 | Y58: 0 | Z58: 0 | AB58: =DF58 -> FALSE | AC58: 1 | AE58: 12.42162998 | AF58: 9.421629977 | AG58: 30308.77714 | AH58: 4936.934108 | AI58: 35245.71125 | AJ58: 30308.77714 | AK58: 531769.8457 | AM58: =IF(OR($W58,$AB58),AE59,AE58) -> 12.42162998 | AN58: =IF(OR($W58,$AB58),AF59,AF58) -> 9.421629977 | AP58: 0.9555099983 | AQ58: 0.9421629977 | AR58: 0.952918803 | AT58: 632182.0536 | AU58: 766217.416 | AV58: 531769.8457 | BC58: =IntvTriggers!$L$14 -> 0.75 | BD58: FALSE | BE58: =IntvTriggers!$L$15 -> 0.1 | BF58: =($AE$24-$AE58)/$AE$24 -> 0.04449000175 | BG58: FALSE | BH58: =IntvTriggers!$L$16 -> 0.1 | BI58: =($AF$24-$AF58)/$AF$24 -> 0.05783700227 | BJ58: FALSE | BK58: =IntvTriggers!$L$17 -> 0.95 | BL58: FALSE | BM58: =IntvTriggers!$L$18 -> 0.95 | BN58: FALSE | BO58: =IntvTriggers!$L$19 -> 0.95 | BP58: FALSE | BQ58: 0 | BR58: =AND(BQ58="x",BR$24) -> FALSE | BS58: FALSE | BT58: =IF(DF58,FALSE,BS58) -> FALSE | BV58: =IntvTriggers!$L$22 -> 0.95 | BW58: FALSE | BX58: =IntvTriggers!$L$23 -> 0.05 | BY58: =($AE$24-$AE58)/$AE$24 -> 0.04449000175 | BZ58: FALSE | CA58: =IntvTriggers!$L$24 -> 0.05 | CB58: =($AF$24-$AF58)/$AF$24 -> 0.05783700227 | CC58: FALSE | CD58: =IntvTriggers!$L$25 -> 0.98 | CE58: FALSE | CF58: =IntvTriggers!$L$26 -> 0.98 | CG58: FALSE | CH58: =IntvTriggers!$L$27 -> 0.98 | CI58: FALSE | CJ58: 0 | CK58: =AND(CJ58="x",CK$24) -> FALSE | CL58: FALSE | CM58: =IF(BS58,FALSE,CL58) -> FALSE | CN58: =IF(DF58,FALSE,CM58) -> FALSE | CP58: =IntvTriggers!$L$32 -> 0.9 | CQ58: FALSE | CR58: =IntvTriggers!$L$33 -> 0.1 | CS58: =($AE$24-$AE58)/$AE$24 -> 0.04449000175 | CT58: FALSE | CU58: =IntvTriggers!$L$34 -> 0.1 | CV58: =($AF$24-$AF58)/$AF$24 -> 0.05783700227 | CW58: FALSE | CX58: =IntvTriggers!$L$35 -> 0.95 | CY58: FALSE | CZ58: =IntvTriggers!$L$36 -> 0.95 | DA58: FALSE | DB58: =IntvTriggers!$L$37 -> 0.95 | DC58: FALSE | DD58: 0 | DE58: FALSE | DF58: FALSE | DK58: 0 | DN58: 32 | DO58: =INT(DN58/DO$22+1) -> 7 | DP58: 0 | DQ58: 0 | DR58: 0
C59: 34 | D59: =IF($S59>0,$S59,D58) -> 3 | E59: =INDEX(Assumptions!$D$25:$F$28,$S$8,D59) -> 18 | F59: =IF($S59>0,0,F58+1) -> 2 | G59: 0.1111111111 | H59: TRUE | I59: 0 | J59: 0 | K59: =SUMPRODUCT(OFFSET(J59,-MIN(F59,C59),0):J59,OFFSET(OFFSET(CorrosionRates!$C$119,-MIN(F59,C59),0):'CorrosionRates'!$C$119,0,$S$8)) -> 0 | L59: =IF(AB58,0,IF(F59=0,M58,L58)) -> 0.2891850114 | M59: 0.2891850114 | N59: =IF(N$25,M59,OFFSET(CorrosionRates!$C$119,-C59,$S$9)) -> 0.2891850114 | O59: 0.5783700227 | R59: FALSE | S59: =DK58 -> 0 | T59: 0 | U59: 1 | W59: FALSE | X59: =IF(AB59,0,IF(W59,X58+1,X58)) -> 0 | Y59: 0 | Z59: 0 | AB59: FALSE | AC59: 1 | AE59: 12.42162998 | AF59: 9.421629977 | AG59: 30308.77714 | AH59: 4936.934108 | AI59: 35245.71125 | AJ59: 30308.77714 | AK59: 531769.8457 | AM59: 12.42162998 | AN59: 9.421629977 | AP59: 0.9555099983 | AQ59: 0.9421629977 | AR59: 0.952918803 | AT59: 632182.0536 | AU59: 766217.416 | AV59: 531769.8457 | BC59: =IntvTriggers!$L$14 -> 0.75 | BD59: FALSE | BE59: =IntvTriggers!$L$15 -> 0.1 | BF59: 0.04449000175 | BG59: FALSE | BH59: =IntvTriggers!$L$16 -> 0.1 | BI59: 0.05783700227 | BJ59: FALSE | BK59: =IntvTriggers!$L$17 -> 0.95 | BL59: FALSE | BM59: =IntvTriggers!$L$18 -> 0.95 | BN59: FALSE | BO59: =IntvTriggers!$L$19 -> 0.95 | BP59: FALSE | BQ59: 0 | BR59: FALSE | BS59: FALSE | BT59: FALSE | BV59: =IntvTriggers!$L$22 -> 0.95 | BW59: FALSE | BX59: =IntvTriggers!$L$23 -> 0.05 | BY59: 0.04449000175 | BZ59: FALSE | CA59: =IntvTriggers!$L$24 -> 0.05 | CB59: 0.05783700227 | CC59: FALSE | CD59: =IntvTriggers!$L$25 -> 0.98 | CE59: FALSE | CF59: =IntvTriggers!$L$26 -> 0.98 | CG59: FALSE | CH59: =IntvTriggers!$L$27 -> 0.98 | CI59: FALSE | CJ59: 0 | CK59: FALSE | CL59: FALSE | CM59: FALSE | CN59: FALSE | CP59: =IntvTriggers!$L$32 -> 0.9 | CQ59: FALSE | CR59: =IntvTriggers!$L$33 -> 0.1 | CS59: 0.04449000175 | CT59: FALSE | CU59: =IntvTriggers!$L$34 -> 0.1 | CV59: 0.05783700227 | CW59: FALSE | CX59: =IntvTriggers!$L$35 -> 0.95 | CY59: FALSE | CZ59: =IntvTriggers!$L$36 -> 0.95 | DA59: FALSE | DB59: =IntvTriggers!$L$37 -> 0.95 | DC59: FALSE | DD59: 0 | DE59: FALSE | DF59: FALSE | DK59: 0 | DN59: 33 | DO59: 7 | DP59: 0 | DQ59: 0 | DR59: 0
C60: 35 | D60: 3 | E60: =INDEX(Assumptions!$D$25:$F$28,$S$8,D60) -> 18 | F60: 3 | G60: 0.1666666667 | H60: TRUE | I60: 0 | J60: 0 | K60: =SUMPRODUCT(OFFSET(J60,-MIN(F60,C60),0):J60,OFFSET(OFFSET(CorrosionRates!$C$119,-MIN(F60,C60),0):'CorrosionRates'!$C$119,0,$S$8)) -> 0 | L60: 0.2891850114 | M60: 0.2891850114 | N60: =IF(N$25,M60,OFFSET(CorrosionRates!$C$119,-C60,$S$9)) -> 0.2891850114 | O60: 0.5783700227 | R60: FALSE | S60: 0 | T60: 0 | U60: 1 | W60: FALSE | X60: 0 | Y60: 0 | Z60: 0 | AB60: FALSE | AC60: 1 | AE60: 12.42162998 | AF60: 9.421629977 | AG60: 30308.77714 | AH60: 4936.934108 | AI60: 35245.71125 | AJ60: 30308.77714 | AK60: 531769.8457 | AM60: 12.42162998 | AN60: 9.421629977 | AP60: 0.9555099983 | AQ60: 0.9421629977 | AR60: 0.952918803 | AT60: 632182.0536 | AU60: 766217.416 | AV60: 531769.8457 | BC60: =IntvTriggers!$L$14 -> 0.75 | BD60: FALSE | BE60: =IntvTriggers!$L$15 -> 0.1 | BF60: 0.04449000175 | BG60: FALSE | BH60: =IntvTriggers!$L$16 -> 0.1 | BI60: 0.05783700227 | BJ60: FALSE | BK60: =IntvTriggers!$L$17 -> 0.95 | BL60: FALSE | BM60: =IntvTriggers!$L$18 -> 0.95 | BN60: FALSE | BO60: =IntvTriggers!$L$19 -> 0.95 | BP60: FALSE | BQ60: 0 | BR60: FALSE | BS60: FALSE | BT60: FALSE | BV60: =IntvTriggers!$L$22 -> 0.95 | BW60: FALSE | BX60: =IntvTriggers!$L$23 -> 0.05 | BY60: 0.04449000175 | BZ60: FALSE | CA60: =IntvTriggers!$L$24 -> 0.05 | CB60: 0.05783700227 | CC60: FALSE | CD60: =IntvTriggers!$L$25 -> 0.98 | CE60: FALSE | CF60: =IntvTriggers!$L$26 -> 0.98 | CG60: FALSE | CH60: =IntvTriggers!$L$27 -> 0.98 | CI60: FALSE | CJ60: 0 | CK60: FALSE | CL60: FALSE | CM60: FALSE | CN60: FALSE | CP60: =IntvTriggers!$L$32 -> 0.9 | CQ60: FALSE | CR60: =IntvTriggers!$L$33 -> 0.1 | CS60: 0.04449000175 | CT60: FALSE | CU60: =IntvTriggers!$L$34 -> 0.1 | CV60: 0.05783700227 | CW60: FALSE | CX60: =IntvTriggers!$L$35 -> 0.95 | CY60: FALSE | CZ60: =IntvTriggers!$L$36 -> 0.95 | DA60: FALSE | DB60: =IntvTriggers!$L$37 -> 0.95 | DC60: FALSE | DD60: 0 | DE60: FALSE | DF60: FALSE | DK60: 0 | DN60: 34 | DO60: 7 | DP60: 0 | DQ60: 0 | DR60: 0
C61: 36 | D61: 3 | E61: =INDEX(Assumptions!$D$25:$F$28,$S$8,D61) -> 18 | F61: 4 | G61: 0.2222222222 | H61: TRUE | I61: 0.007407407407 | J61: 0.007407407407 | K61: =SUMPRODUCT(OFFSET(J61,-MIN(F61,C61),0):J61,OFFSET(OFFSET(CorrosionRates!$C$119,-MIN(F61,C61),0):'CorrosionRates'!$C$119,0,$S$8)) -> 0 | L61: 0.2891850114 | M61: 0.2891850114 | N61: =IF(N$25,M61,OFFSET(CorrosionRates!$C$119,-C61,$S$9)) -> 0.2891850114 | O61: 0.5783700227 | R61: FALSE | S61: 0 | T61: 0.007407407407 | U61: 0.9925925926 | W61: FALSE | X61: 0 | Y61: 0 | Z61: 0 | AB61: FALSE | AC61: 1 | AE61: 12.42162998 | AF61: 9.421629977 | AG61: 30308.77714 | AH61: 4936.934108 | AI61: 35245.71125 | AJ61: 30308.77714 | AK61: 531769.8457 | AM61: 12.42162998 | AN61: 9.421629977 | AP61: 0.9555099983 | AQ61: 0.9421629977 | AR61: 0.952918803 | AT61: 632182.0536 | AU61: 766217.416 | AV61: 531769.8457 | BC61: =IntvTriggers!$L$14 -> 0.75 | BD61: FALSE | BE61: =IntvTriggers!$L$15 -> 0.1 | BF61: 0.04449000175 | BG61: FALSE | BH61: =IntvTriggers!$L$16 -> 0.1 | BI61: 0.05783700227 | BJ61: FALSE | BK61: =IntvTriggers!$L$17 -> 0.95 | BL61: FALSE | BM61: =IntvTriggers!$L$18 -> 0.95 | BN61: FALSE | BO61: =IntvTriggers!$L$19 -> 0.95 | BP61: FALSE | BQ61: 0 | BR61: FALSE | BS61: FALSE | BT61: FALSE | BV61: =IntvTriggers!$L$22 -> 0.95 | BW61: FALSE | BX61: =IntvTriggers!$L$23 -> 0.05 | BY61: 0.04449000175 | BZ61: FALSE | CA61: =IntvTriggers!$L$24 -> 0.05 | CB61: 0.05783700227 | CC61: FALSE | CD61: =IntvTriggers!$L$25 -> 0.98 | CE61: FALSE | CF61: =IntvTriggers!$L$26 -> 0.98 | CG61: FALSE | CH61: =IntvTriggers!$L$27 -> 0.98 | CI61: FALSE | CJ61: 0 | CK61: FALSE | CL61: FALSE | CM61: FALSE | CN61: FALSE | CP61: =IntvTriggers!$L$32 -> 0.9 | CQ61: FALSE | CR61: =IntvTriggers!$L$33 -> 0.1 | CS61: 0.04449000175 | CT61: FALSE | CU61: =IntvTriggers!$L$34 -> 0.1 | CV61: 0.05783700227 | CW61: FALSE | CX61: =IntvTriggers!$L$35 -> 0.95 | CY61: FALSE | CZ61: =IntvTriggers!$L$36 -> 0.95 | DA61: FALSE | DB61: =IntvTriggers!$L$37 -> 0.95 | DC61: FALSE | DD61: 0 | DE61: FALSE | DF61: FALSE | DK61: 0 | DN61: 35 | DO61: 8 | DP61: 0 | DQ61: 0 | DR61: 0
C62: 37 | D62: 3 | E62: =INDEX(Assumptions!$D$25:$F$28,$S$8,D62) -> 18 | F62: 5 | G62: 0.2777777778 | H62: TRUE | I62: 0.01851851852 | J62: 0.01111111111 | K62: =SUMPRODUCT(OFFSET(J62,-MIN(F62,C62),0):J62,OFFSET(OFFSET(CorrosionRates!$C$119,-MIN(F62,C62),0):'CorrosionRates'!$C$119,0,$S$8)) -> 0.0007407407407 | L62: 0.2891850114 | M62: 0.2899257521 | N62: =IF(N$25,M62,OFFSET(CorrosionRates!$C$119,-C62,$S$9)) -> 0.2899257521 | O62: 0.5798515042 | R62: FALSE | S62: 0 | T62: 0.01851851852 | U62: 0.9814814815 | W62: FALSE | X62: 0 | Y62: 0 | Z62: 0 | AB62: FALSE | AC62: 1 | AE62: 12.4201485 | AF62: 9.420148496 | AG62: 30305.16233 | AH62: 4936.157812 | AI62: 35241.32014 | AJ62: 30305.16233 | AK62: 531702.4717 | AM62: 12.4201485 | AN62: 9.420148496 | AP62: 0.9553960381 | AQ62: 0.9420148496 | AR62: 0.9527980705 | AT62: 632103.7801 | AU62: 766119.0631 | AV62: 531702.4717 | BC62: =IntvTriggers!$L$14 -> 0.75 | BD62: FALSE | BE62: =IntvTriggers!$L$15 -> 0.1 | BF62: 0.04460396186 | BG62: FALSE | BH62: =IntvTriggers!$L$16 -> 0.1 | BI62: 0.05798515042 | BJ62: FALSE | BK62: =IntvTriggers!$L$17 -> 0.95 | BL62: FALSE | BM62: =IntvTriggers!$L$18 -> 0.95 | BN62: FALSE | BO62: =IntvTriggers!$L$19 -> 0.95 | BP62: FALSE | BQ62: 0 | BR62: FALSE | BS62: FALSE | BT62: FALSE | BV62: =IntvTriggers!$L$22 -> 0.95 | BW62: FALSE | BX62: =IntvTriggers!$L$23 -> 0.05 | BY62: 0.04460396186 | BZ62: FALSE | CA62: =IntvTriggers!$L$24 -> 0.05 | CB62: 0.05798515042 | CC62: FALSE | CD62: =IntvTriggers!$L$25 -> 0.98 | CE62: FALSE | CF62: =IntvTriggers!$L$26 -> 0.98 | CG62: FALSE | CH62: =IntvTriggers!$L$27 -> 0.98 | CI62: FALSE | CJ62: 0 | CK62: FALSE | CL62: FALSE | CM62: FALSE | CN62: FALSE | CP62: =IntvTriggers!$L$32 -> 0.9 | CQ62: FALSE | CR62: =IntvTriggers!$L$33 -> 0.1 | CS62: 0.04460396186 | CT62: FALSE | CU62: =IntvTriggers!$L$34 -> 0.1 | CV62: 0.05798515042 | CW62: FALSE | CX62: =IntvTriggers!$L$35 -> 0.95 | CY62: FALSE | CZ62: =IntvTriggers!$L$36 -> 0.95 | DA62: FALSE | DB62: =IntvTriggers!$L$37 -> 0.95 | DC62: FALSE | DD62: 0 | DE62: FALSE | DF62: FALSE | DK62: 0 | DN62: 36 | DO62: 8 | DP62: 0 | DQ62: 0 | DR62: 0
C63: 38 | D63: 3 | E63: =INDEX(Assumptions!$D$25:$F$28,$S$8,D63) -> 18 | F63: 6 | G63: 0.3333333333 | H63: TRUE | I63: 0.03333333333 | J63: 0.01481481481 | K63: =SUMPRODUCT(OFFSET(J63,-MIN(F63,C63),0):J63,OFFSET(OFFSET(CorrosionRates!$C$119,-MIN(F63,C63),0):'CorrosionRates'!$C$119,0,$S$8)) -> 0.002214575899 | L63: 0.2891850114 | M63: 0.2913995873 | N63: =IF(N$25,M63,OFFSET(CorrosionRates!$C$119,-C63,$S$9)) -> 0.2913995873 | O63: 0.5827991745 | R63: FALSE | S63: 0 | T63: 0.03333333333 | U63: 0.9666666667 | W63: FALSE | X63: 0 | Y63: 0 | Z63: 0 | AB63: FALSE | AC63: 1 | AE63: 12.41720083 | AF63: 9.417200825 | AG63: 30297.97001 | AH63: 4934.613233 | AI63: 35232.58325 | AJ63: 30297.97001 | AK63: 531568.4181 | AM63: 12.41720083 | AN63: 9.417200825 | AP63: 0.9551692943 | AQ63: 0.9417200825 | AR63: 0.9525578496 | AT63: 631948.0392 | AU63: 765923.3699 | AV63: 531568.4181 | BC63: =IntvTriggers!$L$14 -> 0.75 | BD63: FALSE | BE63: =IntvTriggers!$L$15 -> 0.1 | BF63: 0.04483070573 | BG63: FALSE | BH63: =IntvTriggers!$L$16 -> 0.1 | BI63: 0.05827991745 | BJ63: FALSE | BK63: =IntvTriggers!$L$17 -> 0.95 | BL63: FALSE | BM63: =IntvTriggers!$L$18 -> 0.95 | BN63: FALSE | BO63: =IntvTriggers!$L$19 -> 0.95 | BP63: FALSE | BQ63: 0 | BR63: FALSE | BS63: FALSE | BT63: FALSE | BV63: =IntvTriggers!$L$22 -> 0.95 | BW63: FALSE | BX63: =IntvTriggers!$L$23 -> 0.05 | BY63: 0.04483070573 | BZ63: FALSE | CA63: =IntvTriggers!$L$24 -> 0.05 | CB63: 0.05827991745 | CC63: FALSE | CD63: =IntvTriggers!$L$25 -> 0.98 | CE63: FALSE | CF63: =IntvTriggers!$L$26 -> 0.98 | CG63: FALSE | CH63: =IntvTriggers!$L$27 -> 0.98 | CI63: FALSE | CJ63: 0 | CK63: FALSE | CL63: FALSE | CM63: FALSE | CN63: FALSE | CP63: =IntvTriggers!$L$32 -> 0.9 | CQ63: FALSE | CR63: =IntvTriggers!$L$33 -> 0.1 | CS63: 0.04483070573 | CT63: FALSE | CU63: =IntvTriggers!$L$34 -> 0.1 | CV63: 0.05827991745 | CW63: FALSE | CX63: =IntvTriggers!$L$35 -> 0.95 | CY63: FALSE | CZ63: =IntvTriggers!$L$36 -> 0.95 | DA63: FALSE | DB63: =IntvTriggers!$L$37 -> 0.95 | DC63: FALSE | DD63: 0 | DE63: FALSE | DF63: FALSE | DK63: 0 | DN63: 37 | DO63: 8 | DP63: 0 | DQ63: 0 | DR63: 0
C64: 39 | D64: 3 | E64: =INDEX(Assumptions!$D$25:$F$28,$S$8,D64) -> 18 | F64: 7 | G64: 0.3888888889 | H64: TRUE | I64: 0.05185185185 | J64: 0.01851851852 | K64: =SUMPRODUCT(OFFSET(J64,-MIN(F64,C64),0):J64,OFFSET(OFFSET(CorrosionRates!$C$119,-MIN(F64,C64),0):'CorrosionRates'!$C$119,0,$S$8)) -> 0.004529870602 | L64: 0.2891850114 | M64: 0.293714882 | N64: =IF(N$25,M64,OFFSET(CorrosionRates!$C$119,-C64,$S$9)) -> 0.293714882 | O64: 0.5874297639 | R64: FALSE | S64: 0 | T64: 0.05185185185 | U64: 0.9481481481 | W64: FALSE | X64: 0 | Y64: 0 | Z64: 0 | AB64: FALSE | AC64: 1 | AE64: 12.41257024 | AF64: 9.412570236 | AG64: 30286.67138 | AH64: 4932.186804 | AI64: 35218.85818 | AJ64: 30286.67138 | AK64: 531357.8259 | AM64: 12.41257024 | AN64: 9.412570236 | AP64: 0.9548130951 | AQ64: 0.9412570236 | AR64: 0.9521804735 | AT64: 631703.3761 | AU64: 765615.9419 | AV64: 531357.8259 | BC64: =IntvTriggers!$L$14 -> 0.75 | BD64: FALSE | BE64: =IntvTriggers!$L$15 -> 0.1 | BF64: 0.04518690492 | BG64: FALSE | BH64: =IntvTriggers!$L$16 -> 0.1 | BI64: 0.05874297639 | BJ64: FALSE | BK64: =IntvTriggers!$L$17 -> 0.95 | BL64: FALSE | BM64: =IntvTriggers!$L$18 -> 0.95 | BN64: FALSE | BO64: =IntvTriggers!$L$19 -> 0.95 | BP64: FALSE | BQ64: 0 | BR64: FALSE | BS64: FALSE | BT64: FALSE | BV64: =IntvTriggers!$L$22 -> 0.95 | BW64: FALSE | BX64: =IntvTriggers!$L$23 -> 0.05 | BY64: 0.04518690492 | BZ64: FALSE | CA64: =IntvTriggers!$L$24 -> 0.05 | CB64: 0.05874297639 | CC64: FALSE | CD64: =IntvTriggers!$L$25 -> 0.98 | CE64: FALSE | CF64: =IntvTriggers!$L$26 -> 0.98 | CG64: FALSE | CH64: =IntvTriggers!$L$27 -> 0.98 | CI64: FALSE | CJ64: 0 | CK64: FALSE | CL64: FALSE | CM64: FALSE | CN64: FALSE | CP64: =IntvTriggers!$L$32 -> 0.9 | CQ64: FALSE | CR64: =IntvTriggers!$L$33 -> 0.1 | CS64: 0.04518690492 | CT64: FALSE | CU64: =IntvTriggers!$L$34 -> 0.1 | CV64: 0.05874297639 | CW64: FALSE | CX64: =IntvTriggers!$L$35 -> 0.95 | CY64: FALSE | CZ64: =IntvTriggers!$L$36 -> 0.95 | DA64: FALSE | DB64: =IntvTriggers!$L$37 -> 0.95 | DC64: FALSE | DD64: 0 | DE64: FALSE | DF64: FALSE | DK64: 0 | DN64: 38 | DO64: 8 | DP64: 0 | DQ64: 0 | DR64: 0
C65: 40 | D65: 3 | E65: =INDEX(Assumptions!$D$25:$F$28,$S$8,D65) -> 18 | F65: 8 | G65: 0.4444444444 | H65: TRUE | I65: 0.07407407407 | J65: 0.02222222222 | K65: =SUMPRODUCT(OFFSET(J65,-MIN(F65,C65),0):J65,OFFSET(OFFSET(CorrosionRates!$C$119,-MIN(F65,C65),0):'CorrosionRates'!$C$119,0,$S$8)) -> 0.007792375961 | L65: 0.2891850114 | M65: 0.2969773873 | N65: =IF(N$25,M65,OFFSET(CorrosionRates!$C$119,-C65,$S$9)) -> 0.2969773873 | O65: 0.5939547747 | R65: FALSE | S65: 0 | T65: 0.07407407407 | U65: 0.9259259259 | W65: FALSE | X65: 0 | Y65: 0 | Z65: 0 | AB65: FALSE | AC65: 1 | AE65: 12.40604523 | AF65: 9.406045225 | AG65: 30270.75035 | AH65: 4928.767698 | AI65: 35199.51805 | AJ65: 30270.75035 | AK65: 531061.0719 | AM65: 12.40604523 | AN65: 9.406045225 | AP65: 0.9543111712 | AQ65: 0.9406045225 | AR65: 0.9516486973 | AT65: 631358.6089 | AU65: 765182.727 | AV65: 531061.0719 | BC65: =IntvTriggers!$L$14 -> 0.75 | BD65: FALSE | BE65: =IntvTriggers!$L$15 -> 0.1 | BF65: 0.04568882882 | BG65: FALSE | BH65: =IntvTriggers!$L$16 -> 0.1 | BI65: 0.05939547747 | BJ65: FALSE | BK65: =IntvTriggers!$L$17 -> 0.95 | BL65: FALSE | BM65: =IntvTriggers!$L$18 -> 0.95 | BN65: FALSE | BO65: =IntvTriggers!$L$19 -> 0.95 | BP65: FALSE | BQ65: 0 | BR65: FALSE | BS65: FALSE | BT65: FALSE | BV65: =IntvTriggers!$L$22 -> 0.95 | BW65: FALSE | BX65: =IntvTriggers!$L$23 -> 0.05 | BY65: 0.04568882882 | BZ65: FALSE | CA65: =IntvTriggers!$L$24 -> 0.05 | CB65: 0.05939547747 | CC65: FALSE | CD65: =IntvTriggers!$L$25 -> 0.98 | CE65: FALSE | CF65: =IntvTriggers!$L$26 -> 0.98 | CG65: FALSE | CH65: =IntvTriggers!$L$27 -> 0.98 | CI65: FALSE | CJ65: 0 | CK65: FALSE | CL65: FALSE | CM65: FALSE | CN65: FALSE | CP65: =IntvTriggers!$L$32 -> 0.9 | CQ65: FALSE | CR65: =IntvTriggers!$L$33 -> 0.1 | CS65: 0.04568882882 | CT65: FALSE | CU65: =IntvTriggers!$L$34 -> 0.1 | CV65: 0.05939547747 | CW65: FALSE | CX65: =IntvTriggers!$L$35 -> 0.95 | CY65: FALSE | CZ65: =IntvTriggers!$L$36 -> 0.95 | DA65: FALSE | DB65: =IntvTriggers!$L$37 -> 0.95 | DC65: FALSE | DD65: 0 | DE65: FALSE | DF65: FALSE | DK65: 0 | DN65: 39 | DO65: 8 | DP65: 0 | DQ65: 0 | DR65: 0
C66: 41 | D66: 3 | E66: =INDEX(Assumptions!$D$25:$F$28,$S$8,D66) -> 18 | F66: 9 | G66: 0.5 | H66: TRUE | I66: 0.1 | J66: 0.02592592593 | K66: =SUMPRODUCT(OFFSET(J66,-MIN(F66,C66),0):J66,OFFSET(OFFSET(CorrosionRates!$C$119,-MIN(F66,C66),0):'CorrosionRates'!$C$119,0,$S$8)) -> 0.01210182602 | L66: 0.2891850114 | M66: 0.3012868374 | N66: =IF(N$25,M66,OFFSET(CorrosionRates!$C$119,-C66,$S$9)) -> 0.3012868374 | O66: 0.6025736748 | R66: FALSE | S66: 0 | T66: 0.1 | U66: 0.9 | W66: FALSE | X66: 0 | Y66: =$X66*$Y$19*Y$24 -> 0 | Z66: 0 | AB66: FALSE | AC66: 1 | AE66: 12.39742633 | AF66: 9.397426325 | AG66: 30249.72023 | AH66: 4924.251394 | AI66: 35173.97163 | AJ66: 30249.72023 | AK66: 530669.0773 | AM66: 12.39742633 | AN66: 9.397426325 | AP66: 0.9536481789 | AQ66: 0.9397426325 | AR66: 0.9509462524 | AT66: 630903.1874 | AU66: 764610.4656 | AV66: 530669.0773 | BC66: =IntvTriggers!$L$14 -> 0.75 | BD66: FALSE | BE66: =IntvTriggers!$L$15 -> 0.1 | BF66: 0.04635182114 | BG66: FALSE | BH66: =IntvTriggers!$L$16 -> 0.1 | BI66: 0.06025736748 | BJ66: FALSE | BK66: =IntvTriggers!$L$17 -> 0.95 | BL66: FALSE | BM66: =IntvTriggers!$L$18 -> 0.95 | BN66: FALSE | BO66: =IntvTriggers!$L$19 -> 0.95 | BP66: FALSE | BQ66: 0 | BR66: FALSE | BS66: FALSE | BT66: FALSE | BV66: =IntvTriggers!$L$22 -> 0.95 | BW66: FALSE | BX66: =IntvTriggers!$L$23 -> 0.05 | BY66: 0.04635182114 | BZ66: FALSE | CA66: =IntvTriggers!$L$24 -> 0.05 | CB66: 0.06025736748 | CC66: FALSE | CD66: =IntvTriggers!$L$25 -> 0.98 | CE66: FALSE | CF66: =IntvTriggers!$L$26 -> 0.98 | CG66: FALSE | CH66: =IntvTriggers!$L$27 -> 0.98 | CI66: FALSE | CJ66: 0 | CK66: FALSE | CL66: FALSE | CM66: FALSE | CN66: FALSE | CP66: =IntvTriggers!$L$32 -> 0.9 | CQ66: FALSE | CR66: =IntvTriggers!$L$33 -> 0.1 | CS66: 0.04635182114 | CT66: FALSE | CU66: =IntvTriggers!$L$34 -> 0.1 | CV66: 0.06025736748 | CW66: FALSE | CX66: =IntvTriggers!$L$35 -> 0.95 | CY66: FALSE | CZ66: =IntvTriggers!$L$36 -> 0.95 | DA66: FALSE | DB66: =IntvTriggers!$L$37 -> 0.95 | DC66: FALSE | DD66: 0 | DE66: FALSE | DF66: FALSE | DK66: 0 | DN66: 40 | DO66: 9 | DP66: 0 | DQ66: 0 | DR66: 0
C67: 42 | D67: 3 | E67: =INDEX(Assumptions!$D$25:$F$28,$S$8,D67) -> 18 | F67: 10 | G67: 0.5555555556 | H67: TRUE | I67: 0.1296296296 | J67: 0.02962962963 | K67: =SUMPRODUCT(OFFSET(J67,-MIN(F67,C67),0):J67,OFFSET(OFFSET(CorrosionRates!$C$119,-MIN(F67,C67),0):'CorrosionRates'!$C$119,0,$S$8)) -> 0.01755225871 | L67: 0.2891850114 | M67: 0.3067372701 | N67: =IF(N$25,M67,OFFSET(CorrosionRates!$C$119,-C67,$S$9)) -> 0.3067372701 | O67: 0.6134745402 | R67: FALSE | S67: 0 | T67: 0.1296296296 | U67: 0.8703703704 | W67: FALSE | X67: 0 | Y67: 0 | Z67: 0 | AB67: FALSE | AC67: 1 | AE67: 12.38652546 | AF67: 9.38652546 | AG67: 30223.12212 | AH67: 4918.539341 | AI67: 35141.66146 | AJ67: 30223.12212 | AK67: 530173.2782 | AM67: 12.38652546 | AN67: 9.38652546 | AP67: 0.9528096508 | AQ67: 0.938652546 | AR67: 0.9500577924 | AT67: 630327.1583 | AU67: 763886.6467 | AV67: 530173.2782 | BC67: =IntvTriggers!$L$14 -> 0.75 | BD67: FALSE | BE67: =IntvTriggers!$L$15 -> 0.1 | BF67: 0.04719034924 | BG67: FALSE | BH67: =IntvTriggers!$L$16 -> 0.1 | BI67: 0.06134745402 | BJ67: FALSE | BK67: =IntvTriggers!$L$17 -> 0.95 | BL67: FALSE | BM67: =IntvTriggers!$L$18 -> 0.95 | BN67: FALSE | BO67: =IntvTriggers!$L$19 -> 0.95 | BP67: FALSE | BQ67: 0 | BR67: FALSE | BS67: FALSE | BT67: FALSE | BV67: =IntvTriggers!$L$22 -> 0.95 | BW67: FALSE | BX67: =IntvTriggers!$L$23 -> 0.05 | BY67: 0.04719034924 | BZ67: FALSE | CA67: =IntvTriggers!$L$24 -> 0.05 | CB67: 0.06134745402 | CC67: FALSE | CD67: =IntvTriggers!$L$25 -> 0.98 | CE67: FALSE | CF67: =IntvTriggers!$L$26 -> 0.98 | CG67: FALSE | CH67: =IntvTriggers!$L$27 -> 0.98 | CI67: FALSE | CJ67: 0 | CK67: FALSE | CL67: FALSE | CM67: FALSE | CN67: FALSE | CP67: =IntvTriggers!$L$32 -> 0.9 | CQ67: FALSE | CR67: =IntvTriggers!$L$33 -> 0.1 | CS67: 0.04719034924 | CT67: FALSE | CU67: =IntvTriggers!$L$34 -> 0.1 | CV67: 0.06134745402 | CW67: FALSE | CX67: =IntvTriggers!$L$35 -> 0.95 | CY67: FALSE | CZ67: =IntvTriggers!$L$36 -> 0.95 | DA67: FALSE | DB67: =IntvTriggers!$L$37 -> 0.95 | DC67: FALSE | DD67: 0 | DE67: FALSE | DF67: FALSE | DK67: 0 | DN67: 41 | DO67: 9 | DP67: 0 | DQ67: 0 | DR67: 0
C68: 43 | D68: 3 | E68: =INDEX(Assumptions!$D$25:$F$28,$S$8,D68) -> 18 | F68: 11 | G68: 0.6111111111 | H68: TRUE | I68: 0.162962963 | J68: 0.03333333333 | K68: =SUMPRODUCT(OFFSET(J68,-MIN(F68,C68),0):J68,OFFSET(OFFSET(CorrosionRates!$C$119,-MIN(F68,C68),0):'CorrosionRates'!$C$119,0,$S$8)) -> 0.02423275077 | L68: 0.2891850114 | M68: 0.3134177621 | N68: =IF(N$25,M68,OFFSET(CorrosionRates!$C$119,-C68,$S$9)) -> 0.3134177621 | O68: 0.6268355243 | R68: FALSE | S68: 0 | T68: 0.162962963 | U68: 0.837037037 | W68: FALSE | X68: 0 | Y68: 0 | Z68: 0 | AB68: FALSE | AC68: 1 | AE68: 12.37316448 | AF68: 9.373164476 | AG68: 30190.52132 | AH68: 4911.538185 | AI68: 35102.05951 | AJ68: 30190.52132 | AK68: 529565.558 | AM68: 12.37316448 | AN68: 9.373164476 | AP68: 0.9517818827 | AQ68: 0.9373164476 | AR68: 0.9489687723 | AT68: 629621.0863 | AU68: 762999.4087 | AV68: 529565.558 | BC68: =IntvTriggers!$L$14 -> 0.75 | BD68: FALSE | BE68: =IntvTriggers!$L$15 -> 0.1 | BF68: 0.04821811725 | BG68: FALSE | BH68: =IntvTriggers!$L$16 -> 0.1 | BI68: 0.06268355243 | BJ68: FALSE | BK68: =IntvTriggers!$L$17 -> 0.95 | BL68: FALSE | BM68: =IntvTriggers!$L$18 -> 0.95 | BN68: FALSE | BO68: =IntvTriggers!$L$19 -> 0.95 | BP68: FALSE | BQ68: 0 | BR68: FALSE | BS68: FALSE | BT68: FALSE | BV68: =IntvTriggers!$L$22 -> 0.95 | BW68: FALSE | BX68: =IntvTriggers!$L$23 -> 0.05 | BY68: 0.04821811725 | BZ68: FALSE | CA68: =IntvTriggers!$L$24 -> 0.05 | CB68: 0.06268355243 | CC68: FALSE | CD68: =IntvTriggers!$L$25 -> 0.98 | CE68: FALSE | CF68: =IntvTriggers!$L$26 -> 0.98 | CG68: FALSE | CH68: =IntvTriggers!$L$27 -> 0.98 | CI68: FALSE | CJ68: 0 | CK68: FALSE | CL68: FALSE | CM68: FALSE | CN68: FALSE | CP68: =IntvTriggers!$L$32 -> 0.9 | CQ68: FALSE | CR68: =IntvTriggers!$L$33 -> 0.1 | CS68: 0.04821811725 | CT68: FALSE | CU68: =IntvTriggers!$L$34 -> 0.1 | CV68: 0.06268355243 | CW68: FALSE | CX68: =IntvTriggers!$L$35 -> 0.95 | CY68: FALSE | CZ68: =IntvTriggers!$L$36 -> 0.95 | DA68: FALSE | DB68: =IntvTriggers!$L$37 -> 0.95 | DC68: FALSE | DD68: 0 | DE68: FALSE | DF68: FALSE | DK68: 0 | DN68: 42 | DO68: 9 | DP68: 0 | DQ68: 0 | DR68: 0
C69: 44 | D69: 3 | E69: =INDEX(Assumptions!$D$25:$F$28,$S$8,D69) -> 18 | F69: 12 | G69: 0.6666666667 | H69: TRUE | I69: 0.2 | J69: 0.03703703704 | K69: =SUMPRODUCT(OFFSET(J69,-MIN(F69,C69),0):J69,OFFSET(OFFSET(CorrosionRates!$C$119,-MIN(F69,C69),0):'CorrosionRates'!$C$119,0,$S$8)) -> 0.03222810316 | L69: 0.2891850114 | M69: 0.3214131145 | N69: =IF(N$25,M69,OFFSET(CorrosionRates!$C$119,-C69,$S$9)) -> 0.3214131145 | O69: 0.6428262291 | R69: FALSE | S69: 0 | T69: 0.2 | U69: 0.8 | W69: FALSE | X69: 0 | Y69: 0 | Z69: 0 | AB69: FALSE | AC69: 1 | AE69: 12.35717377 | AF69: 9.357173771 | AG69: 30151.504 | AH69: 4903.159056 | AI69: 35054.66306 | AJ69: 30151.504 | AK69: 528838.1841 | AM69: 12.35717377 | AN69: 9.357173771 | AP69: 0.9505518285 | AQ69: 0.9357173771 | AR69: 0.9476653358 | AT69: 628775.9807 | AU69: 761937.4468 | AV69: 528838.1841 | BC69: =IntvTriggers!$L$14 -> 0.75 | BD69: FALSE | BE69: =IntvTriggers!$L$15 -> 0.1 | BF69: 0.04944817147 | BG69: FALSE | BH69: =IntvTriggers!$L$16 -> 0.1 | BI69: 0.06428262291 | BJ69: FALSE | BK69: =IntvTriggers!$L$17 -> 0.95 | BL69: FALSE | BM69: =IntvTriggers!$L$18 -> 0.95 | BN69: FALSE | BO69: =IntvTriggers!$L$19 -> 0.95 | BP69: FALSE | BQ69: 0 | BR69: FALSE | BS69: FALSE | BT69: FALSE | BV69: =IntvTriggers!$L$22 -> 0.95 | BW69: FALSE | BX69: =IntvTriggers!$L$23 -> 0.05 | BY69: 0.04944817147 | BZ69: FALSE | CA69: =IntvTriggers!$L$24 -> 0.05 | CB69: 0.06428262291 | CC69: FALSE | CD69: =IntvTriggers!$L$25 -> 0.98 | CE69: FALSE | CF69: =IntvTriggers!$L$26 -> 0.98 | CG69: FALSE | CH69: =IntvTriggers!$L$27 -> 0.98 | CI69: FALSE | CJ69: 0 | CK69: FALSE | CL69: FALSE | CM69: FALSE | CN69: FALSE | CP69: =IntvTriggers!$L$32 -> 0.9 | CQ69: FALSE | CR69: =IntvTriggers!$L$33 -> 0.1 | CS69: 0.04944817147 | CT69: FALSE | CU69: =IntvTriggers!$L$34 -> 0.1 | CV69: 0.06428262291 | CW69: FALSE | CX69: =IntvTriggers!$L$35 -> 0.95 | CY69: FALSE | CZ69: =IntvTriggers!$L$36 -> 0.95 | DA69: FALSE | DB69: =IntvTriggers!$L$37 -> 0.95 | DC69: FALSE | DD69: 0 | DE69: FALSE | DF69: FALSE | DK69: 0 | DN69: 43 | DO69: 9 | DP69: 0 | DQ69: 0 | DR69: 0
C70: 45 | D70: 3 | E70: =INDEX(Assumptions!$D$25:$F$28,$S$8,D70) -> 18 | F70: 13 | G70: 0.7222222222 | H70: TRUE | I70: 0.2407407407 | J70: 0.04074074074 | K70: =SUMPRODUCT(OFFSET(J70,-MIN(F70,C70),0):J70,OFFSET(OFFSET(CorrosionRates!$C$119,-MIN(F70,C70),0):'CorrosionRates'!$C$119,0,$S$8)) -> 0.04161941282 | L70: 0.2891850114 | M70: 0.3308044242 | N70: =IF(N$25,M70,OFFSET(CorrosionRates!$C$119,-C70,$S$9)) -> 0.3308044242 | O70: 0.6616088484 | R70: FALSE | S70: 0 | T70: 0.2407407407 | U70: 0.7592592593 | W70: FALSE | X70: 0 | Y70: 0 | Z70: 0 | AB70: FALSE | AC70: 1 | AE70: 12.33839115 | AF70: 9.338391152 | AG70: 30105.67441 | AH70: 4893.316963 | AI70: 34998.99137 | AJ70: 30105.67441 | AK70: 527983.7557 | AM70: 12.33839115 | AN70: 9.338391152 | AP70: 0.9491070117 | AQ70: 0.9338391152 | AR70: 0.9461342206 | AT70: 627783.2341 | AU70: 760689.9358 | AV70: 527983.7557 | BC70: =IntvTriggers!$L$14 -> 0.75 | BD70: FALSE | BE70: =IntvTriggers!$L$15 -> 0.1 | BF70: 0.05089298834 | BG70: FALSE | BH70: =IntvTriggers!$L$16 -> 0.1 | BI70: 0.06616088484 | BJ70: FALSE | BK70: =IntvTriggers!$L$17 -> 0.95 | BL70: FALSE | BM70: =IntvTriggers!$L$18 -> 0.95 | BN70: FALSE | BO70: =IntvTriggers!$L$19 -> 0.95 | BP70: FALSE | BQ70: 0 | BR70: FALSE | BS70: FALSE | BT70: FALSE | BV70: =IntvTriggers!$L$22 -> 0.95 | BW70: FALSE | BX70: =IntvTriggers!$L$23 -> 0.05 | BY70: 0.05089298834 | BZ70: FALSE | CA70: =IntvTriggers!$L$24 -> 0.05 | CB70: 0.06616088484 | CC70: FALSE | CD70: =IntvTriggers!$L$25 -> 0.98 | CE70: FALSE | CF70: =IntvTriggers!$L$26 -> 0.98 | CG70: FALSE | CH70: =IntvTriggers!$L$27 -> 0.98 | CI70: FALSE | CJ70: 0 | CK70: FALSE | CL70: FALSE | CM70: FALSE | CN70: FALSE | CP70: =IntvTriggers!$L$32 -> 0.9 | CQ70: FALSE | CR70: =IntvTriggers!$L$33 -> 0.1 | CS70: 0.05089298834 | CT70: FALSE | CU70: =IntvTriggers!$L$34 -> 0.1 | CV70: 0.06616088484 | CW70: FALSE | CX70: =IntvTriggers!$L$35 -> 0.95 | CY70: FALSE | CZ70: =IntvTriggers!$L$36 -> 0.95 | DA70: FALSE | DB70: =IntvTriggers!$L$37 -> 0.95 | DC70: FALSE | DD70: 0 | DE70: FALSE | DF70: FALSE | DK70: 0 | DN70: 44 | DO70: 9 | DP70: 0 | DQ70: 0 | DR70: 0
C71: 46 | D71: 3 | E71: =INDEX(Assumptions!$D$25:$F$28,$S$8,D71) -> 18 | F71: 14 | G71: 0.7777777778 | H71: TRUE | I71: 0.2851851852 | J71: 0.04444444444 | K71: =SUMPRODUCT(OFFSET(J71,-MIN(F71,C71),0):J71,OFFSET(OFFSET(CorrosionRates!$C$119,-MIN(F71,C71),0):'CorrosionRates'!$C$119,0,$S$8)) -> 0.0524845392 | L71: 0.2891850114 | M71: 0.3416695506 | N71: =IF(N$25,M71,OFFSET(CorrosionRates!$C$119,-C71,$S$9)) -> 0.3416695506 | O71: 0.6833391011 | R71: FALSE | S71: 0 | T71: 0.2851851852 | U71: 0.7148148148 | W71: FALSE | X71: 0 | Y71: 0 | Z71: 0 | AB71: FALSE | AC71: 1 | AE71: 12.3166609 | AF71: 9.316660899 | AG71: 30052.65259 | AH71: 4881.930311 | AI71: 34934.5829 | AJ71: 30052.65259 | AK71: 526995.1602 | AM71: 12.3166609 | AN71: 9.316660899 | AP71: 0.9474354538 | AQ71: 0.9316660899 | AR71: 0.9443626812 | AT71: 626634.5718 | AU71: 759246.4661 | AV71: 526995.1602 | BC71: =IntvTriggers!$L$14 -> 0.75 | BD71: FALSE | BE71: =IntvTriggers!$L$15 -> 0.1 | BF71: 0.05256454624 | BG71: FALSE | BH71: =IntvTriggers!$L$16 -> 0.1 | BI71: 0.06833391011 | BJ71: FALSE | BK71: =IntvTriggers!$L$17 -> 0.95 | BL71: FALSE | BM71: =IntvTriggers!$L$18 -> 0.95 | BN71: FALSE | BO71: =IntvTriggers!$L$19 -> 0.95 | BP71: FALSE | BQ71: 0 | BR71: FALSE | BS71: FALSE | BT71: FALSE | BV71: =IntvTriggers!$L$22 -> 0.95 | BW71: FALSE | BX71: =IntvTriggers!$L$23 -> 0.05 | BY71: 0.05256454624 | BZ71: FALSE | CA71: =IntvTriggers!$L$24 -> 0.05 | CB71: 0.06833391011 | CC71: FALSE | CD71: =IntvTriggers!$L$25 -> 0.98 | CE71: FALSE | CF71: =IntvTriggers!$L$26 -> 0.98 | CG71: FALSE | CH71: =IntvTriggers!$L$27 -> 0.98 | CI71: FALSE | CJ71: 0 | CK71: FALSE | CL71: FALSE | CM71: FALSE | CN71: FALSE | CP71: =IntvTriggers!$L$32 -> 0.9 | CQ71: FALSE | CR71: =IntvTriggers!$L$33 -> 0.1 | CS71: 0.05256454624 | CT71: FALSE | CU71: =IntvTriggers!$L$34 -> 0.1 | CV71: 0.06833391011 | CW71: FALSE | CX71: =IntvTriggers!$L$35 -> 0.95 | CY71: FALSE | CZ71: =IntvTriggers!$L$36 -> 0.95 | DA71: FALSE | DB71: =IntvTriggers!$L$37 -> 0.95 | DC71: FALSE | DD71: 0 | DE71: FALSE | DF71: FALSE | DK71: 0 | DN71: 45 | DO71: 10 | DP71: 0 | DQ71: 0 | DR71: 0
C72: 47 | D72: 3 | E72: =INDEX(Assumptions!$D$25:$F$28,$S$8,D72) -> 18 | F72: 15 | G72: 0.8333333333 | H72: TRUE | I72: 0.3333333333 | J72: 0.04814814815 | K72: =SUMPRODUCT(OFFSET(J72,-MIN(F72,C72),0):J72,OFFSET(OFFSET(CorrosionRates!$C$119,-MIN(F72,C72),0):'CorrosionRates'!$C$119,0,$S$8)) -> 0.06489848559 | L72: 0.2891850114 | M72: 0.354083497 | N72: =IF(N$25,M72,OFFSET(CorrosionRates!$C$119,-C72,$S$9)) -> 0.354083497 | O72: 0.7081669939 | R72: FALSE | S72: 0 | T72: 0.3333333333 | U72: 0.6666666667 | W72: FALSE | X72: 0 | Y72: 0 | Z72: 0 | AB72: FALSE | AC72: 1 | AE72: 12.29183301 | AF72: 9.291833006 | AG72: 29992.07253 | AH72: 4868.920495 | AI72: 34860.99303 | AJ72: 29992.07253 | AK72: 525865.5381 | AM72: 12.29183301 | AN72: 9.291833006 | AP72: 0.9455256159 | AQ72: 0.9291833006 | AR72: 0.9423384255 | AT72: 625322.0109 | AU72: 757596.9917 | AV72: 525865.5381 | BC72: =IntvTriggers!$L$14 -> 0.75 | BD72: FALSE | BE72: =IntvTriggers!$L$15 -> 0.1 | BF72: 0.05447438415 | BG72: FALSE | BH72: =IntvTriggers!$L$16 -> 0.1 | BI72: 0.07081669939 | BJ72: FALSE | BK72: =IntvTriggers!$L$17 -> 0.95 | BL72: FALSE | BM72: =IntvTriggers!$L$18 -> 0.95 | BN72: FALSE | BO72: =IntvTriggers!$L$19 -> 0.95 | BP72: FALSE | BQ72: 0 | BR72: FALSE | BS72: FALSE | BT72: FALSE | BV72: =IntvTriggers!$L$22 -> 0.95 | BW72: FALSE | BX72: =IntvTriggers!$L$23 -> 0.05 | BY72: 0.05447438415 | BZ72: FALSE | CA72: =IntvTriggers!$L$24 -> 0.05 | CB72: 0.07081669939 | CC72: FALSE | CD72: =IntvTriggers!$L$25 -> 0.98 | CE72: FALSE | CF72: =IntvTriggers!$L$26 -> 0.98 | CG72: FALSE | CH72: =IntvTriggers!$L$27 -> 0.98 | CI72: FALSE | CJ72: 0 | CK72: FALSE | CL72: FALSE | CM72: FALSE | CN72: FALSE | CP72: =IntvTriggers!$L$32 -> 0.9 | CQ72: FALSE | CR72: =IntvTriggers!$L$33 -> 0.1 | CS72: 0.05447438415 | CT72: FALSE | CU72: =IntvTriggers!$L$34 -> 0.1 | CV72: 0.07081669939 | CW72: FALSE | CX72: =IntvTriggers!$L$35 -> 0.95 | CY72: FALSE | CZ72: =IntvTriggers!$L$36 -> 0.95 | DA72: FALSE | DB72: =IntvTriggers!$L$37 -> 0.95 | DC72: FALSE | DD72: 0 | DE72: FALSE | DF72: FALSE | DK72: 0 | DN72: 46 | DO72: 10 | DP72: 0 | DQ72: 0 | DR72: 0
C73: 48 | D73: 3 | E73: =INDEX(Assumptions!$D$25:$F$28,$S$8,D73) -> 18 | F73: 16 | G73: 0.8888888889 | H73: TRUE | I73: 0.3851851852 | J73: 0.05185185185 | K73: =SUMPRODUCT(OFFSET(J73,-MIN(F73,C73),0):J73,OFFSET(OFFSET(CorrosionRates!$C$119,-MIN(F73,C73),0):'CorrosionRates'!$C$119,0,$S$8)) -> 0.07893371327 | L73: 0.2891850114 | M73: 0.3681187246 | N73: =IF(N$25,M73,OFFSET(CorrosionRates!$C$119,-C73,$S$9)) -> 0.3681187246 | O73: 0.7362374493 | R73: FALSE | S73: 0 | T73: 0.3851851852 | U73: 0.6148148148 | W73: FALSE | X73: 0 | Y73: 0 | Z73: 0 | AB73: FALSE | AC73: 1 | AE73: 12.26376255 | AF73: 9.263762551 | AG73: 29923.58062 | AH73: 4854.211577 | AI73: 34777.7922 | AJ73: 29923.58062 | AK73: 524588.2535 | AM73: =IF(OR($W73,$AB73),AE74,AE73) -> 12.26376255 | AN73: 9.263762551 | AP73: 0.9433663501 | AQ73: 0.9263762551 | AR73: 0.9400495622 | AT73: 623837.8254 | AU73: 755731.7867 | AV73: 524588.2535 | BC73: =IntvTriggers!$L$14 -> 0.75 | BD73: FALSE | BE73: =IntvTriggers!$L$15 -> 0.1 | BF73: 0.05663364994 | BG73: FALSE | BH73: =IntvTriggers!$L$16 -> 0.1 | BI73: 0.07362374493 | BJ73: FALSE | BK73: =IntvTriggers!$L$17 -> 0.95 | BL73: FALSE | BM73: =IntvTriggers!$L$18 -> 0.95 | BN73: FALSE | BO73: =IntvTriggers!$L$19 -> 0.95 | BP73: FALSE | BQ73: 0 | BR73: FALSE | BS73: FALSE | BT73: FALSE | BV73: =IntvTriggers!$L$22 -> 0.95 | BW73: FALSE | BX73: =IntvTriggers!$L$23 -> 0.05 | BY73: 0.05663364994 | BZ73: FALSE | CA73: =IntvTriggers!$L$24 -> 0.05 | CB73: 0.07362374493 | CC73: FALSE | CD73: =IntvTriggers!$L$25 -> 0.98 | CE73: FALSE | CF73: =IntvTriggers!$L$26 -> 0.98 | CG73: FALSE | CH73: =IntvTriggers!$L$27 -> 0.98 | CI73: FALSE | CJ73: 0 | CK73: FALSE | CL73: FALSE | CM73: FALSE | CN73: FALSE | CP73: =IntvTriggers!$L$32 -> 0.9 | CQ73: FALSE | CR73: =IntvTriggers!$L$33 -> 0.1 | CS73: 0.05663364994 | CT73: FALSE | CU73: =IntvTriggers!$L$34 -> 0.1 | CV73: 0.07362374493 | CW73: FALSE | CX73: =IntvTriggers!$L$35 -> 0.95 | CY73: FALSE | CZ73: =IntvTriggers!$L$36 -> 0.95 | DA73: FALSE | DB73: =IntvTriggers!$L$37 -> 0.95 | DC73: FALSE | DD73: 0 | DE73: FALSE | DF73: FALSE | DK73: 0 | DN73: 47 | DO73: 10 | DP73: 0 | DQ73: 0 | DR73: 0
C74: 49 | D74: 3 | E74: =INDEX(Assumptions!$D$25:$F$28,$S$8,D74) -> 18 | F74: 17 | G74: 0.9444444444 | H74: TRUE | I74: 0.4407407407 | J74: 0.05555555556 | K74: =SUMPRODUCT(OFFSET(J74,-MIN(F74,C74),0):J74,OFFSET(OFFSET(CorrosionRates!$C$119,-MIN(F74,C74),0):'CorrosionRates'!$C$119,0,$S$8)) -> 0.09466040301 | L74: 0.2891850114 | M74: 0.3838454144 | N74: =IF(N$25,M74,OFFSET(CorrosionRates!$C$119,-C74,$S$9)) -> 0.3838454144 | O74: 0.7676908288 | R74: FALSE | S74: 0 | T74: 0.4407407407 | U74: 0.5592592593 | W74: FALSE | X74: 0 | Y74: 0 | Z74: 0 | AB74: FALSE | AC74: 1 | AE74: 12.23230917 | AF74: 9.232309171 | AG74: 29846.83438 | AH74: 4837.730006 | AI74: 34684.56438 | AJ74: 29846.83438 | AK74: 523156.8697 | AM74: 12.23230917 | AN74: 9.232309171 | AP74: 0.9409468593 | AQ74: 0.9232309171 | AR74: 0.9374845567 | AT74: 622174.5177 | AU74: 753641.4092 | AV74: 523156.8697 | BC74: =IntvTriggers!$L$14 -> 0.75 | BD74: FALSE | BE74: =IntvTriggers!$L$15 -> 0.1 | BF74: 0.05905314067 | BG74: FALSE | BH74: =IntvTriggers!$L$16 -> 0.1 | BI74: 0.07676908288 | BJ74: FALSE | BK74: =IntvTriggers!$L$17 -> 0.95 | BL74: FALSE | BM74: =IntvTriggers!$L$18 -> 0.95 | BN74: FALSE | BO74: =IntvTriggers!$L$19 -> 0.95 | BP74: FALSE | BQ74: 0 | BR74: FALSE | BS74: FALSE | BT74: FALSE | BV74: =IntvTriggers!$L$22 -> 0.95 | BW74: FALSE | BX74: =IntvTriggers!$L$23 -> 0.05 | BY74: 0.05905314067 | BZ74: FALSE | CA74: =IntvTriggers!$L$24 -> 0.05 | CB74: 0.07676908288 | CC74: FALSE | CD74: =IntvTriggers!$L$25 -> 0.98 | CE74: FALSE | CF74: =IntvTriggers!$L$26 -> 0.98 | CG74: FALSE | CH74: =IntvTriggers!$L$27 -> 0.98 | CI74: FALSE | CJ74: 0 | CK74: FALSE | CL74: FALSE | CM74: FALSE | CN74: FALSE | CP74: =IntvTriggers!$L$32 -> 0.9 | CQ74: FALSE | CR74: =IntvTriggers!$L$33 -> 0.1 | CS74: 0.05905314067 | CT74: FALSE | CU74: =IntvTriggers!$L$34 -> 0.1 | CV74: 0.07676908288 | CW74: FALSE | CX74: =IntvTriggers!$L$35 -> 0.95 | CY74: FALSE | CZ74: =IntvTriggers!$L$36 -> 0.95 | DA74: FALSE | DB74: =IntvTriggers!$L$37 -> 0.95 | DC74: FALSE | DD74: 0 | DE74: FALSE | DF74: FALSE | DK74: 0 | DN74: 48 | DO74: 10 | DP74: 0 | DQ74: 0 | DR74: 0
C75: 50 | D75: 3 | E75: =INDEX(Assumptions!$D$25:$F$28,$S$8,D75) -> 18 | F75: 18 | G75: 1 | H75: FALSE | I75: 0.5 | J75: 0.05925925926 | K75: =SUMPRODUCT(OFFSET(J75,-MIN(F75,C75),0):J75,OFFSET(OFFSET(CorrosionRates!$C$119,-MIN(F75,C75),0):'CorrosionRates'!$C$119,0,$S$8)) -> 0.1121466751 | L75: 0.2891850114 | M75: 0.4013316864 | N75: =IF(N$25,M75,OFFSET(CorrosionRates!$C$119,-C75,$S$9)) -> 0.4013316864 | O75: 0.8026633729 | R75: FALSE | S75: 0 | T75: 0.5 | U75: 0.5 | W75: FALSE | X75: 0 | Y75: 0 | Z75: 0 | AB75: TRUE | AC75: =IF(AB75,1+AC74,0+AC74) -> 2 | AE75: 12.19733663 | AF75: 9.197336627 | AG75: 29761.50137 | AH75: 4819.404393 | AI75: 34580.90576 | AJ75: 29761.50137 | AK75: 521565.1282 | AM75: 13 | AN75: 10 | AP75: 0.9382566636 | AQ75: 0.9197336627 | AR75: 0.9346321942 | AT75: 620324.7945 | AU75: 751316.6699 | AV75: 521565.1282 | BC75: =IntvTriggers!$L$14 -> 0.75 | BD75: FALSE | BE75: =IntvTriggers!$L$15 -> 0.1 | BF75: 0.06174333637 | BG75: FALSE | BH75: =IntvTriggers!$L$16 -> 0.1 | BI75: 0.08026633729 | BJ75: FALSE | BK75: =IntvTriggers!$L$17 -> 0.95 | BL75: FALSE | BM75: =IntvTriggers!$L$18 -> 0.95 | BN75: FALSE | BO75: =IntvTriggers!$L$19 -> 0.95 | BP75: FALSE | BQ75: 0 | BR75: FALSE | BS75: FALSE | BT75: FALSE | BV75: =IntvTriggers!$L$22 -> 0.95 | BW75: FALSE | BX75: =IntvTriggers!$L$23 -> 0.05 | BY75: 0.06174333637 | BZ75: FALSE | CA75: =IntvTriggers!$L$24 -> 0.05 | CB75: 0.08026633729 | CC75: FALSE | CD75: =IntvTriggers!$L$25 -> 0.98 | CE75: FALSE | CF75: =IntvTriggers!$L$26 -> 0.98 | CG75: FALSE | CH75: =IntvTriggers!$L$27 -> 0.98 | CI75: FALSE | CJ75: 0 | CK75: FALSE | CL75: FALSE | CM75: FALSE | CN75: FALSE | CP75: =IntvTriggers!$L$32 -> 0.9 | CQ75: FALSE | CR75: =IntvTriggers!$L$33 -> 0.1 | CS75: 0.06174333637 | CT75: FALSE | CU75: =IntvTriggers!$L$34 -> 0.1 | CV75: 0.08026633729 | CW75: FALSE | CX75: =IntvTriggers!$L$35 -> 0.95 | CY75: FALSE | CZ75: =IntvTriggers!$L$36 -> 0.95 | DA75: FALSE | DB75: =IntvTriggers!$L$37 -> 0.95 | DC75: FALSE | DD75: x | DE75: TRUE | DF75: TRUE | DK75: 3 | DN75: 49 | DO75: 10 | DP75: 0 | DQ75: 0 | DR75: 1
C76: 51 | D76: 3 | E76: =INDEX(Assumptions!$D$25:$F$28,$S$8,D76) -> 18 | F76: 0 | G76: 0 | H76: TRUE | I76: 0 | J76: 0 | K76: =SUMPRODUCT(OFFSET(J76,-MIN(F76,C76),0):J76,OFFSET(OFFSET(CorrosionRates!$C$119,-MIN(F76,C76),0):'CorrosionRates'!$C$119,0,$S$8)) -> 0 | L76: 0 | M76: 0 | N76: =IF(N$25,M76,OFFSET(CorrosionRates!$C$119,-C76,$S$9)) -> 0 | O76: 0 | R76: FALSE | S76: 3 | T76: 0 | U76: 1 | W76: FALSE | X76: 0 | Y76: 0 | Z76: 0 | AB76: FALSE | AC76: 2 | AE76: 13 | AF76: 10 | AG76: 31720 | AH76: 5240 | AI76: 36960 | AJ76: 31720 | AK76: 558043.1869 | AM76: 13 | AN76: 10 | AP76: 1 | AQ76: 1 | AR76: 1 | AT76: 662694.4387 | AU76: 804545.2207 | AV76: 558043.1869 | BC76: =IntvTriggers!$L$14 -> 0.75 | BD76: FALSE | BE76: =IntvTriggers!$L$15 -> 0.1 | BF76: 0 | BG76: FALSE | BH76: =IntvTriggers!$L$16 -> 0.1 | BI76: 0 | BJ76: FALSE | BK76: =IntvTriggers!$L$17 -> 0.95 | BL76: FALSE | BM76: =IntvTriggers!$L$18 -> 0.95 | BN76: FALSE | BO76: =IntvTriggers!$L$19 -> 0.95 | BP76: FALSE | BQ76: 0 | BR76: FALSE | BS76: FALSE | BT76: FALSE | BV76: =IntvTriggers!$L$22 -> 0.95 | BW76: FALSE | BX76: =IntvTriggers!$L$23 -> 0.05 | BY76: 0 | BZ76: FALSE | CA76: =IntvTriggers!$L$24 -> 0.05 | CB76: 0 | CC76: FALSE | CD76: =IntvTriggers!$L$25 -> 0.98 | CE76: FALSE | CF76: =IntvTriggers!$L$26 -> 0.98 | CG76: FALSE | CH76: =IntvTriggers!$L$27 -> 0.98 | CI76: FALSE | CJ76: 0 | CK76: FALSE | CL76: FALSE | CM76: FALSE | CN76: FALSE | CP76: =IntvTriggers!$L$32 -> 0.9 | CQ76: FALSE | CR76: =IntvTriggers!$L$33 -> 0.1 | CS76: 0 | CT76: FALSE | CU76: =IntvTriggers!$L$34 -> 0.1 | CV76: 0 | CW76: FALSE | CX76: =IntvTriggers!$L$35 -> 0.95 | CY76: FALSE | CZ76: =IntvTriggers!$L$36 -> 0.95 | DA76: FALSE | DB76: =IntvTriggers!$L$37 -> 0.95 | DC76: FALSE | DD76: 0 | DE76: FALSE | DF76: FALSE | DK76: 0 | DN76: 50 | DO76: 11 | DP76: 0 | DQ76: 0 | DR76: 0
C77: 52 | D77: 3 | E77: =INDEX(Assumptions!$D$25:$F$28,$S$8,D77) -> 18 | F77: 1 | G77: 0.05555555556 | H77: TRUE | I77: 0 | J77: 0 | K77: =SUMPRODUCT(OFFSET(J77,-MIN(F77,C77),0):J77,OFFSET(OFFSET(CorrosionRates!$C$119,-MIN(F77,C77),0):'CorrosionRates'!$C$119,0,$S$8)) -> 0 | L77: 0 | M77: 0 | N77: =IF(N$25,M77,OFFSET(CorrosionRates!$C$119,-C77,$S$9)) -> 0 | O77: 0 | R77: FALSE | S77: 0 | T77: 0 | U77: 1 | W77: FALSE | X77: 0 | Y77: 0 | Z77: 0 | AB77: FALSE | AC77: 2 | AE77: 13 | AF77: 10 | AG77: 31720 | AH77: 5240 | AI77: 36960 | AJ77: 31720 | AK77: 558043.1869 | AM77: 13 | AN77: 10 | AP77: 1 | AQ77: 1 | AR77: 1 | AT77: 662694.4387 | AU77: 804545.2207 | AV77: 558043.1869 | BC77: =IntvTriggers!$L$14 -> 0.75 | BD77: FALSE | BE77: =IntvTriggers!$L$15 -> 0.1 | BF77: 0 | BG77: FALSE | BH77: =IntvTriggers!$L$16 -> 0.1 | BI77: 0 | BJ77: FALSE | BK77: =IntvTriggers!$L$17 -> 0.95 | BL77: FALSE | BM77: =IntvTriggers!$L$18 -> 0.95 | BN77: FALSE | BO77: =IntvTriggers!$L$19 -> 0.95 | BP77: FALSE | BQ77: 0 | BR77: FALSE | BS77: FALSE | BT77: FALSE | BV77: =IntvTriggers!$L$22 -> 0.95 | BW77: FALSE | BX77: =IntvTriggers!$L$23 -> 0.05 | BY77: 0 | BZ77: FALSE | CA77: =IntvTriggers!$L$24 -> 0.05 | CB77: 0 | CC77: FALSE | CD77: =IntvTriggers!$L$25 -> 0.98 | CE77: FALSE | CF77: =IntvTriggers!$L$26 -> 0.98 | CG77: FALSE | CH77: =IntvTriggers!$L$27 -> 0.98 | CI77: FALSE | CJ77: 0 | CK77: FALSE | CL77: FALSE | CM77: FALSE | CN77: FALSE | CP77: =IntvTriggers!$L$32 -> 0.9 | CQ77: FALSE | CR77: =IntvTriggers!$L$33 -> 0.1 | CS77: 0 | CT77: FALSE | CU77: =IntvTriggers!$L$34 -> 0.1 | CV77: 0 | CW77: FALSE | CX77: =IntvTriggers!$L$35 -> 0.95 | CY77: FALSE | CZ77: =IntvTriggers!$L$36 -> 0.95 | DA77: FALSE | DB77: =IntvTriggers!$L$37 -> 0.95 | DC77: FALSE | DD77: 0 | DE77: FALSE | DF77: FALSE | DK77: 0 | DN77: 51 | DO77: 11 | DP77: 0 | DQ77: 0 | DR77: 0
C78: 53 | D78: 3 | E78: =INDEX(Assumptions!$D$25:$F$28,$S$8,D78) -> 18 | F78: 2 | G78: 0.1111111111 | H78: TRUE | I78: 0 | J78: 0 | K78: =SUMPRODUCT(OFFSET(J78,-MIN(F78,C78),0):J78,OFFSET(OFFSET(CorrosionRates!$C$119,-MIN(F78,C78),0):'CorrosionRates'!$C$119,0,$S$8)) -> 0 | L78: 0 | M78: 0 | N78: =IF(N$25,M78,OFFSET(CorrosionRates!$C$119,-C78,$S$9)) -> 0 | O78: 0 | R78: FALSE | S78: 0 | T78: 0 | U78: 1 | W78: FALSE | X78: 0 | Y78: 0 | Z78: 0 | AB78: FALSE | AC78: 2 | AE78: 13 | AF78: 10 | AG78: 31720 | AH78: 5240 | AI78: 36960 | AJ78: 31720 | AK78: 558043.1869 | AM78: 13 | AN78: 10 | AP78: 1 | AQ78: 1 | AR78: 1 | AT78: 662694.4387 | AU78: 804545.2207 | AV78: 558043.1869 | BC78: =IntvTriggers!$L$14 -> 0.75 | BD78: FALSE | BE78: =IntvTriggers!$L$15 -> 0.1 | BF78: 0 | BG78: FALSE | BH78: =IntvTriggers!$L$16 -> 0.1 | BI78: 0 | BJ78: FALSE | BK78: =IntvTriggers!$L$17 -> 0.95 | BL78: FALSE | BM78: =IntvTriggers!$L$18 -> 0.95 | BN78: FALSE | BO78: =IntvTriggers!$L$19 -> 0.95 | BP78: FALSE | BQ78: 0 | BR78: FALSE | BS78: FALSE | BT78: FALSE | BV78: =IntvTriggers!$L$22 -> 0.95 | BW78: FALSE | BX78: =IntvTriggers!$L$23 -> 0.05 | BY78: 0 | BZ78: FALSE | CA78: =IntvTriggers!$L$24 -> 0.05 | CB78: 0 | CC78: FALSE | CD78: =IntvTriggers!$L$25 -> 0.98 | CE78: FALSE | CF78: =IntvTriggers!$L$26 -> 0.98 | CG78: FALSE | CH78: =IntvTriggers!$L$27 -> 0.98 | CI78: FALSE | CJ78: 0 | CK78: FALSE | CL78: FALSE | CM78: FALSE | CN78: FALSE | CP78: =IntvTriggers!$L$32 -> 0.9 | CQ78: FALSE | CR78: =IntvTriggers!$L$33 -> 0.1 | CS78: 0 | CT78: FALSE | CU78: =IntvTriggers!$L$34 -> 0.1 | CV78: 0 | CW78: FALSE | CX78: =IntvTriggers!$L$35 -> 0.95 | CY78: FALSE | CZ78: =IntvTriggers!$L$36 -> 0.95 | DA78: FALSE | DB78: =IntvTriggers!$L$37 -> 0.95 | DC78: FALSE | DD78: 0 | DE78: FALSE | DF78: FALSE | DK78: 0 | DN78: 52 | DO78: 11 | DP78: 0 | DQ78: 0 | DR78: 0
C79: 54 | D79: 3 | E79: =INDEX(Assumptions!$D$25:$F$28,$S$8,D79) -> 18 | F79: 3 | G79: 0.1666666667 | H79: TRUE | I79: 0 | J79: 0 | K79: =SUMPRODUCT(OFFSET(J79,-MIN(F79,C79),0):J79,OFFSET(OFFSET(CorrosionRates!$C$119,-MIN(F79,C79),0):'CorrosionRates'!$C$119,0,$S$8)) -> 0 | L79: 0 | M79: 0 | N79: =IF(N$25,M79,OFFSET(CorrosionRates!$C$119,-C79,$S$9)) -> 0 | O79: 0 | R79: FALSE | S79: 0 | T79: 0 | U79: 1 | W79: FALSE | X79: 0 | Y79: 0 | Z79: 0 | AB79: FALSE | AC79: 2 | AE79: 13 | AF79: 10 | AG79: 31720 | AH79: 5240 | AI79: 36960 | AJ79: 31720 | AK79: 558043.1869 | AM79: 13 | AN79: 10 | AP79: 1 | AQ79: 1 | AR79: 1 | AT79: 662694.4387 | AU79: 804545.2207 | AV79: 558043.1869 | BC79: =IntvTriggers!$L$14 -> 0.75 | BD79: FALSE | BE79: =IntvTriggers!$L$15 -> 0.1 | BF79: 0 | BG79: FALSE | BH79: =IntvTriggers!$L$16 -> 0.1 | BI79: 0 | BJ79: FALSE | BK79: =IntvTriggers!$L$17 -> 0.95 | BL79: FALSE | BM79: =IntvTriggers!$L$18 -> 0.95 | BN79: FALSE | BO79: =IntvTriggers!$L$19 -> 0.95 | BP79: FALSE | BQ79: 0 | BR79: FALSE | BS79: FALSE | BT79: FALSE | BV79: =IntvTriggers!$L$22 -> 0.95 | BW79: FALSE | BX79: =IntvTriggers!$L$23 -> 0.05 | BY79: 0 | BZ79: FALSE | CA79: =IntvTriggers!$L$24 -> 0.05 | CB79: 0 | CC79: FALSE | CD79: =IntvTriggers!$L$25 -> 0.98 | CE79: FALSE | CF79: =IntvTriggers!$L$26 -> 0.98 | CG79: FALSE | CH79: =IntvTriggers!$L$27 -> 0.98 | CI79: FALSE | CJ79: 0 | CK79: FALSE | CL79: FALSE | CM79: FALSE | CN79: FALSE | CP79: =IntvTriggers!$L$32 -> 0.9 | CQ79: FALSE | CR79: =IntvTriggers!$L$33 -> 0.1 | CS79: 0 | CT79: FALSE | CU79: =IntvTriggers!$L$34 -> 0.1 | CV79: 0 | CW79: FALSE | CX79: =IntvTriggers!$L$35 -> 0.95 | CY79: FALSE | CZ79: =IntvTriggers!$L$36 -> 0.95 | DA79: FALSE | DB79: =IntvTriggers!$L$37 -> 0.95 | DC79: FALSE | DD79: 0 | DE79: FALSE | DF79: FALSE | DK79: 0 | DN79: 53 | DO79: 11 | DP79: 0 | DQ79: 0 | DR79: 0
C80: 55 | D80: 3 | E80: =INDEX(Assumptions!$D$25:$F$28,$S$8,D80) -> 18 | F80: 4 | G80: 0.2222222222 | H80: TRUE | I80: 0.007407407407 | J80: 0.007407407407 | K80: =SUMPRODUCT(OFFSET(J80,-MIN(F80,C80),0):J80,OFFSET(OFFSET(CorrosionRates!$C$119,-MIN(F80,C80),0):'CorrosionRates'!$C$119,0,$S$8)) -> 0 | L80: 0 | M80: 0 | N80: =IF(N$25,M80,OFFSET(CorrosionRates!$C$119,-C80,$S$9)) -> 0 | O80: 0 | R80: FALSE | S80: 0 | T80: 0.007407407407 | U80: 0.9925925926 | W80: FALSE | X80: 0 | Y80: 0 | Z80: 0 | AB80: FALSE | AC80: 2 | AE80: 13 | AF80: 10 | AG80: 31720 | AH80: 5240 | AI80: 36960 | AJ80: 31720 | AK80: 558043.1869 | AM80: 13 | AN80: 10 | AP80: 1 | AQ80: 1 | AR80: 1 | AT80: 662694.4387 | AU80: 804545.2207 | AV80: 558043.1869 | BC80: =IntvTriggers!$L$14 -> 0.75 | BD80: FALSE | BE80: =IntvTriggers!$L$15 -> 0.1 | BF80: 0 | BG80: FALSE | BH80: =IntvTriggers!$L$16 -> 0.1 | BI80: 0 | BJ80: FALSE | BK80: =IntvTriggers!$L$17 -> 0.95 | BL80: FALSE | BM80: =IntvTriggers!$L$18 -> 0.95 | BN80: FALSE | BO80: =IntvTriggers!$L$19 -> 0.95 | BP80: FALSE | BQ80: 0 | BR80: FALSE | BS80: FALSE | BT80: FALSE | BV80: =IntvTriggers!$L$22 -> 0.95 | BW80: FALSE | BX80: =IntvTriggers!$L$23 -> 0.05 | BY80: 0 | BZ80: FALSE | CA80: =IntvTriggers!$L$24 -> 0.05 | CB80: 0 | CC80: FALSE | CD80: =IntvTriggers!$L$25 -> 0.98 | CE80: FALSE | CF80: =IntvTriggers!$L$26 -> 0.98 | CG80: FALSE | CH80: =IntvTriggers!$L$27 -> 0.98 | CI80: FALSE | CJ80: 0 | CK80: FALSE | CL80: FALSE | CM80: FALSE | CN80: FALSE | CP80: =IntvTriggers!$L$32 -> 0.9 | CQ80: FALSE | CR80: =IntvTriggers!$L$33 -> 0.1 | CS80: 0 | CT80: =AND(CT$24,CS80>=CR80) -> FALSE | CU80: =IntvTriggers!$L$34 -> 0.1 | CV80: 0 | CW80: FALSE | CX80: =IntvTriggers!$L$35 -> 0.95 | CY80: FALSE | CZ80: =IntvTriggers!$L$36 -> 0.95 | DA80: FALSE | DB80: =IntvTriggers!$L$37 -> 0.95 | DC80: FALSE | DD80: 0 | DE80: FALSE | DF80: FALSE | DK80: 0 | DN80: 54 | DO80: 11 | DP80: 0 | DQ80: 0 | DR80: 0
C81: 56 | D81: 3 | E81: =INDEX(Assumptions!$D$25:$F$28,$S$8,D81) -> 18 | F81: 5 | G81: 0.2777777778 | H81: TRUE | I81: 0.01851851852 | J81: 0.01111111111 | K81: =SUMPRODUCT(OFFSET(J81,-MIN(F81,C81),0):J81,OFFSET(OFFSET(CorrosionRates!$C$119,-MIN(F81,C81),0):'CorrosionRates'!$C$119,0,$S$8)) -> 0.0007407407407 | L81: 0 | M81: 0.0007407407407 | N81: =IF(N$25,M81,OFFSET(CorrosionRates!$C$119,-C81,$S$9)) -> 0.0007407407407 | O81: 0.001481481481 | R81: FALSE | S81: 0 | T81: 0.01851851852 | U81: 0.9814814815 | W81: FALSE | X81: 0 | Y81: 0 | Z81: 0 | AB81: FALSE | AC81: 2 | AE81: 12.99851852 | AF81: 9.998518519 | AG81: 31716.38519 | AH81: 5239.223704 | AI81: 36955.60889 | AJ81: 31716.38519 | AK81: 557975.9628 | AM81: 12.99851852 | AN81: 9.998518519 | AP81: 0.9998860399 | AQ81: 0.9998518519 | AR81: 0.9998795361 | AT81: 662616.398 | AU81: 804447.2209 | AV81: 557975.9628 | BC81: =IntvTriggers!$L$14 -> 0.75 | BD81: FALSE | BE81: =IntvTriggers!$L$15 -> 0.1 | BF81: 0.000113960114 | BG81: FALSE | BH81: =IntvTriggers!$L$16 -> 0.1 | BI81: 0.0001481481481 | BJ81: FALSE | BK81: =IntvTriggers!$L$17 -> 0.95 | BL81: FALSE | BM81: =IntvTriggers!$L$18 -> 0.95 | BN81: FALSE | BO81: =IntvTriggers!$L$19 -> 0.95 | BP81: FALSE | BQ81: 0 | BR81: FALSE | BS81: FALSE | BT81: FALSE | BV81: =IntvTriggers!$L$22 -> 0.95 | BW81: FALSE | BX81: =IntvTriggers!$L$23 -> 0.05 | BY81: 0.000113960114 | BZ81: FALSE | CA81: =IntvTriggers!$L$24 -> 0.05 | CB81: 0.0001481481481 | CC81: FALSE | CD81: =IntvTriggers!$L$25 -> 0.98 | CE81: FALSE | CF81: =IntvTriggers!$L$26 -> 0.98 | CG81: FALSE | CH81: =IntvTriggers!$L$27 -> 0.98 | CI81: FALSE | CJ81: 0 | CK81: FALSE | CL81: FALSE | CM81: FALSE | CN81: FALSE | CP81: =IntvTriggers!$L$32 -> 0.9 | CQ81: FALSE | CR81: =IntvTriggers!$L$33 -> 0.1 | CS81: 0.000113960114 | CT81: FALSE | CU81: =IntvTriggers!$L$34 -> 0.1 | CV81: 0.0001481481481 | CW81: FALSE | CX81: =IntvTriggers!$L$35 -> 0.95 | CY81: FALSE | CZ81: =IntvTriggers!$L$36 -> 0.95 | DA81: FALSE | DB81: =IntvTriggers!$L$37 -> 0.95 | DC81: FALSE | DD81: 0 | DE81: FALSE | DF81: FALSE | DK81: 0 | DN81: 55 | DO81: 12 | DP81: 0 | DQ81: 0 | DR81: 0
C82: 57 | D82: 3 | E82: =INDEX(Assumptions!$D$25:$F$28,$S$8,D82) -> 18 | F82: 6 | G82: 0.3333333333 | H82: TRUE | I82: 0.03333333333 | J82: 0.01481481481 | K82: =SUMPRODUCT(OFFSET(J82,-MIN(F82,C82),0):J82,OFFSET(OFFSET(CorrosionRates!$C$119,-MIN(F82,C82),0):'CorrosionRates'!$C$119,0,$S$8)) -> 0.002214575899 | L82: 0 | M82: 0.002214575899 | N82: =IF(N$25,M82,OFFSET(CorrosionRates!$C$119,-C82,$S$9)) -> 0.002214575899 | O82: 0.004429151797 | R82: FALSE | S82: 0 | T82: 0.03333333333 | U82: 0.9666666667 | W82: FALSE | X82: 0 | Y82: 0 | Z82: 0 | AB82: FALSE | AC82: 2 | AE82: 12.99557085 | AF82: 9.995570848 | AG82: 31709.19287 | AH82: 5237.679124 | AI82: 36946.87199 | AJ82: 31709.19287 | AK82: 557842.2075 | AM82: 12.99557085 | AN82: 9.995570848 | AP82: 0.999659296 | AQ82: 0.9995570848 | AR82: 0.9996398497 | AT82: 662461.1205 | AU82: 804252.2304 | AV82: 557842.2075 | BC82: =IntvTriggers!$L$14 -> 0.75 | BD82: FALSE | BE82: =IntvTriggers!$L$15 -> 0.1 | BF82: 0.0003407039844 | BG82: FALSE | BH82: =IntvTriggers!$L$16 -> 0.1 | BI82: 0.0004429151797 | BJ82: FALSE | BK82: =IntvTriggers!$L$17 -> 0.95 | BL82: FALSE | BM82: =IntvTriggers!$L$18 -> 0.95 | BN82: FALSE | BO82: =IntvTriggers!$L$19 -> 0.95 | BP82: FALSE | BQ82: 0 | BR82: FALSE | BS82: FALSE | BT82: FALSE | BV82: =IntvTriggers!$L$22 -> 0.95 | BW82: FALSE | BX82: =IntvTriggers!$L$23 -> 0.05 | BY82: 0.0003407039844 | BZ82: FALSE | CA82: =IntvTriggers!$L$24 -> 0.05 | CB82: 0.0004429151797 | CC82: FALSE | CD82: =IntvTriggers!$L$25 -> 0.98 | CE82: FALSE | CF82: =IntvTriggers!$L$26 -> 0.98 | CG82: FALSE | CH82: =IntvTriggers!$L$27 -> 0.98 | CI82: FALSE | CJ82: 0 | CK82: FALSE | CL82: FALSE | CM82: FALSE | CN82: FALSE | CP82: =IntvTriggers!$L$32 -> 0.9 | CQ82: FALSE | CR82: =IntvTriggers!$L$33 -> 0.1 | CS82: 0.0003407039844 | CT82: FALSE | CU82: =IntvTriggers!$L$34 -> 0.1 | CV82: 0.0004429151797 | CW82: FALSE | CX82: =IntvTriggers!$L$35 -> 0.95 | CY82: FALSE | CZ82: =IntvTriggers!$L$36 -> 0.95 | DA82: FALSE | DB82: =IntvTriggers!$L$37 -> 0.95 | DC82: FALSE | DD82: 0 | DE82: FALSE | DF82: FALSE | DK82: 0 | DN82: 56 | DO82: 12 | DP82: 0 | DQ82: 0 | DR82: 0
C83: 58 | D83: 3 | E83: =INDEX(Assumptions!$D$25:$F$28,$S$8,D83) -> 18 | F83: 7 | G83: 0.3888888889 | H83: TRUE | I83: 0.05185185185 | J83: 0.01851851852 | K83: =SUMPRODUCT(OFFSET(J83,-MIN(F83,C83),0):J83,OFFSET(OFFSET(CorrosionRates!$C$119,-MIN(F83,C83),0):'CorrosionRates'!$C$119,0,$S$8)) -> 0.004529870602 | L83: 0 | M83: 0.004529870602 | N83: =IF(N$25,M83,OFFSET(CorrosionRates!$C$119,-C83,$S$9)) -> 0.004529870602 | O83: 0.009059741203 | R83: FALSE | S83: 0 | T83: 0.05185185185 | U83: 0.9481481481 | W83: FALSE | X83: 0 | Y83: 0 | Z83: 0 | AB83: FALSE | AC83: 2 | AE83: 12.99094026 | AF83: 9.990940259 | AG83: 31697.89423 | AH83: 5235.252696 | AI83: 36933.14693 | AJ83: 31697.89423 | AK83: 557632.0838 | AM83: 12.99094026 | AN83: 9.990940259 | AP83: 0.9993030968 | AQ83: 0.9990940259 | AR83: 0.9992633132 | AT83: 662217.1853 | AU83: 803945.9063 | AV83: 557632.0838 | BC83: =IntvTriggers!$L$14 -> 0.75 | BD83: FALSE | BE83: =IntvTriggers!$L$15 -> 0.1 | BF83: 0.0006969031695 | BG83: FALSE | BH83: =IntvTriggers!$L$16 -> 0.1 | BI83: 0.0009059741203 | BJ83: FALSE | BK83: =IntvTriggers!$L$17 -> 0.95 | BL83: FALSE | BM83: =IntvTriggers!$L$18 -> 0.95 | BN83: FALSE | BO83: =IntvTriggers!$L$19 -> 0.95 | BP83: FALSE | BQ83: 0 | BR83: FALSE | BS83: FALSE | BT83: FALSE | BV83: =IntvTriggers!$L$22 -> 0.95 | BW83: FALSE | BX83: =IntvTriggers!$L$23 -> 0.05 | BY83: 0.0006969031695 | BZ83: FALSE | CA83: =IntvTriggers!$L$24 -> 0.05 | CB83: 0.0009059741203 | CC83: FALSE | CD83: =IntvTriggers!$L$25 -> 0.98 | CE83: FALSE | CF83: =IntvTriggers!$L$26 -> 0.98 | CG83: FALSE | CH83: =IntvTriggers!$L$27 -> 0.98 | CI83: FALSE | CJ83: 0 | CK83: FALSE | CL83: FALSE | CM83: FALSE | CN83: FALSE | CP83: =IntvTriggers!$L$32 -> 0.9 | CQ83: FALSE | CR83: =IntvTriggers!$L$33 -> 0.1 | CS83: 0.0006969031695 | CT83: FALSE | CU83: =IntvTriggers!$L$34 -> 0.1 | CV83: 0.0009059741203 | CW83: FALSE | CX83: =IntvTriggers!$L$35 -> 0.95 | CY83: FALSE | CZ83: =IntvTriggers!$L$36 -> 0.95 | DA83: FALSE | DB83: =IntvTriggers!$L$37 -> 0.95 | DC83: FALSE | DD83: 0 | DE83: FALSE | DF83: FALSE | DK83: 0 | DN83: 57 | DO83: 12 | DP83: 0 | DQ83: 0 | DR83: 0
C84: 59 | D84: 3 | E84: =INDEX(Assumptions!$D$25:$F$28,$S$8,D84) -> 18 | F84: 8 | G84: 0.4444444444 | H84: TRUE | I84: 0.07407407407 | J84: 0.02222222222 | K84: =SUMPRODUCT(OFFSET(J84,-MIN(F84,C84),0):J84,OFFSET(OFFSET(CorrosionRates!$C$119,-MIN(F84,C84),0):'CorrosionRates'!$C$119,0,$S$8)) -> 0.007792375961 | L84: 0 | M84: 0.007792375961 | N84: =IF(N$25,M84,OFFSET(CorrosionRates!$C$119,-C84,$S$9)) -> 0.007792375961 | O84: 0.01558475192 | R84: FALSE | S84: 0 | T84: 0.07407407407 | U84: 0.9259259259 | W84: FALSE | X84: 0 | Y84: 0 | Z84: 0 | AB84: FALSE | AC84: 2 | AE84: 12.98441525 | AF84: 9.984415248 | AG84: 31681.97321 | AH84: 5231.83359 | AI84: 36913.8068 | AJ84: 31681.97321 | AK84: 557335.9902 | AM84: 12.98441525 | AN84: 9.984415248 | AP84: 0.9988011729 | AQ84: 0.9984415248 | AR84: 0.9987327205 | AT84: 661873.4438 | AU84: 803514.247 | AV84: 557335.9902 | BC84: =IntvTriggers!$L$14 -> 0.75 | BD84: FALSE | BE84: =IntvTriggers!$L$15 -> 0.1 | BF84: 0.001198827071 | BG84: FALSE | BH84: =IntvTriggers!$L$16 -> 0.1 | BI84: 0.001558475192 | BJ84: FALSE | BK84: =IntvTriggers!$L$17 -> 0.95 | BL84: FALSE | BM84: =IntvTriggers!$L$18 -> 0.95 | BN84: FALSE | BO84: =IntvTriggers!$L$19 -> 0.95 | BP84: FALSE | BQ84: 0 | BR84: FALSE | BS84: FALSE | BT84: FALSE | BV84: =IntvTriggers!$L$22 -> 0.95 | BW84: FALSE | BX84: =IntvTriggers!$L$23 -> 0.05 | BY84: 0.001198827071 | BZ84: FALSE | CA84: =IntvTriggers!$L$24 -> 0.05 | CB84: 0.001558475192 | CC84: FALSE | CD84: =IntvTriggers!$L$25 -> 0.98 | CE84: FALSE | CF84: =IntvTriggers!$L$26 -> 0.98 | CG84: FALSE | CH84: =IntvTriggers!$L$27 -> 0.98 | CI84: FALSE | CJ84: 0 | CK84: FALSE | CL84: FALSE | CM84: FALSE | CN84: FALSE | CP84: =IntvTriggers!$L$32 -> 0.9 | CQ84: FALSE | CR84: =IntvTriggers!$L$33 -> 0.1 | CS84: 0.001198827071 | CT84: FALSE | CU84: =IntvTriggers!$L$34 -> 0.1 | CV84: 0.001558475192 | CW84: FALSE | CX84: =IntvTriggers!$L$35 -> 0.95 | CY84: FALSE | CZ84: =IntvTriggers!$L$36 -> 0.95 | DA84: FALSE | DB84: =IntvTriggers!$L$37 -> 0.95 | DC84: FALSE | DD84: 0 | DE84: FALSE | DF84: FALSE | DK84: 0 | DN84: 58 | DO84: 12 | DP84: 0 | DQ84: 0 | DR84: 0
C85: 60 | D85: 3 | E85: =INDEX(Assumptions!$D$25:$F$28,$S$8,D85) -> 18 | F85: 9 | G85: 0.5 | H85: TRUE | I85: 0.1 | J85: 0.02592592593 | K85: =SUMPRODUCT(OFFSET(J85,-MIN(F85,C85),0):J85,OFFSET(OFFSET(CorrosionRates!$C$119,-MIN(F85,C85),0):'CorrosionRates'!$C$119,0,$S$8)) -> 0.01210182602 | L85: 0 | M85: 0.01210182602 | N85: =IF(N$25,M85,OFFSET(CorrosionRates!$C$119,-C85,$S$9)) -> 0.01210182602 | O85: 0.02420365205 | R85: FALSE | S85: 0 | T85: 0.1 | U85: 0.9 | W85: FALSE | X85: 0 | Y85: 0 | Z85: 0 | AB85: FALSE | AC85: 2 | AE85: 12.97579635 | AF85: 9.975796348 | AG85: 31660.94309 | AH85: 5227.317286 | AI85: 36888.26038 | AJ85: 31660.94309 | AK85: 556944.8682 | AM85: 12.97579635 | AN85: 9.975796348 | AP85: 0.9981381806 | AQ85: 0.9975796348 | AR85: 0.9980318393 | AT85: 661419.3773 | AU85: 802944.0403 | AV85: 556944.8682 | BC85: =IntvTriggers!$L$14 -> 0.75 | BD85: FALSE | BE85: =IntvTriggers!$L$15 -> 0.1 | BF85: 0.001861819388 | BG85: FALSE | BH85: =IntvTriggers!$L$16 -> 0.1 | BI85: 0.002420365205 | BJ85: FALSE | BK85: =IntvTriggers!$L$17 -> 0.95 | BL85: FALSE | BM85: =IntvTriggers!$L$18 -> 0.95 | BN85: FALSE | BO85: =IntvTriggers!$L$19 -> 0.95 | BP85: FALSE | BQ85: 0 | BR85: FALSE | BS85: FALSE | BT85: FALSE | BV85: =IntvTriggers!$L$22 -> 0.95 | BW85: FALSE | BX85: =IntvTriggers!$L$23 -> 0.05 | BY85: 0.001861819388 | BZ85: FALSE | CA85: =IntvTriggers!$L$24 -> 0.05 | CB85: 0.002420365205 | CC85: FALSE | CD85: =IntvTriggers!$L$25 -> 0.98 | CE85: FALSE | CF85: =IntvTriggers!$L$26 -> 0.98 | CG85: FALSE | CH85: =IntvTriggers!$L$27 -> 0.98 | CI85: FALSE | CJ85: 0 | CK85: FALSE | CL85: FALSE | CM85: FALSE | CN85: FALSE | CP85: =IntvTriggers!$L$32 -> 0.9 | CQ85: FALSE | CR85: =IntvTriggers!$L$33 -> 0.1 | CS85: 0.001861819388 | CT85: FALSE | CU85: =IntvTriggers!$L$34 -> 0.1 | CV85: 0.002420365205 | CW85: FALSE | CX85: =IntvTriggers!$L$35 -> 0.95 | CY85: FALSE | CZ85: =IntvTriggers!$L$36 -> 0.95 | DA85: FALSE | DB85: =IntvTriggers!$L$37 -> 0.95 | DC85: FALSE | DD85: 0 | DE85: FALSE | DF85: FALSE | DK85: 0 | DN85: 59 | DO85: 12 | DP85: 0 | DQ85: 0 | DR85: 0
C86: 61 | D86: 3 | E86: =INDEX(Assumptions!$D$25:$F$28,$S$8,D86) -> 18 | F86: 10 | G86: 0.5555555556 | H86: TRUE | I86: 0.1296296296 | J86: 0.02962962963 | K86: =SUMPRODUCT(OFFSET(J86,-MIN(F86,C86),0):J86,OFFSET(OFFSET(CorrosionRates!$C$119,-MIN(F86,C86),0):'CorrosionRates'!$C$119,0,$S$8)) -> 0.01755225871 | L86: 0 | M86: 0.01755225871 | N86: =IF(N$25,M86,OFFSET(CorrosionRates!$C$119,-C86,$S$9)) -> 0.01755225871 | O86: 0.03510451742 | R86: FALSE | S86: 0 | T86: 0.1296296296 | U86: 0.8703703704 | W86: FALSE | X86: 0 | Y86: =$X86*$Y$19*Y$24 -> 0 | Z86: 0 | AB86: FALSE | AC86: 2 | AE86: 12.96489548 | AF86: 9.964895483 | AG86: 31634.34498 | AH86: 5221.605233 | AI86: 36855.95021 | AJ86: 31634.34498 | AK86: 556450.1732 | AM86: 12.96489548 | AN86: 9.964895483 | AP86: 0.9972996525 | AQ86: 0.9964895483 | AR86: 0.9971453577 | AT86: 660845.0619 | AU86: 802222.8203 | AV86: 556450.1732 | BC86: =IntvTriggers!$L$14 -> 0.75 | BD86: FALSE | BE86: =IntvTriggers!$L$15 -> 0.1 | BF86: 0.002700347494 | BG86: FALSE | BH86: =IntvTriggers!$L$16 -> 0.1 | BI86: 0.003510451742 | BJ86: FALSE | BK86: =IntvTriggers!$L$17 -> 0.95 | BL86: FALSE | BM86: =IntvTriggers!$L$18 -> 0.95 | BN86: FALSE | BO86: =IntvTriggers!$L$19 -> 0.95 | BP86: FALSE | BQ86: 0 | BR86: FALSE | BS86: FALSE | BT86: FALSE | BV86: =IntvTriggers!$L$22 -> 0.95 | BW86: FALSE | BX86: =IntvTriggers!$L$23 -> 0.05 | BY86: 0.002700347494 | BZ86: FALSE | CA86: =IntvTriggers!$L$24 -> 0.05 | CB86: 0.003510451742 | CC86: FALSE | CD86: =IntvTriggers!$L$25 -> 0.98 | CE86: FALSE | CF86: =IntvTriggers!$L$26 -> 0.98 | CG86: FALSE | CH86: =IntvTriggers!$L$27 -> 0.98 | CI86: FALSE | CJ86: 0 | CK86: FALSE | CL86: FALSE | CM86: FALSE | CN86: FALSE | CP86: =IntvTriggers!$L$32 -> 0.9 | CQ86: FALSE | CR86: =IntvTriggers!$L$33 -> 0.1 | CS86: 0.002700347494 | CT86: FALSE | CU86: =IntvTriggers!$L$34 -> 0.1 | CV86: 0.003510451742 | CW86: FALSE | CX86: =IntvTriggers!$L$35 -> 0.95 | CY86: FALSE | CZ86: =IntvTriggers!$L$36 -> 0.95 | DA86: FALSE | DB86: =IntvTriggers!$L$37 -> 0.95 | DC86: FALSE | DD86: 0 | DE86: FALSE | DF86: FALSE | DK86: 0 | DN86: 60 | DO86: 13 | DP86: 0 | DQ86: 0 | DR86: 0
C87: 62 | D87: 3 | E87: =INDEX(Assumptions!$D$25:$F$28,$S$8,D87) -> 18 | F87: 11 | G87: 0.6111111111 | H87: TRUE | I87: 0.162962963 | J87: 0.03333333333 | K87: =SUMPRODUCT(OFFSET(J87,-MIN(F87,C87),0):J87,OFFSET(OFFSET(CorrosionRates!$C$119,-MIN(F87,C87),0):'CorrosionRates'!$C$119,0,$S$8)) -> 0.02423275077 | L87: 0 | M87: 0.02423275077 | N87: =IF(N$25,M87,OFFSET(CorrosionRates!$C$119,-C87,$S$9)) -> 0.02423275077 | O87: 0.04846550153 | R87: FALSE | S87: 0 | T87: 0.162962963 | U87: 0.837037037 | W87: FALSE | X87: 0 | Y87: 0 | Z87: 0 | AB87: FALSE | AC87: 2 | AE87: 12.9515345 | AF87: 9.951534498 | AG87: 31601.74418 | AH87: 5214.604077 | AI87: 36816.34825 | AJ87: =IF(Section=2,AH87,AG87) -> 31601.74418 | AK87: 555843.8068 | AM87: 12.9515345 | AN87: 9.951534498 | AP87: 0.9962718845 | AQ87: 0.9951534498 | AR87: 0.9960587637 | AT87: 660141.0904 | AU87: 801338.7679 | AV87: 555843.8068 | BC87: =IntvTriggers!$L$14 -> 0.75 | BD87: FALSE | BE87: =IntvTriggers!$L$15 -> 0.1 | BF87: 0.003728115502 | BG87: FALSE | BH87: =IntvTriggers!$L$16 -> 0.1 | BI87: 0.004846550153 | BJ87: FALSE | BK87: =IntvTriggers!$L$17 -> 0.95 | BL87: FALSE | BM87: =IntvTriggers!$L$18 -> 0.95 | BN87: FALSE | BO87: =IntvTriggers!$L$19 -> 0.95 | BP87: FALSE | BQ87: 0 | BR87: FALSE | BS87: FALSE | BT87: FALSE | BV87: =IntvTriggers!$L$22 -> 0.95 | BW87: FALSE | BX87: =IntvTriggers!$L$23 -> 0.05 | BY87: 0.003728115502 | BZ87: FALSE | CA87: =IntvTriggers!$L$24 -> 0.05 | CB87: 0.004846550153 | CC87: FALSE | CD87: =IntvTriggers!$L$25 -> 0.98 | CE87: FALSE | CF87: =IntvTriggers!$L$26 -> 0.98 | CG87: FALSE | CH87: =IntvTriggers!$L$27 -> 0.98 | CI87: FALSE | CJ87: 0 | CK87: FALSE | CL87: FALSE | CM87: FALSE | CN87: FALSE | CP87: =IntvTriggers!$L$32 -> 0.9 | CQ87: FALSE | CR87: =IntvTriggers!$L$33 -> 0.1 | CS87: 0.003728115502 | CT87: FALSE | CU87: =IntvTriggers!$L$34 -> 0.1 | CV87: 0.004846550153 | CW87: FALSE | CX87: =IntvTriggers!$L$35 -> 0.95 | CY87: FALSE | CZ87: =IntvTriggers!$L$36 -> 0.95 | DA87: FALSE | DB87: =IntvTriggers!$L$37 -> 0.95 | DC87: FALSE | DD87: 0 | DE87: FALSE | DF87: FALSE | DK87: 0 | DN87: 61 | DO87: 13 | DP87: 0 | DQ87: 0 | DR87: 0
C88: 63 | D88: 3 | E88: =INDEX(Assumptions!$D$25:$F$28,$S$8,D88) -> 18 | F88: 12 | G88: 0.6666666667 | H88: TRUE | I88: 0.2 | J88: 0.03703703704 | K88: =SUMPRODUCT(OFFSET(J88,-MIN(F88,C88),0):J88,OFFSET(OFFSET(CorrosionRates!$C$119,-MIN(F88,C88),0):'CorrosionRates'!$C$119,0,$S$8)) -> 0.03222810316 | L88: 0 | M88: 0.03222810316 | N88: =IF(N$25,M88,OFFSET(CorrosionRates!$C$119,-C88,$S$9)) -> 0.03222810316 | O88: 0.06445620632 | R88: FALSE | S88: 0 | T88: 0.2 | U88: 0.8 | W88: FALSE | X88: 0 | Y88: 0 | Z88: 0 | AB88: FALSE | AC88: 2 | AE88: 12.93554379 | AF88: 9.935543794 | AG88: =OFFSET(AG$18,T$6,0)*AE88 -> 31562.72686 | AH88: =OFFSET(AH$18,T$6,0)*AF88 -> 5206.224948 | AI88: 36768.9518 | AJ88: 31562.72686 | AK88: =OFFSET(AT88,0,$T$6) -> 555118.0542 | AM88: 12.93554379 | AN88: 9.935543794 | AP88: =AG88/AG$24 -> 0.9950418303 | AQ88: =AH88/AH$24 -> 0.9935543794 | AR88: =AK88/AK$24 -> 0.9947582323 | AT88: =(b*d^3 - (b-w)*(d-2*f)^3)/120000 -> 659298.4989 | AU88: =(b*d^3 - (b-2*s)*(d-2*t)^3)/120000 -> 800280.6189 | AV88: =0.0001*((2*f*d^3 + (b-2*f)*w^3)/3 - (2*d*f + (b-2*f)*w)*((2*f*d^2 + (b-2*f)*w^2)/(2*d*b - 2*(b-2*f)*(d-w)))^2) -> 555118.0542 | BC88: =IntvTriggers!$L$14 -> 0.75 | BD88: FALSE | BE88: =IntvTriggers!$L$15 -> 0.1 | BF88: 0.004958169717 | BG88: FALSE | BH88: =IntvTriggers!$L$16 -> 0.1 | BI88: 0.006445620632 | BJ88: FALSE | BK88: =IntvTriggers!$L$17 -> 0.95 | BL88: FALSE | BM88: =IntvTriggers!$L$18 -> 0.95 | BN88: FALSE | BO88: =IntvTriggers!$L$19 -> 0.95 | BP88: FALSE | BQ88: 0 | BR88: FALSE | BS88: FALSE | BT88: FALSE | BV88: =IntvTriggers!$L$22 -> 0.95 | BW88: FALSE | BX88: =IntvTriggers!$L$23 -> 0.05 | BY88: 0.004958169717 | BZ88: FALSE | CA88: =IntvTriggers!$L$24 -> 0.05 | CB88: 0.006445620632 | CC88: FALSE | CD88: =IntvTriggers!$L$25 -> 0.98 | CE88: FALSE | CF88: =IntvTriggers!$L$26 -> 0.98 | CG88: FALSE | CH88: =IntvTriggers!$L$27 -> 0.98 | CI88: FALSE | CJ88: 0 | CK88: FALSE | CL88: FALSE | CM88: FALSE | CN88: FALSE | CP88: =IntvTriggers!$L$32 -> 0.9 | CQ88: FALSE | CR88: =IntvTriggers!$L$33 -> 0.1 | CS88: 0.004958169717 | CT88: FALSE | CU88: =IntvTriggers!$L$34 -> 0.1 | CV88: 0.006445620632 | CW88: FALSE | CX88: =IntvTriggers!$L$35 -> 0.95 | CY88: FALSE | CZ88: =IntvTriggers!$L$36 -> 0.95 | DA88: FALSE | DB88: =IntvTriggers!$L$37 -> 0.95 | DC88: FALSE | DD88: 0 | DE88: FALSE | DF88: FALSE | DK88: 0 | DN88: 62 | DO88: 13 | DP88: 0 | DQ88: 0 | DR88: 0
C89: 64 | D89: 3 | E89: =INDEX(Assumptions!$D$25:$F$28,$S$8,D89) -> 18 | F89: 13 | G89: 0.7222222222 | H89: TRUE | I89: 0.2407407407 | J89: 0.04074074074 | K89: =SUMPRODUCT(OFFSET(J89,-MIN(F89,C89),0):J89,OFFSET(OFFSET(CorrosionRates!$C$119,-MIN(F89,C89),0):'CorrosionRates'!$C$119,0,$S$8)) -> 0.04161941282 | L89: 0 | M89: 0.04161941282 | N89: =IF(N$25,M89,OFFSET(CorrosionRates!$C$119,-C89,$S$9)) -> 0.04161941282 | O89: 0.08323882564 | R89: FALSE | S89: 0 | T89: 0.2407407407 | U89: 0.7592592593 | W89: FALSE | X89: 0 | Y89: 0 | Z89: 0 | AB89: FALSE | AC89: 2 | AE89: 12.91676117 | AF89: 9.916761174 | AG89: 31516.89727 | AH89: 5196.382855 | AI89: =AG89+AH89 -> 36713.28012 | AJ89: 31516.89727 | AK89: 554265.5313 | AM89: 12.91676117 | AN89: 9.916761174 | AP89: 0.9935970134 | AQ89: 0.9916761174 | AR89: 0.9932305318 | AT89: 658308.7055 | AU89: 799037.5867 | AV89: 554265.5313 | BC89: =IntvTriggers!$L$14 -> 0.75 | BD89: FALSE | BE89: =IntvTriggers!$L$15 -> 0.1 | BF89: 0.006402986587 | BG89: FALSE | BH89: =IntvTriggers!$L$16 -> 0.1 | BI89: 0.008323882564 | BJ89: FALSE | BK89: =IntvTriggers!$L$17 -> 0.95 | BL89: FALSE | BM89: =IntvTriggers!$L$18 -> 0.95 | BN89: FALSE | BO89: =IntvTriggers!$L$19 -> 0.95 | BP89: FALSE | BQ89: 0 | BR89: FALSE | BS89: FALSE | BT89: FALSE | BV89: =IntvTriggers!$L$22 -> 0.95 | BW89: FALSE | BX89: =IntvTriggers!$L$23 -> 0.05 | BY89: 0.006402986587 | BZ89: FALSE | CA89: =IntvTriggers!$L$24 -> 0.05 | CB89: 0.008323882564 | CC89: FALSE | CD89: =IntvTriggers!$L$25 -> 0.98 | CE89: FALSE | CF89: =IntvTriggers!$L$26 -> 0.98 | CG89: FALSE | CH89: =IntvTriggers!$L$27 -> 0.98 | CI89: FALSE | CJ89: 0 | CK89: FALSE | CL89: FALSE | CM89: FALSE | CN89: FALSE | CP89: =IntvTriggers!$L$32 -> 0.9 | CQ89: FALSE | CR89: =IntvTriggers!$L$33 -> 0.1 | CS89: 0.006402986587 | CT89: FALSE | CU89: =IntvTriggers!$L$34 -> 0.1 | CV89: 0.008323882564 | CW89: FALSE | CX89: =IntvTriggers!$L$35 -> 0.95 | CY89: FALSE | CZ89: =IntvTriggers!$L$36 -> 0.95 | DA89: FALSE | DB89: =IntvTriggers!$L$37 -> 0.95 | DC89: FALSE | DD89: 0 | DE89: FALSE | DF89: FALSE | DK89: 0 | DN89: 63 | DO89: 13 | DP89: 0 | DQ89: 0 | DR89: 0
C90: 65 | D90: 3 | E90: =INDEX(Assumptions!$D$25:$F$28,$S$8,D90) -> 18 | F90: 14 | G90: 0.7777777778 | H90: =OR(E90=0,F90<E90) -> TRUE | I90: 0.2851851852 | J90: 0.04444444444 | K90: =SUMPRODUCT(OFFSET(J90,-MIN(F90,C90),0):J90,OFFSET(OFFSET(CorrosionRates!$C$119,-MIN(F90,C90),0):'CorrosionRates'!$C$119,0,$S$8)) -> 0.0524845392 | L90: 0 | M90: 0.0524845392 | N90: =IF(N$25,M90,OFFSET(CorrosionRates!$C$119,-C90,$S$9)) -> 0.0524845392 | O90: 0.1049690784 | R90: =CN90 -> FALSE | S90: 0 | T90: 0.2851851852 | U90: =1-T90 -> 0.7148148148 | W90: =IF(AB90,FALSE,BT90) -> FALSE | X90: 0 | Y90: 0 | Z90: 0 | AB90: =DF90 -> FALSE | AC90: 2 | AE90: 12.89503092 | AF90: 9.895030922 | AG90: 31463.87545 | AH90: 5184.996203 | AI90: 36648.87165 | AJ90: 31463.87545 | AK90: 553279.1421 | AM90: =IF(OR($W90,$AB90),AE91,AE90) -> 12.89503092 | AN90: =IF(OR($W90,$AB90),AF91,AF90) -> 9.895030922 | AP90: 0.9919254555 | AQ90: 0.9895030922 | AR90: 0.991462946 | AT90: 657163.4602 | AU90: 797599.2991 | AV90: 553279.1421 | BC90: =IntvTriggers!$L$14 -> 0.75 | BD90: FALSE | BE90: =IntvTriggers!$L$15 -> 0.1 | BF90: =($AE$24-$AE90)/$AE$24 -> 0.008074544492 | BG90: FALSE | BH90: =IntvTriggers!$L$16 -> 0.1 | BI90: =($AF$24-$AF90)/$AF$24 -> 0.01049690784 | BJ90: FALSE | BK90: =IntvTriggers!$L$17 -> 0.95 | BL90: FALSE | BM90: =IntvTriggers!$L$18 -> 0.95 | BN90: FALSE | BO90: =IntvTriggers!$L$19 -> 0.95 | BP90: FALSE | BQ90: 0 | BR90: =AND(BQ90="x",BR$24) -> FALSE | BS90: FALSE | BT90: =IF(DF90,FALSE,BS90) -> FALSE | BV90: =IntvTriggers!$L$22 -> 0.95 | BW90: FALSE | BX90: =IntvTriggers!$L$23 -> 0.05 | BY90: =($AE$24-$AE90)/$AE$24 -> 0.008074544492 | BZ90: FALSE | CA90: =IntvTriggers!$L$24 -> 0.05 | CB90: =($AF$24-$AF90)/$AF$24 -> 0.01049690784 | CC90: FALSE | CD90: =IntvTriggers!$L$25 -> 0.98 | CE90: FALSE | CF90: =IntvTriggers!$L$26 -> 0.98 | CG90: FALSE | CH90: =IntvTriggers!$L$27 -> 0.98 | CI90: FALSE | CJ90: 0 | CK90: =AND(CJ90="x",CK$24) -> FALSE | CL90: FALSE | CM90: =IF(BS90,FALSE,CL90) -> FALSE | CN90: =IF(DF90,FALSE,CM90) -> FALSE | CP90: =IntvTriggers!$L$32 -> 0.9 | CQ90: FALSE | CR90: =IntvTriggers!$L$33 -> 0.1 | CS90: =($AE$24-$AE90)/$AE$24 -> 0.008074544492 | CT90: FALSE | CU90: =IntvTriggers!$L$34 -> 0.1 | CV90: =($AF$24-$AF90)/$AF$24 -> 0.01049690784 | CW90: FALSE | CX90: =IntvTriggers!$L$35 -> 0.95 | CY90: FALSE | CZ90: =IntvTriggers!$L$36 -> 0.95 | DA90: FALSE | DB90: =IntvTriggers!$L$37 -> 0.95 | DC90: FALSE | DD90: 0 | DE90: FALSE | DF90: FALSE | DK90: 0 | DN90: 64 | DO90: =INT(DN90/DO$22+1) -> 13 | DP90: 0 | DQ90: 0 | DR90: 0
C91: 66 | D91: =IF($S91>0,$S91,D90) -> 3 | E91: =INDEX(Assumptions!$D$25:$F$28,$S$8,D91) -> 18 | F91: =IF($S91>0,0,F90+1) -> 15 | G91: 0.8333333333 | H91: TRUE | I91: 0.3333333333 | J91: =IF(AND(D91=1,F91=0),1,MAX(0,I91-I90)) -> 0.04814814815 | K91: =SUMPRODUCT(OFFSET(J91,-MIN(F91,C91),0):J91,OFFSET(OFFSET(CorrosionRates!$C$119,-MIN(F91,C91),0):'CorrosionRates'!$C$119,0,$S$8)) -> 0.06489848559 | L91: =IF(AB90,0,IF(F91=0,M90,L90)) -> 0 | M91: 0.06489848559 | N91: =IF(N$25,M91,OFFSET(CorrosionRates!$C$119,-C91,$S$9)) -> 0.06489848559 | O91: =M91+N91 -> 0.1297969712 | R91: FALSE | S91: =DK90 -> 0 | T91: =I91 -> 0.3333333333 | U91: 0.6666666667 | W91: FALSE | X91: =IF(AB91,0,IF(W91,X90+1,X90)) -> 0 | Y91: 0 | Z91: 0 | AB91: FALSE | AC91: 2 | AE91: 12.87020303 | AF91: 9.870203029 | AG91: 31403.29539 | AH91: 5171.986387 | AI91: 36575.28178 | AJ91: 31403.29539 | AK91: 552152.0431 | AM91: 12.87020303 | AN91: 9.870203029 | AP91: 0.9900156176 | AQ91: 0.9870203029 | AR91: 0.9894432116 | AT91: 655854.8037 | AU91: 795955.746 | AV91: 552152.0431 | BC91: =IntvTriggers!$L$14 -> 0.75 | BD91: =AND(BD$24,$I91>=BC91) -> FALSE | BE91: =IntvTriggers!$L$15 -> 0.1 | BF91: 0.009984382398 | BG91: =AND(BG$24,BF91>=BE91) -> FALSE | BH91: =IntvTriggers!$L$16 -> 0.1 | BI91: 0.01297969712 | BJ91: =AND(BJ$24,BI91>=BH91) -> FALSE | BK91: =IntvTriggers!$L$17 -> 0.95 | BL91: =AND(BL$24,$AP91<=BK91) -> FALSE | BM91: =IntvTriggers!$L$18 -> 0.95 | BN91: =AND(BN$24,$AQ91<=BM91) -> FALSE | BO91: =IntvTriggers!$L$19 -> 0.95 | BP91: =AND(BP$24,$AR91<=BO91) -> FALSE | BQ91: 0 | BR91: FALSE | BS91: =OR(BD91,BG91,BJ91,BL91,BN91,BP91,BR91) -> FALSE | BT91: FALSE | BV91: =IntvTriggers!$L$22 -> 0.95 | BW91: =AND(BW$24,$I91>=BV91) -> FALSE | BX91: =IntvTriggers!$L$23 -> 0.05 | BY91: 0.009984382398 | BZ91: =AND(BZ$24,BY91>=BX91) -> FALSE | CA91: =IntvTriggers!$L$24 -> 0.05 | CB91: 0.01297969712 | CC91: =AND(CC$24,CB91>=CA91) -> FALSE | CD91: =IntvTriggers!$L$25 -> 0.98 | CE91: =AND(CE$24,$AP91<=CD91) -> FALSE | CF91: =IntvTriggers!$L$26 -> 0.98 | CG91: =AND(CG$24,$AQ91<=CF91) -> FALSE | CH91: =IntvTriggers!$L$27 -> 0.98 | CI91: =AND(CI$24,$AR91<=CH91) -> FALSE | CJ91: 0 | CK91: FALSE | CL91: =OR(BW91,,BZ91,CC91,CE91,CG91,CI91,CK91) -> FALSE | CM91: FALSE | CN91: FALSE | CP91: =IntvTriggers!$L$32 -> 0.9 | CQ91: FALSE | CR91: =IntvTriggers!$L$33 -> 0.1 | CS91: 0.009984382398 | CT91: FALSE | CU91: =IntvTriggers!$L$34 -> 0.1 | CV91: 0.01297969712 | CW91: FALSE | CX91: =IntvTriggers!$L$35 -> 0.95 | CY91: FALSE | CZ91: =IntvTriggers!$L$36 -> 0.95 | DA91: FALSE | DB91: =IntvTriggers!$L$37 -> 0.95 | DC91: FALSE | DD91: 0 | DE91: FALSE | DF91: =OR(CQ91,CT91,CW91,CY91,DA91,DC91,DE91) -> FALSE | DK91: =IF(AND(DF91,$DN$16),$DM$16,IF(AND(BT91,$DN$14),$DM$14,IF(CN91,$DM$15,0))) -> 0 | DN91: 65 | DO91: 14 | DP91: 0 | DQ91: 0 | DR91: =DF91*1 -> 0
C92: 67 | D92: 3 | E92: =INDEX(Assumptions!$D$25:$F$28,$S$8,D92) -> 18 | F92: 16 | G92: 0.8888888889 | H92: TRUE | I92: 0.3851851852 | J92: 0.05185185185 | K92: =SUMPRODUCT(OFFSET(J92,-MIN(F92,C92),0):J92,OFFSET(OFFSET(CorrosionRates!$C$119,-MIN(F92,C92),0):'CorrosionRates'!$C$119,0,$S$8)) -> 0.07893371327 | L92: 0 | M92: 0.07893371327 | N92: =IF(N$25,M92,OFFSET(CorrosionRates!$C$119,-C92,$S$9)) -> 0.07893371327 | O92: 0.1578674265 | R92: FALSE | S92: 0 | T92: 0.3851851852 | U92: 0.6148148148 | W92: FALSE | X92: 0 | Y92: 0 | Z92: 0 | AB92: FALSE | AC92: =IF(AB92,1+AC91,0+AC91) -> 2 | AE92: =IF($AC91>0,AE$24-$O92+Y91,AE$25-$O92+Y91) -> 12.84213257 | AF92: =IF($AC91>0,AF$24-$O92+Z91,AF$25-$O92+Z91) -> 9.842132573 | AG92: 31334.80348 | AH92: 5157.277468 | AI92: 36492.08095 | AJ92: 31334.80348 | AK92: 550877.614 | AM92: 12.84213257 | AN92: 9.842132573 | AP92: 0.9878563518 | AQ92: 0.9842132573 | AR92: 0.9871594653 | AT92: 654375.0328 | AU92: 794097.2365 | AV92: 550877.614 | BC92: =IntvTriggers!$L$14 -> 0.75 | BD92: FALSE | BE92: =IntvTriggers!$L$15 -> 0.1 | BF92: 0.01214364819 | BG92: FALSE | BH92: =IntvTriggers!$L$16 -> 0.1 | BI92: 0.01578674265 | BJ92: FALSE | BK92: =IntvTriggers!$L$17 -> 0.95 | BL92: FALSE | BM92: =IntvTriggers!$L$18 -> 0.95 | BN92: FALSE | BO92: =IntvTriggers!$L$19 -> 0.95 | BP92: FALSE | BQ92: 0 | BR92: FALSE | BS92: FALSE | BT92: FALSE | BV92: =IntvTriggers!$L$22 -> 0.95 | BW92: FALSE | BX92: =IntvTriggers!$L$23 -> 0.05 | BY92: 0.01214364819 | BZ92: FALSE | CA92: =IntvTriggers!$L$24 -> 0.05 | CB92: 0.01578674265 | CC92: FALSE | CD92: =IntvTriggers!$L$25 -> 0.98 | CE92: FALSE | CF92: =IntvTriggers!$L$26 -> 0.98 | CG92: FALSE | CH92: =IntvTriggers!$L$27 -> 0.98 | CI92: FALSE | CJ92: 0 | CK92: FALSE | CL92: FALSE | CM92: FALSE | CN92: FALSE | CP92: =IntvTriggers!$L$32 -> 0.9 | CQ92: =AND(CQ$24,$I92>=CP92) -> FALSE | CR92: =IntvTriggers!$L$33 -> 0.1 | CS92: 0.01214364819 | CT92: =AND(CT$24,CS92>=CR92) -> FALSE | CU92: =IntvTriggers!$L$34 -> 0.1 | CV92: 0.01578674265 | CW92: =AND(CW$24,CV92>=CU92) -> FALSE | CX92: =IntvTriggers!$L$35 -> 0.95 | CY92: =AND(CY$24,$AP92<=CX92) -> FALSE | CZ92: =IntvTriggers!$L$36 -> 0.95 | DA92: =AND(DA$24,$AQ92<=CZ92) -> FALSE | DB92: =IntvTriggers!$L$37 -> 0.95 | DC92: =AND(DC$24,$AR92<=DB92) -> FALSE | DD92: 0 | DE92: =AND(DD92="x",DE$24) -> FALSE | DF92: FALSE | DK92: 0 | DN92: =DN91+1 -> 66 | DO92: 14 | DP92: =BT91*1 -> 0 | DQ92: =CN91*1 -> 0 | DR92: 0
C93: 68 | D93: 3 | E93: =INDEX(Assumptions!$D$25:$F$28,$S$8,D93) -> 18 | F93: 17 | G93: 0.9444444444 | H93: TRUE | I93: 0.4407407407 | J93: 0.05555555556 | K93: =SUMPRODUCT(OFFSET(J93,-MIN(F93,C93),0):J93,OFFSET(OFFSET(CorrosionRates!$C$119,-MIN(F93,C93),0):'CorrosionRates'!$C$119,0,$S$8)) -> 0.09466040301 | L93: 0 | M93: 0.09466040301 | N93: =IF(N$25,M93,OFFSET(CorrosionRates!$C$119,-C93,$S$9)) -> 0.09466040301 | O93: 0.189320806 | R93: FALSE | S93: 0 | T93: 0.4407407407 | U93: 0.5592592593 | W93: FALSE | X93: 0 | Y93: 0 | Z93: 0 | AB93: FALSE | AC93: 2 | AE93: 12.81067919 | AF93: 9.810679194 | AG93: 31258.05723 | AH93: 5140.795898 | AI93: 36398.85313 | AJ93: 31258.05723 | AK93: 549449.4336 | AM93: 12.81067919 | AN93: 9.810679194 | AP93: 0.9854368611 | AQ93: 0.9810679194 | AR93: 0.9846002003 | AT93: 652716.6723 | AU93: 792014.3622 | AV93: 549449.4336 | BC93: =IntvTriggers!$L$14 -> 0.75 | BD93: FALSE | BE93: =IntvTriggers!$L$15 -> 0.1 | BF93: 0.01456313892 | BG93: FALSE | BH93: =IntvTriggers!$L$16 -> 0.1 | BI93: 0.0189320806 | BJ93: FALSE | BK93: =IntvTriggers!$L$17 -> 0.95 | BL93: FALSE | BM93: =IntvTriggers!$L$18 -> 0.95 | BN93: FALSE | BO93: =IntvTriggers!$L$19 -> 0.95 | BP93: FALSE | BQ93: 0 | BR93: FALSE | BS93: FALSE | BT93: FALSE | BV93: =IntvTriggers!$L$22 -> 0.95 | BW93: FALSE | BX93: =IntvTriggers!$L$23 -> 0.05 | BY93: 0.01456313892 | BZ93: FALSE | CA93: =IntvTriggers!$L$24 -> 0.05 | CB93: 0.0189320806 | CC93: FALSE | CD93: =IntvTriggers!$L$25 -> 0.98 | CE93: FALSE | CF93: =IntvTriggers!$L$26 -> 0.98 | CG93: FALSE | CH93: =IntvTriggers!$L$27 -> 0.98 | CI93: FALSE | CJ93: 0 | CK93: FALSE | CL93: FALSE | CM93: FALSE | CN93: FALSE | CP93: =IntvTriggers!$L$32 -> 0.9 | CQ93: FALSE | CR93: =IntvTriggers!$L$33 -> 0.1 | CS93: 0.01456313892 | CT93: FALSE | CU93: =IntvTriggers!$L$34 -> 0.1 | CV93: 0.0189320806 | CW93: FALSE | CX93: =IntvTriggers!$L$35 -> 0.95 | CY93: FALSE | CZ93: =IntvTriggers!$L$36 -> 0.95 | DA93: FALSE | DB93: =IntvTriggers!$L$37 -> 0.95 | DC93: FALSE | DD93: 0 | DE93: FALSE | DF93: FALSE | DK93: 0 | DN93: 67 | DO93: 14 | DP93: 0 | DQ93: 0 | DR93: 0
C94: 69 | D94: 3 | E94: =INDEX(Assumptions!$D$25:$F$28,$S$8,D94) -> 18 | F94: 18 | G94: 1 | H94: FALSE | I94: 0.5 | J94: 0.05925925926 | K94: =SUMPRODUCT(OFFSET(J94,-MIN(F94,C94),0):J94,OFFSET(OFFSET(CorrosionRates!$C$119,-MIN(F94,C94),0):'CorrosionRates'!$C$119,0,$S$8)) -> 0.1121466751 | L94: 0 | M94: 0.1121466751 | N94: =IF(N$25,M94,OFFSET(CorrosionRates!$C$119,-C94,$S$9)) -> 0.1121466751 | O94: 0.2242933501 | R94: FALSE | S94: 0 | T94: 0.5 | U94: 0.5 | W94: FALSE | X94: 0 | Y94: 0 | Z94: 0 | AB94: FALSE | AC94: 2 | AE94: 12.77570665 | AF94: 9.77570665 | AG94: 31172.72423 | AH94: 5122.470285 | AI94: =AG94+AH94 -> 36295.19451 | AJ94: 31172.72423 | AK94: 547861.2587 | AM94: 12.77570665 | AN94: 9.77570665 | AP94: 0.9827466654 | AQ94: 0.977570665 | AR94: 0.9817542289 | AT94: 650872.4504 | AU94: 789697.9667 | AV94: 547861.2587 | BC94: =IntvTriggers!$L$14 -> 0.75 | BD94: FALSE | BE94: =IntvTriggers!$L$15 -> 0.1 | BF94: 0.01725333462 | BG94: FALSE | BH94: =IntvTriggers!$L$16 -> 0.1 | BI94: 0.02242933501 | BJ94: FALSE | BK94: =IntvTriggers!$L$17 -> 0.95 | BL94: FALSE | BM94: =IntvTriggers!$L$18 -> 0.95 | BN94: FALSE | BO94: =IntvTriggers!$L$19 -> 0.95 | BP94: FALSE | BQ94: 0 | BR94: FALSE | BS94: FALSE | BT94: FALSE | BV94: =IntvTriggers!$L$22 -> 0.95 | BW94: FALSE | BX94: =IntvTriggers!$L$23 -> 0.05 | BY94: 0.01725333462 | BZ94: FALSE | CA94: =IntvTriggers!$L$24 -> 0.05 | CB94: 0.02242933501 | CC94: FALSE | CD94: =IntvTriggers!$L$25 -> 0.98 | CE94: FALSE | CF94: =IntvTriggers!$L$26 -> 0.98 | CG94: FALSE | CH94: =IntvTriggers!$L$27 -> 0.98 | CI94: FALSE | CJ94: 0 | CK94: FALSE | CL94: FALSE | CM94: FALSE | CN94: FALSE | CP94: =IntvTriggers!$L$32 -> 0.9 | CQ94: FALSE | CR94: =IntvTriggers!$L$33 -> 0.1 | CS94: 0.01725333462 | CT94: FALSE | CU94: =IntvTriggers!$L$34 -> 0.1 | CV94: 0.02242933501 | CW94: FALSE | CX94: =IntvTriggers!$L$35 -> 0.95 | CY94: FALSE | CZ94: =IntvTriggers!$L$36 -> 0.95 | DA94: FALSE | DB94: =IntvTriggers!$L$37 -> 0.95 | DC94: FALSE | DD94: 0 | DE94: FALSE | DF94: FALSE | DK94: 0 | DN94: 68 | DO94: 14 | DP94: 0 | DQ94: 0 | DR94: 0
C95: 70 | D95: 3 | E95: =INDEX(Assumptions!$D$25:$F$28,$S$8,D95) -> 18 | F95: 19 | G95: 1.055555556 | H95: FALSE | I95: 0.562962963 | J95: 0.06296296296 | K95: =SUMPRODUCT(OFFSET(J95,-MIN(F95,C95),0):J95,OFFSET(OFFSET(CorrosionRates!$C$119,-MIN(F95,C95),0):'CorrosionRates'!$C$119,0,$S$8)) -> 0.131458776 | L95: 0 | M95: 0.131458776 | N95: =IF(N$25,M95,OFFSET(CorrosionRates!$C$119,-C95,$S$9)) -> 0.131458776 | O95: 0.262917552 | R95: FALSE | S95: 0 | T95: 0.562962963 | U95: 0.437037037 | W95: FALSE | X95: 0 | Y95: 0 | Z95: 0 | AB95: FALSE | AC95: 2 | AE95: 12.73708245 | AF95: 9.737082448 | AG95: 31078.48117 | AH95: 5102.231203 | AI95: 36180.71238 | AJ95: 31078.48117 | AK95: 546107.0065 | AM95: 12.73708245 | AN95: 9.737082448 | AP95: 0.9797755729 | AQ95: 0.9737082448 | AR95: 0.9786106511 | AT95: 648835.2778 | AU95: 787139.1191 | AV95: 546107.0065 | BC95: =IntvTriggers!$L$14 -> 0.75 | BD95: FALSE | BE95: =IntvTriggers!$L$15 -> 0.1 | BF95: 0.02022442708 | BG95: FALSE | BH95: =IntvTriggers!$L$16 -> 0.1 | BI95: 0.0262917552 | BJ95: FALSE | BK95: =IntvTriggers!$L$17 -> 0.95 | BL95: FALSE | BM95: =IntvTriggers!$L$18 -> 0.95 | BN95: FALSE | BO95: =IntvTriggers!$L$19 -> 0.95 | BP95: FALSE | BQ95: 0 | BR95: FALSE | BS95: FALSE | BT95: FALSE | BV95: =IntvTriggers!$L$22 -> 0.95 | BW95: FALSE | BX95: =IntvTriggers!$L$23 -> 0.05 | BY95: 0.02022442708 | BZ95: FALSE | CA95: =IntvTriggers!$L$24 -> 0.05 | CB95: 0.0262917552 | CC95: FALSE | CD95: =IntvTriggers!$L$25 -> 0.98 | CE95: FALSE | CF95: =IntvTriggers!$L$26 -> 0.98 | CG95: FALSE | CH95: =IntvTriggers!$L$27 -> 0.98 | CI95: FALSE | CJ95: 0 | CK95: FALSE | CL95: FALSE | CM95: FALSE | CN95: FALSE | CP95: =IntvTriggers!$L$32 -> 0.9 | CQ95: FALSE | CR95: =IntvTriggers!$L$33 -> 0.1 | CS95: 0.02022442708 | CT95: FALSE | CU95: =IntvTriggers!$L$34 -> 0.1 | CV95: 0.0262917552 | CW95: FALSE | CX95: =IntvTriggers!$L$35 -> 0.95 | CY95: FALSE | CZ95: =IntvTriggers!$L$36 -> 0.95 | DA95: FALSE | DB95: =IntvTriggers!$L$37 -> 0.95 | DC95: FALSE | DD95: 0 | DE95: FALSE | DF95: FALSE | DK95: 0 | DN95: 69 | DO95: 14 | DP95: 0 | DQ95: 0 | DR95: 0
C96: 71 | D96: 3 | E96: =INDEX(Assumptions!$D$25:$F$28,$S$8,D96) -> 18 | F96: 20 | G96: =IF(E96=0,0,F96/E96) -> 1.111111111 | H96: =OR(E96=0,F96<E96) -> FALSE | I96: =IF(E96=0,1,MAX(0,MIN(1,0.1*G96*(6*G96-1)))) -> 0.6296296296 | J96: =IF(AND(D96=1,F96=0),1,MAX(0,I96-I95)) -> 0.06666666667 | K96: =SUMPRODUCT(OFFSET(J96,-MIN(F96,C96),0):J96,OFFSET(OFFSET(CorrosionRates!$C$119,-MIN(F96,C96),0):'CorrosionRates'!$C$119,0,$S$8)) -> 0.1526612391 | L96: 0 | M96: =K96+L96 -> 0.1526612391 | N96: =IF(N$25,M96,OFFSET(CorrosionRates!$C$119,-C96,$S$9)) -> 0.1526612391 | O96: =M96+N96 -> 0.3053224782 | R96: FALSE | S96: 0 | T96: 0.6296296296 | U96: 0.3703703704 | W96: FALSE | X96: 0 | Y96: 0 | Z96: 0 | AB96: FALSE | AC96: 2 | AE96: 12.69467752 | AF96: 9.694677522 | AG96: 30975.01315 | AH96: 5080.011021 | AI96: =AG96+AH96 -> 36055.02417 | AJ96: =IF(Section=2,AH96,AG96) -> 30975.01315 | AK96: =OFFSET(AT96,0,$T$6) -> 544180.7394 | AM96: 12.69467752 | AN96: 9.694677522 | AP96: 0.9765136555 | AQ96: 0.9694677522 | AR96: 0.9751588267 | AT96: 646598.2301 | AU96: 784329.0911 | AV96: 544180.7394 | BC96: =IntvTriggers!$L$14 -> 0.75 | BD96: FALSE | BE96: =IntvTriggers!$L$15 -> 0.1 | BF96: 0.02348634447 | BG96: FALSE | BH96: =IntvTriggers!$L$16 -> 0.1 | BI96: 0.03053224782 | BJ96: FALSE | BK96: =IntvTriggers!$L$17 -> 0.95 | BL96: FALSE | BM96: =IntvTriggers!$L$18 -> 0.95 | BN96: FALSE | BO96: =IntvTriggers!$L$19 -> 0.95 | BP96: FALSE | BQ96: 0 | BR96: FALSE | BS96: FALSE | BT96: FALSE | BV96: =IntvTriggers!$L$22 -> 0.95 | BW96: FALSE | BX96: =IntvTriggers!$L$23 -> 0.05 | BY96: 0.02348634447 | BZ96: FALSE | CA96: =IntvTriggers!$L$24 -> 0.05 | CB96: 0.03053224782 | CC96: FALSE | CD96: =IntvTriggers!$L$25 -> 0.98 | CE96: FALSE | CF96: =IntvTriggers!$L$26 -> 0.98 | CG96: FALSE | CH96: =IntvTriggers!$L$27 -> 0.98 | CI96: FALSE | CJ96: 0 | CK96: FALSE | CL96: FALSE | CM96: FALSE | CN96: FALSE | CP96: =IntvTriggers!$L$32 -> 0.9 | CQ96: FALSE | CR96: =IntvTriggers!$L$33 -> 0.1 | CS96: 0.02348634447 | CT96: FALSE | CU96: =IntvTriggers!$L$34 -> 0.1 | CV96: 0.03053224782 | CW96: FALSE | CX96: =IntvTriggers!$L$35 -> 0.95 | CY96: FALSE | CZ96: =IntvTriggers!$L$36 -> 0.95 | DA96: FALSE | DB96: =IntvTriggers!$L$37 -> 0.95 | DC96: FALSE | DD96: 0 | DE96: FALSE | DF96: FALSE | DK96: 0 | DN96: 70 | DO96: 15 | DP96: 0 | DQ96: 0 | DR96: 0
C97: 72 | D97: 3 | E97: =INDEX(Assumptions!$D$25:$F$28,$S$8,D97) -> 18 | F97: 21 | G97: 1.166666667 | H97: FALSE | I97: 0.7 | J97: 0.07037037037 | K97: =SUMPRODUCT(OFFSET(J97,-MIN(F97,C97),0):J97,OFFSET(OFFSET(CorrosionRates!$C$119,-MIN(F97,C97),0):'CorrosionRates'!$C$119,0,$S$8)) -> 0.1758170226 | L97: 0 | M97: 0.1758170226 | N97: =IF(N$25,M97,OFFSET(CorrosionRates!$C$119,-C97,$S$9)) -> 0.1758170226 | O97: 0.3516340452 | R97: FALSE | S97: 0 | T97: 0.7 | U97: 0.3 | W97: FALSE | X97: 0 | Y97: 0 | Z97: 0 | AB97: FALSE | AC97: 2 | AE97: 12.64836595 | AF97: 9.648365955 | AG97: 30862.01293 | AH97: 5055.74376 | AI97: 35917.75669 | AJ97: =IF(Section=2,AH97,AG97) -> 30862.01293 | AK97: 542076.6515 | AM97: 12.64836595 | AN97: 9.648365955 | AP97: 0.9729512273 | AQ97: 0.9648365955 | AR97: 0.9713883517 | AT97: 644154.5314 | AU97: 781259.3367 | AV97: 542076.6515 | BC97: =IntvTriggers!$L$14 -> 0.75 | BD97: FALSE | BE97: =IntvTriggers!$L$15 -> 0.1 | BF97: 0.02704877271 | BG97: FALSE | BH97: =IntvTriggers!$L$16 -> 0.1 | BI97: 0.03516340452 | BJ97: FALSE | BK97: =IntvTriggers!$L$17 -> 0.95 | BL97: FALSE | BM97: =IntvTriggers!$L$18 -> 0.95 | BN97: FALSE | BO97: =IntvTriggers!$L$19 -> 0.95 | BP97: FALSE | BQ97: 0 | BR97: FALSE | BS97: FALSE | BT97: FALSE | BV97: =IntvTriggers!$L$22 -> 0.95 | BW97: FALSE | BX97: =IntvTriggers!$L$23 -> 0.05 | BY97: 0.02704877271 | BZ97: FALSE | CA97: =IntvTriggers!$L$24 -> 0.05 | CB97: 0.03516340452 | CC97: FALSE | CD97: =IntvTriggers!$L$25 -> 0.98 | CE97: FALSE | CF97: =IntvTriggers!$L$26 -> 0.98 | CG97: FALSE | CH97: =IntvTriggers!$L$27 -> 0.98 | CI97: FALSE | CJ97: 0 | CK97: FALSE | CL97: FALSE | CM97: FALSE | CN97: FALSE | CP97: =IntvTriggers!$L$32 -> 0.9 | CQ97: FALSE | CR97: =IntvTriggers!$L$33 -> 0.1 | CS97: 0.02704877271 | CT97: FALSE | CU97: =IntvTriggers!$L$34 -> 0.1 | CV97: 0.03516340452 | CW97: FALSE | CX97: =IntvTriggers!$L$35 -> 0.95 | CY97: FALSE | CZ97: =IntvTriggers!$L$36 -> 0.95 | DA97: FALSE | DB97: =IntvTriggers!$L$37 -> 0.95 | DC97: FALSE | DD97: 0 | DE97: FALSE | DF97: FALSE | DK97: 0 | DN97: 71 | DO97: 15 | DP97: 0 | DQ97: 0 | DR97: 0
C98: 73 | D98: 3 | E98: =INDEX(Assumptions!$D$25:$F$28,$S$8,D98) -> 18 | F98: 22 | G98: 1.222222222 | H98: FALSE | I98: 0.7740740741 | J98: 0.07407407407 | K98: =SUMPRODUCT(OFFSET(J98,-MIN(F98,C98),0):J98,OFFSET(OFFSET(CorrosionRates!$C$119,-MIN(F98,C98),0):'CorrosionRates'!$C$119,0,$S$8)) -> 0.2009876308 | L98: 0 | M98: 0.2009876308 | N98: =IF(N$25,M98,OFFSET(CorrosionRates!$C$119,-C98,$S$9)) -> 0.2009876308 | O98: 0.4019752615 | R98: FALSE | S98: 0 | T98: 0.7740740741 | U98: 0.2259259259 | W98: FALSE | X98: 0 | Y98: 0 | Z98: 0 | AB98: FALSE | AC98: 2 | AE98: 12.59802474 | AF98: 9.598024738 | AG98: 30739.18036 | AH98: 5029.364963 | AI98: 35768.54532 | AJ98: 30739.18036 | AK98: 539789.0568 | AM98: 12.59802474 | AN98: 9.598024738 | AP98: 0.969078826 | AQ98: 0.9598024738 | AR98: 0.9672890368 | AT98: 641497.5408 | AU98: 777921.4747 | AV98: 539789.0568 | BC98: =IntvTriggers!$L$14 -> 0.75 | BD98: FALSE | BE98: =IntvTriggers!$L$15 -> 0.1 | BF98: 0.03092117396 | BG98: FALSE | BH98: =IntvTriggers!$L$16 -> 0.1 | BI98: 0.04019752615 | BJ98: FALSE | BK98: =IntvTriggers!$L$17 -> 0.95 | BL98: FALSE | BM98: =IntvTriggers!$L$18 -> 0.95 | BN98: FALSE | BO98: =IntvTriggers!$L$19 -> 0.95 | BP98: FALSE | BQ98: 0 | BR98: FALSE | BS98: FALSE | BT98: FALSE | BV98: =IntvTriggers!$L$22 -> 0.95 | BW98: FALSE | BX98: =IntvTriggers!$L$23 -> 0.05 | BY98: 0.03092117396 | BZ98: FALSE | CA98: =IntvTriggers!$L$24 -> 0.05 | CB98: 0.04019752615 | CC98: FALSE | CD98: =IntvTriggers!$L$25 -> 0.98 | CE98: FALSE | CF98: =IntvTriggers!$L$26 -> 0.98 | CG98: FALSE | CH98: =IntvTriggers!$L$27 -> 0.98 | CI98: FALSE | CJ98: 0 | CK98: FALSE | CL98: FALSE | CM98: FALSE | CN98: FALSE | CP98: =IntvTriggers!$L$32 -> 0.9 | CQ98: FALSE | CR98: =IntvTriggers!$L$33 -> 0.1 | CS98: 0.03092117396 | CT98: FALSE | CU98: =IntvTriggers!$L$34 -> 0.1 | CV98: 0.04019752615 | CW98: FALSE | CX98: =IntvTriggers!$L$35 -> 0.95 | CY98: FALSE | CZ98: =IntvTriggers!$L$36 -> 0.95 | DA98: FALSE | DB98: =IntvTriggers!$L$37 -> 0.95 | DC98: FALSE | DD98: 0 | DE98: FALSE | DF98: FALSE | DK98: 0 | DN98: 72 | DO98: 15 | DP98: 0 | DQ98: 0 | DR98: 0
C99: =C98+1 -> 74 | D99: 3 | E99: =INDEX(Assumptions!$D$25:$F$28,$S$8,D99) -> 18 | F99: 23 | G99: 1.277777778 | H99: FALSE | I99: 0.8518518519 | J99: 0.07777777778 | K99: =SUMPRODUCT(OFFSET(J99,-MIN(F99,C99),0):J99,OFFSET(OFFSET(CorrosionRates!$C$119,-MIN(F99,C99),0):'CorrosionRates'!$C$119,0,$S$8)) -> 0.2282332197 | L99: 0 | M99: 0.2282332197 | N99: =IF(N$25,M99,OFFSET(CorrosionRates!$C$119,-C99,$S$9)) -> 0.2282332197 | O99: 0.4564664393 | R99: FALSE | S99: 0 | T99: 0.8518518519 | U99: 0.1481481481 | W99: FALSE | X99: 0 | Y99: 0 | Z99: 0 | AB99: FALSE | AC99: 2 | AE99: 12.54353356 | AF99: 9.543533561 | AG99: 30606.22189 | AH99: 5000.811586 | AI99: 35607.03347 | AJ99: 30606.22189 | AK99: 537312.3787 | AM99: 12.54353356 | AN99: 9.543533561 | AP99: 0.964887197 | AQ99: 0.9543533561 | AR99: 0.9628508891 | AT99: 638620.7403 | AU99: 774307.2728 | AV99: 537312.3787 | BC99: =IntvTriggers!$L$14 -> 0.75 | BD99: FALSE | BE99: =IntvTriggers!$L$15 -> 0.1 | BF99: 0.03511280302 | BG99: FALSE | BH99: =IntvTriggers!$L$16 -> 0.1 | BI99: 0.04564664393 | BJ99: FALSE | BK99: =IntvTriggers!$L$17 -> 0.95 | BL99: FALSE | BM99: =IntvTriggers!$L$18 -> 0.95 | BN99: FALSE | BO99: =IntvTriggers!$L$19 -> 0.95 | BP99: FALSE | BQ99: 0 | BR99: FALSE | BS99: FALSE | BT99: FALSE | BV99: =IntvTriggers!$L$22 -> 0.95 | BW99: FALSE | BX99: =IntvTriggers!$L$23 -> 0.05 | BY99: 0.03511280302 | BZ99: FALSE | CA99: =IntvTriggers!$L$24 -> 0.05 | CB99: 0.04564664393 | CC99: FALSE | CD99: =IntvTriggers!$L$25 -> 0.98 | CE99: FALSE | CF99: =IntvTriggers!$L$26 -> 0.98 | CG99: FALSE | CH99: =IntvTriggers!$L$27 -> 0.98 | CI99: FALSE | CJ99: 0 | CK99: FALSE | CL99: FALSE | CM99: FALSE | CN99: FALSE | CP99: =IntvTriggers!$L$32 -> 0.9 | CQ99: FALSE | CR99: =IntvTriggers!$L$33 -> 0.1 | CS99: 0.03511280302 | CT99: FALSE | CU99: =IntvTriggers!$L$34 -> 0.1 | CV99: 0.04564664393 | CW99: FALSE | CX99: =IntvTriggers!$L$35 -> 0.95 | CY99: FALSE | CZ99: =IntvTriggers!$L$36 -> 0.95 | DA99: FALSE | DB99: =IntvTriggers!$L$37 -> 0.95 | DC99: FALSE | DD99: 0 | DE99: FALSE | DF99: FALSE | DK99: 0 | DN99: 73 | DO99: 15 | DP99: 0 | DQ99: 0 | DR99: 0
C100: 75 | D100: 3 | E100: =INDEX(Assumptions!$D$25:$F$28,$S$8,D100) -> 18 | F100: 24 | G100: 1.333333333 | H100: FALSE | I100: 0.9333333333 | J100: 0.08148148148 | K100: =SUMPRODUCT(OFFSET(J100,-MIN(F100,C100),0):J100,OFFSET(OFFSET(CorrosionRates!$C$119,-MIN(F100,C100),0):'CorrosionRates'!$C$119,0,$S$8)) -> 0.2576126907 | L100: 0 | M100: 0.2576126907 | N100: =IF(N$25,M100,OFFSET(CorrosionRates!$C$119,-C100,$S$9)) -> 0.2576126907 | O100: 0.5152253814 | R100: FALSE | S100: 0 | T100: 0.9333333333 | U100: 0.06666666667 | W100: FALSE | X100: 0 | Y100: 0 | Z100: 0 | AB100: FALSE | AC100: 2 | AE100: 12.48477462 | AF100: 9.484774619 | AG100: 30462.85007 | AH100: 4970.0219 | AI100: 35432.87197 | AJ100: 30462.85007 | AK100: 534641.1408 | AM100: 12.48477462 | AN100: 9.484774619 | AP100: 0.9603672784 | AQ100: 0.9484774619 | AR100: 0.9580640949 | AT100: 635517.7232 | AU100: 770408.6332 | AV100: 534641.1408 | BC100: =IntvTriggers!$L$14 -> 0.75 | BD100: FALSE | BE100: =IntvTriggers!$L$15 -> 0.1 | BF100: 0.03963272164 | BG100: FALSE | BH100: =IntvTriggers!$L$16 -> 0.1 | BI100: 0.05152253814 | BJ100: FALSE | BK100: =IntvTriggers!$L$17 -> 0.95 | BL100: FALSE | BM100: =IntvTriggers!$L$18 -> 0.95 | BN100: FALSE | BO100: =IntvTriggers!$L$19 -> 0.95 | BP100: FALSE | BQ100: 0 | BR100: FALSE | BS100: FALSE | BT100: FALSE | BV100: =IntvTriggers!$L$22 -> 0.95 | BW100: FALSE | BX100: =IntvTriggers!$L$23 -> 0.05 | BY100: 0.03963272164 | BZ100: FALSE | CA100: =IntvTriggers!$L$24 -> 0.05 | CB100: 0.05152253814 | CC100: FALSE | CD100: =IntvTriggers!$L$25 -> 0.98 | CE100: FALSE | CF100: =IntvTriggers!$L$26 -> 0.98 | CG100: FALSE | CH100: =IntvTriggers!$L$27 -> 0.98 | CI100: FALSE | CJ100: 0 | CK100: FALSE | CL100: FALSE | CM100: FALSE | CN100: FALSE | CP100: =IntvTriggers!$L$32 -> 0.9 | CQ100: FALSE | CR100: =IntvTriggers!$L$33 -> 0.1 | CS100: 0.03963272164 | CT100: FALSE | CU100: =IntvTriggers!$L$34 -> 0.1 | CV100: 0.05152253814 | CW100: FALSE | CX100: =IntvTriggers!$L$35 -> 0.95 | CY100: FALSE | CZ100: =IntvTriggers!$L$36 -> 0.95 | DA100: FALSE | DB100: =IntvTriggers!$L$37 -> 0.95 | DC100: FALSE | DD100: 0 | DE100: FALSE | DF100: FALSE | DK100: 0 | DN100: 74 | DO100: 15 | DP100: 0 | DQ100: 0 | DR100: 0
C101: 76 | D101: 3 | E101: =INDEX(Assumptions!$D$25:$F$28,$S$8,D101) -> 18 | F101: 25 | G101: 1.388888889 | H101: FALSE | I101: 1 | J101: 0.06666666667 | K101: =SUMPRODUCT(OFFSET(J101,-MIN(F101,C101),0):J101,OFFSET(OFFSET(CorrosionRates!$C$119,-MIN(F101,C101),0):'CorrosionRates'!$C$119,0,$S$8)) -> 0.2891850114 | L101: 0 | M101: 0.2891850114 | N101: =IF(N$25,M101,OFFSET(CorrosionRates!$C$119,-C101,$S$9)) -> 0.2891850114 | O101: 0.5783700227 | R101: TRUE | S101: 0 | T101: 1 | U101: 0 | W101: FALSE | X101: 0 | Y101: 0 | Z101: 0 | AB101: FALSE | AC101: 2 | AE101: 12.42162998 | AF101: 9.421629977 | AG101: 30308.77714 | AH101: 4936.934108 | AI101: 35245.71125 | AJ101: 30308.77714 | AK101: 531769.8457 | AM101: 12.42162998 | AN101: 9.421629977 | AP101: 0.9555099983 | AQ101: 0.9421629977 | AR101: 0.952918803 | AT101: 632182.0536 | AU101: 766217.416 | AV101: 531769.8457 | BC101: =IntvTriggers!$L$14 -> 0.75 | BD101: FALSE | BE101: =IntvTriggers!$L$15 -> 0.1 | BF101: 0.04449000175 | BG101: FALSE | BH101: =IntvTriggers!$L$16 -> 0.1 | BI101: 0.05783700227 | BJ101: FALSE | BK101: =IntvTriggers!$L$17 -> 0.95 | BL101: FALSE | BM101: =IntvTriggers!$L$18 -> 0.95 | BN101: FALSE | BO101: =IntvTriggers!$L$19 -> 0.95 | BP101: FALSE | BQ101: 0 | BR101: FALSE | BS101: FALSE | BT101: FALSE | BV101: =IntvTriggers!$L$22 -> 0.95 | BW101: TRUE | BX101: =IntvTriggers!$L$23 -> 0.05 | BY101: 0.04449000175 | BZ101: FALSE | CA101: =IntvTriggers!$L$24 -> 0.05 | CB101: 0.05783700227 | CC101: FALSE | CD101: =IntvTriggers!$L$25 -> 0.98 | CE101: FALSE | CF101: =IntvTriggers!$L$26 -> 0.98 | CG101: FALSE | CH101: =IntvTriggers!$L$27 -> 0.98 | CI101: FALSE | CJ101: 0 | CK101: FALSE | CL101: TRUE | CM101: TRUE | CN101: TRUE | CP101: =IntvTriggers!$L$32 -> 0.9 | CQ101: FALSE | CR101: =IntvTriggers!$L$33 -> 0.1 | CS101: 0.04449000175 | CT101: FALSE | CU101: =IntvTriggers!$L$34 -> 0.1 | CV101: 0.05783700227 | CW101: FALSE | CX101: =IntvTriggers!$L$35 -> 0.95 | CY101: FALSE | CZ101: =IntvTriggers!$L$36 -> 0.95 | DA101: FALSE | DB101: =IntvTriggers!$L$37 -> 0.95 | DC101: FALSE | DD101: 0 | DE101: FALSE | DF101: FALSE | DK101: 3 | DN101: 75 | DO101: 16 | DP101: 0 | DQ101: 0 | DR101: 0
C102: 77 | D102: 3 | E102: =INDEX(Assumptions!$D$25:$F$28,$S$8,D102) -> 18 | F102: 0 | G102: 0 | H102: TRUE | I102: 0 | J102: 0 | K102: =SUMPRODUCT(OFFSET(J102,-MIN(F102,C102),0):J102,OFFSET(OFFSET(CorrosionRates!$C$119,-MIN(F102,C102),0):'CorrosionRates'!$C$119,0,$S$8)) -> 0 | L102: 0.2891850114 | M102: 0.2891850114 | N102: =IF(N$25,M102,OFFSET(CorrosionRates!$C$119,-C102,$S$9)) -> 0.2891850114 | O102: 0.5783700227 | R102: FALSE | S102: 3 | T102: 0 | U102: 1 | W102: FALSE | X102: 0 | Y102: 0 | Z102: 0 | AB102: FALSE | AC102: 2 | AE102: 12.42162998 | AF102: 9.421629977 | AG102: 30308.77714 | AH102: 4936.934108 | AI102: 35245.71125 | AJ102: 30308.77714 | AK102: 531769.8457 | AM102: 12.42162998 | AN102: 9.421629977 | AP102: 0.9555099983 | AQ102: 0.9421629977 | AR102: 0.952918803 | AT102: 632182.0536 | AU102: 766217.416 | AV102: 531769.8457 | BC102: =IntvTriggers!$L$14 -> 0.75 | BD102: FALSE | BE102: =IntvTriggers!$L$15 -> 0.1 | BF102: 0.04449000175 | BG102: FALSE | BH102: =IntvTriggers!$L$16 -> 0.1 | BI102: 0.05783700227 | BJ102: FALSE | BK102: =IntvTriggers!$L$17 -> 0.95 | BL102: FALSE | BM102: =IntvTriggers!$L$18 -> 0.95 | BN102: FALSE | BO102: =IntvTriggers!$L$19 -> 0.95 | BP102: FALSE | BQ102: 0 | BR102: FALSE | BS102: FALSE | BT102: FALSE | BV102: =IntvTriggers!$L$22 -> 0.95 | BW102: FALSE | BX102: =IntvTriggers!$L$23 -> 0.05 | BY102: 0.04449000175 | BZ102: FALSE | CA102: =IntvTriggers!$L$24 -> 0.05 | CB102: 0.05783700227 | CC102: FALSE | CD102: =IntvTriggers!$L$25 -> 0.98 | CE102: FALSE | CF102: =IntvTriggers!$L$26 -> 0.98 | CG102: FALSE | CH102: =IntvTriggers!$L$27 -> 0.98 | CI102: FALSE | CJ102: 0 | CK102: FALSE | CL102: FALSE | CM102: FALSE | CN102: FALSE | CP102: =IntvTriggers!$L$32 -> 0.9 | CQ102: FALSE | CR102: =IntvTriggers!$L$33 -> 0.1 | CS102: 0.04449000175 | CT102: FALSE | CU102: =IntvTriggers!$L$34 -> 0.1 | CV102: 0.05783700227 | CW102: FALSE | CX102: =IntvTriggers!$L$35 -> 0.95 | CY102: FALSE | CZ102: =IntvTriggers!$L$36 -> 0.95 | DA102: FALSE | DB102: =IntvTriggers!$L$37 -> 0.95 | DC102: FALSE | DD102: 0 | DE102: FALSE | DF102: FALSE | DK102: 0 | DN102: 76 | DO102: 16 | DP102: 0 | DQ102: 1 | DR102: 0
C103: 78 | D103: 3 | E103: =INDEX(Assumptions!$D$25:$F$28,$S$8,D103) -> 18 | F103: 1 | G103: 0.05555555556 | H103: TRUE | I103: 0 | J103: 0 | K103: =SUMPRODUCT(OFFSET(J103,-MIN(F103,C103),0):J103,OFFSET(OFFSET(CorrosionRates!$C$119,-MIN(F103,C103),0):'CorrosionRates'!$C$119,0,$S$8)) -> 0 | L103: 0.2891850114 | M103: 0.2891850114 | N103: =IF(N$25,M103,OFFSET(CorrosionRates!$C$119,-C103,$S$9)) -> 0.2891850114 | O103: 0.5783700227 | R103: FALSE | S103: 0 | T103: 0 | U103: 1 | W103: FALSE | X103: 0 | Y103: 0 | Z103: 0 | AB103: FALSE | AC103: 2 | AE103: 12.42162998 | AF103: 9.421629977 | AG103: 30308.77714 | AH103: 4936.934108 | AI103: 35245.71125 | AJ103: 30308.77714 | AK103: 531769.8457 | AM103: 12.42162998 | AN103: 9.421629977 | AP103: 0.9555099983 | AQ103: 0.9421629977 | AR103: 0.952918803 | AT103: 632182.0536 | AU103: 766217.416 | AV103: 531769.8457 | BC103: =IntvTriggers!$L$14 -> 0.75 | BD103: FALSE | BE103: =IntvTriggers!$L$15 -> 0.1 | BF103: 0.04449000175 | BG103: FALSE | BH103: =IntvTriggers!$L$16 -> 0.1 | BI103: 0.05783700227 | BJ103: FALSE | BK103: =IntvTriggers!$L$17 -> 0.95 | BL103: FALSE | BM103: =IntvTriggers!$L$18 -> 0.95 | BN103: FALSE | BO103: =IntvTriggers!$L$19 -> 0.95 | BP103: FALSE | BQ103: 0 | BR103: FALSE | BS103: FALSE | BT103: FALSE | BV103: =IntvTriggers!$L$22 -> 0.95 | BW103: FALSE | BX103: =IntvTriggers!$L$23 -> 0.05 | BY103: 0.04449000175 | BZ103: FALSE | CA103: =IntvTriggers!$L$24 -> 0.05 | CB103: 0.05783700227 | CC103: FALSE | CD103: =IntvTriggers!$L$25 -> 0.98 | CE103: FALSE | CF103: =IntvTriggers!$L$26 -> 0.98 | CG103: FALSE | CH103: =IntvTriggers!$L$27 -> 0.98 | CI103: FALSE | CJ103: 0 | CK103: FALSE | CL103: FALSE | CM103: FALSE | CN103: FALSE | CP103: =IntvTriggers!$L$32 -> 0.9 | CQ103: FALSE | CR103: =IntvTriggers!$L$33 -> 0.1 | CS103: 0.04449000175 | CT103: FALSE | CU103: =IntvTriggers!$L$34 -> 0.1 | CV103: 0.05783700227 | CW103: FALSE | CX103: =IntvTriggers!$L$35 -> 0.95 | CY103: FALSE | CZ103: =IntvTriggers!$L$36 -> 0.95 | DA103: FALSE | DB103: =IntvTriggers!$L$37 -> 0.95 | DC103: FALSE | DD103: 0 | DE103: FALSE | DF103: FALSE | DK103: 0 | DN103: 77 | DO103: 16 | DP103: 0 | DQ103: 0 | DR103: 0
C104: 79 | D104: 3 | E104: =INDEX(Assumptions!$D$25:$F$28,$S$8,D104) -> 18 | F104: 2 | G104: 0.1111111111 | H104: TRUE | I104: 0 | J104: 0 | K104: =SUMPRODUCT(OFFSET(J104,-MIN(F104,C104),0):J104,OFFSET(OFFSET(CorrosionRates!$C$119,-MIN(F104,C104),0):'CorrosionRates'!$C$119,0,$S$8)) -> 0 | L104: 0.2891850114 | M104: 0.2891850114 | N104: =IF(N$25,M104,OFFSET(CorrosionRates!$C$119,-C104,$S$9)) -> 0.2891850114 | O104: 0.5783700227 | R104: FALSE | S104: 0 | T104: 0 | U104: 1 | W104: FALSE | X104: 0 | Y104: 0 | Z104: 0 | AB104: FALSE | AC104: 2 | AE104: 12.42162998 | AF104: 9.421629977 | AG104: 30308.77714 | AH104: 4936.934108 | AI104: 35245.71125 | AJ104: 30308.77714 | AK104: 531769.8457 | AM104: 12.42162998 | AN104: 9.421629977 | AP104: 0.9555099983 | AQ104: 0.9421629977 | AR104: 0.952918803 | AT104: 632182.0536 | AU104: 766217.416 | AV104: 531769.8457 | BC104: =IntvTriggers!$L$14 -> 0.75 | BD104: FALSE | BE104: =IntvTriggers!$L$15 -> 0.1 | BF104: 0.04449000175 | BG104: FALSE | BH104: =IntvTriggers!$L$16 -> 0.1 | BI104: 0.05783700227 | BJ104: FALSE | BK104: =IntvTriggers!$L$17 -> 0.95 | BL104: FALSE | BM104: =IntvTriggers!$L$18 -> 0.95 | BN104: FALSE | BO104: =IntvTriggers!$L$19 -> 0.95 | BP104: FALSE | BQ104: 0 | BR104: FALSE | BS104: FALSE | BT104: FALSE | BV104: =IntvTriggers!$L$22 -> 0.95 | BW104: FALSE | BX104: =IntvTriggers!$L$23 -> 0.05 | BY104: 0.04449000175 | BZ104: FALSE | CA104: =IntvTriggers!$L$24 -> 0.05 | CB104: 0.05783700227 | CC104: FALSE | CD104: =IntvTriggers!$L$25 -> 0.98 | CE104: FALSE | CF104: =IntvTriggers!$L$26 -> 0.98 | CG104: FALSE | CH104: =IntvTriggers!$L$27 -> 0.98 | CI104: FALSE | CJ104: 0 | CK104: FALSE | CL104: FALSE | CM104: FALSE | CN104: FALSE | CP104: =IntvTriggers!$L$32 -> 0.9 | CQ104: FALSE | CR104: =IntvTriggers!$L$33 -> 0.1 | CS104: 0.04449000175 | CT104: FALSE | CU104: =IntvTriggers!$L$34 -> 0.1 | CV104: 0.05783700227 | CW104: FALSE | CX104: =IntvTriggers!$L$35 -> 0.95 | CY104: FALSE | CZ104: =IntvTriggers!$L$36 -> 0.95 | DA104: FALSE | DB104: =IntvTriggers!$L$37 -> 0.95 | DC104: FALSE | DD104: 0 | DE104: FALSE | DF104: FALSE | DK104: 0 | DN104: 78 | DO104: 16 | DP104: 0 | DQ104: 0 | DR104: 0
C105: 80 | D105: 3 | E105: =INDEX(Assumptions!$D$25:$F$28,$S$8,D105) -> 18 | F105: 3 | G105: 0.1666666667 | H105: TRUE | I105: 0 | J105: 0 | K105: =SUMPRODUCT(OFFSET(J105,-MIN(F105,C105),0):J105,OFFSET(OFFSET(CorrosionRates!$C$119,-MIN(F105,C105),0):'CorrosionRates'!$C$119,0,$S$8)) -> 0 | L105: 0.2891850114 | M105: 0.2891850114 | N105: =IF(N$25,M105,OFFSET(CorrosionRates!$C$119,-C105,$S$9)) -> 0.2891850114 | O105: 0.5783700227 | R105: FALSE | S105: 0 | T105: 0 | U105: 1 | W105: FALSE | X105: 0 | Y105: 0 | Z105: 0 | AB105: FALSE | AC105: 2 | AE105: 12.42162998 | AF105: 9.421629977 | AG105: 30308.77714 | AH105: 4936.934108 | AI105: 35245.71125 | AJ105: 30308.77714 | AK105: 531769.8457 | AM105: 12.42162998 | AN105: 9.421629977 | AP105: 0.9555099983 | AQ105: 0.9421629977 | AR105: 0.952918803 | AT105: 632182.0536 | AU105: 766217.416 | AV105: 531769.8457 | BC105: =IntvTriggers!$L$14 -> 0.75 | BD105: FALSE | BE105: =IntvTriggers!$L$15 -> 0.1 | BF105: 0.04449000175 | BG105: FALSE | BH105: =IntvTriggers!$L$16 -> 0.1 | BI105: 0.05783700227 | BJ105: FALSE | BK105: =IntvTriggers!$L$17 -> 0.95 | BL105: FALSE | BM105: =IntvTriggers!$L$18 -> 0.95 | BN105: FALSE | BO105: =IntvTriggers!$L$19 -> 0.95 | BP105: FALSE | BQ105: 0 | BR105: FALSE | BS105: FALSE | BT105: FALSE | BV105: =IntvTriggers!$L$22 -> 0.95 | BW105: FALSE | BX105: =IntvTriggers!$L$23 -> 0.05 | BY105: 0.04449000175 | BZ105: FALSE | CA105: =IntvTriggers!$L$24 -> 0.05 | CB105: 0.05783700227 | CC105: FALSE | CD105: =IntvTriggers!$L$25 -> 0.98 | CE105: FALSE | CF105: =IntvTriggers!$L$26 -> 0.98 | CG105: FALSE | CH105: =IntvTriggers!$L$27 -> 0.98 | CI105: FALSE | CJ105: 0 | CK105: FALSE | CL105: FALSE | CM105: FALSE | CN105: FALSE | CP105: =IntvTriggers!$L$32 -> 0.9 | CQ105: FALSE | CR105: =IntvTriggers!$L$33 -> 0.1 | CS105: 0.04449000175 | CT105: FALSE | CU105: =IntvTriggers!$L$34 -> 0.1 | CV105: 0.05783700227 | CW105: FALSE | CX105: =IntvTriggers!$L$35 -> 0.95 | CY105: FALSE | CZ105: =IntvTriggers!$L$36 -> 0.95 | DA105: FALSE | DB105: =IntvTriggers!$L$37 -> 0.95 | DC105: FALSE | DD105: 0 | DE105: FALSE | DF105: FALSE | DK105: 0 | DN105: 79 | DO105: 16 | DP105: 0 | DQ105: 0 | DR105: 0
C106: 81 | D106: 3 | E106: =INDEX(Assumptions!$D$25:$F$28,$S$8,D106) -> 18 | F106: 4 | G106: 0.2222222222 | H106: TRUE | I106: 0.007407407407 | J106: 0.007407407407 | K106: =SUMPRODUCT(OFFSET(J106,-MIN(F106,C106),0):J106,OFFSET(OFFSET(CorrosionRates!$C$119,-MIN(F106,C106),0):'CorrosionRates'!$C$119,0,$S$8)) -> 0 | L106: 0.2891850114 | M106: 0.2891850114 | N106: =IF(N$25,M106,OFFSET(CorrosionRates!$C$119,-C106,$S$9)) -> 0.2891850114 | O106: 0.5783700227 | R106: FALSE | S106: 0 | T106: 0.007407407407 | U106: 0.9925925926 | W106: FALSE | X106: 0 | Y106: =$X106*$Y$19*Y$24 -> 0 | Z106: 0 | AB106: FALSE | AC106: 2 | AE106: 12.42162998 | AF106: 9.421629977 | AG106: 30308.77714 | AH106: 4936.934108 | AI106: 35245.71125 | AJ106: 30308.77714 | AK106: 531769.8457 | AM106: 12.42162998 | AN106: 9.421629977 | AP106: 0.9555099983 | AQ106: 0.9421629977 | AR106: 0.952918803 | AT106: 632182.0536 | AU106: 766217.416 | AV106: 531769.8457 | BC106: =IntvTriggers!$L$14 -> 0.75 | BD106: FALSE | BE106: =IntvTriggers!$L$15 -> 0.1 | BF106: 0.04449000175 | BG106: FALSE | BH106: =IntvTriggers!$L$16 -> 0.1 | BI106: 0.05783700227 | BJ106: FALSE | BK106: =IntvTriggers!$L$17 -> 0.95 | BL106: FALSE | BM106: =IntvTriggers!$L$18 -> 0.95 | BN106: FALSE | BO106: =IntvTriggers!$L$19 -> 0.95 | BP106: FALSE | BQ106: 0 | BR106: FALSE | BS106: FALSE | BT106: FALSE | BV106: =IntvTriggers!$L$22 -> 0.95 | BW106: FALSE | BX106: =IntvTriggers!$L$23 -> 0.05 | BY106: 0.04449000175 | BZ106: FALSE | CA106: =IntvTriggers!$L$24 -> 0.05 | CB106: 0.05783700227 | CC106: FALSE | CD106: =IntvTriggers!$L$25 -> 0.98 | CE106: FALSE | CF106: =IntvTriggers!$L$26 -> 0.98 | CG106: FALSE | CH106: =IntvTriggers!$L$27 -> 0.98 | CI106: FALSE | CJ106: 0 | CK106: FALSE | CL106: FALSE | CM106: FALSE | CN106: FALSE | CP106: =IntvTriggers!$L$32 -> 0.9 | CQ106: FALSE | CR106: =IntvTriggers!$L$33 -> 0.1 | CS106: 0.04449000175 | CT106: FALSE | CU106: =IntvTriggers!$L$34 -> 0.1 | CV106: 0.05783700227 | CW106: FALSE | CX106: =IntvTriggers!$L$35 -> 0.95 | CY106: FALSE | CZ106: =IntvTriggers!$L$36 -> 0.95 | DA106: FALSE | DB106: =IntvTriggers!$L$37 -> 0.95 | DC106: FALSE | DD106: 0 | DE106: FALSE | DF106: FALSE | DK106: 0 | DN106: 80 | DO106: 17 | DP106: 0 | DQ106: 0 | DR106: 0
C107: 82 | D107: 3 | E107: =INDEX(Assumptions!$D$25:$F$28,$S$8,D107) -> 18 | F107: 5 | G107: 0.2777777778 | H107: TRUE | I107: 0.01851851852 | J107: 0.01111111111 | K107: =SUMPRODUCT(OFFSET(J107,-MIN(F107,C107),0):J107,OFFSET(OFFSET(CorrosionRates!$C$119,-MIN(F107,C107),0):'CorrosionRates'!$C$119,0,$S$8)) -> 0.0007407407407 | L107: 0.2891850114 | M107: 0.2899257521 | N107: =IF(N$25,M107,OFFSET(CorrosionRates!$C$119,-C107,$S$9)) -> 0.2899257521 | O107: 0.5798515042 | R107: FALSE | S107: 0 | T107: 0.01851851852 | U107: 0.9814814815 | W107: FALSE | X107: 0 | Y107: 0 | Z107: 0 | AB107: FALSE | AC107: 2 | AE107: 12.4201485 | AF107: 9.420148496 | AG107: 30305.16233 | AH107: 4936.157812 | AI107: 35241.32014 | AJ107: 30305.16233 | AK107: 531702.4717 | AM107: 12.4201485 | AN107: 9.420148496 | AP107: 0.9553960381 | AQ107: 0.9420148496 | AR107: 0.9527980705 | AT107: 632103.7801 | AU107: 766119.0631 | AV107: 531702.4717 | BC107: =IntvTriggers!$L$14 -> 0.75 | BD107: FALSE | BE107: =IntvTriggers!$L$15 -> 0.1 | BF107: 0.04460396186 | BG107: FALSE | BH107: =IntvTriggers!$L$16 -> 0.1 | BI107: 0.05798515042 | BJ107: FALSE | BK107: =IntvTriggers!$L$17 -> 0.95 | BL107: FALSE | BM107: =IntvTriggers!$L$18 -> 0.95 | BN107: FALSE | BO107: =IntvTriggers!$L$19 -> 0.95 | BP107: FALSE | BQ107: 0 | BR107: FALSE | BS107: FALSE | BT107: FALSE | BV107: =IntvTriggers!$L$22 -> 0.95 | BW107: FALSE | BX107: =IntvTriggers!$L$23 -> 0.05 | BY107: 0.04460396186 | BZ107: FALSE | CA107: =IntvTriggers!$L$24 -> 0.05 | CB107: 0.05798515042 | CC107: FALSE | CD107: =IntvTriggers!$L$25 -> 0.98 | CE107: FALSE | CF107: =IntvTriggers!$L$26 -> 0.98 | CG107: FALSE | CH107: =IntvTriggers!$L$27 -> 0.98 | CI107: FALSE | CJ107: 0 | CK107: FALSE | CL107: FALSE | CM107: FALSE | CN107: FALSE | CP107: =IntvTriggers!$L$32 -> 0.9 | CQ107: FALSE | CR107: =IntvTriggers!$L$33 -> 0.1 | CS107: 0.04460396186 | CT107: FALSE | CU107: =IntvTriggers!$L$34 -> 0.1 | CV107: 0.05798515042 | CW107: FALSE | CX107: =IntvTriggers!$L$35 -> 0.95 | CY107: FALSE | CZ107: =IntvTriggers!$L$36 -> 0.95 | DA107: FALSE | DB107: =IntvTriggers!$L$37 -> 0.95 | DC107: FALSE | DD107: 0 | DE107: FALSE | DF107: FALSE | DK107: 0 | DN107: 81 | DO107: 17 | DP107: 0 | DQ107: 0 | DR107: 0
C108: 83 | D108: 3 | E108: =INDEX(Assumptions!$D$25:$F$28,$S$8,D108) -> 18 | F108: 6 | G108: 0.3333333333 | H108: TRUE | I108: 0.03333333333 | J108: 0.01481481481 | K108: =SUMPRODUCT(OFFSET(J108,-MIN(F108,C108),0):J108,OFFSET(OFFSET(CorrosionRates!$C$119,-MIN(F108,C108),0):'CorrosionRates'!$C$119,0,$S$8)) -> 0.002214575899 | L108: 0.2891850114 | M108: 0.2913995873 | N108: =IF(N$25,M108,OFFSET(CorrosionRates!$C$119,-C108,$S$9)) -> 0.2913995873 | O108: 0.5827991745 | R108: FALSE | S108: 0 | T108: 0.03333333333 | U108: 0.9666666667 | W108: FALSE | X108: 0 | Y108: 0 | Z108: 0 | AB108: FALSE | AC108: 2 | AE108: 12.41720083 | AF108: 9.417200825 | AG108: 30297.97001 | AH108: 4934.613233 | AI108: 35232.58325 | AJ108: 30297.97001 | AK108: 531568.4181 | AM108: 12.41720083 | AN108: 9.417200825 | AP108: 0.9551692943 | AQ108: 0.9417200825 | AR108: 0.9525578496 | AT108: 631948.0392 | AU108: 765923.3699 | AV108: 531568.4181 | BC108: =IntvTriggers!$L$14 -> 0.75 | BD108: FALSE | BE108: =IntvTriggers!$L$15 -> 0.1 | BF108: 0.04483070573 | BG108: FALSE | BH108: =IntvTriggers!$L$16 -> 0.1 | BI108: 0.05827991745 | BJ108: FALSE | BK108: =IntvTriggers!$L$17 -> 0.95 | BL108: FALSE | BM108: =IntvTriggers!$L$18 -> 0.95 | BN108: FALSE | BO108: =IntvTriggers!$L$19 -> 0.95 | BP108: FALSE | BQ108: 0 | BR108: FALSE | BS108: FALSE | BT108: FALSE | BV108: =IntvTriggers!$L$22 -> 0.95 | BW108: FALSE | BX108: =IntvTriggers!$L$23 -> 0.05 | BY108: 0.04483070573 | BZ108: FALSE | CA108: =IntvTriggers!$L$24 -> 0.05 | CB108: 0.05827991745 | CC108: FALSE | CD108: =IntvTriggers!$L$25 -> 0.98 | CE108: FALSE | CF108: =IntvTriggers!$L$26 -> 0.98 | CG108: FALSE | CH108: =IntvTriggers!$L$27 -> 0.98 | CI108: FALSE | CJ108: 0 | CK108: FALSE | CL108: FALSE | CM108: FALSE | CN108: FALSE | CP108: =IntvTriggers!$L$32 -> 0.9 | CQ108: FALSE | CR108: =IntvTriggers!$L$33 -> 0.1 | CS108: 0.04483070573 | CT108: FALSE | CU108: =IntvTriggers!$L$34 -> 0.1 | CV108: 0.05827991745 | CW108: FALSE | CX108: =IntvTriggers!$L$35 -> 0.95 | CY108: FALSE | CZ108: =IntvTriggers!$L$36 -> 0.95 | DA108: FALSE | DB108: =IntvTriggers!$L$37 -> 0.95 | DC108: FALSE | DD108: 0 | DE108: FALSE | DF108: FALSE | DK108: 0 | DN108: 82 | DO108: 17 | DP108: 0 | DQ108: 0 | DR108: 0
C109: 84 | D109: 3 | E109: =INDEX(Assumptions!$D$25:$F$28,$S$8,D109) -> 18 | F109: 7 | G109: 0.3888888889 | H109: TRUE | I109: 0.05185185185 | J109: 0.01851851852 | K109: =SUMPRODUCT(OFFSET(J109,-MIN(F109,C109),0):J109,OFFSET(OFFSET(CorrosionRates!$C$119,-MIN(F109,C109),0):'CorrosionRates'!$C$119,0,$S$8)) -> 0.004529870602 | L109: 0.2891850114 | M109: 0.293714882 | N109: =IF(N$25,M109,OFFSET(CorrosionRates!$C$119,-C109,$S$9)) -> 0.293714882 | O109: 0.5874297639 | R109: FALSE | S109: 0 | T109: 0.05185185185 | U109: 0.9481481481 | W109: FALSE | X109: 0 | Y109: 0 | Z109: 0 | AB109: FALSE | AC109: 2 | AE109: 12.41257024 | AF109: 9.412570236 | AG109: 30286.67138 | AH109: 4932.186804 | AI109: 35218.85818 | AJ109: 30286.67138 | AK109: 531357.8259 | AM109: 12.41257024 | AN109: 9.412570236 | AP109: 0.9548130951 | AQ109: 0.9412570236 | AR109: 0.9521804735 | AT109: 631703.3761 | AU109: 765615.9419 | AV109: 531357.8259 | BC109: =IntvTriggers!$L$14 -> 0.75 | BD109: FALSE | BE109: =IntvTriggers!$L$15 -> 0.1 | BF109: 0.04518690492 | BG109: FALSE | BH109: =IntvTriggers!$L$16 -> 0.1 | BI109: 0.05874297639 | BJ109: FALSE | BK109: =IntvTriggers!$L$17 -> 0.95 | BL109: FALSE | BM109: =IntvTriggers!$L$18 -> 0.95 | BN109: FALSE | BO109: =IntvTriggers!$L$19 -> 0.95 | BP109: FALSE | BQ109: 0 | BR109: FALSE | BS109: FALSE | BT109: FALSE | BV109: =IntvTriggers!$L$22 -> 0.95 | BW109: FALSE | BX109: =IntvTriggers!$L$23 -> 0.05 | BY109: 0.04518690492 | BZ109: FALSE | CA109: =IntvTriggers!$L$24 -> 0.05 | CB109: 0.05874297639 | CC109: FALSE | CD109: =IntvTriggers!$L$25 -> 0.98 | CE109: FALSE | CF109: =IntvTriggers!$L$26 -> 0.98 | CG109: FALSE | CH109: =IntvTriggers!$L$27 -> 0.98 | CI109: FALSE | CJ109: 0 | CK109: FALSE | CL109: FALSE | CM109: FALSE | CN109: FALSE | CP109: =IntvTriggers!$L$32 -> 0.9 | CQ109: FALSE | CR109: =IntvTriggers!$L$33 -> 0.1 | CS109: 0.04518690492 | CT109: FALSE | CU109: =IntvTriggers!$L$34 -> 0.1 | CV109: 0.05874297639 | CW109: FALSE | CX109: =IntvTriggers!$L$35 -> 0.95 | CY109: FALSE | CZ109: =IntvTriggers!$L$36 -> 0.95 | DA109: FALSE | DB109: =IntvTriggers!$L$37 -> 0.95 | DC109: FALSE | DD109: 0 | DE109: FALSE | DF109: FALSE | DK109: 0 | DN109: 83 | DO109: 17 | DP109: 0 | DQ109: 0 | DR109: 0
C110: 85 | D110: 3 | E110: =INDEX(Assumptions!$D$25:$F$28,$S$8,D110) -> 18 | F110: 8 | G110: 0.4444444444 | H110: TRUE | I110: 0.07407407407 | J110: 0.02222222222 | K110: =SUMPRODUCT(OFFSET(J110,-MIN(F110,C110),0):J110,OFFSET(OFFSET(CorrosionRates!$C$119,-MIN(F110,C110),0):'CorrosionRates'!$C$119,0,$S$8)) -> 0.007792375961 | L110: 0.2891850114 | M110: 0.2969773873 | N110: =IF(N$25,M110,OFFSET(CorrosionRates!$C$119,-C110,$S$9)) -> 0.2969773873 | O110: 0.5939547747 | R110: FALSE | S110: 0 | T110: 0.07407407407 | U110: 0.9259259259 | W110: FALSE | X110: 0 | Y110: 0 | Z110: 0 | AB110: FALSE | AC110: 2 | AE110: 12.40604523 | AF110: 9.406045225 | AG110: 30270.75035 | AH110: 4928.767698 | AI110: 35199.51805 | AJ110: 30270.75035 | AK110: 531061.0719 | AM110: 12.40604523 | AN110: 9.406045225 | AP110: 0.9543111712 | AQ110: 0.9406045225 | AR110: 0.9516486973 | AT110: 631358.6089 | AU110: 765182.727 | AV110: 531061.0719 | BC110: =IntvTriggers!$L$14 -> 0.75 | BD110: FALSE | BE110: =IntvTriggers!$L$15 -> 0.1 | BF110: 0.04568882882 | BG110: FALSE | BH110: =IntvTriggers!$L$16 -> 0.1 | BI110: 0.05939547747 | BJ110: FALSE | BK110: =IntvTriggers!$L$17 -> 0.95 | BL110: FALSE | BM110: =IntvTriggers!$L$18 -> 0.95 | BN110: FALSE | BO110: =IntvTriggers!$L$19 -> 0.95 | BP110: FALSE | BQ110: 0 | BR110: FALSE | BS110: FALSE | BT110: FALSE | BV110: =IntvTriggers!$L$22 -> 0.95 | BW110: FALSE | BX110: =IntvTriggers!$L$23 -> 0.05 | BY110: 0.04568882882 | BZ110: FALSE | CA110: =IntvTriggers!$L$24 -> 0.05 | CB110: 0.05939547747 | CC110: FALSE | CD110: =IntvTriggers!$L$25 -> 0.98 | CE110: FALSE | CF110: =IntvTriggers!$L$26 -> 0.98 | CG110: FALSE | CH110: =IntvTriggers!$L$27 -> 0.98 | CI110: FALSE | CJ110: 0 | CK110: FALSE | CL110: FALSE | CM110: FALSE | CN110: FALSE | CP110: =IntvTriggers!$L$32 -> 0.9 | CQ110: FALSE | CR110: =IntvTriggers!$L$33 -> 0.1 | CS110: 0.04568882882 | CT110: FALSE | CU110: =IntvTriggers!$L$34 -> 0.1 | CV110: 0.05939547747 | CW110: FALSE | CX110: =IntvTriggers!$L$35 -> 0.95 | CY110: FALSE | CZ110: =IntvTriggers!$L$36 -> 0.95 | DA110: FALSE | DB110: =IntvTriggers!$L$37 -> 0.95 | DC110: FALSE | DD110: 0 | DE110: FALSE | DF110: FALSE | DK110: 0 | DN110: 84 | DO110: 17 | DP110: 0 | DQ110: 0 | DR110: 0
C111: 86 | D111: 3 | E111: =INDEX(Assumptions!$D$25:$F$28,$S$8,D111) -> 18 | F111: 9 | G111: 0.5 | H111: TRUE | I111: 0.1 | J111: 0.02592592593 | K111: =SUMPRODUCT(OFFSET(J111,-MIN(F111,C111),0):J111,OFFSET(OFFSET(CorrosionRates!$C$119,-MIN(F111,C111),0):'CorrosionRates'!$C$119,0,$S$8)) -> 0.01210182602 | L111: 0.2891850114 | M111: 0.3012868374 | N111: =IF(N$25,M111,OFFSET(CorrosionRates!$C$119,-C111,$S$9)) -> 0.3012868374 | O111: 0.6025736748 | R111: FALSE | S111: 0 | T111: 0.1 | U111: 0.9 | W111: FALSE | X111: 0 | Y111: 0 | Z111: 0 | AB111: FALSE | AC111: 2 | AE111: 12.39742633 | AF111: 9.397426325 | AG111: 30249.72023 | AH111: 4924.251394 | AI111: 35173.97163 | AJ111: 30249.72023 | AK111: 530669.0773 | AM111: 12.39742633 | AN111: 9.397426325 | AP111: 0.9536481789 | AQ111: 0.9397426325 | AR111: 0.9509462524 | AT111: 630903.1874 | AU111: 764610.4656 | AV111: 530669.0773 | BC111: =IntvTriggers!$L$14 -> 0.75 | BD111: FALSE | BE111: =IntvTriggers!$L$15 -> 0.1 | BF111: 0.04635182114 | BG111: FALSE | BH111: =IntvTriggers!$L$16 -> 0.1 | BI111: 0.06025736748 | BJ111: FALSE | BK111: =IntvTriggers!$L$17 -> 0.95 | BL111: FALSE | BM111: =IntvTriggers!$L$18 -> 0.95 | BN111: FALSE | BO111: =IntvTriggers!$L$19 -> 0.95 | BP111: FALSE | BQ111: 0 | BR111: FALSE | BS111: FALSE | BT111: FALSE | BV111: =IntvTriggers!$L$22 -> 0.95 | BW111: FALSE | BX111: =IntvTriggers!$L$23 -> 0.05 | BY111: 0.04635182114 | BZ111: FALSE | CA111: =IntvTriggers!$L$24 -> 0.05 | CB111: 0.06025736748 | CC111: FALSE | CD111: =IntvTriggers!$L$25 -> 0.98 | CE111: FALSE | CF111: =IntvTriggers!$L$26 -> 0.98 | CG111: FALSE | CH111: =IntvTriggers!$L$27 -> 0.98 | CI111: FALSE | CJ111: 0 | CK111: FALSE | CL111: FALSE | CM111: FALSE | CN111: FALSE | CP111: =IntvTriggers!$L$32 -> 0.9 | CQ111: FALSE | CR111: =IntvTriggers!$L$33 -> 0.1 | CS111: 0.04635182114 | CT111: FALSE | CU111: =IntvTriggers!$L$34 -> 0.1 | CV111: 0.06025736748 | CW111: FALSE | CX111: =IntvTriggers!$L$35 -> 0.95 | CY111: FALSE | CZ111: =IntvTriggers!$L$36 -> 0.95 | DA111: FALSE | DB111: =IntvTriggers!$L$37 -> 0.95 | DC111: FALSE | DD111: 0 | DE111: FALSE | DF111: FALSE | DK111: 0 | DN111: 85 | DO111: 18 | DP111: 0 | DQ111: 0 | DR111: 0
C112: 87 | D112: 3 | E112: =INDEX(Assumptions!$D$25:$F$28,$S$8,D112) -> 18 | F112: 10 | G112: 0.5555555556 | H112: TRUE | I112: 0.1296296296 | J112: 0.02962962963 | K112: =SUMPRODUCT(OFFSET(J112,-MIN(F112,C112),0):J112,OFFSET(OFFSET(CorrosionRates!$C$119,-MIN(F112,C112),0):'CorrosionRates'!$C$119,0,$S$8)) -> 0.01755225871 | L112: 0.2891850114 | M112: 0.3067372701 | N112: =IF(N$25,M112,OFFSET(CorrosionRates!$C$119,-C112,$S$9)) -> 0.3067372701 | O112: 0.6134745402 | R112: FALSE | S112: 0 | T112: 0.1296296296 | U112: 0.8703703704 | W112: FALSE | X112: 0 | Y112: 0 | Z112: 0 | AB112: FALSE | AC112: 2 | AE112: 12.38652546 | AF112: 9.38652546 | AG112: 30223.12212 | AH112: 4918.539341 | AI112: 35141.66146 | AJ112: 30223.12212 | AK112: 530173.2782 | AM112: 12.38652546 | AN112: 9.38652546 | AP112: 0.9528096508 | AQ112: 0.938652546 | AR112: 0.9500577924 | AT112: 630327.1583 | AU112: 763886.6467 | AV112: 530173.2782 | BC112: =IntvTriggers!$L$14 -> 0.75 | BD112: FALSE | BE112: =IntvTriggers!$L$15 -> 0.1 | BF112: 0.04719034924 | BG112: FALSE | BH112: =IntvTriggers!$L$16 -> 0.1 | BI112: 0.06134745402 | BJ112: FALSE | BK112: =IntvTriggers!$L$17 -> 0.95 | BL112: FALSE | BM112: =IntvTriggers!$L$18 -> 0.95 | BN112: FALSE | BO112: =IntvTriggers!$L$19 -> 0.95 | BP112: FALSE | BQ112: 0 | BR112: FALSE | BS112: FALSE | BT112: FALSE | BV112: =IntvTriggers!$L$22 -> 0.95 | BW112: FALSE | BX112: =IntvTriggers!$L$23 -> 0.05 | BY112: 0.04719034924 | BZ112: FALSE | CA112: =IntvTriggers!$L$24 -> 0.05 | CB112: 0.06134745402 | CC112: FALSE | CD112: =IntvTriggers!$L$25 -> 0.98 | CE112: FALSE | CF112: =IntvTriggers!$L$26 -> 0.98 | CG112: FALSE | CH112: =IntvTriggers!$L$27 -> 0.98 | CI112: FALSE | CJ112: 0 | CK112: FALSE | CL112: FALSE | CM112: FALSE | CN112: FALSE | CP112: =IntvTriggers!$L$32 -> 0.9 | CQ112: FALSE | CR112: =IntvTriggers!$L$33 -> 0.1 | CS112: 0.04719034924 | CT112: FALSE | CU112: =IntvTriggers!$L$34 -> 0.1 | CV112: 0.06134745402 | CW112: FALSE | CX112: =IntvTriggers!$L$35 -> 0.95 | CY112: FALSE | CZ112: =IntvTriggers!$L$36 -> 0.95 | DA112: FALSE | DB112: =IntvTriggers!$L$37 -> 0.95 | DC112: FALSE | DD112: 0 | DE112: FALSE | DF112: FALSE | DK112: 0 | DN112: 86 | DO112: 18 | DP112: 0 | DQ112: 0 | DR112: 0
C113: 88 | D113: 3 | E113: =INDEX(Assumptions!$D$25:$F$28,$S$8,D113) -> 18 | F113: 11 | G113: 0.6111111111 | H113: TRUE | I113: 0.162962963 | J113: 0.03333333333 | K113: =SUMPRODUCT(OFFSET(J113,-MIN(F113,C113),0):J113,OFFSET(OFFSET(CorrosionRates!$C$119,-MIN(F113,C113),0):'CorrosionRates'!$C$119,0,$S$8)) -> 0.02423275077 | L113: 0.2891850114 | M113: 0.3134177621 | N113: =IF(N$25,M113,OFFSET(CorrosionRates!$C$119,-C113,$S$9)) -> 0.3134177621 | O113: 0.6268355243 | R113: FALSE | S113: 0 | T113: 0.162962963 | U113: 0.837037037 | W113: FALSE | X113: 0 | Y113: 0 | Z113: 0 | AB113: FALSE | AC113: 2 | AE113: 12.37316448 | AF113: 9.373164476 | AG113: 30190.52132 | AH113: 4911.538185 | AI113: 35102.05951 | AJ113: 30190.52132 | AK113: 529565.558 | AM113: 12.37316448 | AN113: 9.373164476 | AP113: 0.9517818827 | AQ113: 0.9373164476 | AR113: 0.9489687723 | AT113: 629621.0863 | AU113: 762999.4087 | AV113: 529565.558 | BC113: =IntvTriggers!$L$14 -> 0.75 | BD113: FALSE | BE113: =IntvTriggers!$L$15 -> 0.1 | BF113: 0.04821811725 | BG113: FALSE | BH113: =IntvTriggers!$L$16 -> 0.1 | BI113: 0.06268355243 | BJ113: FALSE | BK113: =IntvTriggers!$L$17 -> 0.95 | BL113: FALSE | BM113: =IntvTriggers!$L$18 -> 0.95 | BN113: FALSE | BO113: =IntvTriggers!$L$19 -> 0.95 | BP113: FALSE | BQ113: 0 | BR113: FALSE | BS113: FALSE | BT113: FALSE | BV113: =IntvTriggers!$L$22 -> 0.95 | BW113: FALSE | BX113: =IntvTriggers!$L$23 -> 0.05 | BY113: 0.04821811725 | BZ113: FALSE | CA113: =IntvTriggers!$L$24 -> 0.05 | CB113: 0.06268355243 | CC113: FALSE | CD113: =IntvTriggers!$L$25 -> 0.98 | CE113: FALSE | CF113: =IntvTriggers!$L$26 -> 0.98 | CG113: FALSE | CH113: =IntvTriggers!$L$27 -> 0.98 | CI113: FALSE | CJ113: 0 | CK113: FALSE | CL113: FALSE | CM113: FALSE | CN113: FALSE | CP113: =IntvTriggers!$L$32 -> 0.9 | CQ113: FALSE | CR113: =IntvTriggers!$L$33 -> 0.1 | CS113: 0.04821811725 | CT113: FALSE | CU113: =IntvTriggers!$L$34 -> 0.1 | CV113: 0.06268355243 | CW113: FALSE | CX113: =IntvTriggers!$L$35 -> 0.95 | CY113: FALSE | CZ113: =IntvTriggers!$L$36 -> 0.95 | DA113: FALSE | DB113: =IntvTriggers!$L$37 -> 0.95 | DC113: FALSE | DD113: 0 | DE113: FALSE | DF113: FALSE | DK113: 0 | DN113: 87 | DO113: 18 | DP113: 0 | DQ113: 0 | DR113: 0
C114: 89 | D114: 3 | E114: =INDEX(Assumptions!$D$25:$F$28,$S$8,D114) -> 18 | F114: 12 | G114: 0.6666666667 | H114: TRUE | I114: 0.2 | J114: 0.03703703704 | K114: =SUMPRODUCT(OFFSET(J114,-MIN(F114,C114),0):J114,OFFSET(OFFSET(CorrosionRates!$C$119,-MIN(F114,C114),0):'CorrosionRates'!$C$119,0,$S$8)) -> 0.03222810316 | L114: 0.2891850114 | M114: 0.3214131145 | N114: =IF(N$25,M114,OFFSET(CorrosionRates!$C$119,-C114,$S$9)) -> 0.3214131145 | O114: 0.6428262291 | R114: FALSE | S114: 0 | T114: 0.2 | U114: 0.8 | W114: FALSE | X114: 0 | Y114: 0 | Z114: 0 | AB114: FALSE | AC114: 2 | AE114: 12.35717377 | AF114: 9.357173771 | AG114: 30151.504 | AH114: 4903.159056 | AI114: 35054.66306 | AJ114: 30151.504 | AK114: 528838.1841 | AM114: 12.35717377 | AN114: 9.357173771 | AP114: 0.9505518285 | AQ114: 0.9357173771 | AR114: 0.9476653358 | AT114: 628775.9807 | AU114: 761937.4468 | AV114: 528838.1841 | BC114: =IntvTriggers!$L$14 -> 0.75 | BD114: FALSE | BE114: =IntvTriggers!$L$15 -> 0.1 | BF114: 0.04944817147 | BG114: FALSE | BH114: =IntvTriggers!$L$16 -> 0.1 | BI114: 0.06428262291 | BJ114: FALSE | BK114: =IntvTriggers!$L$17 -> 0.95 | BL114: FALSE | BM114: =IntvTriggers!$L$18 -> 0.95 | BN114: FALSE | BO114: =IntvTriggers!$L$19 -> 0.95 | BP114: FALSE | BQ114: 0 | BR114: FALSE | BS114: FALSE | BT114: FALSE | BV114: =IntvTriggers!$L$22 -> 0.95 | BW114: FALSE | BX114: =IntvTriggers!$L$23 -> 0.05 | BY114: 0.04944817147 | BZ114: FALSE | CA114: =IntvTriggers!$L$24 -> 0.05 | CB114: 0.06428262291 | CC114: FALSE | CD114: =IntvTriggers!$L$25 -> 0.98 | CE114: FALSE | CF114: =IntvTriggers!$L$26 -> 0.98 | CG114: FALSE | CH114: =IntvTriggers!$L$27 -> 0.98 | CI114: FALSE | CJ114: 0 | CK114: FALSE | CL114: FALSE | CM114: FALSE | CN114: FALSE | CP114: =IntvTriggers!$L$32 -> 0.9 | CQ114: FALSE | CR114: =IntvTriggers!$L$33 -> 0.1 | CS114: 0.04944817147 | CT114: FALSE | CU114: =IntvTriggers!$L$34 -> 0.1 | CV114: 0.06428262291 | CW114: FALSE | CX114: =IntvTriggers!$L$35 -> 0.95 | CY114: FALSE | CZ114: =IntvTriggers!$L$36 -> 0.95 | DA114: FALSE | DB114: =IntvTriggers!$L$37 -> 0.95 | DC114: FALSE | DD114: 0 | DE114: FALSE | DF114: FALSE | DK114: 0 | DN114: 88 | DO114: 18 | DP114: 0 | DQ114: 0 | DR114: 0
C115: 90 | D115: 3 | E115: =INDEX(Assumptions!$D$25:$F$28,$S$8,D115) -> 18 | F115: 13 | G115: 0.7222222222 | H115: TRUE | I115: 0.2407407407 | J115: 0.04074074074 | K115: =SUMPRODUCT(OFFSET(J115,-MIN(F115,C115),0):J115,OFFSET(OFFSET(CorrosionRates!$C$119,-MIN(F115,C115),0):'CorrosionRates'!$C$119,0,$S$8)) -> 0.04161941282 | L115: 0.2891850114 | M115: 0.3308044242 | N115: =IF(N$25,M115,OFFSET(CorrosionRates!$C$119,-C115,$S$9)) -> 0.3308044242 | O115: 0.6616088484 | R115: FALSE | S115: 0 | T115: 0.2407407407 | U115: 0.7592592593 | W115: FALSE | X115: 0 | Y115: 0 | Z115: 0 | AB115: FALSE | AC115: 2 | AE115: 12.33839115 | AF115: 9.338391152 | AG115: 30105.67441 | AH115: 4893.316963 | AI115: 34998.99137 | AJ115: 30105.67441 | AK115: 527983.7557 | AM115: 12.33839115 | AN115: 9.338391152 | AP115: 0.9491070117 | AQ115: 0.9338391152 | AR115: 0.9461342206 | AT115: 627783.2341 | AU115: 760689.9358 | AV115: 527983.7557 | BC115: =IntvTriggers!$L$14 -> 0.75 | BD115: FALSE | BE115: =IntvTriggers!$L$15 -> 0.1 | BF115: 0.05089298834 | BG115: FALSE | BH115: =IntvTriggers!$L$16 -> 0.1 | BI115: 0.06616088484 | BJ115: FALSE | BK115: =IntvTriggers!$L$17 -> 0.95 | BL115: FALSE | BM115: =IntvTriggers!$L$18 -> 0.95 | BN115: FALSE | BO115: =IntvTriggers!$L$19 -> 0.95 | BP115: FALSE | BQ115: 0 | BR115: FALSE | BS115: FALSE | BT115: FALSE | BV115: =IntvTriggers!$L$22 -> 0.95 | BW115: FALSE | BX115: =IntvTriggers!$L$23 -> 0.05 | BY115: 0.05089298834 | BZ115: FALSE | CA115: =IntvTriggers!$L$24 -> 0.05 | CB115: 0.06616088484 | CC115: FALSE | CD115: =IntvTriggers!$L$25 -> 0.98 | CE115: FALSE | CF115: =IntvTriggers!$L$26 -> 0.98 | CG115: FALSE | CH115: =IntvTriggers!$L$27 -> 0.98 | CI115: FALSE | CJ115: 0 | CK115: FALSE | CL115: FALSE | CM115: FALSE | CN115: FALSE | CP115: =IntvTriggers!$L$32 -> 0.9 | CQ115: FALSE | CR115: =IntvTriggers!$L$33 -> 0.1 | CS115: 0.05089298834 | CT115: FALSE | CU115: =IntvTriggers!$L$34 -> 0.1 | CV115: 0.06616088484 | CW115: FALSE | CX115: =IntvTriggers!$L$35 -> 0.95 | CY115: FALSE | CZ115: =IntvTriggers!$L$36 -> 0.95 | DA115: FALSE | DB115: =IntvTriggers!$L$37 -> 0.95 | DC115: FALSE | DD115: 0 | DE115: FALSE | DF115: FALSE | DK115: 0 | DN115: 89 | DO115: 18 | DP115: 0 | DQ115: 0 | DR115: 0
C116: 91 | D116: 3 | E116: =INDEX(Assumptions!$D$25:$F$28,$S$8,D116) -> 18 | F116: 14 | G116: 0.7777777778 | H116: TRUE | I116: 0.2851851852 | J116: 0.04444444444 | K116: =SUMPRODUCT(OFFSET(J116,-MIN(F116,C116),0):J116,OFFSET(OFFSET(CorrosionRates!$C$119,-MIN(F116,C116),0):'CorrosionRates'!$C$119,0,$S$8)) -> 0.0524845392 | L116: 0.2891850114 | M116: 0.3416695506 | N116: =IF(N$25,M116,OFFSET(CorrosionRates!$C$119,-C116,$S$9)) -> 0.3416695506 | O116: 0.6833391011 | R116: FALSE | S116: 0 | T116: 0.2851851852 | U116: 0.7148148148 | W116: FALSE | X116: 0 | Y116: 0 | Z116: 0 | AB116: FALSE | AC116: 2 | AE116: 12.3166609 | AF116: 9.316660899 | AG116: 30052.65259 | AH116: 4881.930311 | AI116: 34934.5829 | AJ116: 30052.65259 | AK116: 526995.1602 | AM116: 12.3166609 | AN116: 9.316660899 | AP116: 0.9474354538 | AQ116: 0.9316660899 | AR116: 0.9443626812 | AT116: 626634.5718 | AU116: 759246.4661 | AV116: 526995.1602 | BC116: =IntvTriggers!$L$14 -> 0.75 | BD116: FALSE | BE116: =IntvTriggers!$L$15 -> 0.1 | BF116: 0.05256454624 | BG116: FALSE | BH116: =IntvTriggers!$L$16 -> 0.1 | BI116: 0.06833391011 | BJ116: FALSE | BK116: =IntvTriggers!$L$17 -> 0.95 | BL116: FALSE | BM116: =IntvTriggers!$L$18 -> 0.95 | BN116: FALSE | BO116: =IntvTriggers!$L$19 -> 0.95 | BP116: FALSE | BQ116: 0 | BR116: FALSE | BS116: FALSE | BT116: FALSE | BV116: =IntvTriggers!$L$22 -> 0.95 | BW116: FALSE | BX116: =IntvTriggers!$L$23 -> 0.05 | BY116: 0.05256454624 | BZ116: FALSE | CA116: =IntvTriggers!$L$24 -> 0.05 | CB116: 0.06833391011 | CC116: FALSE | CD116: =IntvTriggers!$L$25 -> 0.98 | CE116: FALSE | CF116: =IntvTriggers!$L$26 -> 0.98 | CG116: FALSE | CH116: =IntvTriggers!$L$27 -> 0.98 | CI116: FALSE | CJ116: 0 | CK116: FALSE | CL116: FALSE | CM116: FALSE | CN116: FALSE | CP116: =IntvTriggers!$L$32 -> 0.9 | CQ116: FALSE | CR116: =IntvTriggers!$L$33 -> 0.1 | CS116: 0.05256454624 | CT116: FALSE | CU116: =IntvTriggers!$L$34 -> 0.1 | CV116: 0.06833391011 | CW116: FALSE | CX116: =IntvTriggers!$L$35 -> 0.95 | CY116: FALSE | CZ116: =IntvTriggers!$L$36 -> 0.95 | DA116: FALSE | DB116: =IntvTriggers!$L$37 -> 0.95 | DC116: FALSE | DD116: 0 | DE116: FALSE | DF116: FALSE | DK116: 0 | DN116: 90 | DO116: 19 | DP116: 0 | DQ116: 0 | DR116: 0
C117: 92 | D117: 3 | E117: =INDEX(Assumptions!$D$25:$F$28,$S$8,D117) -> 18 | F117: 15 | G117: 0.8333333333 | H117: TRUE | I117: 0.3333333333 | J117: 0.04814814815 | K117: =SUMPRODUCT(OFFSET(J117,-MIN(F117,C117),0):J117,OFFSET(OFFSET(CorrosionRates!$C$119,-MIN(F117,C117),0):'CorrosionRates'!$C$119,0,$S$8)) -> 0.06489848559 | L117: 0.2891850114 | M117: 0.354083497 | N117: =IF(N$25,M117,OFFSET(CorrosionRates!$C$119,-C117,$S$9)) -> 0.354083497 | O117: 0.7081669939 | R117: FALSE | S117: 0 | T117: 0.3333333333 | U117: 0.6666666667 | W117: FALSE | X117: 0 | Y117: 0 | Z117: 0 | AB117: FALSE | AC117: 2 | AE117: 12.29183301 | AF117: 9.291833006 | AG117: 29992.07253 | AH117: 4868.920495 | AI117: 34860.99303 | AJ117: 29992.07253 | AK117: 525865.5381 | AM117: 12.29183301 | AN117: 9.291833006 | AP117: 0.9455256159 | AQ117: 0.9291833006 | AR117: 0.9423384255 | AT117: 625322.0109 | AU117: 757596.9917 | AV117: 525865.5381 | BC117: =IntvTriggers!$L$14 -> 0.75 | BD117: FALSE | BE117: =IntvTriggers!$L$15 -> 0.1 | BF117: 0.05447438415 | BG117: FALSE | BH117: =IntvTriggers!$L$16 -> 0.1 | BI117: 0.07081669939 | BJ117: FALSE | BK117: =IntvTriggers!$L$17 -> 0.95 | BL117: FALSE | BM117: =IntvTriggers!$L$18 -> 0.95 | BN117: FALSE | BO117: =IntvTriggers!$L$19 -> 0.95 | BP117: FALSE | BQ117: 0 | BR117: FALSE | BS117: FALSE | BT117: FALSE | BV117: =IntvTriggers!$L$22 -> 0.95 | BW117: FALSE | BX117: =IntvTriggers!$L$23 -> 0.05 | BY117: 0.05447438415 | BZ117: FALSE | CA117: =IntvTriggers!$L$24 -> 0.05 | CB117: 0.07081669939 | CC117: FALSE | CD117: =IntvTriggers!$L$25 -> 0.98 | CE117: FALSE | CF117: =IntvTriggers!$L$26 -> 0.98 | CG117: FALSE | CH117: =IntvTriggers!$L$27 -> 0.98 | CI117: FALSE | CJ117: 0 | CK117: FALSE | CL117: FALSE | CM117: FALSE | CN117: FALSE | CP117: =IntvTriggers!$L$32 -> 0.9 | CQ117: FALSE | CR117: =IntvTriggers!$L$33 -> 0.1 | CS117: 0.05447438415 | CT117: FALSE | CU117: =IntvTriggers!$L$34 -> 0.1 | CV117: 0.07081669939 | CW117: FALSE | CX117: =IntvTriggers!$L$35 -> 0.95 | CY117: FALSE | CZ117: =IntvTriggers!$L$36 -> 0.95 | DA117: FALSE | DB117: =IntvTriggers!$L$37 -> 0.95 | DC117: FALSE | DD117: 0 | DE117: FALSE | DF117: FALSE | DK117: 0 | DN117: 91 | DO117: 19 | DP117: 0 | DQ117: 0 | DR117: 0
C118: 93 | D118: 3 | E118: =INDEX(Assumptions!$D$25:$F$28,$S$8,D118) -> 18 | F118: 16 | G118: 0.8888888889 | H118: TRUE | I118: 0.3851851852 | J118: 0.05185185185 | K118: =SUMPRODUCT(OFFSET(J118,-MIN(F118,C118),0):J118,OFFSET(OFFSET(CorrosionRates!$C$119,-MIN(F118,C118),0):'CorrosionRates'!$C$119,0,$S$8)) -> 0.07893371327 | L118: 0.2891850114 | M118: 0.3681187246 | N118: =IF(N$25,M118,OFFSET(CorrosionRates!$C$119,-C118,$S$9)) -> 0.3681187246 | O118: 0.7362374493 | R118: FALSE | S118: 0 | T118: 0.3851851852 | U118: 0.6148148148 | W118: FALSE | X118: 0 | Y118: 0 | Z118: 0 | AB118: FALSE | AC118: 2 | AE118: 12.26376255 | AF118: 9.263762551 | AG118: 29923.58062 | AH118: 4854.211577 | AI118: 34777.7922 | AJ118: 29923.58062 | AK118: 524588.2535 | AM118: 12.26376255 | AN118: 9.263762551 | AP118: 0.9433663501 | AQ118: 0.9263762551 | AR118: 0.9400495622 | AT118: 623837.8254 | AU118: 755731.7867 | AV118: 524588.2535 | BC118: =IntvTriggers!$L$14 -> 0.75 | BD118: FALSE | BE118: =IntvTriggers!$L$15 -> 0.1 | BF118: 0.05663364994 | BG118: FALSE | BH118: =IntvTriggers!$L$16 -> 0.1 | BI118: 0.07362374493 | BJ118: FALSE | BK118: =IntvTriggers!$L$17 -> 0.95 | BL118: FALSE | BM118: =IntvTriggers!$L$18 -> 0.95 | BN118: FALSE | BO118: =IntvTriggers!$L$19 -> 0.95 | BP118: FALSE | BQ118: 0 | BR118: FALSE | BS118: FALSE | BT118: FALSE | BV118: =IntvTriggers!$L$22 -> 0.95 | BW118: FALSE | BX118: =IntvTriggers!$L$23 -> 0.05 | BY118: 0.05663364994 | BZ118: FALSE | CA118: =IntvTriggers!$L$24 -> 0.05 | CB118: 0.07362374493 | CC118: FALSE | CD118: =IntvTriggers!$L$25 -> 0.98 | CE118: FALSE | CF118: =IntvTriggers!$L$26 -> 0.98 | CG118: FALSE | CH118: =IntvTriggers!$L$27 -> 0.98 | CI118: FALSE | CJ118: 0 | CK118: FALSE | CL118: FALSE | CM118: FALSE | CN118: FALSE | CP118: =IntvTriggers!$L$32 -> 0.9 | CQ118: FALSE | CR118: =IntvTriggers!$L$33 -> 0.1 | CS118: 0.05663364994 | CT118: FALSE | CU118: =IntvTriggers!$L$34 -> 0.1 | CV118: 0.07362374493 | CW118: FALSE | CX118: =IntvTriggers!$L$35 -> 0.95 | CY118: FALSE | CZ118: =IntvTriggers!$L$36 -> 0.95 | DA118: FALSE | DB118: =IntvTriggers!$L$37 -> 0.95 | DC118: FALSE | DD118: 0 | DE118: FALSE | DF118: FALSE | DK118: 0 | DN118: 92 | DO118: 19 | DP118: 0 | DQ118: 0 | DR118: 0
C119: 94 | D119: 3 | E119: =INDEX(Assumptions!$D$25:$F$28,$S$8,D119) -> 18 | F119: 17 | G119: 0.9444444444 | H119: TRUE | I119: 0.4407407407 | J119: 0.05555555556 | K119: =SUMPRODUCT(OFFSET(J119,-MIN(F119,C119),0):J119,OFFSET(OFFSET(CorrosionRates!$C$119,-MIN(F119,C119),0):'CorrosionRates'!$C$119,0,$S$8)) -> 0.09466040301 | L119: 0.2891850114 | M119: 0.3838454144 | N119: =IF(N$25,M119,OFFSET(CorrosionRates!$C$119,-C119,$S$9)) -> 0.3838454144 | O119: 0.7676908288 | R119: FALSE | S119: 0 | T119: 0.4407407407 | U119: 0.5592592593 | W119: FALSE | X119: 0 | Y119: 0 | Z119: 0 | AB119: FALSE | AC119: 2 | AE119: 12.23230917 | AF119: 9.232309171 | AG119: 29846.83438 | AH119: 4837.730006 | AI119: 34684.56438 | AJ119: 29846.83438 | AK119: 523156.8697 | AM119: 12.23230917 | AN119: 9.232309171 | AP119: 0.9409468593 | AQ119: 0.9232309171 | AR119: 0.9374845567 | AT119: 622174.5177 | AU119: 753641.4092 | AV119: 523156.8697 | BC119: =IntvTriggers!$L$14 -> 0.75 | BD119: FALSE | BE119: =IntvTriggers!$L$15 -> 0.1 | BF119: 0.05905314067 | BG119: FALSE | BH119: =IntvTriggers!$L$16 -> 0.1 | BI119: 0.07676908288 | BJ119: FALSE | BK119: =IntvTriggers!$L$17 -> 0.95 | BL119: FALSE | BM119: =IntvTriggers!$L$18 -> 0.95 | BN119: FALSE | BO119: =IntvTriggers!$L$19 -> 0.95 | BP119: FALSE | BQ119: 0 | BR119: FALSE | BS119: FALSE | BT119: FALSE | BV119: =IntvTriggers!$L$22 -> 0.95 | BW119: FALSE | BX119: =IntvTriggers!$L$23 -> 0.05 | BY119: 0.05905314067 | BZ119: FALSE | CA119: =IntvTriggers!$L$24 -> 0.05 | CB119: 0.07676908288 | CC119: FALSE | CD119: =IntvTriggers!$L$25 -> 0.98 | CE119: FALSE | CF119: =IntvTriggers!$L$26 -> 0.98 | CG119: FALSE | CH119: =IntvTriggers!$L$27 -> 0.98 | CI119: FALSE | CJ119: 0 | CK119: FALSE | CL119: FALSE | CM119: FALSE | CN119: FALSE | CP119: =IntvTriggers!$L$32 -> 0.9 | CQ119: FALSE | CR119: =IntvTriggers!$L$33 -> 0.1 | CS119: 0.05905314067 | CT119: FALSE | CU119: =IntvTriggers!$L$34 -> 0.1 | CV119: 0.07676908288 | CW119: FALSE | CX119: =IntvTriggers!$L$35 -> 0.95 | CY119: FALSE | CZ119: =IntvTriggers!$L$36 -> 0.95 | DA119: FALSE | DB119: =IntvTriggers!$L$37 -> 0.95 | DC119: FALSE | DD119: 0 | DE119: FALSE | DF119: FALSE | DK119: 0 | DN119: 93 | DO119: 19 | DP119: 0 | DQ119: 0 | DR119: 0
C120: 95 | D120: 3 | E120: =INDEX(Assumptions!$D$25:$F$28,$S$8,D120) -> 18 | F120: 18 | G120: 1 | H120: FALSE | I120: 0.5 | J120: 0.05925925926 | K120: =SUMPRODUCT(OFFSET(J120,-MIN(F120,C120),0):J120,OFFSET(OFFSET(CorrosionRates!$C$119,-MIN(F120,C120),0):'CorrosionRates'!$C$119,0,$S$8)) -> 0.1121466751 | L120: 0.2891850114 | M120: 0.4013316864 | N120: =IF(N$25,M120,OFFSET(CorrosionRates!$C$119,-C120,$S$9)) -> 0.4013316864 | O120: 0.8026633729 | R120: FALSE | S120: 0 | T120: 0.5 | U120: 0.5 | W120: FALSE | X120: 0 | Y120: 0 | Z120: 0 | AB120: FALSE | AC120: 2 | AE120: 12.19733663 | AF120: 9.197336627 | AG120: =OFFSET(AG$18,T$6,0)*AE120 -> 29761.50137 | AH120: =OFFSET(AH$18,T$6,0)*AF120 -> 4819.404393 | AI120: 34580.90576 | AJ120: 29761.50137 | AK120: 521565.1282 | AM120: 12.19733663 | AN120: 9.197336627 | AP120: =AG120/AG$24 -> 0.9382566636 | AQ120: =AH120/AH$24 -> 0.9197336627 | AR120: =AK120/AK$24 -> 0.9346321942 | AT120: 620324.7945 | AU120: 751316.6699 | AV120: 521565.1282 | BC120: =IntvTriggers!$L$14 -> 0.75 | BD120: FALSE | BE120: =IntvTriggers!$L$15 -> 0.1 | BF120: 0.06174333637 | BG120: FALSE | BH120: =IntvTriggers!$L$16 -> 0.1 | BI120: 0.08026633729 | BJ120: FALSE | BK120: =IntvTriggers!$L$17 -> 0.95 | BL120: FALSE | BM120: =IntvTriggers!$L$18 -> 0.95 | BN120: FALSE | BO120: =IntvTriggers!$L$19 -> 0.95 | BP120: FALSE | BQ120: 0 | BR120: FALSE | BS120: FALSE | BT120: FALSE | BV120: =IntvTriggers!$L$22 -> 0.95 | BW120: FALSE | BX120: =IntvTriggers!$L$23 -> 0.05 | BY120: 0.06174333637 | BZ120: FALSE | CA120: =IntvTriggers!$L$24 -> 0.05 | CB120: 0.08026633729 | CC120: FALSE | CD120: =IntvTriggers!$L$25 -> 0.98 | CE120: FALSE | CF120: =IntvTriggers!$L$26 -> 0.98 | CG120: FALSE | CH120: =IntvTriggers!$L$27 -> 0.98 | CI120: FALSE | CJ120: 0 | CK120: FALSE | CL120: FALSE | CM120: FALSE | CN120: FALSE | CP120: =IntvTriggers!$L$32 -> 0.9 | CQ120: FALSE | CR120: =IntvTriggers!$L$33 -> 0.1 | CS120: 0.06174333637 | CT120: FALSE | CU120: =IntvTriggers!$L$34 -> 0.1 | CV120: 0.08026633729 | CW120: FALSE | CX120: =IntvTriggers!$L$35 -> 0.95 | CY120: FALSE | CZ120: =IntvTriggers!$L$36 -> 0.95 | DA120: FALSE | DB120: =IntvTriggers!$L$37 -> 0.95 | DC120: FALSE | DD120: 0 | DE120: FALSE | DF120: FALSE | DK120: 0 | DN120: 94 | DO120: 19 | DP120: 0 | DQ120: 0 | DR120: 0
C121: 96 | D121: 3 | E121: =INDEX(Assumptions!$D$25:$F$28,$S$8,D121) -> 18 | F121: 19 | G121: 1.055555556 | H121: FALSE | I121: 0.562962963 | J121: 0.06296296296 | K121: =SUMPRODUCT(OFFSET(J121,-MIN(F121,C121),0):J121,OFFSET(OFFSET(CorrosionRates!$C$119,-MIN(F121,C121),0):'CorrosionRates'!$C$119,0,$S$8)) -> 0.131458776 | L121: 0.2891850114 | M121: 0.4206437874 | N121: =IF(N$25,M121,OFFSET(CorrosionRates!$C$119,-C121,$S$9)) -> 0.4206437874 | O121: 0.8412875748 | R121: FALSE | S121: 0 | T121: 0.562962963 | U121: 0.437037037 | W121: FALSE | X121: 0 | Y121: 0 | Z121: 0 | AB121: FALSE | AC121: 2 | AE121: 12.15871243 | AF121: 9.158712425 | AG121: 29667.25832 | AH121: 4799.165311 | AI121: 34466.42363 | AJ121: 29667.25832 | AK121: 519806.9313 | AM121: 12.15871243 | AN121: 9.158712425 | AP121: 0.9352855712 | AQ121: 0.9158712425 | AR121: 0.9314815475 | AT121: 618281.5454 | AU121: 748748.6059 | AV121: 519806.9313 | BC121: =IntvTriggers!$L$14 -> 0.75 | BD121: FALSE | BE121: =IntvTriggers!$L$15 -> 0.1 | BF121: 0.06471442883 | BG121: FALSE | BH121: =IntvTriggers!$L$16 -> 0.1 | BI121: 0.08412875748 | BJ121: FALSE | BK121: =IntvTriggers!$L$17 -> 0.95 | BL121: FALSE | BM121: =IntvTriggers!$L$18 -> 0.95 | BN121: FALSE | BO121: =IntvTriggers!$L$19 -> 0.95 | BP121: FALSE | BQ121: 0 | BR121: FALSE | BS121: FALSE | BT121: FALSE | BV121: =IntvTriggers!$L$22 -> 0.95 | BW121: FALSE | BX121: =IntvTriggers!$L$23 -> 0.05 | BY121: 0.06471442883 | BZ121: FALSE | CA121: =IntvTriggers!$L$24 -> 0.05 | CB121: 0.08412875748 | CC121: FALSE | CD121: =IntvTriggers!$L$25 -> 0.98 | CE121: FALSE | CF121: =IntvTriggers!$L$26 -> 0.98 | CG121: FALSE | CH121: =IntvTriggers!$L$27 -> 0.98 | CI121: FALSE | CJ121: 0 | CK121: FALSE | CL121: FALSE | CM121: FALSE | CN121: FALSE | CP121: =IntvTriggers!$L$32 -> 0.9 | CQ121: FALSE | CR121: =IntvTriggers!$L$33 -> 0.1 | CS121: 0.06471442883 | CT121: FALSE | CU121: =IntvTriggers!$L$34 -> 0.1 | CV121: 0.08412875748 | CW121: FALSE | CX121: =IntvTriggers!$L$35 -> 0.95 | CY121: FALSE | CZ121: =IntvTriggers!$L$36 -> 0.95 | DA121: FALSE | DB121: =IntvTriggers!$L$37 -> 0.95 | DC121: FALSE | DD121: 0 | DE121: FALSE | DF121: FALSE | DK121: 0 | DN121: 95 | DO121: 20 | DP121: 0 | DQ121: 0 | DR121: 0
C122: 97 | D122: 3 | E122: =INDEX(Assumptions!$D$25:$F$28,$S$8,D122) -> 18 | F122: 20 | G122: 1.111111111 | H122: FALSE | I122: 0.6296296296 | J122: 0.06666666667 | K122: =SUMPRODUCT(OFFSET(J122,-MIN(F122,C122),0):J122,OFFSET(OFFSET(CorrosionRates!$C$119,-MIN(F122,C122),0):'CorrosionRates'!$C$119,0,$S$8)) -> 0.1526612391 | L122: 0.2891850114 | M122: 0.4418462504 | N122: =IF(N$25,M122,OFFSET(CorrosionRates!$C$119,-C122,$S$9)) -> 0.4418462504 | O122: 0.8836925009 | R122: =CN122 -> FALSE | S122: 0 | T122: 0.6296296296 | U122: =1-T122 -> 0.3703703704 | W122: =IF(AB122,FALSE,BT122) -> FALSE | X122: 0 | Y122: 0 | Z122: 0 | AB122: =DF122 -> FALSE | AC122: 2 | AE122: 12.1163075 | AF122: 9.116307499 | AG122: 29563.7903 | AH122: 4776.94513 | AI122: 34340.73543 | AJ122: 29563.7903 | AK122: 517876.3263 | AM122: =IF(OR($W122,$AB122),AE123,AE122) -> 12.1163075 | AN122: =IF(OR($W122,$AB122),AF123,AF122) -> 9.116307499 | AP122: 0.9320236538 | AQ122: 0.9116307499 | AR122: 0.9280219496 | AT122: 616037.8255 | AU122: 745928.4577 | AV122: 517876.3263 | BC122: =IntvTriggers!$L$14 -> 0.75 | BD122: FALSE | BE122: =IntvTriggers!$L$15 -> 0.1 | BF122: =($AE$24-$AE122)/$AE$24 -> 0.06797634622 | BG122: FALSE | BH122: =IntvTriggers!$L$16 -> 0.1 | BI122: =($AF$24-$AF122)/$AF$24 -> 0.08836925009 | BJ122: FALSE | BK122: =IntvTriggers!$L$17 -> 0.95 | BL122: FALSE | BM122: =IntvTriggers!$L$18 -> 0.95 | BN122: FALSE | BO122: =IntvTriggers!$L$19 -> 0.95 | BP122: FALSE | BQ122: 0 | BR122: =AND(BQ122="x",BR$24) -> FALSE | BS122: FALSE | BT122: =IF(DF122,FALSE,BS122) -> FALSE | BV122: =IntvTriggers!$L$22 -> 0.95 | BW122: FALSE | BX122: =IntvTriggers!$L$23 -> 0.05 | BY122: =($AE$24-$AE122)/$AE$24 -> 0.06797634622 | BZ122: FALSE | CA122: =IntvTriggers!$L$24 -> 0.05 | CB122: =($AF$24-$AF122)/$AF$24 -> 0.08836925009 | CC122: FALSE | CD122: =IntvTriggers!$L$25 -> 0.98 | CE122: FALSE | CF122: =IntvTriggers!$L$26 -> 0.98 | CG122: FALSE | CH122: =IntvTriggers!$L$27 -> 0.98 | CI122: FALSE | CJ122: 0 | CK122: =AND(CJ122="x",CK$24) -> FALSE | CL122: FALSE | CM122: =IF(BS122,FALSE,CL122) -> FALSE | CN122: =IF(DF122,FALSE,CM122) -> FALSE | CP122: =IntvTriggers!$L$32 -> 0.9 | CQ122: FALSE | CR122: =IntvTriggers!$L$33 -> 0.1 | CS122: =($AE$24-$AE122)/$AE$24 -> 0.06797634622 | CT122: FALSE | CU122: =IntvTriggers!$L$34 -> 0.1 | CV122: =($AF$24-$AF122)/$AF$24 -> 0.08836925009 | CW122: FALSE | CX122: =IntvTriggers!$L$35 -> 0.95 | CY122: FALSE | CZ122: =IntvTriggers!$L$36 -> 0.95 | DA122: FALSE | DB122: =IntvTriggers!$L$37 -> 0.95 | DC122: FALSE | DD122: 0 | DE122: FALSE | DF122: FALSE | DK122: 0 | DN122: 96 | DO122: =INT(DN122/DO$22+1) -> 20 | DP122: 0 | DQ122: 0 | DR122: 0
C123: 98 | D123: =IF($S123>0,$S123,D122) -> 3 | E123: =INDEX(Assumptions!$D$25:$F$28,$S$8,D123) -> 18 | F123: =IF($S123>0,0,F122+1) -> 21 | G123: 1.166666667 | H123: FALSE | I123: 0.7 | J123: 0.07037037037 | K123: =SUMPRODUCT(OFFSET(J123,-MIN(F123,C123),0):J123,OFFSET(OFFSET(CorrosionRates!$C$119,-MIN(F123,C123),0):'CorrosionRates'!$C$119,0,$S$8)) -> 0.1758170226 | L123: =IF(AB122,0,IF(F123=0,M122,L122)) -> 0.2891850114 | M123: 0.465002034 | N123: =IF(N$25,M123,OFFSET(CorrosionRates!$C$119,-C123,$S$9)) -> 0.465002034 | O123: 0.9300040679 | R123: FALSE | S123: =DK122 -> 0 | T123: 0.7 | U123: 0.3 | W123: FALSE | X123: =IF(AB123,0,IF(W123,X122+1,X122)) -> 0 | Y123: 0 | Z123: 0 | AB123: FALSE | AC123: 2 | AE123: 12.06999593 | AF123: 9.069995932 | AG123: 29450.79007 | AH123: 4752.677868 | AI123: 34203.46794 | AJ123: 29450.79007 | AK123: 515767.4922 | AM123: 12.06999593 | AN123: 9.069995932 | AP123: 0.9284612255 | AQ123: 0.9069995932 | AR123: 0.9242429695 | AT123: 613586.8387 | AU123: 742847.6489 | AV123: 515767.4922 | BC123: =IntvTriggers!$L$14 -> 0.75 | BD123: FALSE | BE123: =IntvTriggers!$L$15 -> 0.1 | BF123: 0.07153877445 | BG123: FALSE | BH123: =IntvTriggers!$L$16 -> 0.1 | BI123: 0.09300040679 | BJ123: FALSE | BK123: =IntvTriggers!$L$17 -> 0.95 | BL123: FALSE | BM123: =IntvTriggers!$L$18 -> 0.95 | BN123: FALSE | BO123: =IntvTriggers!$L$19 -> 0.95 | BP123: FALSE | BQ123: 0 | BR123: FALSE | BS123: FALSE | BT123: FALSE | BV123: =IntvTriggers!$L$22 -> 0.95 | BW123: FALSE | BX123: =IntvTriggers!$L$23 -> 0.05 | BY123: 0.07153877445 | BZ123: FALSE | CA123: =IntvTriggers!$L$24 -> 0.05 | CB123: 0.09300040679 | CC123: FALSE | CD123: =IntvTriggers!$L$25 -> 0.98 | CE123: FALSE | CF123: =IntvTriggers!$L$26 -> 0.98 | CG123: FALSE | CH123: =IntvTriggers!$L$27 -> 0.98 | CI123: FALSE | CJ123: 0 | CK123: FALSE | CL123: FALSE | CM123: FALSE | CN123: FALSE | CP123: =IntvTriggers!$L$32 -> 0.9 | CQ123: FALSE | CR123: =IntvTriggers!$L$33 -> 0.1 | CS123: 0.07153877445 | CT123: FALSE | CU123: =IntvTriggers!$L$34 -> 0.1 | CV123: 0.09300040679 | CW123: FALSE | CX123: =IntvTriggers!$L$35 -> 0.95 | CY123: FALSE | CZ123: =IntvTriggers!$L$36 -> 0.95 | DA123: FALSE | DB123: =IntvTriggers!$L$37 -> 0.95 | DC123: FALSE | DD123: 0 | DE123: FALSE | DF123: FALSE | DK123: 0 | DN123: 97 | DO123: 20 | DP123: 0 | DQ123: 0 | DR123: 0
C124: 99 | D124: 3 | E124: =INDEX(Assumptions!$D$25:$F$28,$S$8,D124) -> 18 | F124: 22 | G124: 1.222222222 | H124: FALSE | I124: 0.7740740741 | J124: 0.07407407407 | K124: =SUMPRODUCT(OFFSET(J124,-MIN(F124,C124),0):J124,OFFSET(OFFSET(CorrosionRates!$C$119,-MIN(F124,C124),0):'CorrosionRates'!$C$119,0,$S$8)) -> 0.2009876308 | L124: 0.2891850114 | M124: 0.4901726421 | N124: =IF(N$25,M124,OFFSET(CorrosionRates!$C$119,-C124,$S$9)) -> 0.4901726421 | O124: 0.9803452843 | R124: FALSE | S124: 0 | T124: 0.7740740741 | U124: 0.2259259259 | W124: FALSE | X124: 0 | Y124: 0 | Z124: 0 | AB124: FALSE | AC124: 2 | AE124: 12.01965472 | AF124: 9.019654716 | AG124: 29327.95751 | AH124: 4726.299071 | AI124: 34054.25658 | AJ124: 29327.95751 | AK124: 513474.7279 | AM124: 12.01965472 | AN124: 9.019654716 | AP124: 0.9245888243 | AQ124: 0.9019654716 | AR124: 0.9201343909 | AT124: 610921.9247 | AU124: 739497.7682 | AV124: 513474.7279 | BC124: =IntvTriggers!$L$14 -> 0.75 | BD124: FALSE | BE124: =IntvTriggers!$L$15 -> 0.1 | BF124: 0.07541117571 | BG124: FALSE | BH124: =IntvTriggers!$L$16 -> 0.1 | BI124: 0.09803452843 | BJ124: FALSE | BK124: =IntvTriggers!$L$17 -> 0.95 | BL124: FALSE | BM124: =IntvTriggers!$L$18 -> 0.95 | BN124: FALSE | BO124: =IntvTriggers!$L$19 -> 0.95 | BP124: FALSE | BQ124: 0 | BR124: FALSE | BS124: FALSE | BT124: FALSE | BV124: =IntvTriggers!$L$22 -> 0.95 | BW124: FALSE | BX124: =IntvTriggers!$L$23 -> 0.05 | BY124: 0.07541117571 | BZ124: FALSE | CA124: =IntvTriggers!$L$24 -> 0.05 | CB124: 0.09803452843 | CC124: FALSE | CD124: =IntvTriggers!$L$25 -> 0.98 | CE124: FALSE | CF124: =IntvTriggers!$L$26 -> 0.98 | CG124: FALSE | CH124: =IntvTriggers!$L$27 -> 0.98 | CI124: FALSE | CJ124: 0 | CK124: FALSE | CL124: FALSE | CM124: FALSE | CN124: FALSE | CP124: =IntvTriggers!$L$32 -> 0.9 | CQ124: FALSE | CR124: =IntvTriggers!$L$33 -> 0.1 | CS124: 0.07541117571 | CT124: FALSE | CU124: =IntvTriggers!$L$34 -> 0.1 | CV124: 0.09803452843 | CW124: FALSE | CX124: =IntvTriggers!$L$35 -> 0.95 | CY124: FALSE | CZ124: =IntvTriggers!$L$36 -> 0.95 | DA124: FALSE | DB124: =IntvTriggers!$L$37 -> 0.95 | DC124: FALSE | DD124: 0 | DE124: FALSE | DF124: FALSE | DK124: 0 | DN124: 98 | DO124: 20 | DP124: 0 | DQ124: 0 | DR124: 0
C125: 100 | D125: 3 | E125: =INDEX(Assumptions!$D$25:$F$28,$S$8,D125) -> 18 | F125: 23 | G125: 1.277777778 | H125: FALSE | I125: 0.8518518519 | J125: 0.07777777778 | K125: =SUMPRODUCT(OFFSET(J125,-MIN(F125,C125),0):J125,OFFSET(OFFSET(CorrosionRates!$C$119,-MIN(F125,C125),0):'CorrosionRates'!$C$119,0,$S$8)) -> 0.2282332197 | L125: 0.2891850114 | M125: 0.517418231 | N125: =IF(N$25,M125,OFFSET(CorrosionRates!$C$119,-C125,$S$9)) -> 0.517418231 | O125: 1.034836462 | R125: FALSE | S125: 0 | T125: 0.8518518519 | U125: 0.1481481481 | W125: TRUE | X125: 1 | Y125: 1 | Z125: 1 | AB125: FALSE | AC125: 2 | AE125: 11.96516354 | AF125: 8.965163538 | AG125: 29194.99903 | AH125: 4697.745694 | AI125: 33892.74473 | AJ125: 29194.99903 | AK125: 510992.4418 | AM125: 12.96516354 | AN125: 9.965163538 | AP125: 0.9203971952 | AQ125: 0.8965163538 | AR125: 0.9156861937 | AT125: 608036.546 | AU125: 735870.5541 | AV125: 510992.4418 | BC125: =IntvTriggers!$L$14 -> 0.75 | BD125: FALSE | BE125: =IntvTriggers!$L$15 -> 0.1 | BF125: 0.07960280477 | BG125: FALSE | BH125: =IntvTriggers!$L$16 -> 0.1 | BI125: 0.1034836462 | BJ125: TRUE | BK125: =IntvTriggers!$L$17 -> 0.95 | BL125: FALSE | BM125: =IntvTriggers!$L$18 -> 0.95 | BN125: FALSE | BO125: =IntvTriggers!$L$19 -> 0.95 | BP125: FALSE | BQ125: 0 | BR125: FALSE | BS125: TRUE | BT125: TRUE | BV125: =IntvTriggers!$L$22 -> 0.95 | BW125: FALSE | BX125: =IntvTriggers!$L$23 -> 0.05 | BY125: 0.07960280477 | BZ125: FALSE | CA125: =IntvTriggers!$L$24 -> 0.05 | CB125: 0.1034836462 | CC125: FALSE | CD125: =IntvTriggers!$L$25 -> 0.98 | CE125: FALSE | CF125: =IntvTriggers!$L$26 -> 0.98 | CG125: FALSE | CH125: =IntvTriggers!$L$27 -> 0.98 | CI125: FALSE | CJ125: 0 | CK125: FALSE | CL125: FALSE | CM125: FALSE | CN125: FALSE | CP125: =IntvTriggers!$L$32 -> 0.9 | CQ125: FALSE | CR125: =IntvTriggers!$L$33 -> 0.1 | CS125: 0.07960280477 | CT125: FALSE | CU125: =IntvTriggers!$L$34 -> 0.1 | CV125: 0.1034836462 | CW125: FALSE | CX125: =IntvTriggers!$L$35 -> 0.95 | CY125: FALSE | CZ125: =IntvTriggers!$L$36 -> 0.95 | DA125: FALSE | DB125: =IntvTriggers!$L$37 -> 0.95 | DC125: FALSE | DD125: 0 | DE125: FALSE | DF125: FALSE | DK125: 3 | DN125: 99 | DO125: 20 | DP125: 0 | DQ125: 0 | DR125: 0
C126: 101 | D126: 3 | E126: =INDEX(Assumptions!$D$25:$F$28,$S$8,D126) -> 18 | F126: 0 | G126: 0 | H126: TRUE | I126: 0 | J126: 0 | K126: =SUMPRODUCT(OFFSET(J126,-MIN(F126,C126),0):J126,OFFSET(OFFSET(CorrosionRates!$C$119,-MIN(F126,C126),0):'CorrosionRates'!$C$119,0,$S$8)) -> 0 | L126: 0.517418231 | M126: 0.517418231 | N126: =IF(N$25,M126,OFFSET(CorrosionRates!$C$119,-C126,$S$9)) -> 0.517418231 | O126: 1.034836462 | R126: FALSE | S126: 3 | T126: 0 | U126: 1 | W126: FALSE | X126: 1 | Y126: 1 | Z126: 1 | AB126: FALSE | AC126: 2 | AE126: 12.96516354 | AF126: 9.965163538 | AG126: 31634.99903 | AH126: 5221.745694 | AI126: 36856.74473 | AJ126: 31634.99903 | AK126: 556462.3382 | AM126: 12.96516354 | AN126: 9.965163538 | AP126: 0.9973202721 | AQ126: 0.9965163538 | AR126: 0.997167157 | AT126: 660859.1849 | AU126: 802240.5559 | AV126: 556462.3382 | BC126: =IntvTriggers!$L$14 -> 0.75 | BD126: FALSE | BE126: =IntvTriggers!$L$15 -> 0.1 | BF126: 0.00267972785 | BG126: FALSE | BH126: =IntvTriggers!$L$16 -> 0.1 | BI126: 0.003483646206 | BJ126: FALSE | BK126: =IntvTriggers!$L$17 -> 0.95 | BL126: FALSE | BM126: =IntvTriggers!$L$18 -> 0.95 | BN126: FALSE | BO126: =IntvTriggers!$L$19 -> 0.95 | BP126: FALSE | BQ126: 0 | BR126: FALSE | BS126: FALSE | BT126: FALSE | BV126: =IntvTriggers!$L$22 -> 0.95 | BW126: FALSE | BX126: =IntvTriggers!$L$23 -> 0.05 | BY126: 0.00267972785 | BZ126: FALSE | CA126: =IntvTriggers!$L$24 -> 0.05 | CB126: 0.003483646206 | CC126: FALSE | CD126: =IntvTriggers!$L$25 -> 0.98 | CE126: FALSE | CF126: =IntvTriggers!$L$26 -> 0.98 | CG126: FALSE | CH126: =IntvTriggers!$L$27 -> 0.98 | CI126: FALSE | CJ126: 0 | CK126: FALSE | CL126: FALSE | CM126: FALSE | CN126: FALSE | CP126: =IntvTriggers!$L$32 -> 0.9 | CQ126: FALSE | CR126: =IntvTriggers!$L$33 -> 0.1 | CS126: 0.00267972785 | CT126: FALSE | CU126: =IntvTriggers!$L$34 -> 0.1 | CV126: 0.003483646206 | CW126: FALSE | CX126: =IntvTriggers!$L$35 -> 0.95 | CY126: FALSE | CZ126: =IntvTriggers!$L$36 -> 0.95 | DA126: FALSE | DB126: =IntvTriggers!$L$37 -> 0.95 | DC126: FALSE | DD126: 0 | DE126: FALSE | DF126: FALSE | DK126: 0 | DN126: 100 | DO126: 21 | DP126: 1 | DQ126: 0 | DR126: 0
C127: 102 | D127: 3 | E127: =INDEX(Assumptions!$D$25:$F$28,$S$8,D127) -> 18 | F127: 1 | G127: 0.05555555556 | H127: TRUE | I127: 0 | J127: 0 | K127: =SUMPRODUCT(OFFSET(J127,-MIN(F127,C127),0):J127,OFFSET(OFFSET(CorrosionRates!$C$119,-MIN(F127,C127),0):'CorrosionRates'!$C$119,0,$S$8)) -> 0 | L127: 0.517418231 | M127: 0.517418231 | N127: =IF(N$25,M127,OFFSET(CorrosionRates!$C$119,-C127,$S$9)) -> 0.517418231 | O127: 1.034836462 | R127: FALSE | S127: 0 | T127: 0 | U127: 1 | W127: FALSE | X127: 1 | Y127: 1 | Z127: 1 | AB127: FALSE | AC127: 2 | AE127: 12.96516354 | AF127: 9.965163538 | AG127: 31634.99903 | AH127: 5221.745694 | AI127: 36856.74473 | AJ127: 31634.99903 | AK127: 556462.3382 | AM127: 12.96516354 | AN127: 9.965163538 | AP127: 0.9973202721 | AQ127: 0.9965163538 | AR127: 0.997167157 | AT127: 660859.1849 | AU127: 802240.5559 | AV127: 556462.3382 | BC127: =IntvTriggers!$L$14 -> 0.75 | BD127: FALSE | BE127: =IntvTriggers!$L$15 -> 0.1 | BF127: 0.00267972785 | BG127: FALSE | BH127: =IntvTriggers!$L$16 -> 0.1 | BI127: 0.003483646206 | BJ127: FALSE | BK127: =IntvTriggers!$L$17 -> 0.95 | BL127: FALSE | BM127: =IntvTriggers!$L$18 -> 0.95 | BN127: FALSE | BO127: =IntvTriggers!$L$19 -> 0.95 | BP127: FALSE | BQ127: 0 | BR127: FALSE | BS127: FALSE | BT127: FALSE | BV127: =IntvTriggers!$L$22 -> 0.95 | BW127: FALSE | BX127: =IntvTriggers!$L$23 -> 0.05 | BY127: 0.00267972785 | BZ127: FALSE | CA127: =IntvTriggers!$L$24 -> 0.05 | CB127: 0.003483646206 | CC127: FALSE | CD127: =IntvTriggers!$L$25 -> 0.98 | CE127: FALSE | CF127: =IntvTriggers!$L$26 -> 0.98 | CG127: FALSE | CH127: =IntvTriggers!$L$27 -> 0.98 | CI127: FALSE | CJ127: 0 | CK127: FALSE | CL127: FALSE | CM127: FALSE | CN127: FALSE | CP127: =IntvTriggers!$L$32 -> 0.9 | CQ127: FALSE | CR127: =IntvTriggers!$L$33 -> 0.1 | CS127: 0.00267972785 | CT127: FALSE | CU127: =IntvTriggers!$L$34 -> 0.1 | CV127: 0.003483646206 | CW127: FALSE | CX127: =IntvTriggers!$L$35 -> 0.95 | CY127: FALSE | CZ127: =IntvTriggers!$L$36 -> 0.95 | DA127: FALSE | DB127: =IntvTriggers!$L$37 -> 0.95 | DC127: FALSE | DD127: 0 | DE127: FALSE | DF127: FALSE | DK127: 0 | DN127: 101 | DO127: 21 | DP127: 0 | DQ127: 0 | DR127: 0
C128: 103 | D128: 3 | E128: =INDEX(Assumptions!$D$25:$F$28,$S$8,D128) -> 18 | F128: 2 | G128: 0.1111111111 | H128: TRUE | I128: 0 | J128: 0 | K128: =SUMPRODUCT(OFFSET(J128,-MIN(F128,C128),0):J128,OFFSET(OFFSET(CorrosionRates!$C$119,-MIN(F128,C128),0):'CorrosionRates'!$C$119,0,$S$8)) -> 0 | L128: 0.517418231 | M128: 0.517418231 | N128: =IF(N$25,M128,OFFSET(CorrosionRates!$C$119,-C128,$S$9)) -> 0.517418231 | O128: 1.034836462 | R128: FALSE | S128: 0 | T128: 0 | U128: 1 | W128: FALSE | X128: 1 | Y128: 1 | Z128: 1 | AB128: FALSE | AC128: 2 | AE128: 12.96516354 | AF128: 9.965163538 | AG128: 31634.99903 | AH128: 5221.745694 | AI128: 36856.74473 | AJ128: 31634.99903 | AK128: 556462.3382 | AM128: 12.96516354 | AN128: 9.965163538 | AP128: 0.9973202721 | AQ128: 0.9965163538 | AR128: 0.997167157 | AT128: 660859.1849 | AU128: 802240.5559 | AV128: 556462.3382 | BC128: =IntvTriggers!$L$14 -> 0.75 | BD128: FALSE | BE128: =IntvTriggers!$L$15 -> 0.1 | BF128: 0.00267972785 | BG128: FALSE | BH128: =IntvTriggers!$L$16 -> 0.1 | BI128: 0.003483646206 | BJ128: FALSE | BK128: =IntvTriggers!$L$17 -> 0.95 | BL128: FALSE | BM128: =IntvTriggers!$L$18 -> 0.95 | BN128: FALSE | BO128: =IntvTriggers!$L$19 -> 0.95 | BP128: FALSE | BQ128: 0 | BR128: FALSE | BS128: FALSE | BT128: FALSE | BV128: =IntvTriggers!$L$22 -> 0.95 | BW128: FALSE | BX128: =IntvTriggers!$L$23 -> 0.05 | BY128: 0.00267972785 | BZ128: FALSE | CA128: =IntvTriggers!$L$24 -> 0.05 | CB128: 0.003483646206 | CC128: FALSE | CD128: =IntvTriggers!$L$25 -> 0.98 | CE128: FALSE | CF128: =IntvTriggers!$L$26 -> 0.98 | CG128: FALSE | CH128: =IntvTriggers!$L$27 -> 0.98 | CI128: FALSE | CJ128: 0 | CK128: FALSE | CL128: FALSE | CM128: FALSE | CN128: FALSE | CP128: =IntvTriggers!$L$32 -> 0.9 | CQ128: FALSE | CR128: =IntvTriggers!$L$33 -> 0.1 | CS128: 0.00267972785 | CT128: FALSE | CU128: =IntvTriggers!$L$34 -> 0.1 | CV128: 0.003483646206 | CW128: FALSE | CX128: =IntvTriggers!$L$35 -> 0.95 | CY128: FALSE | CZ128: =IntvTriggers!$L$36 -> 0.95 | DA128: FALSE | DB128: =IntvTriggers!$L$37 -> 0.95 | DC128: FALSE | DD128: 0 | DE128: FALSE | DF128: FALSE | DK128: 0 | DN128: 102 | DO128: 21 | DP128: 0 | DQ128: 0 | DR128: 0
C129: 104 | D129: 3 | E129: =INDEX(Assumptions!$D$25:$F$28,$S$8,D129) -> 18 | F129: 3 | G129: 0.1666666667 | H129: TRUE | I129: 0 | J129: 0 | K129: =SUMPRODUCT(OFFSET(J129,-MIN(F129,C129),0):J129,OFFSET(OFFSET(CorrosionRates!$C$119,-MIN(F129,C129),0):'CorrosionRates'!$C$119,0,$S$8)) -> 0 | L129: 0.517418231 | M129: 0.517418231 | N129: =IF(N$25,M129,OFFSET(CorrosionRates!$C$119,-C129,$S$9)) -> 0.517418231 | O129: 1.034836462 | R129: FALSE | S129: 0 | T129: 0 | U129: 1 | W129: FALSE | X129: 1 | Y129: 1 | Z129: 1 | AB129: FALSE | AC129: 2 | AE129: 12.96516354 | AF129: 9.965163538 | AG129: 31634.99903 | AH129: 5221.745694 | AI129: 36856.74473 | AJ129: 31634.99903 | AK129: 556462.3382 | AM129: 12.96516354 | AN129: 9.965163538 | AP129: 0.9973202721 | AQ129: 0.9965163538 | AR129: 0.997167157 | AT129: 660859.1849 | AU129: 802240.5559 | AV129: 556462.3382 | BC129: =IntvTriggers!$L$14 -> 0.75 | BD129: FALSE | BE129: =IntvTriggers!$L$15 -> 0.1 | BF129: 0.00267972785 | BG129: FALSE | BH129: =IntvTriggers!$L$16 -> 0.1 | BI129: 0.003483646206 | BJ129: FALSE | BK129: =IntvTriggers!$L$17 -> 0.95 | BL129: FALSE | BM129: =IntvTriggers!$L$18 -> 0.95 | BN129: FALSE | BO129: =IntvTriggers!$L$19 -> 0.95 | BP129: FALSE | BQ129: 0 | BR129: FALSE | BS129: FALSE | BT129: FALSE | BV129: =IntvTriggers!$L$22 -> 0.95 | BW129: FALSE | BX129: =IntvTriggers!$L$23 -> 0.05 | BY129: 0.00267972785 | BZ129: FALSE | CA129: =IntvTriggers!$L$24 -> 0.05 | CB129: 0.003483646206 | CC129: FALSE | CD129: =IntvTriggers!$L$25 -> 0.98 | CE129: FALSE | CF129: =IntvTriggers!$L$26 -> 0.98 | CG129: FALSE | CH129: =IntvTriggers!$L$27 -> 0.98 | CI129: FALSE | CJ129: 0 | CK129: FALSE | CL129: FALSE | CM129: FALSE | CN129: FALSE | CP129: =IntvTriggers!$L$32 -> 0.9 | CQ129: FALSE | CR129: =IntvTriggers!$L$33 -> 0.1 | CS129: 0.00267972785 | CT129: FALSE | CU129: =IntvTriggers!$L$34 -> 0.1 | CV129: 0.003483646206 | CW129: FALSE | CX129: =IntvTriggers!$L$35 -> 0.95 | CY129: FALSE | CZ129: =IntvTriggers!$L$36 -> 0.95 | DA129: FALSE | DB129: =IntvTriggers!$L$37 -> 0.95 | DC129: FALSE | DD129: 0 | DE129: FALSE | DF129: FALSE | DK129: 0 | DN129: 103 | DO129: 21 | DP129: 0 | DQ129: 0 | DR129: 0
C130: 105 | D130: 3 | E130: =INDEX(Assumptions!$D$25:$F$28,$S$8,D130) -> 18 | F130: 4 | G130: 0.2222222222 | H130: TRUE | I130: 0.007407407407 | J130: 0.007407407407 | K130: =SUMPRODUCT(OFFSET(J130,-MIN(F130,C130),0):J130,OFFSET(OFFSET(CorrosionRates!$C$119,-MIN(F130,C130),0):'CorrosionRates'!$C$119,0,$S$8)) -> 0 | L130: 0.517418231 | M130: 0.517418231 | N130: =IF(N$25,M130,OFFSET(CorrosionRates!$C$119,-C130,$S$9)) -> 0.517418231 | O130: 1.034836462 | R130: FALSE | S130: 0 | T130: 0.007407407407 | U130: 0.9925925926 | W130: FALSE | X130: 1 | Y130: 1 | Z130: 1 | AB130: FALSE | AC130: 2 | AE130: 12.96516354 | AF130: 9.965163538 | AG130: 31634.99903 | AH130: 5221.745694 | AI130: 36856.74473 | AJ130: 31634.99903 | AK130: 556462.3382 | AM130: 12.96516354 | AN130: 9.965163538 | AP130: 0.9973202721 | AQ130: 0.9965163538 | AR130: 0.997167157 | AT130: 660859.1849 | AU130: 802240.5559 | AV130: 556462.3382 | BC130: =IntvTriggers!$L$14 -> 0.75 | BD130: FALSE | BE130: =IntvTriggers!$L$15 -> 0.1 | BF130: 0.00267972785 | BG130: FALSE | BH130: =IntvTriggers!$L$16 -> 0.1 | BI130: 0.003483646206 | BJ130: FALSE | BK130: =IntvTriggers!$L$17 -> 0.95 | BL130: FALSE | BM130: =IntvTriggers!$L$18 -> 0.95 | BN130: FALSE | BO130: =IntvTriggers!$L$19 -> 0.95 | BP130: FALSE | BQ130: 0 | BR130: FALSE | BS130: FALSE | BT130: FALSE | BV130: =IntvTriggers!$L$22 -> 0.95 | BW130: FALSE | BX130: =IntvTriggers!$L$23 -> 0.05 | BY130: 0.00267972785 | BZ130: FALSE | CA130: =IntvTriggers!$L$24 -> 0.05 | CB130: 0.003483646206 | CC130: FALSE | CD130: =IntvTriggers!$L$25 -> 0.98 | CE130: FALSE | CF130: =IntvTriggers!$L$26 -> 0.98 | CG130: FALSE | CH130: =IntvTriggers!$L$27 -> 0.98 | CI130: FALSE | CJ130: 0 | CK130: FALSE | CL130: FALSE | CM130: FALSE | CN130: FALSE | CP130: =IntvTriggers!$L$32 -> 0.9 | CQ130: FALSE | CR130: =IntvTriggers!$L$33 -> 0.1 | CS130: 0.00267972785 | CT130: FALSE | CU130: =IntvTriggers!$L$34 -> 0.1 | CV130: 0.003483646206 | CW130: FALSE | CX130: =IntvTriggers!$L$35 -> 0.95 | CY130: FALSE | CZ130: =IntvTriggers!$L$36 -> 0.95 | DA130: FALSE | DB130: =IntvTriggers!$L$37 -> 0.95 | DC130: FALSE | DD130: 0 | DE130: FALSE | DF130: FALSE | DK130: 0 | DN130: 104 | DO130: 21 | DP130: 0 | DQ130: 0 | DR130: 0
DP132: Count
DO133: Period | DP133: Strengthening | DQ133: Painting | DR133: Replacement
DO134: 1 | DP134: =SUMIF($DO$26:$DO$130,DO134,$DP$26:$DP$130) -> 0 | DQ134: =SUMIF($DO$26:$DO$130,DO134,$DQ$26:$DQ$130) -> 0 | DR134: =SUMIF($DO$26:$DO$130,DO134,$DR$26:$DR$130) -> 1
DO135: =DO134+1 -> 2 | DP135: =SUMIF($DO$26:$DO$130,DO135,$DP$26:$DP$130) -> 0 | DQ135: =SUMIF($DO$26:$DO$130,DO135,$DQ$26:$DQ$130) -> 0 | DR135: =SUMIF($DO$26:$DO$130,DO135,$DR$26:$DR$130) -> 0
DO136: =DO135+1 -> 3 | DP136: 0 | DQ136: 0 | DR136: 0
DO137: 4 | DP137: 0 | DQ137: 0 | DR137: 0
DO138: 5 | DP138: 0 | DQ138: 0 | DR138: 0
